Workbook

Sheet L - Data (DO NOT EDIT) (hidden)
A1: Service Type | B1: Incident Base | C1: Released to | F1: Labor Type
A2: Distribution Line | B2: Dade City | C2: Duke | D2: YES | E2: Receipt - No Detail | F2: ST
A3: Damage Assessor | B3: Dog Track | C3: FPL | D3: NO | E3: Receipt - Detail | F3: OT
A4: Tree Trimmer | B4: Fair Grounds | C4: Home | D4: Needs Reviewed | E4: Inc'l Alcohol | F4: DT
B5: Strawberry Festival | E5: No Receipt | F5: MOB/DMOB
B6: Western
B7: Wimauma
B8: Winter Haven

Sheet Sign Off
B3: Sign Off's
B5: Accounting
C7: Name | D7: Title | E7: Date
B8: Preparer | C8: Fernando Santizo | D8: Sr. Accountant | E8: 2018-10-23
B9: Reviewer | C9: Andrew Peurrung | D9: Fin Reporting Co-op (Latta) | E9: 2018-11-06
B10: Approver | C10: N/A | D10: N/A | E10: N/A
B12: Audit Services
C14: Name | D14: Title | E14: Date
B15: Quality Reviewer | C15: Kaitlyn Bossard | D15: Senior Financial Auditor | E15: 2018-11-16
B18: Energy Delivery
C20: Name | D20: Title | E20: Date
B21: Final Reviewer | C21: Mike Childers | D21: ED Capital Planning & Analysis | E21: 2018-11-29

Sheet A - Contractor Summary
B2: Contractor Summary
B4: Test Plan: (A) Using the drop down list, select the vendor. (B) Ensure address agrees to invoice(s). (C) Enter the distance between vendor address to Plant City, FL. (D) Determine if vendor is part of the SEE (see tab A.1 for listing). (E) Determine if other agreements exist. (F) Using the drop down list, select the Incident Base that the vendor was initially assigned. (G) If the contractor includes multiple crews with different timelines, utilize the '+' symbol at the top of columns 'H' and 'K' (if necessary) to unhide the vendor summary. (H) Click the button to populate the second (and third, if necessary) set of tabs for documentation of those expenses. (I) Complete steps (A) through (F).
F14: G | I14: G
C15: Vendor #1 | F15: Vendor #2 | I15: Vendor #3
G17: H | J17: H
B19: Contractor/Company | C19: Vendor No. 38 | D19: A | G19: A | J19: A
B20: SAP Vendor# | C20: 70004402 | F20: =VLOOKUP(F19,#REF!,2,FALSE) ->  | I20: =VLOOKUP(I19,#REF!,2,FALSE) -> 
B21: Service Type | C21: Distribution Line | F21: =VLOOKUP($F$19,#REF!,4,FALSE) ->  | I21: =VLOOKUP($I$19,#REF!,4,FALSE) -> 
B23: Address | D23: B | F23: =VLOOKUP($F$19,#REF!,13,FALSE) ->  | G23: B | I23: =VLOOKUP($I$19,#REF!,13,FALSE) ->  | J23: B
B24: City | F24: =VLOOKUP($F$19,#REF!,14,FALSE) ->  | I24: =VLOOKUP($I$19,#REF!,14,FALSE) -> 
B25: State/Providence | F25: =VLOOKUP($F$19,#REF!,15,FALSE) ->  | I25: =VLOOKUP($I$19,#REF!,15,FALSE) -> 
B26: Zip | F26: =VLOOKUP($F$19,#REF!,16,FALSE) ->  | I26: =VLOOKUP($I$19,#REF!,16,FALSE) -> 
B27: Country | C27: US | F27: =VLOOKUP($F$19,#REF!,17,FALSE) ->  | I27: =VLOOKUP($I$19,#REF!,17,FALSE) -> 
B29: Distance from FL (in miles) | D29: C | G29: C | I29: 800 | J29: C
B30: Travel Days (500 m/per day) | C30: 3 | F30: =ROUNDUP(F29/500,0) -> 0 | I30: =ROUNDUP(I29/500,0) -> 2
B33: Member of the SEE | C33: NO | D33: D | F33: NO | G33: D | I33: NO | J33: D
B34: Other Agreement/Contract (Y/N) | C34: NO | D34: E | F34: NO | G34: E | I34: NO | J34: E
B35: Incident Base | C35: Winter Haven | D35: F | F35: Winter Haven | G35: F | I35: Winter Haven | J35: F
B37: Date Secured | C37: 2017-09-09 | F37: =VLOOKUP($F$19,#REF!,6,FALSE) ->  | I37: =VLOOKUP($I$19,#REF!,6,FALSE) -> 
B38: Start Travel | C38: N/A | F38: =VLOOKUP($F$19,#REF!,7,FALSE) ->  | I38: =VLOOKUP($I$19,#REF!,7,FALSE) -> 
B39: Date Arrived | C39: 2017-09-12 | F39: =VLOOKUP($F$19,#REF!,8,FALSE) ->  | I39: =VLOOKUP($I$19,#REF!,8,FALSE) -> 
B40: Date Released | C40: 2017-09-17 | F40: =VLOOKUP($F$19,#REF!,9,FALSE) ->  | I40: =VLOOKUP($I$19,#REF!,9,FALSE) -> 
B41: Time Released | C41: 10:26 | F41: =VLOOKUP($F$19,#REF!,10,FALSE) ->  | I41: =VLOOKUP($I$19,#REF!,10,FALSE) -> 
B42: Released To | C42: FPL | F42: =VLOOKUP($F$19,#REF!,11,FALSE) ->  | I42: =VLOOKUP($I$19,#REF!,11,FALSE) -> 
B43: Arrived Home/Utility* | C43: 2017-09-17 | F43: =IF(F42="home",SUM(IF(F29>500,F40+F30,F40)),F40) ->  | I43: =IF(I42="home",SUM(IF(I29>500,I40+I30,I40)),I40) -> 
F48: C.1 - Rate Sheets (2) | I48: C.1 - Rate Sheets (3)
F49: C.2 - Timesheets - Labor (2) | I49: C.2 - Timesheets - Labor (3)
F50: C.4 - Timesheets - Equipmen (2) | I50: C.4 - Timesheets - Equipmen (3)
F51: D - Lodging (2) | I51: D - Lodging (3)
F52: E - Fuel (2) | I52: E - Fuel (3)
F53: F - Meals (2) | I53: F - Meals (3)
F54: G - Per Diem (2) | I54: G - Per Diem (3)
F55: H - Mileage (2) | I55: H - Mileage (3)
F56: I - Other (2) | I56: I - Other (3)
B60: *Estimates reasonable arrival time
B62: Tickmark Explanation:

Sheet A.1 SEE Members
A1: RMAG | B1: RESPONDING COMPANY | C1: COMPANY NAME
A2: SEE | B2: AEP Kentucky Power Co | C2: AEP Kentucky Power Co
A3: SEE | B3: AEP Kentucky Power Co | C3: AEP Kentucky Power Co
A4: SEE | B4: AEP Kentucky Power Co | C4: David Elliot
A5: SEE | B5: AEP Appalachian Power Co | C5: Asplundh
A6: SEE | B6: AEP Appalachian Power Co | C6: Davis Elliot
A7: SEE | B7: AEP Appalachian Power Co | C7: Davis Elliot
A8: SEE | B8: AEP Indiana Michigan Power Co | C8: AEP Indiana Michigan Power Co
A9: SEE | B9: AEP Ohio Power Company | C9: AEP Ohio Power Company
A10: SEE | B10: AEP Ohio Power Company | C10: Osmose
A11: SEE | B11: AEP Ohio Power Company | C11: Thayer
A12: SEE | B12: AEP Ohio Power Company | C12: 5 Star
A13: SEE | B13: AEP Ohio Power Company | C13: AEP Ohio Power Company
A14: SEE | B14: AEP Ohio Power Company | C14: AEP Ohio Power Company
A15: SEE | B15: AEP Public Service of Oklahoma | C15: AEP Public Service of Oklahoma
A16: SEE | B16: AEP Public Service of Oklahoma | C16: Davis Elliot
A17: SEE | B17: CenterPoint Energy | C17: ABC Tree
A18: SEE | B18: CenterPoint Energy | C18: CenterPoint Energy
A19: SEE | B19: CenterPoint Energy | C19: Davey Tree
B20: Consolidated Edison | C20: Consolidated Edison
B21: Consumers | C21: Trees, Inc.
B22: Consumers | C22: Asplundh Tree Expert Companhy
B23: Consumers | C23: Davey Tree Expert Company
A24: SEE | B24: Dayton Power & Light | C24: Lewis Tree
A25: SEE | B25: Dominion | C25: Davis H Elliot
A26: SEE | B26: Dominion | C26: Lee Electrical
A27: SEE | B27: Dominion | C27: Mastec
A28: SEE | B28: Dominion | C28: Riggs Distler
A29: SEE | B29: Dominion | C29: River City
B30: Empire District - Liberty | C30: Empire District - Liberty
A31: SEE | B31: Entergy Louisiana | C31: Asplundh Tree
A32: SEE | B32: Entergy Louisiana | C32: Global Environmental Solutions
A33: SEE | B33: Entergy Mississippi | C33: B&B Electrical
A34: SEE | B34: Entergy Mississippi | C34: MDR Construction
A35: SEE | B35: Entergy Mississippi | C35: Chain Electric
B36: Eversource, CT | C36: Asplundh
B37: Eversource, CT | C37: Elecnor Hawkeye
B38: Eversource, CT | C38: Riggs Distler
B39: Eversource, MA | C39: IB Abel
A40: SEE | B40: Exelon PHI Potomac Electric Power Co | C40: Asplundh Tree
A41: SEE | B41: FE Ohio Edison Company | C41: Didado Transmission Cont
A42: SEE | B42: FE Ohio Edison Company | C42: Didado Distribution
A43: SEE | B43: FE Ohio Edison Company | C43: FE Ohio Edison Company
B44: Indianapolis Power & Light | C44: Wright Tree Service
B45: ITC Midwest | C45: MJ Electric
B46: ITC Midwest | C46: Michels Power
A47: SEE | B47: LG&E/KU | C47: Davis H Elliot
B48: Liberty Utilities (Algonquin Power) | C48: Liberty Utilities (Algonquin Power)
B49: Madison Gas & Electric | C49: Madison Gas & Electric
B50: National Grid (NE) | C50: National Grid (NE)
B51: National Grid (NY) | C51: National Grid (NY)
B52: Nebraska Public Power | C52: Nebraska Public Power
B53: Northern Indiana Public Service Co | C53: Northern Indiana Public Service Co
B54: Omaha Public Power | C54: Omaha Public Power
A55: SEE | B55: Oncor Electric Delivery | C55: Arbor Resources
A56: SEE | B56: Oncor Electric Delivery | C56: Asplundh
A57: SEE | B57: Oncor Electric Delivery | C57: Pike
B58: Orange & Rockland | C58: Orange & Rockland
B59: Orange & Rockland | C59: Orange & Rockland
B60: Otter Tail Power | C60: Otter Tail Power
A61: SEE | B61: PPL Electric Utilities | C61: PPL Electric Utilities
B62: PSEG (Long Island) | C62: Asplundh
B63: PSEG (Long Island) | C63: PSEG (Long Island)
A64: SEE | B64: SoCo Gulf Power Company | C64: SoCo Gulf Power Company
A65: SEE | B65: Texas-New Mexico Power | C65: Trees, Inc.
B66: Toronto Hydro | C66: Toronto Hydro
B67: Upper Peninsula Power Company | C67: Upper Peninsula Power Company
B68: Vectren Energy | C68: Electricom
B69: Vectren Energy | C69: Henkels & McCoy
B70: Vectren Energy | C70: Electricom
B71: XCEL Energy - Colorado | C71: XCEL Energy - Colorado
B72: XCEL Energy - Minnesota | C72: XCEL Energy - Minnesota
B73: XCEL Energy - Southwestern Public Service | C73: XCEL Energy - Southwestern Public Service

Sheet B - Summary Expenses
B2: Summary of Expenses
B4: Test Plan: (A) Calculate Total Amount Invoiced for each expense category. (B) Using SAP t-code FBL1N, list Vendor Invoices Paid. (C) Ensure there are no differences between the Total Expense Amount and the Total Paid Amount. (D) Ensure there are no difference between Total Invoiced Amount and Total Expense Amount. (E) If applicable, identify difference due to Foreign currency exchange rates.
C9: A
C10: Total Invoiced | D10: Total Calculated | E10: Allowable | F10: Reviewed - Allowed | G10: Reviewed - Not Allowable | H10: Not Allowable
B11: Labor Expense Total | C11: =614347.77 -> 614347.77 | D11: ='C.2 - Timesheets - Labor'!DO59+'C.2 - Timesheets - Labor (2)'!DO94+'C.2 - Timesheets - Labor (3)'!DO94-'C.2 - Timesheets - Labor'!C69 -> 496954.77 | E11: ='C.2 - Timesheets - Labor'!DP59+'C.2 - Timesheets - Labor (2)'!DP94+'C.2 - Timesheets - Labor (3)'!DP94-'C.2 - Timesheets - Labor'!C69 -> 474432.13 | F11: ='C.2 - Timesheets - Labor'!DS59+'C.2 - Timesheets - Labor (2)'!DS94+'C.2 - Timesheets - Labor (3)'!DS94 -> 22522.64 | G11: ='C.2 - Timesheets - Labor'!DT59+'C.2 - Timesheets - Labor (2)'!DT94+'C.2 - Timesheets - Labor (3)'!DT94 -> 0 | H11: =D11-(E11+F11+G11) -> 0
B12: Equipment Expense Total | C12: 0 | D12: ='C.4 - Timesheets - Equipment'!AF93+'C.4 - Timesheets - Equipmen (2)'!AF93+'C.4 - Timesheets - Equipmen (3)'!AF93 -> 0 | E12: ='C.4 - Timesheets - Equipment'!AG93+'C.4 - Timesheets - Equipmen (2)'!AG93+'C.4 - Timesheets - Equipmen (3)'!AG93 -> 0 | F12: ='C.4 - Timesheets - Equipment'!AJ93+'C.4 - Timesheets - Equipmen (2)'!AJ93+'C.4 - Timesheets - Equipmen (3)'!AJ93 -> 0 | G12: ='C.4 - Timesheets - Equipment'!AK93+'C.4 - Timesheets - Equipmen (2)'!AK93+'C.4 - Timesheets - Equipmen (3)'!AK93 -> 0 | H12: =D12-(E12+F12+G12) -> 0
B13: Lodging Expense Total | C13: 0 | D13: ='D - Lodging'!K34+'D - Lodging (2)'!K34+'D - Lodging (3)'!K34 -> 0 | E13: ='D - Lodging'!S34+'D - Lodging (2)'!S34+'D - Lodging (3)'!S34 -> 0 | F13: ='D - Lodging'!U34+'D - Lodging (2)'!U34+'D - Lodging (3)'!U34 -> 0 | G13: ='D - Lodging'!V34+'D - Lodging (2)'!V34+'D - Lodging (3)'!V34 -> 0 | H13: 0
B14: Fuel/Transport Expense Total | C14: 0 | D14: ='E - Fuel'!J34+'E - Fuel (2)'!J34+'E - Fuel (3)'!J34 -> 0 | E14: ='E - Fuel'!Q34+'E - Fuel (2)'!Q34+'E - Fuel (3)'!Q34 -> 0 | F14: ='E - Fuel'!S34+'E - Fuel (2)'!S34+'E - Fuel (3)'!S34 -> 0 | G14: ='E - Fuel'!T34+'E - Fuel (2)'!T34+'E - Fuel (3)'!T34 -> 0 | H14: 0
B15: Meal Expense Total | C15: 0 | D15: ='F - Meals'!J58+'F - Meals (2)'!J58+'F - Meals (3)'!J58 -> 0 | E15: ='F - Meals'!Q58+'F - Meals (2)'!Q58+'F - Meals (3)'!Q58 -> 0 | F15: ='F - Meals'!S58+'F - Meals (2)'!S58+'F - Meals (3)'!S58 -> 0 | G15: ='F - Meals'!T58+'F - Meals (2)'!T58+'F - Meals (3)'!T58 -> 0 | H15: 0
B16: Per Diem Expense Total | C16: 0 | D16: ='G - Per Diem'!I36+'G - Per Diem (2)'!I36+'G - Per Diem (3)'!I36 -> 0 | E16: ='G - Per Diem'!N36+'G - Per Diem (2)'!N36+'G - Per Diem (3)'!N36 -> 0 | F16: ='G - Per Diem'!P36+'G - Per Diem (2)'!P36+'G - Per Diem (3)'!P36 -> 0 | G16: ='G - Per Diem'!Q36+'G - Per Diem (2)'!Q36+'G - Per Diem (3)'!Q36 -> 0 | H16: 0
B17: Mileage Expense Total | C17: 0 | D17: ='H - Mileage'!L36+'H - Mileage (2)'!L36+'H - Mileage (3)'!L36 -> 0 | E17: ='H - Mileage'!R36+'H - Mileage (2)'!R36+'H - Mileage (3)'!R36 -> 0 | F17: ='H - Mileage'!T36+'H - Mileage (2)'!T36+'H - Mileage (3)'!T36 -> 0 | G17: ='H - Mileage'!U36+'H - Mileage (2)'!U36+'H - Mileage (3)'!U36 -> 0 | H17: 0
B18: Other Expense | C18: 20887.82 | D18: ='I - Other'!I16+'I - Other (2)'!J59+'I - Other (3)'!J59 -> 20887.82418 | E18: ='I - Other'!P16+'I - Other (2)'!Q59+'I - Other (3)'!Q59 -> 0 | F18: ='I - Other'!R16+'I - Other (2)'!S59+'I - Other (3)'!S59 -> 20887.82418 | G18: ='I - Other'!S16+'I - Other (2)'!T59+'I - Other (3)'!T59 -> 0 | H18: 0
B20: Total Expense per tabs | C20: =SUM(C11:C18) -> 635235.59 | D20: =SUM(D11:D18) -> 517842.5942 | E20: =SUM(E11:E18) -> 474432.13 | F20: =SUM(F11:F18) -> 43410.46418 | G20: =SUM(G11:G18) -> 0 | H20: =SUM(H11:H18) -> 0
B21: Difference | C21: 1 | D21: =C20-D20 -> 117392.9958 | E21: D
B23: Total Expense | D23: 517842.59 | E23: (from Total SAP Summary)
B24: Total Paid | D24: 635235.59 | E24: (from FBL1N in SAP)
B25: Difference | C25: 1 | D25: 117393 | E25: C
B27: Exchange Rate | D27: 1
B28: Fx Adjusted to USD | D28: 635235.59
B29: Difference | C29: =IF(D29=0,"","3") ->  | D29: 0 | E29: E
B31: B
B32: SAP - FBL1N
B33: Document No | C33: Doc Date | D33: Amount | E33: Reference
B34: 190004471 | C34: 2018-05-03 | D34: -635235.59 | E34: 40061737
D66: =SUM(D34:D64) -> -635235.59
B68: Tickmark Explanation:
B69: 1 Note that the additional $117,393 included on the invoice but not under the Storm Cost Restoration Order is related to Call Center Restoration charges, and can be found under the order #B2050767 within SAP. These charges are also identified in the tab 'C.2 - Timesheets - Labor' tab. A screenshot of SAP has also been provided below to demonstrate the break out of this invoice.

Sheet C.1 - Rate Sheets
B2: Labor Charges - Rate Sheet
B4: Test Plan: (A) Using the vendor rate sheet, ensure that a rate was provided for all Positions and Equipment types.
B6: Labor Types:
B7: ST | C7: Straight Time
B8: OT | C8: Over Time
B9: DT | C9: Double Time
B10: MOB/DMOB | C10: Mobilization/Demobilization Time
B13: Labor per Man Hour | H13: Labor per Equipment Hour
B14: A | H14: A
B15: POSITION | C15: ST | D15: OT | E15: DT | F15: MOB/DMOB | H15: Type | I15: $/HOUR
B16: UNION
B17: Line Technician | C17: 315.7 | D17: 0 | E17: 0 | F17: 0
B18: Line Chief | C18: 315.7 | D18: 0 | E18: 0 | F18: 0
B19: Truck & Equip Svc Tech | C19: 258.86 | D19: 0 | E19: 0 | F19: 0
B20: Customer Service Rep | C20: 218 | D20: 0 | E20: 0 | F20: 0
B21: Sr. Customer Service Rep | C21: 218 | D21: 0 | E21: 0 | F21: 0
B22: Customer Service Rep BL | C22: 218 | D22: 0 | E22: 0 | F22: 0
B23: MANAGEMENT
B24: Manager | C24: 106.07 | D24: 0 | E24: 0 | F24: 0
B25: Sr Specialist | C25: 79.88 | D25: 0 | E25: 0 | F25: 0
B26: Supervisor | C26: 101.51 | D26: 0 | E26: 0 | F26: 0
B27: Engineer | C27: 100.28 | D27: 0 | E27: 0 | F27: 0
B28: Specialist | C28: 64.37 | D28: 0 | E28: 0 | F28: 0
B29: Sr Specialist 1 | C29: 75.99 | D29: 0 | E29: 0 | F29: 0
B33: Tickmark Explanation:
B34: NOTE 1 | C34: No equipment charges.
B35: NOTE 2 | C35: No Rate Sheet provided, however this company is an IOU and Vendor did not share individual rates with TECO prior to the storm
C36: as that would violate confidentiality/competitive laws.

Sheet C.2 - Timesheets - Labor
B2: Labor Charges - Time Card
B4: Test Plan: | C4: Obtain the time cards. (A) Using the Asset by Company tab (C.3), populate the crew members names and positions (if provided). Find additional information regarding individual crew member from related invoice. (B) Enter hours worked from time card(s). (C) Confirm that the dates per the time cards fall between dates provided per 'A - Contractor Summary' tab. (D) Confirm the labor type charged agrees to the rate sheet. (E) Identify any labor charges to be reviewed (manually enter amounts based on reasonability of time period labor was charged, discrepancies between timecards and invoice, etc. (F) For charges which required further review, document review (include why it was determined to be allowed/disallowed via a tickmark).
B10: Rx | C10: Recalculated.
B11: a | C11: Provided from tab 'C.1 - Rate Sheets'.
B12: b | C12: Check figure should equal $0. Cell will appear yellow if discrepancies are noted.
C14: A | H14: Rx | J14: C | K14: a | O14: B | DF14: Rx | DK14: Rx | DP14: Rx | DR14: E | DS14: F
B15: # | C15: Name | D15: Position | E15: Company | F15: Crew# | G15: Invoice# | H15: Start Date | I15: End Date | J15: Dates Worked Reasonable? | K15: Rates | O15: 2017-09-04 | T15: 2017-09-05 | Y15: 2017-09-06 | AD15: 2017-09-07 | AI15: 2017-09-08 | AN15: 2017-09-09 | AS15: 2017-09-10 | AX15: 2017-09-11 | BC15: 2017-09-12 | BH15: 2017-09-13 | BM15: 2017-09-14 | BR15: 2017-09-15 | BW15: 2017-09-16 | CB15: 2017-09-17 | CG15: 2017-09-18 | CL15: 2017-09-19 | CQ15: 2017-09-20 | CV15: 2017-09-21 | DA15: 2017-09-22 | DF15: Total Labor Hours | DK15: Total Labor $ | DP15: Allowable Charges | DQ15: Labor Type Appropriate? | DR15: To Be Reviewed | DS15: Reviewed - Allowable Charge | DT15: Reviewed - Unallowable Charge | DU15: Tickmarks
O16: 2017-09-04 | P16: 2017-09-04 | Q16: 2017-09-04 | R16: 2017-09-04 | S16: 2017-09-04 | T16: 2017-09-05 | U16: 2017-09-05 | V16: 2017-09-05 | W16: 2017-09-05 | X16: 2017-09-05 | Y16: 2017-09-06 | Z16: 2017-09-06 | AA16: 2017-09-06 | AB16: 2017-09-06 | AC16: 2017-09-06 | AD16: 2017-09-07 | AE16: 2017-09-07 | AF16: 2017-09-07 | AG16: 2017-09-07 | AH16: 2017-09-07 | AI16: 2017-09-08 | AJ16: 2017-09-08 | AK16: 2017-09-08 | AL16: 2017-09-08 | AM16: 2017-09-08 | AN16: 2017-09-09 | AO16: 2017-09-09 | AP16: 2017-09-09 | AQ16: 2017-09-09 | AR16: 2017-09-09 | AS16: 2017-09-10 | AT16: 2017-09-10 | AU16: 2017-09-10 | AV16: 2017-09-10 | AW16: 2017-09-10 | AX16: 2017-09-11 | AY16: 2017-09-11 | AZ16: 2017-09-11 | BA16: 2017-09-11 | BB16: 2017-09-11 | BC16: 2017-09-12 | BD16: 2017-09-12 | BE16: 2017-09-12 | BF16: 2017-09-12 | BG16: 2017-09-12 | BH16: 2017-09-13 | BI16: 2017-09-13 | BJ16: 2017-09-13 | BK16: 2017-09-13 | BL16: 2017-09-13 | BM16: 2017-09-14 | BN16: 2017-09-14 | BO16: 2017-09-14 | BP16: 2017-09-14 | BQ16: 2017-09-14 | BR16: 2017-09-15 | BS16: 2017-09-15 | BT16: 2017-09-15 | BU16: 2017-09-15 | BV16: 2017-09-15 | BW16: 2017-09-16 | BX16: 2017-09-16 | BY16: 2017-09-16 | BZ16: 2017-09-16 | CA16: 2017-09-16 | CB16: 2017-09-17 | CC16: 2017-09-17 | CD16: 2017-09-17 | CE16: 2017-09-17 | CF16: 2017-09-17 | CG16: 2017-09-18 | CH16: 2017-09-18 | CI16: 2017-09-18 | CJ16: 2017-09-18 | CK16: 2017-09-18 | CL16: 2017-09-19 | CM16: 2017-09-19 | CN16: 2017-09-19 | CO16: 2017-09-19 | CP16: 2017-09-19 | CQ16: 2017-09-20 | CR16: 2017-09-20 | CS16: 2017-09-20 | CT16: 2017-09-20 | CU16: 2017-09-20 | CV16: 2017-09-21 | CW16: 2017-09-21 | CX16: 2017-09-21 | CY16: 2017-09-21 | CZ16: 2017-09-21 | DA16: 2017-09-22 | DB16: 2017-09-22 | DC16: 2017-09-22 | DD16: 2017-09-22 | DE16: 2017-09-22 | DF16: Total ST | DG16: OT | DH16: DT | DI16: MOB/DMOB | DJ16: Total Hours | DK16: Total ST $ | DL16: Total OT $ | DM16: Total DT $ | DN16: Total MOB/DMOB $ | DO16: Total Labor $
O17: Monday | T17: Tuesday | Y17: Wednesday | AD17: Thursday | AI17: Friday | AN17: Saturday | AS17: Sunday | AX17: Monday | BC17: Tuesday | BH17: Wednesday | BM17: Thursday | BR17: Friday | BW17: Saturday | CB17: Sunday | CG17: Monday | CL17: Tuesday | CQ17: Wednesday | CV17: Thursday | DA17: Friday
K18: ST | L18: OT | M18: DT | N18: MOB/DMOB | O18: ST | P18: OT | Q18: DT | R18: MOB/DMOB | S18: Total | T18: ST | U18: OT | V18: DT | W18: MOB/DMOB | X18: Total | Y18: ST | Z18: OT | AA18: DT | AB18: MOB/DMOB | AC18: Total | AD18: ST | AE18: OT | AF18: DT | AG18: MOB/DMOB | AH18: Total | AI18: ST | AJ18: OT | AK18: DT | AL18: MOB/DMOB | AM18: Total | AN18: ST | AO18: OT | AP18: DT | AQ18: MOB/DMOB | AR18: Total | AS18: ST | AT18: OT | AU18: DT | AV18: MOB/DMOB | AW18: Total | AX18: ST | AY18: OT | AZ18: DT | BA18: MOB/DMOB | BB18: Total | BC18: ST | BD18: OT | BE18: DT | BF18: MOB/DMOB | BG18: Total | BH18: ST | BI18: OT | BJ18: DT | BK18: MOB/DMOB | BL18: Total | BM18: ST | BN18: OT | BO18: DT | BP18: MOB/DMOB | BQ18: Total | BR18: ST | BS18: OT | BT18: DT | BU18: MOB/DMOB | BV18: Total | BW18: ST | BX18: OT | BY18: DT | BZ18: MOB/DMOB | CA18: Total | CB18: ST | CC18: OT | CD18: DT | CE18: MOB/DMOB | CF18: Total | CG18: ST | CH18: OT | CI18: DT | CJ18: MOB/DMOB | CK18: Total | CL18: ST | CM18: OT | CN18: DT | CO18: MOB/DMOB | CP18: Total | CQ18: ST | CR18: OT | CS18: DT | CT18: MOB/DMOB | CU18: Total | CV18: ST | CW18: OT | CX18: DT | CY18: MOB/DMOB | CZ18: Total | DA18: ST | DB18: OT | DC18: DT | DD18: MOB/DMOB | DE18: Total
B19: 1 | D19: Line Technician | E19: Vendor No. 38 | F19: 96765 | G19: 40061737 | H19: 2017-09-10 | I19: 2017-09-17 | J19: =IF(AND(H19>='A - Contractor Summary'!$C$37,I19<='A - Contractor Summary'!$C$43),"Yes","No") -> Yes | K19: =VLOOKUP($D19,'C.1 - Rate Sheets'!B:F,2,FALSE) -> 315.7 | L19: =VLOOKUP($D19,'C.1 - Rate Sheets'!B:F,3,FALSE) -> 0 | M19: =VLOOKUP($D19,'C.1 - Rate Sheets'!B:F,4,FALSE) -> 0 | N19: =VLOOKUP($D19,'C.1 - Rate Sheets'!B:F,5,FALSE) -> 0 | O19: 0 | P19: 0 | Q19: 0 | R19: 0 | S19: =SUM(O19:R19) -> 0 | T19: 0 | U19: 0 | V19: 0 | W19: 0 | X19: =SUM(T19:W19) -> 0 | Y19: 0 | Z19: 0 | AA19: 0 | AB19: 0 | AC19: =SUM(Y19:AB19) -> 0 | AD19: 0 | AE19: 0 | AF19: 0 | AG19: 0 | AH19: =SUM(AD19:AG19) -> 0 | AI19: 0 | AJ19: 0 | AK19: 0 | AL19: 0 | AM19: =SUM(AI19:AL19) -> 0 | AN19: 0 | AO19: 0 | AP19: 0 | AQ19: 0 | AR19: =SUM(AN19:AQ19) -> 0 | AS19: 15 | AT19: 0 | AU19: 0 | AV19: 0 | AW19: =SUM(AS19:AV19) -> 15 | AX19: 15 | AY19: 0 | AZ19: 0 | BA19: 0 | BB19: =SUM(AX19:BA19) -> 15 | BC19: 19 | BD19: 0 | BE19: 0 | BF19: 0 | BG19: =SUM(BC19:BF19) -> 19 | BH19: 16 | BI19: 0 | BJ19: 0 | BK19: 0 | BL19: =SUM(BH19:BK19) -> 16 | BM19: 16 | BN19: 0 | BO19: 0 | BP19: 0 | BQ19: =SUM(BM19:BP19) -> 16 | BR19: 16 | BS19: 0 | BT19: 0 | BU19: 0 | BV19: =SUM(BR19:BU19) -> 16 | BW19: 16 | BX19: 0 | BY19: 0 | BZ19: 0 | CA19: =SUM(BW19:BZ19) -> 16 | CB19: 6 | CC19: 0 | CD19: 0 | CE19: 0 | CF19: =SUM(CB19:CE19) -> 6 | CG19: 0 | CH19: 0 | CI19: 0 | CJ19: 0 | CK19: =SUM(CG19:CJ19) -> 0 | CL19: 0 | CM19: 0 | CN19: 0 | CO19: 0 | CP19: =SUM(CL19:CO19) -> 0 | CQ19: 0 | CR19: 0 | CS19: 0 | CT19: 0 | CU19: =SUM(CQ19:CT19) -> 0 | CV19: 0 | CW19: 0 | CX19: 0 | CY19: 0 | CZ19: =SUM(CV19:CY19) -> 0 | DA19: 0 | DB19: 0 | DC19: 0 | DD19: 0 | DE19: =SUM(DA19:DD19) -> 0 | DF19: =SUM(O19,T19,Y19,AD19,AI19,AN19,AS19,AX19,BC19,BH19,BM19,BR19,BW19,CB19,CG19,CL19,CQ19,CV19,DA19) -> 119 | DG19: =SUM(P19,U19,Z19,AE19,AJ19,AO19,AT19,AY19,BD19,BI19,BN19,BS19,BX19,CC19,CH19,CM19,CR19,CW19,DB19) -> 0 | DH19: =SUM(Q19,V19,AA19,AF19,AK19,AP19,AU19,AZ19,BE19,BJ19,BO19,BT19,BY19,CD19,CI19,CN19,CS19,CX19,DC19) -> 0 | DI19: =SUM(R19,W19,AB19,AG19,AL19,AQ19,AV19,BA19,BF19,BK19,BP19,BU19,BZ19,CE19,CJ19,CO19,CT19,CY19,DD19) -> 0 | DJ19: =SUM(DF19:DI19) -> 119 | DK19: =DF19*K19 -> 37568.3 | DL19: =DG19*L19 -> 0 | DM19: =DH19*M19 -> 0 | DN19: =DI19*N19 -> 0 | DO19: =SUM(DK19:DN19) -> 37568.3 | DP19: =DO19-DR19 -> 37568.3 | DQ19: YES | DR19: 0 | DS19: 0 | DT19: 0
B20: 2 | D20: Line Technician | E20: Vendor No. 38 | F20: 96828 | G20: 40061737 | H20: 2017-09-10 | I20: 2017-09-17 | J20: =IF(AND(H20>='A - Contractor Summary'!$C$37,I20<='A - Contractor Summary'!$C$43),"Yes","No") -> Yes | K20: =VLOOKUP($D20,'C.1 - Rate Sheets'!B:F,2,FALSE) -> 315.7 | L20: =VLOOKUP($D20,'C.1 - Rate Sheets'!B:F,3,FALSE) -> 0 | M20: =VLOOKUP($D20,'C.1 - Rate Sheets'!B:F,4,FALSE) -> 0 | N20: =VLOOKUP($D20,'C.1 - Rate Sheets'!B:F,5,FALSE) -> 0 | O20: 0 | P20: 0 | Q20: 0 | R20: 0 | S20: 0 | T20: 0 | U20: 0 | V20: 0 | W20: 0 | X20: =SUM(T20:W20) -> 0 | Y20: 0 | Z20: 0 | AA20: 0 | AB20: 0 | AC20: =SUM(Y20:AB20) -> 0 | AD20: 0 | AE20: 0 | AF20: 0 | AG20: 0 | AH20: =SUM(AD20:AG20) -> 0 | AI20: 0 | AJ20: 0 | AK20: 0 | AL20: 0 | AM20: =SUM(AI20:AL20) -> 0 | AN20: 0 | AO20: 0 | AP20: 0 | AQ20: 0 | AR20: =SUM(AN20:AQ20) -> 0 | AS20: 15 | AT20: 0 | AU20: 0 | AV20: 0 | AW20: =SUM(AS20:AV20) -> 15 | AX20: 15 | AY20: 0 | AZ20: 0 | BA20: 0 | BB20: =SUM(AX20:BA20) -> 15 | BC20: 19 | BD20: 0 | BE20: 0 | BF20: 0 | BG20: =SUM(BC20:BF20) -> 19 | BH20: 16 | BI20: 0 | BJ20: 0 | BK20: 0 | BL20: =SUM(BH20:BK20) -> 16 | BM20: 16 | BN20: 0 | BO20: 0 | BP20: 0 | BQ20: =SUM(BM20:BP20) -> 16 | BR20: 16 | BS20: 0 | BT20: 0 | BU20: 0 | BV20: =SUM(BR20:BU20) -> 16 | BW20: 16 | BX20: 0 | BY20: 0 | BZ20: 0 | CA20: =SUM(BW20:BZ20) -> 16 | CB20: 6 | CC20: 0 | CD20: 0 | CE20: 0 | CF20: =SUM(CB20:CE20) -> 6 | CG20: 0 | CH20: 0 | CI20: 0 | CJ20: 0 | CK20: =SUM(CG20:CJ20) -> 0 | CL20: 0 | CM20: 0 | CN20: 0 | CO20: 0 | CP20: =SUM(CL20:CO20) -> 0 | CQ20: 0 | CR20: 0 | CS20: 0 | CT20: 0 | CU20: =SUM(CQ20:CT20) -> 0 | CV20: 0 | CW20: 0 | CX20: 0 | CY20: 0 | CZ20: =SUM(CV20:CY20) -> 0 | DA20: 0 | DB20: 0 | DC20: 0 | DD20: 0 | DE20: =SUM(DA20:DD20) -> 0 | DF20: 119 | DG20: 0 | DH20: 0 | DI20: 0 | DJ20: =SUM(DF20:DI20) -> 119 | DK20: 37568.3 | DL20: 0 | DM20: 0 | DN20: 0 | DO20: =SUM(DK20:DN20) -> 37568.3 | DP20: 37568.3 | DQ20: YES | DR20: 0 | DS20: 0 | DT20: 0
B21: 3 | D21: Line Technician | E21: Vendor No. 38 | F21: 96876 | G21: 40061737 | H21: 2017-09-10 | I21: 2017-09-17 | J21: =IF(AND(H21>='A - Contractor Summary'!$C$37,I21<='A - Contractor Summary'!$C$43),"Yes","No") -> Yes | K21: =VLOOKUP($D21,'C.1 - Rate Sheets'!B:F,2,FALSE) -> 315.7 | L21: =VLOOKUP($D21,'C.1 - Rate Sheets'!B:F,3,FALSE) -> 0 | M21: =VLOOKUP($D21,'C.1 - Rate Sheets'!B:F,4,FALSE) -> 0 | N21: =VLOOKUP($D21,'C.1 - Rate Sheets'!B:F,5,FALSE) -> 0 | O21: 0 | P21: 0 | Q21: 0 | R21: 0 | S21: 0 | T21: 0 | U21: 0 | V21: 0 | W21: 0 | X21: 0 | Y21: 0 | Z21: 0 | AA21: 0 | AB21: 0 | AC21: 0 | AD21: 0 | AE21: 0 | AF21: 0 | AG21: 0 | AH21: 0 | AI21: 0 | AJ21: 0 | AK21: 0 | AL21: 0 | AM21: 0 | AN21: 0 | AO21: 0 | AP21: 0 | AQ21: 0 | AR21: 0 | AS21: 15 | AT21: 0 | AU21: 0 | AV21: 0 | AW21: 15 | AX21: 15 | AY21: 0 | AZ21: 0 | BA21: 0 | BB21: 15 | BC21: 19 | BD21: 0 | BE21: 0 | BF21: 0 | BG21: 19 | BH21: 16 | BI21: 0 | BJ21: 0 | BK21: 0 | BL21: 16 | BM21: 16 | BN21: 0 | BO21: 0 | BP21: 0 | BQ21: 16 | BR21: 16 | BS21: 0 | BT21: 0 | BU21: 0 | BV21: 16 | BW21: 16 | BX21: 0 | BY21: 0 | BZ21: 0 | CA21: 16 | CB21: 6 | CC21: 0 | CD21: 0 | CE21: 0 | CF21: 6 | CG21: 0 | CH21: 0 | CI21: 0 | CJ21: 0 | CK21: 0 | CL21: 0 | CM21: 0 | CN21: 0 | CO21: 0 | CP21: 0 | CQ21: 0 | CR21: 0 | CS21: 0 | CT21: 0 | CU21: 0 | CV21: 0 | CW21: 0 | CX21: 0 | CY21: 0 | CZ21: 0 | DA21: 0 | DB21: 0 | DC21: 0 | DD21: 0 | DE21: 0 | DF21: 119 | DG21: 0 | DH21: 0 | DI21: 0 | DJ21: 119 | DK21: 37568.3 | DL21: 0 | DM21: 0 | DN21: 0 | DO21: 37568.3 | DP21: 37568.3 | DQ21: YES | DR21: 0 | DS21: 0 | DT21: 0
B22: 4 | D22: Line Technician | E22: Vendor No. 38 | F22: 96449 | G22: 40061737 | H22: 2017-09-10 | I22: 2017-09-17 | J22: =IF(AND(H22>='A - Contractor Summary'!$C$37,I22<='A - Contractor Summary'!$C$43),"Yes","No") -> Yes | K22: =VLOOKUP($D22,'C.1 - Rate Sheets'!B:F,2,FALSE) -> 315.7 | L22: =VLOOKUP($D22,'C.1 - Rate Sheets'!B:F,3,FALSE) -> 0 | M22: =VLOOKUP($D22,'C.1 - Rate Sheets'!B:F,4,FALSE) -> 0 | N22: =VLOOKUP($D22,'C.1 - Rate Sheets'!B:F,5,FALSE) -> 0 | O22: 0 | P22: 0 | Q22: 0 | R22: 0 | S22: 0 | T22: 0 | U22: 0 | V22: 0 | W22: 0 | X22: 0 | Y22: 0 | Z22: 0 | AA22: 0 | AB22: 0 | AC22: 0 | AD22: 0 | AE22: 0 | AF22: 0 | AG22: 0 | AH22: 0 | AI22: 0 | AJ22: 0 | AK22: 0 | AL22: 0 | AM22: 0 | AN22: 0 | AO22: 0 | AP22: 0 | AQ22: 0 | AR22: 0 | AS22: 15 | AT22: 0 | AU22: 0 | AV22: 0 | AW22: 15 | AX22: 15 | AY22: 0 | AZ22: 0 | BA22: 0 | BB22: 15 | BC22: 19 | BD22: 0 | BE22: 0 | BF22: 0 | BG22: 19 | BH22: 16 | BI22: 0 | BJ22: 0 | BK22: 0 | BL22: 16 | BM22: 16 | BN22: 0 | BO22: 0 | BP22: 0 | BQ22: 16 | BR22: 16 | BS22: 0 | BT22: 0 | BU22: 0 | BV22: 16 | BW22: 16 | BX22: 0 | BY22: 0 | BZ22: 0 | CA22: 16 | CB22: 6 | CC22: 0 | CD22: 0 | CE22: 0 | CF22: 6 | CG22: 0 | CH22: 0 | CI22: 0 | CJ22: 0 | CK22: 0 | CL22: 0 | CM22: 0 | CN22: 0 | CO22: 0 | CP22: 0 | CQ22: 0 | CR22: 0 | CS22: 0 | CT22: 0 | CU22: 0 | CV22: 0 | CW22: 0 | CX22: 0 | CY22: 0 | CZ22: 0 | DA22: 0 | DB22: 0 | DC22: 0 | DD22: 0 | DE22: 0 | DF22: 119 | DG22: 0 | DH22: 0 | DI22: 0 | DJ22: 119 | DK22: 37568.3 | DL22: 0 | DM22: 0 | DN22: 0 | DO22: 37568.3 | DP22: 37568.3 | DQ22: YES | DR22: 0 | DS22: 0 | DT22: 0
B23: 5 | D23: Line Technician | E23: Vendor No. 38 | F23: 96760 | G23: 40061737 | H23: 2017-09-10 | I23: 2017-09-17 | J23: =IF(AND(H23>='A - Contractor Summary'!$C$37,I23<='A - Contractor Summary'!$C$43),"Yes","No") -> Yes | K23: =VLOOKUP($D23,'C.1 - Rate Sheets'!B:F,2,FALSE) -> 315.7 | L23: =VLOOKUP($D23,'C.1 - Rate Sheets'!B:F,3,FALSE) -> 0 | M23: =VLOOKUP($D23,'C.1 - Rate Sheets'!B:F,4,FALSE) -> 0 | N23: =VLOOKUP($D23,'C.1 - Rate Sheets'!B:F,5,FALSE) -> 0 | O23: 0 | P23: 0 | Q23: 0 | R23: 0 | S23: 0 | T23: 0 | U23: 0 | V23: 0 | W23: 0 | X23: 0 | Y23: 0 | Z23: 0 | AA23: 0 | AB23: 0 | AC23: 0 | AD23: 0 | AE23: 0 | AF23: 0 | AG23: 0 | AH23: 0 | AI23: 0 | AJ23: 0 | AK23: 0 | AL23: 0 | AM23: 0 | AN23: 0 | AO23: 0 | AP23: 0 | AQ23: 0 | AR23: 0 | AS23: 15 | AT23: 0 | AU23: 0 | AV23: 0 | AW23: 15 | AX23: 15 | AY23: 0 | AZ23: 0 | BA23: 0 | BB23: 15 | BC23: 19 | BD23: 0 | BE23: 0 | BF23: 0 | BG23: 19 | BH23: 16 | BI23: 0 | BJ23: 0 | BK23: 0 | BL23: 16 | BM23: 16 | BN23: 0 | BO23: 0 | BP23: 0 | BQ23: 16 | BR23: 16 | BS23: 0 | BT23: 0 | BU23: 0 | BV23: 16 | BW23: 16 | BX23: 0 | BY23: 0 | BZ23: 0 | CA23: 16 | CB23: 6 | CC23: 0 | CD23: 0 | CE23: 0 | CF23: 6 | CG23: 0 | CH23: 0 | CI23: 0 | CJ23: 0 | CK23: 0 | CL23: 0 | CM23: 0 | CN23: 0 | CO23: 0 | CP23: 0 | CQ23: 0 | CR23: 0 | CS23: 0 | CT23: 0 | CU23: 0 | CV23: 0 | CW23: 0 | CX23: 0 | CY23: 0 | CZ23: 0 | DA23: 0 | DB23: 0 | DC23: 0 | DD23: 0 | DE23: 0 | DF23: 119 | DG23: 0 | DH23: 0 | DI23: 0 | DJ23: 119 | DK23: 37568.3 | DL23: 0 | DM23: 0 | DN23: 0 | DO23: 37568.3 | DP23: 37568.3 | DQ23: YES | DR23: 0 | DS23: 0 | DT23: 0
B24: 6 | D24: Line Technician | E24: Vendor No. 38 | F24: 96510 | G24: 40061737 | H24: 2017-09-10 | I24: 2017-09-17 | J24: =IF(AND(H24>='A - Contractor Summary'!$C$37,I24<='A - Contractor Summary'!$C$43),"Yes","No") -> Yes | K24: =VLOOKUP($D24,'C.1 - Rate Sheets'!B:F,2,FALSE) -> 315.7 | L24: =VLOOKUP($D24,'C.1 - Rate Sheets'!B:F,3,FALSE) -> 0 | M24: =VLOOKUP($D24,'C.1 - Rate Sheets'!B:F,4,FALSE) -> 0 | N24: =VLOOKUP($D24,'C.1 - Rate Sheets'!B:F,5,FALSE) -> 0 | O24: 0 | P24: 0 | Q24: 0 | R24: 0 | S24: 0 | T24: 0 | U24: 0 | V24: 0 | W24: 0 | X24: 0 | Y24: 0 | Z24: 0 | AA24: 0 | AB24: 0 | AC24: 0 | AD24: 0 | AE24: 0 | AF24: 0 | AG24: 0 | AH24: 0 | AI24: 0 | AJ24: 0 | AK24: 0 | AL24: 0 | AM24: 0 | AN24: 0 | AO24: 0 | AP24: 0 | AQ24: 0 | AR24: 0 | AS24: 15 | AT24: 0 | AU24: 0 | AV24: 0 | AW24: 15 | AX24: 15 | AY24: 0 | AZ24: 0 | BA24: 0 | BB24: 15 | BC24: 19 | BD24: 0 | BE24: 0 | BF24: 0 | BG24: 19 | BH24: 16 | BI24: 0 | BJ24: 0 | BK24: 0 | BL24: 16 | BM24: 16 | BN24: 0 | BO24: 0 | BP24: 0 | BQ24: 16 | BR24: 16 | BS24: 0 | BT24: 0 | BU24: 0 | BV24: 16 | BW24: 16 | BX24: 0 | BY24: 0 | BZ24: 0 | CA24: 16 | CB24: 6 | CC24: 0 | CD24: 0 | CE24: 0 | CF24: 6 | CG24: 0 | CH24: 0 | CI24: 0 | CJ24: 0 | CK24: 0 | CL24: 0 | CM24: 0 | CN24: 0 | CO24: 0 | CP24: 0 | CQ24: 0 | CR24: 0 | CS24: 0 | CT24: 0 | CU24: 0 | CV24: 0 | CW24: 0 | CX24: 0 | CY24: 0 | CZ24: 0 | DA24: 0 | DB24: 0 | DC24: 0 | DD24: 0 | DE24: 0 | DF24: 119 | DG24: 0 | DH24: 0 | DI24: 0 | DJ24: 119 | DK24: 37568.3 | DL24: 0 | DM24: 0 | DN24: 0 | DO24: 37568.3 | DP24: 37568.3 | DQ24: YES | DR24: 0 | DS24: 0 | DT24: 0
B25: 7 | D25: Line Chief | E25: Vendor No. 38 | F25: 10877 | G25: 40061737 | H25: 2017-09-10 | I25: 2017-09-17 | J25: =IF(AND(H25>='A - Contractor Summary'!$C$37,I25<='A - Contractor Summary'!$C$43),"Yes","No") -> Yes | K25: =VLOOKUP($D25,'C.1 - Rate Sheets'!B:F,2,FALSE) -> 315.7 | L25: =VLOOKUP($D25,'C.1 - Rate Sheets'!B:F,3,FALSE) -> 0 | M25: =VLOOKUP($D25,'C.1 - Rate Sheets'!B:F,4,FALSE) -> 0 | N25: =VLOOKUP($D25,'C.1 - Rate Sheets'!B:F,5,FALSE) -> 0 | O25: 0 | P25: 0 | Q25: 0 | R25: 0 | S25: 0 | T25: 0 | U25: 0 | V25: 0 | W25: 0 | X25: 0 | Y25: 0 | Z25: 0 | AA25: 0 | AB25: 0 | AC25: 0 | AD25: 0 | AE25: 0 | AF25: 0 | AG25: 0 | AH25: 0 | AI25: 0 | AJ25: 0 | AK25: 0 | AL25: 0 | AM25: 0 | AN25: 0 | AO25: 0 | AP25: 0 | AQ25: 0 | AR25: 0 | AS25: 15 | AT25: 0 | AU25: 0 | AV25: 0 | AW25: 15 | AX25: 15 | AY25: 0 | AZ25: 0 | BA25: 0 | BB25: 15 | BC25: 19 | BD25: 0 | BE25: 0 | BF25: 0 | BG25: 19 | BH25: 16 | BI25: 0 | BJ25: 0 | BK25: 0 | BL25: 16 | BM25: 16 | BN25: 0 | BO25: 0 | BP25: 0 | BQ25: 16 | BR25: 16 | BS25: 0 | BT25: 0 | BU25: 0 | BV25: 16 | BW25: 16 | BX25: 0 | BY25: 0 | BZ25: 0 | CA25: 16 | CB25: 6 | CC25: 0 | CD25: 0 | CE25: 0 | CF25: 6 | CG25: 0 | CH25: 0 | CI25: 0 | CJ25: 0 | CK25: 0 | CL25: 0 | CM25: 0 | CN25: 0 | CO25: 0 | CP25: 0 | CQ25: 0 | CR25: 0 | CS25: 0 | CT25: 0 | CU25: 0 | CV25: 0 | CW25: 0 | CX25: 0 | CY25: 0 | CZ25: 0 | DA25: 0 | DB25: 0 | DC25: 0 | DD25: 0 | DE25: 0 | DF25: 119 | DG25: 0 | DH25: 0 | DI25: 0 | DJ25: 119 | DK25: 37568.3 | DL25: 0 | DM25: 0 | DN25: 0 | DO25: 37568.3 | DP25: 37568.3 | DQ25: YES | DR25: 0 | DS25: 0 | DT25: 0
B26: 8 | D26: Line Chief | E26: Vendor No. 38 | F26: 12310 | G26: 40061737 | H26: 2017-09-10 | I26: 2017-09-17 | J26: =IF(AND(H26>='A - Contractor Summary'!$C$37,I26<='A - Contractor Summary'!$C$43),"Yes","No") -> Yes | K26: =VLOOKUP($D26,'C.1 - Rate Sheets'!B:F,2,FALSE) -> 315.7 | L26: =VLOOKUP($D26,'C.1 - Rate Sheets'!B:F,3,FALSE) -> 0 | M26: =VLOOKUP($D26,'C.1 - Rate Sheets'!B:F,4,FALSE) -> 0 | N26: =VLOOKUP($D26,'C.1 - Rate Sheets'!B:F,5,FALSE) -> 0 | O26: 0 | P26: 0 | Q26: 0 | R26: 0 | S26: 0 | T26: 0 | U26: 0 | V26: 0 | W26: 0 | X26: 0 | Y26: 0 | Z26: 0 | AA26: 0 | AB26: 0 | AC26: 0 | AD26: 0 | AE26: 0 | AF26: 0 | AG26: 0 | AH26: 0 | AI26: 0 | AJ26: 0 | AK26: 0 | AL26: 0 | AM26: 0 | AN26: 0 | AO26: 0 | AP26: 0 | AQ26: 0 | AR26: 0 | AS26: 15 | AT26: 0 | AU26: 0 | AV26: 0 | AW26: 15 | AX26: 15 | AY26: 0 | AZ26: 0 | BA26: 0 | BB26: 15 | BC26: 19 | BD26: 0 | BE26: 0 | BF26: 0 | BG26: 19 | BH26: 16 | BI26: 0 | BJ26: 0 | BK26: 0 | BL26: 16 | BM26: 16 | BN26: 0 | BO26: 0 | BP26: 0 | BQ26: 16 | BR26: 16 | BS26: 0 | BT26: 0 | BU26: 0 | BV26: 16 | BW26: 16 | BX26: 0 | BY26: 0 | BZ26: 0 | CA26: 16 | CB26: 6 | CC26: 0 | CD26: 0 | CE26: 0 | CF26: 6 | CG26: 0 | CH26: 0 | CI26: 0 | CJ26: 0 | CK26: 0 | CL26: 0 | CM26: 0 | CN26: 0 | CO26: 0 | CP26: 0 | CQ26: 0 | CR26: 0 | CS26: 0 | CT26: 0 | CU26: 0 | CV26: 0 | CW26: 0 | CX26: 0 | CY26: 0 | CZ26: 0 | DA26: 0 | DB26: 0 | DC26: 0 | DD26: 0 | DE26: 0 | DF26: 119 | DG26: 0 | DH26: 0 | DI26: 0 | DJ26: 119 | DK26: 37568.3 | DL26: 0 | DM26: 0 | DN26: 0 | DO26: 37568.3 | DP26: 37568.3 | DQ26: YES | DR26: 0 | DS26: 0 | DT26: 0
B27: 9 | D27: Line Chief | E27: Vendor No. 38 | F27: 12762 | G27: 40061737 | H27: 2017-09-10 | I27: 2017-09-17 | J27: =IF(AND(H27>='A - Contractor Summary'!$C$37,I27<='A - Contractor Summary'!$C$43),"Yes","No") -> Yes | K27: =VLOOKUP($D27,'C.1 - Rate Sheets'!B:F,2,FALSE) -> 315.7 | L27: =VLOOKUP($D27,'C.1 - Rate Sheets'!B:F,3,FALSE) -> 0 | M27: =VLOOKUP($D27,'C.1 - Rate Sheets'!B:F,4,FALSE) -> 0 | N27: =VLOOKUP($D27,'C.1 - Rate Sheets'!B:F,5,FALSE) -> 0 | O27: 0 | P27: 0 | Q27: 0 | R27: 0 | S27: 0 | T27: 0 | U27: 0 | V27: 0 | W27: 0 | X27: 0 | Y27: 0 | Z27: 0 | AA27: 0 | AB27: 0 | AC27: 0 | AD27: 0 | AE27: 0 | AF27: 0 | AG27: 0 | AH27: 0 | AI27: 0 | AJ27: 0 | AK27: 0 | AL27: 0 | AM27: 0 | AN27: 0 | AO27: 0 | AP27: 0 | AQ27: 0 | AR27: 0 | AS27: 15 | AT27: 0 | AU27: 0 | AV27: 0 | AW27: 15 | AX27: 15 | AY27: 0 | AZ27: 0 | BA27: 0 | BB27: 15 | BC27: 19 | BD27: 0 | BE27: 0 | BF27: 0 | BG27: 19 | BH27: 16 | BI27: 0 | BJ27: 0 | BK27: 0 | BL27: 16 | BM27: 16 | BN27: 0 | BO27: 0 | BP27: 0 | BQ27: 16 | BR27: 16 | BS27: 0 | BT27: 0 | BU27: 0 | BV27: 16 | BW27: 16 | BX27: 0 | BY27: 0 | BZ27: 0 | CA27: 16 | CB27: 6 | CC27: 0 | CD27: 0 | CE27: 0 | CF27: 6 | CG27: 0 | CH27: 0 | CI27: 0 | CJ27: 0 | CK27: 0 | CL27: 0 | CM27: 0 | CN27: 0 | CO27: 0 | CP27: 0 | CQ27: 0 | CR27: 0 | CS27: 0 | CT27: 0 | CU27: 0 | CV27: 0 | CW27: 0 | CX27: 0 | CY27: 0 | CZ27: 0 | DA27: 0 | DB27: 0 | DC27: 0 | DD27: 0 | DE27: 0 | DF27: 119 | DG27: 0 | DH27: 0 | DI27: 0 | DJ27: 119 | DK27: 37568.3 | DL27: 0 | DM27: 0 | DN27: 0 | DO27: 37568.3 | DP27: 37568.3 | DQ27: YES | DR27: 0 | DS27: 0 | DT27: 0
B28: 10 | D28: Line Chief | E28: Vendor No. 38 | F28: 96513 | G28: 40061737 | H28: 2017-09-10 | I28: 2017-09-17 | J28: =IF(AND(H28>='A - Contractor Summary'!$C$37,I28<='A - Contractor Summary'!$C$43),"Yes","No") -> Yes | K28: =VLOOKUP($D28,'C.1 - Rate Sheets'!B:F,2,FALSE) -> 315.7 | L28: =VLOOKUP($D28,'C.1 - Rate Sheets'!B:F,3,FALSE) -> 0 | M28: =VLOOKUP($D28,'C.1 - Rate Sheets'!B:F,4,FALSE) -> 0 | N28: =VLOOKUP($D28,'C.1 - Rate Sheets'!B:F,5,FALSE) -> 0 | O28: 0 | P28: 0 | Q28: 0 | R28: 0 | S28: 0 | T28: 0 | U28: 0 | V28: 0 | W28: 0 | X28: 0 | Y28: 0 | Z28: 0 | AA28: 0 | AB28: 0 | AC28: 0 | AD28: 0 | AE28: 0 | AF28: 0 | AG28: 0 | AH28: 0 | AI28: 0 | AJ28: 0 | AK28: 0 | AL28: 0 | AM28: 0 | AN28: 0 | AO28: 0 | AP28: 0 | AQ28: 0 | AR28: 0 | AS28: 15 | AT28: 0 | AU28: 0 | AV28: 0 | AW28: 15 | AX28: 15 | AY28: 0 | AZ28: 0 | BA28: 0 | BB28: 15 | BC28: 19 | BD28: 0 | BE28: 0 | BF28: 0 | BG28: 19 | BH28: 16 | BI28: 0 | BJ28: 0 | BK28: 0 | BL28: 16 | BM28: 16 | BN28: 0 | BO28: 0 | BP28: 0 | BQ28: 16 | BR28: 16 | BS28: 0 | BT28: 0 | BU28: 0 | BV28: 16 | BW28: 16 | BX28: 0 | BY28: 0 | BZ28: 0 | CA28: 16 | CB28: 6 | CC28: 0 | CD28: 0 | CE28: 0 | CF28: 6 | CG28: 0 | CH28: 0 | CI28: 0 | CJ28: 0 | CK28: 0 | CL28: 0 | CM28: 0 | CN28: 0 | CO28: 0 | CP28: 0 | CQ28: 0 | CR28: 0 | CS28: 0 | CT28: 0 | CU28: 0 | CV28: 0 | CW28: 0 | CX28: 0 | CY28: 0 | CZ28: 0 | DA28: 0 | DB28: 0 | DC28: 0 | DD28: 0 | DE28: 0 | DF28: 119 | DG28: 0 | DH28: 0 | DI28: 0 | DJ28: 119 | DK28: 37568.3 | DL28: 0 | DM28: 0 | DN28: 0 | DO28: 37568.3 | DP28: 37568.3 | DQ28: YES | DR28: 0 | DS28: 0 | DT28: 0
B29: 11 | D29: Truck & Equip Svc Tech | E29: Vendor No. 38 | F29: 13381 | G29: 40061737 | H29: 2017-09-10 | I29: 2017-09-17 | J29: =IF(AND(H29>='A - Contractor Summary'!$C$37,I29<='A - Contractor Summary'!$C$43),"Yes","No") -> Yes | K29: =VLOOKUP($D29,'C.1 - Rate Sheets'!B:F,2,FALSE) -> 258.86 | L29: =VLOOKUP($D29,'C.1 - Rate Sheets'!B:F,3,FALSE) -> 0 | M29: =VLOOKUP($D29,'C.1 - Rate Sheets'!B:F,4,FALSE) -> 0 | N29: =VLOOKUP($D29,'C.1 - Rate Sheets'!B:F,5,FALSE) -> 0 | O29: 0 | P29: 0 | Q29: 0 | R29: 0 | S29: 0 | T29: 0 | U29: 0 | V29: 0 | W29: 0 | X29: 0 | Y29: 0 | Z29: 0 | AA29: 0 | AB29: 0 | AC29: 0 | AD29: 0 | AE29: 0 | AF29: 0 | AG29: 0 | AH29: 0 | AI29: 0 | AJ29: 0 | AK29: 0 | AL29: 0 | AM29: 0 | AN29: 0 | AO29: 0 | AP29: 0 | AQ29: 0 | AR29: 0 | AS29: 15 | AT29: 0 | AU29: 0 | AV29: 0 | AW29: =SUM(AS29:AV29) -> 15 | AX29: 15 | AY29: 0 | AZ29: 0 | BA29: 0 | BB29: =SUM(AX29:BA29) -> 15 | BC29: 19 | BD29: 0 | BE29: 0 | BF29: 0 | BG29: =SUM(BC29:BF29) -> 19 | BH29: 16 | BI29: 0 | BJ29: 0 | BK29: 0 | BL29: =SUM(BH29:BK29) -> 16 | BM29: 16 | BN29: 0 | BO29: 0 | BP29: 0 | BQ29: =SUM(BM29:BP29) -> 16 | BR29: 16 | BS29: 0 | BT29: 0 | BU29: 0 | BV29: =SUM(BR29:BU29) -> 16 | BW29: 16 | BX29: 0 | BY29: 0 | BZ29: 0 | CA29: =SUM(BW29:BZ29) -> 16 | CB29: 6 | CC29: 0 | CD29: 0 | CE29: 0 | CF29: =SUM(CB29:CE29) -> 6 | CG29: 0 | CH29: 0 | CI29: 0 | CJ29: 0 | CK29: 0 | CL29: 0 | CM29: 0 | CN29: 0 | CO29: 0 | CP29: 0 | CQ29: 0 | CR29: 0 | CS29: 0 | CT29: 0 | CU29: 0 | CV29: 0 | CW29: 0 | CX29: 0 | CY29: 0 | CZ29: 0 | DA29: 0 | DB29: 0 | DC29: 0 | DD29: 0 | DE29: 0 | DF29: 119 | DG29: 0 | DH29: 0 | DI29: 0 | DJ29: 119 | DK29: 30804.34 | DL29: 0 | DM29: 0 | DN29: 0 | DO29: 30804.34 | DP29: 30804.34 | DQ29: YES | DR29: 0 | DS29: 0 | DT29: 0
B30: 12 | D30: Customer Service Rep | E30: Vendor No. 38 | F30: 96269 | G30: 40061737 | H30: 2017-09-10 | I30: 2017-09-17 | J30: =IF(AND(H30>='A - Contractor Summary'!$C$37,I30<='A - Contractor Summary'!$C$43),"Yes","No") -> Yes | K30: =VLOOKUP($D30,'C.1 - Rate Sheets'!B:F,2,FALSE) -> 218 | L30: =VLOOKUP($D30,'C.1 - Rate Sheets'!B:F,3,FALSE) -> 0 | M30: =VLOOKUP($D30,'C.1 - Rate Sheets'!B:F,4,FALSE) -> 0 | N30: =VLOOKUP($D30,'C.1 - Rate Sheets'!B:F,5,FALSE) -> 0 | O30: 0 | P30: 0 | Q30: 0 | R30: 0 | S30: 0 | T30: 0 | U30: 0 | V30: 0 | W30: 0 | X30: 0 | Y30: 0 | Z30: 0 | AA30: 0 | AB30: 0 | AC30: 0 | AD30: 0 | AE30: 0 | AF30: 0 | AG30: 0 | AH30: 0 | AI30: 0 | AJ30: 0 | AK30: 0 | AL30: 0 | AM30: 0 | AN30: 0 | AO30: 0 | AP30: 0 | AQ30: 0 | AR30: 0 | AS30: 16 | AT30: 0 | AU30: 0 | AV30: 0 | AW30: =SUM(AS30:AV30) -> 16 | AX30: 7.5 | AY30: 0 | AZ30: 0 | BA30: 0 | BB30: =SUM(AX30:BA30) -> 7.5 | BC30: 7.5 | BD30: 0 | BE30: 0 | BF30: 0 | BG30: =SUM(BC30:BF30) -> 7.5 | BH30: 0 | BI30: 0 | BJ30: 0 | BK30: 0 | BL30: =SUM(BH30:BK30) -> 0 | BM30: 0 | BN30: 0 | BO30: 0 | BP30: 0 | BQ30: =SUM(BM30:BP30) -> 0 | BR30: 0 | BS30: 0 | BT30: 0 | BU30: 0 | BV30: =SUM(BR30:BU30) -> 0 | BW30: 0 | BX30: 0 | BY30: 0 | BZ30: 0 | CA30: =SUM(BW30:BZ30) -> 0 | CB30: 0 | CC30: 0 | CD30: 0 | CE30: 0 | CF30: =SUM(CB30:CE30) -> 0 | CG30: 0 | CH30: 0 | CI30: 0 | CJ30: 0 | CK30: 0 | CL30: 0 | CM30: 0 | CN30: 0 | CO30: 0 | CP30: 0 | CQ30: 0 | CR30: 0 | CS30: 0 | CT30: 0 | CU30: 0 | CV30: 0 | CW30: 0 | CX30: 0 | CY30: 0 | CZ30: 0 | DA30: 0 | DB30: 0 | DC30: 0 | DD30: 0 | DE30: 0 | DF30: 31 | DG30: 0 | DH30: 0 | DI30: 0 | DJ30: 31 | DK30: 6758 | DL30: 0 | DM30: 0 | DN30: 0 | DO30: 6758 | DP30: 6758 | DQ30: YES | DR30: 0 | DS30: 0 | DT30: 0 | DU30: 2
B31: 13 | D31: Customer Service Rep | E31: Vendor No. 38 | F31: 96205 | G31: 40061737 | H31: 2017-09-10 | I31: 2017-09-17 | J31: =IF(AND(H31>='A - Contractor Summary'!$C$37,I31<='A - Contractor Summary'!$C$43),"Yes","No") -> Yes | K31: =VLOOKUP($D31,'C.1 - Rate Sheets'!B:F,2,FALSE) -> 218 | L31: =VLOOKUP($D31,'C.1 - Rate Sheets'!B:F,3,FALSE) -> 0 | M31: =VLOOKUP($D31,'C.1 - Rate Sheets'!B:F,4,FALSE) -> 0 | N31: =VLOOKUP($D31,'C.1 - Rate Sheets'!B:F,5,FALSE) -> 0 | O31: 0 | P31: 0 | Q31: 0 | R31: 0 | S31: 0 | T31: 0 | U31: 0 | V31: 0 | W31: 0 | X31: 0 | Y31: 0 | Z31: 0 | AA31: 0 | AB31: 0 | AC31: 0 | AD31: 0 | AE31: 0 | AF31: 0 | AG31: 0 | AH31: 0 | AI31: 0 | AJ31: 0 | AK31: 0 | AL31: 0 | AM31: 0 | AN31: 0 | AO31: 0 | AP31: 0 | AQ31: 0 | AR31: 0 | AS31: 0 | AT31: 0 | AU31: 0 | AV31: 0 | AW31: 0 | AX31: 7.5 | AY31: 0 | AZ31: 0 | BA31: 0 | BB31: 7.5 | BC31: 0 | BD31: 0 | BE31: 0 | BF31: 0 | BG31: 0 | BH31: 7.5 | BI31: 0 | BJ31: 0 | BK31: 0 | BL31: 7.5 | BM31: 0 | BN31: 0 | BO31: 0 | BP31: 0 | BQ31: 0 | BR31: 0 | BS31: 0 | BT31: 0 | BU31: 0 | BV31: 0 | BW31: 0 | BX31: 0 | BY31: 0 | BZ31: 0 | CA31: 0 | CB31: 0 | CC31: 0 | CD31: 0 | CE31: 0 | CF31: 0 | CG31: 0 | CH31: 0 | CI31: 0 | CJ31: 0 | CK31: 0 | CL31: 0 | CM31: 0 | CN31: 0 | CO31: 0 | CP31: 0 | CQ31: 0 | CR31: 0 | CS31: 0 | CT31: 0 | CU31: 0 | CV31: 0 | CW31: 0 | CX31: 0 | CY31: 0 | CZ31: 0 | DA31: 0 | DB31: 0 | DC31: 0 | DD31: 0 | DE31: 0 | DF31: 15 | DG31: 0 | DH31: 0 | DI31: 0 | DJ31: 15 | DK31: 3270 | DL31: 0 | DM31: 0 | DN31: 0 | DO31: 3270 | DP31: 3270 | DQ31: YES | DR31: 0 | DS31: 0 | DT31: 0 | DU31: 2
B32: 14 | D32: Customer Service Rep | E32: Vendor No. 38 | F32: 96715 | G32: 40061737 | H32: 2017-09-10 | I32: 2017-09-17 | J32: =IF(AND(H32>='A - Contractor Summary'!$C$37,I32<='A - Contractor Summary'!$C$43),"Yes","No") -> Yes | K32: =VLOOKUP($D32,'C.1 - Rate Sheets'!B:F,2,FALSE) -> 218 | L32: =VLOOKUP($D32,'C.1 - Rate Sheets'!B:F,3,FALSE) -> 0 | M32: =VLOOKUP($D32,'C.1 - Rate Sheets'!B:F,4,FALSE) -> 0 | N32: =VLOOKUP($D32,'C.1 - Rate Sheets'!B:F,5,FALSE) -> 0 | O32: 0 | P32: 0 | Q32: 0 | R32: 0 | S32: 0 | T32: 0 | U32: 0 | V32: 0 | W32: 0 | X32: 0 | Y32: 0 | Z32: 0 | AA32: 0 | AB32: 0 | AC32: 0 | AD32: 0 | AE32: 0 | AF32: 0 | AG32: 0 | AH32: 0 | AI32: 0 | AJ32: 0 | AK32: 0 | AL32: 0 | AM32: 0 | AN32: 0 | AO32: 0 | AP32: 0 | AQ32: 0 | AR32: 0 | AS32: 16 | AT32: 0 | AU32: 0 | AV32: 0 | AW32: 16 | AX32: 6.5 | AY32: 0 | AZ32: 0 | BA32: 0 | BB32: 6.5 | BC32: 6.5 | BD32: 0 | BE32: 0 | BF32: 0 | BG32: 6.5 | BH32: 6.5 | BI32: 0 | BJ32: 0 | BK32: 0 | BL32: 6.5 | BM32: 0 | BN32: 0 | BO32: 0 | BP32: 0 | BQ32: 0 | BR32: 0 | BS32: 0 | BT32: 0 | BU32: 0 | BV32: 0 | BW32: 0 | BX32: 0 | BY32: 0 | BZ32: 0 | CA32: 0 | CB32: 0 | CC32: 0 | CD32: 0 | CE32: 0 | CF32: 0 | CG32: 0 | CH32: 0 | CI32: 0 | CJ32: 0 | CK32: 0 | CL32: 0 | CM32: 0 | CN32: 0 | CO32: 0 | CP32: 0 | CQ32: 0 | CR32: 0 | CS32: 0 | CT32: 0 | CU32: 0 | CV32: 0 | CW32: 0 | CX32: 0 | CY32: 0 | CZ32: 0 | DA32: 0 | DB32: 0 | DC32: 0 | DD32: 0 | DE32: 0 | DF32: 35.5 | DG32: 0 | DH32: 0 | DI32: 0 | DJ32: 35.5 | DK32: 7739 | DL32: 0 | DM32: 0 | DN32: 0 | DO32: 7739 | DP32: 7739 | DQ32: YES | DR32: 0 | DS32: 0 | DT32: 0 | DU32: 2
B33: 15 | D33: Customer Service Rep | E33: Vendor No. 38 | F33: 96571 | G33: 40061737 | H33: 2017-09-10 | I33: 2017-09-17 | J33: =IF(AND(H33>='A - Contractor Summary'!$C$37,I33<='A - Contractor Summary'!$C$43),"Yes","No") -> Yes | K33: =VLOOKUP($D33,'C.1 - Rate Sheets'!B:F,2,FALSE) -> 218 | L33: =VLOOKUP($D33,'C.1 - Rate Sheets'!B:F,3,FALSE) -> 0 | M33: =VLOOKUP($D33,'C.1 - Rate Sheets'!B:F,4,FALSE) -> 0 | N33: =VLOOKUP($D33,'C.1 - Rate Sheets'!B:F,5,FALSE) -> 0 | O33: 0 | P33: 0 | Q33: 0 | R33: 0 | S33: 0 | T33: 0 | U33: 0 | V33: 0 | W33: 0 | X33: 0 | Y33: 0 | Z33: 0 | AA33: 0 | AB33: 0 | AC33: 0 | AD33: 0 | AE33: 0 | AF33: 0 | AG33: 0 | AH33: 0 | AI33: 0 | AJ33: 0 | AK33: 0 | AL33: 0 | AM33: 0 | AN33: 0 | AO33: 0 | AP33: 0 | AQ33: 0 | AR33: 0 | AS33: 0 | AT33: 0 | AU33: 0 | AV33: 0 | AW33: 0 | AX33: 0 | AY33: 0 | AZ33: 0 | BA33: 0 | BB33: 0 | BC33: 7.5 | BD33: 0 | BE33: 0 | BF33: 0 | BG33: 7.5 | BH33: 7.5 | BI33: 0 | BJ33: 0 | BK33: 0 | BL33: 7.5 | BM33: 0 | BN33: 0 | BO33: 0 | BP33: 0 | BQ33: 0 | BR33: 0 | BS33: 0 | BT33: 0 | BU33: 0 | BV33: 0 | BW33: 0 | BX33: 0 | BY33: 0 | BZ33: 0 | CA33: 0 | CB33: 0 | CC33: 0 | CD33: 0 | CE33: 0 | CF33: 0 | CG33: 0 | CH33: 0 | CI33: 0 | CJ33: 0 | CK33: 0 | CL33: 0 | CM33: 0 | CN33: 0 | CO33: 0 | CP33: 0 | CQ33: 0 | CR33: 0 | CS33: 0 | CT33: 0 | CU33: 0 | CV33: 0 | CW33: 0 | CX33: 0 | CY33: 0 | CZ33: 0 | DA33: 0 | DB33: 0 | DC33: 0 | DD33: 0 | DE33: 0 | DF33: 15 | DG33: 0 | DH33: 0 | DI33: 0 | DJ33: 15 | DK33: 3270 | DL33: 0 | DM33: 0 | DN33: 0 | DO33: 3270 | DP33: 3270 | DQ33: YES | DR33: 0 | DS33: 0 | DT33: 0 | DU33: 2
B34: 16 | D34: Customer Service Rep | E34: Vendor No. 38 | F34: 96503 | G34: 40061737 | H34: 2017-09-10 | I34: 2017-09-17 | J34: =IF(AND(H34>='A - Contractor Summary'!$C$37,I34<='A - Contractor Summary'!$C$43),"Yes","No") -> Yes | K34: =VLOOKUP($D34,'C.1 - Rate Sheets'!B:F,2,FALSE) -> 218 | L34: =VLOOKUP($D34,'C.1 - Rate Sheets'!B:F,3,FALSE) -> 0 | M34: =VLOOKUP($D34,'C.1 - Rate Sheets'!B:F,4,FALSE) -> 0 | N34: =VLOOKUP($D34,'C.1 - Rate Sheets'!B:F,5,FALSE) -> 0 | O34: 0 | P34: 0 | Q34: 0 | R34: 0 | S34: 0 | T34: 0 | U34: 0 | V34: 0 | W34: 0 | X34: 0 | Y34: 0 | Z34: 0 | AA34: 0 | AB34: 0 | AC34: 0 | AD34: 0 | AE34: 0 | AF34: 0 | AG34: 0 | AH34: 0 | AI34: 0 | AJ34: 0 | AK34: 0 | AL34: 0 | AM34: 0 | AN34: 0 | AO34: 0 | AP34: 0 | AQ34: 0 | AR34: 0 | AS34: 16 | AT34: 0 | AU34: 0 | AV34: 0 | AW34: 16 | AX34: 7.5 | AY34: 0 | AZ34: 0 | BA34: 0 | BB34: 7.5 | BC34: 7.5 | BD34: 0 | BE34: 0 | BF34: 0 | BG34: 7.5 | BH34: 7.5 | BI34: 0 | BJ34: 0 | BK34: 0 | BL34: 7.5 | BM34: 0 | BN34: 0 | BO34: 0 | BP34: 0 | BQ34: 0 | BR34: 0 | BS34: 0 | BT34: 0 | BU34: 0 | BV34: 0 | BW34: 0 | BX34: 0 | BY34: 0 | BZ34: 0 | CA34: 0 | CB34: 0 | CC34: 0 | CD34: 0 | CE34: 0 | CF34: 0 | CG34: 0 | CH34: 0 | CI34: 0 | CJ34: 0 | CK34: 0 | CL34: 0 | CM34: 0 | CN34: 0 | CO34: 0 | CP34: 0 | CQ34: 0 | CR34: 0 | CS34: 0 | CT34: 0 | CU34: 0 | CV34: 0 | CW34: 0 | CX34: 0 | CY34: 0 | CZ34: 0 | DA34: 0 | DB34: 0 | DC34: 0 | DD34: 0 | DE34: 0 | DF34: 38.5 | DG34: 0 | DH34: 0 | DI34: 0 | DJ34: 38.5 | DK34: 8393 | DL34: 0 | DM34: 0 | DN34: 0 | DO34: 8393 | DP34: 8393 | DQ34: YES | DR34: 0 | DS34: 0 | DT34: 0 | DU34: 2
B35: 17 | D35: Customer Service Rep | E35: Vendor No. 38 | F35: 96431 | G35: 40061737 | H35: 2017-09-10 | I35: 2017-09-17 | J35: =IF(AND(H35>='A - Contractor Summary'!$C$37,I35<='A - Contractor Summary'!$C$43),"Yes","No") -> Yes | K35: =VLOOKUP($D35,'C.1 - Rate Sheets'!B:F,2,FALSE) -> 218 | L35: =VLOOKUP($D35,'C.1 - Rate Sheets'!B:F,3,FALSE) -> 0 | M35: =VLOOKUP($D35,'C.1 - Rate Sheets'!B:F,4,FALSE) -> 0 | N35: =VLOOKUP($D35,'C.1 - Rate Sheets'!B:F,5,FALSE) -> 0 | O35: 0 | P35: 0 | Q35: 0 | R35: 0 | S35: 0 | T35: 0 | U35: 0 | V35: 0 | W35: 0 | X35: 0 | Y35: 0 | Z35: 0 | AA35: 0 | AB35: 0 | AC35: 0 | AD35: 0 | AE35: 0 | AF35: 0 | AG35: 0 | AH35: 0 | AI35: 0 | AJ35: 0 | AK35: 0 | AL35: 0 | AM35: 0 | AN35: 0 | AO35: 0 | AP35: 0 | AQ35: 0 | AR35: 0 | AS35: 16 | AT35: 0 | AU35: 0 | AV35: 0 | AW35: 16 | AX35: 0 | AY35: 0 | AZ35: 0 | BA35: 0 | BB35: 0 | BC35: 0 | BD35: 0 | BE35: 0 | BF35: 0 | BG35: 0 | BH35: 7.5 | BI35: 0 | BJ35: 0 | BK35: 0 | BL35: 7.5 | BM35: 0 | BN35: 0 | BO35: 0 | BP35: 0 | BQ35: 0 | BR35: 0 | BS35: 0 | BT35: 0 | BU35: 0 | BV35: 0 | BW35: 0 | BX35: 0 | BY35: 0 | BZ35: 0 | CA35: 0 | CB35: 0 | CC35: 0 | CD35: 0 | CE35: 0 | CF35: 0 | CG35: 0 | CH35: 0 | CI35: 0 | CJ35: 0 | CK35: 0 | CL35: 0 | CM35: 0 | CN35: 0 | CO35: 0 | CP35: 0 | CQ35: 0 | CR35: 0 | CS35: 0 | CT35: 0 | CU35: 0 | CV35: 0 | CW35: 0 | CX35: 0 | CY35: 0 | CZ35: 0 | DA35: 0 | DB35: 0 | DC35: 0 | DD35: 0 | DE35: 0 | DF35: 23.5 | DG35: 0 | DH35: 0 | DI35: 0 | DJ35: 23.5 | DK35: 5123 | DL35: 0 | DM35: 0 | DN35: 0 | DO35: 5123 | DP35: 5123 | DQ35: YES | DR35: 0 | DS35: 0 | DT35: 0 | DU35: 2
B36: 18 | D36: Customer Service Rep | E36: Vendor No. 38 | F36: 96265 | G36: 40061737 | H36: 2017-09-10 | I36: 2017-09-17 | J36: =IF(AND(H36>='A - Contractor Summary'!$C$37,I36<='A - Contractor Summary'!$C$43),"Yes","No") -> Yes | K36: =VLOOKUP($D36,'C.1 - Rate Sheets'!B:F,2,FALSE) -> 218 | L36: =VLOOKUP($D36,'C.1 - Rate Sheets'!B:F,3,FALSE) -> 0 | M36: =VLOOKUP($D36,'C.1 - Rate Sheets'!B:F,4,FALSE) -> 0 | N36: =VLOOKUP($D36,'C.1 - Rate Sheets'!B:F,5,FALSE) -> 0 | O36: 0 | P36: 0 | Q36: 0 | R36: 0 | S36: 0 | T36: 0 | U36: 0 | V36: 0 | W36: 0 | X36: 0 | Y36: 0 | Z36: 0 | AA36: 0 | AB36: 0 | AC36: 0 | AD36: 0 | AE36: 0 | AF36: 0 | AG36: 0 | AH36: 0 | AI36: 0 | AJ36: 0 | AK36: 0 | AL36: 0 | AM36: 0 | AN36: 0 | AO36: 0 | AP36: 0 | AQ36: 0 | AR36: 0 | AS36: 16 | AT36: 0 | AU36: 0 | AV36: 0 | AW36: 16 | AX36: 7.5 | AY36: 0 | AZ36: 0 | BA36: 0 | BB36: 7.5 | BC36: 0 | BD36: 0 | BE36: 0 | BF36: 0 | BG36: 0 | BH36: 7.5 | BI36: 0 | BJ36: 0 | BK36: 0 | BL36: 7.5 | BM36: 0 | BN36: 0 | BO36: 0 | BP36: 0 | BQ36: 0 | BR36: 0 | BS36: 0 | BT36: 0 | BU36: 0 | BV36: 0 | BW36: 0 | BX36: 0 | BY36: 0 | BZ36: 0 | CA36: 0 | CB36: 0 | CC36: 0 | CD36: 0 | CE36: 0 | CF36: 0 | CG36: 0 | CH36: 0 | CI36: 0 | CJ36: 0 | CK36: 0 | CL36: 0 | CM36: 0 | CN36: 0 | CO36: 0 | CP36: 0 | CQ36: 0 | CR36: 0 | CS36: 0 | CT36: 0 | CU36: 0 | CV36: 0 | CW36: 0 | CX36: 0 | CY36: 0 | CZ36: 0 | DA36: 0 | DB36: 0 | DC36: 0 | DD36: 0 | DE36: 0 | DF36: 31 | DG36: 0 | DH36: 0 | DI36: 0 | DJ36: 31 | DK36: 6758 | DL36: 0 | DM36: 0 | DN36: 0 | DO36: 6758 | DP36: 6758 | DQ36: YES | DR36: 0 | DS36: 0 | DT36: 0 | DU36: 2
B37: 19 | D37: Customer Service Rep | E37: Vendor No. 38 | F37: 13473 | G37: 40061737 | H37: 2017-09-10 | I37: 2017-09-17 | J37: =IF(AND(H37>='A - Contractor Summary'!$C$37,I37<='A - Contractor Summary'!$C$43),"Yes","No") -> Yes | K37: =VLOOKUP($D37,'C.1 - Rate Sheets'!B:F,2,FALSE) -> 218 | L37: =VLOOKUP($D37,'C.1 - Rate Sheets'!B:F,3,FALSE) -> 0 | M37: =VLOOKUP($D37,'C.1 - Rate Sheets'!B:F,4,FALSE) -> 0 | N37: =VLOOKUP($D37,'C.1 - Rate Sheets'!B:F,5,FALSE) -> 0 | O37: 0 | P37: 0 | Q37: 0 | R37: 0 | S37: 0 | T37: 0 | U37: 0 | V37: 0 | W37: 0 | X37: 0 | Y37: 0 | Z37: 0 | AA37: 0 | AB37: 0 | AC37: 0 | AD37: 0 | AE37: 0 | AF37: 0 | AG37: 0 | AH37: 0 | AI37: 0 | AJ37: 0 | AK37: 0 | AL37: 0 | AM37: 0 | AN37: 0 | AO37: 0 | AP37: 0 | AQ37: 0 | AR37: 0 | AS37: 16 | AT37: 0 | AU37: 0 | AV37: 0 | AW37: 16 | AX37: 0 | AY37: 0 | AZ37: 0 | BA37: 0 | BB37: 0 | BC37: 7.5 | BD37: 0 | BE37: 0 | BF37: 0 | BG37: 7.5 | BH37: 0 | BI37: 0 | BJ37: 0 | BK37: 0 | BL37: 0 | BM37: 0 | BN37: 0 | BO37: 0 | BP37: 0 | BQ37: 0 | BR37: 0 | BS37: 0 | BT37: 0 | BU37: 0 | BV37: 0 | BW37: 0 | BX37: 0 | BY37: 0 | BZ37: 0 | CA37: 0 | CB37: 0 | CC37: 0 | CD37: 0 | CE37: 0 | CF37: 0 | CG37: 0 | CH37: 0 | CI37: 0 | CJ37: 0 | CK37: 0 | CL37: 0 | CM37: 0 | CN37: 0 | CO37: 0 | CP37: 0 | CQ37: 0 | CR37: 0 | CS37: 0 | CT37: 0 | CU37: 0 | CV37: 0 | CW37: 0 | CX37: 0 | CY37: 0 | CZ37: 0 | DA37: 0 | DB37: 0 | DC37: 0 | DD37: 0 | DE37: 0 | DF37: 23.5 | DG37: 0 | DH37: 0 | DI37: 0 | DJ37: 23.5 | DK37: 5123 | DL37: 0 | DM37: 0 | DN37: 0 | DO37: =SUM(DK37:DN37) -> 5123 | DP37: 5123 | DQ37: YES | DR37: 0 | DS37: 0 | DT37: 0 | DU37: 2
B38: 20 | D38: Customer Service Rep | E38: Vendor No. 38 | F38: 96164 | G38: 40061737 | H38: 2017-09-10 | I38: 2017-09-17 | J38: =IF(AND(H38>='A - Contractor Summary'!$C$37,I38<='A - Contractor Summary'!$C$43),"Yes","No") -> Yes | K38: =VLOOKUP($D38,'C.1 - Rate Sheets'!B:F,2,FALSE) -> 218 | L38: =VLOOKUP($D38,'C.1 - Rate Sheets'!B:F,3,FALSE) -> 0 | M38: =VLOOKUP($D38,'C.1 - Rate Sheets'!B:F,4,FALSE) -> 0 | N38: =VLOOKUP($D38,'C.1 - Rate Sheets'!B:F,5,FALSE) -> 0 | O38: 0 | P38: 0 | Q38: 0 | R38: 0 | S38: 0 | T38: 0 | U38: 0 | V38: 0 | W38: 0 | X38: 0 | Y38: 0 | Z38: 0 | AA38: 0 | AB38: 0 | AC38: 0 | AD38: 0 | AE38: 0 | AF38: 0 | AG38: 0 | AH38: 0 | AI38: 0 | AJ38: 0 | AK38: 0 | AL38: 0 | AM38: 0 | AN38: 0 | AO38: 0 | AP38: 0 | AQ38: 0 | AR38: 0 | AS38: 16 | AT38: 0 | AU38: 0 | AV38: 0 | AW38: 16 | AX38: 7.5 | AY38: 0 | AZ38: 0 | BA38: 0 | BB38: 7.5 | BC38: 7.5 | BD38: 0 | BE38: 0 | BF38: 0 | BG38: 7.5 | BH38: 0 | BI38: 0 | BJ38: 0 | BK38: 0 | BL38: 0 | BM38: 0 | BN38: 0 | BO38: 0 | BP38: 0 | BQ38: 0 | BR38: 0 | BS38: 0 | BT38: 0 | BU38: 0 | BV38: 0 | BW38: 0 | BX38: 0 | BY38: 0 | BZ38: 0 | CA38: 0 | CB38: 0 | CC38: 0 | CD38: 0 | CE38: 0 | CF38: 0 | CG38: 0 | CH38: 0 | CI38: 0 | CJ38: 0 | CK38: 0 | CL38: 0 | CM38: 0 | CN38: 0 | CO38: 0 | CP38: 0 | CQ38: 0 | CR38: 0 | CS38: 0 | CT38: 0 | CU38: 0 | CV38: 0 | CW38: 0 | CX38: 0 | CY38: 0 | CZ38: 0 | DA38: 0 | DB38: 0 | DC38: 0 | DD38: 0 | DE38: 0 | DF38: 31 | DG38: 0 | DH38: 0 | DI38: 0 | DJ38: 31 | DK38: 6758 | DL38: 0 | DM38: 0 | DN38: 0 | DO38: 6758 | DP38: 6758 | DQ38: YES | DR38: 0 | DS38: 0 | DT38: 0 | DU38: 2
B39: 21 | D39: Customer Service Rep | E39: Vendor No. 38 | F39: 96173 | G39: 40061737 | H39: 2017-09-10 | I39: 2017-09-17 | J39: =IF(AND(H39>='A - Contractor Summary'!$C$37,I39<='A - Contractor Summary'!$C$43),"Yes","No") -> Yes | K39: =VLOOKUP($D39,'C.1 - Rate Sheets'!B:F,2,FALSE) -> 218 | L39: =VLOOKUP($D39,'C.1 - Rate Sheets'!B:F,3,FALSE) -> 0 | M39: =VLOOKUP($D39,'C.1 - Rate Sheets'!B:F,4,FALSE) -> 0 | N39: =VLOOKUP($D39,'C.1 - Rate Sheets'!B:F,5,FALSE) -> 0 | O39: 0 | P39: 0 | Q39: 0 | R39: 0 | S39: 0 | T39: 0 | U39: 0 | V39: 0 | W39: 0 | X39: 0 | Y39: 0 | Z39: 0 | AA39: 0 | AB39: 0 | AC39: =SUM(Y39:AB39) -> 0 | AD39: 0 | AE39: 0 | AF39: 0 | AG39: 0 | AH39: =SUM(AD39:AG39) -> 0 | AI39: 0 | AJ39: 0 | AK39: 0 | AL39: 0 | AM39: =SUM(AI39:AL39) -> 0 | AN39: 0 | AO39: 0 | AP39: 0 | AQ39: 0 | AR39: =SUM(AN39:AQ39) -> 0 | AS39: 16 | AT39: 0 | AU39: 0 | AV39: 0 | AW39: =SUM(AS39:AV39) -> 16 | AX39: 0 | AY39: 0 | AZ39: 0 | BA39: 0 | BB39: =SUM(AX39:BA39) -> 0 | BC39: 0 | BD39: 0 | BE39: 0 | BF39: 0 | BG39: =SUM(BC39:BF39) -> 0 | BH39: 7.5 | BI39: 0 | BJ39: 0 | BK39: 0 | BL39: =SUM(BH39:BK39) -> 7.5 | BM39: 0 | BN39: 0 | BO39: 0 | BP39: 0 | BQ39: =SUM(BM39:BP39) -> 0 | BR39: 0 | BS39: 0 | BT39: 0 | BU39: 0 | BV39: =SUM(BR39:BU39) -> 0 | BW39: 0 | BX39: 0 | BY39: 0 | BZ39: 0 | CA39: =SUM(BW39:BZ39) -> 0 | CB39: 0 | CC39: 0 | CD39: 0 | CE39: 0 | CF39: =SUM(CB39:CE39) -> 0 | CG39: 0 | CH39: 0 | CI39: 0 | CJ39: 0 | CK39: =SUM(CG39:CJ39) -> 0 | CL39: 0 | CM39: 0 | CN39: 0 | CO39: 0 | CP39: =SUM(CL39:CO39) -> 0 | CQ39: 0 | CR39: 0 | CS39: 0 | CT39: 0 | CU39: =SUM(CQ39:CT39) -> 0 | CV39: 0 | CW39: 0 | CX39: 0 | CY39: 0 | CZ39: =SUM(CV39:CY39) -> 0 | DA39: 0 | DB39: 0 | DC39: 0 | DD39: 0 | DE39: =SUM(DA39:DD39) -> 0 | DF39: 23.5 | DG39: 0 | DH39: 0 | DI39: 0 | DJ39: 23.5 | DK39: 5123 | DL39: 0 | DM39: 0 | DN39: 0 | DO39: =SUM(DK39:DN39) -> 5123 | DP39: 5123 | DQ39: YES | DR39: 0 | DS39: 0 | DT39: 0 | DU39: 2
B40: 22 | D40: Customer Service Rep | E40: Vendor No. 38 | F40: 13396 | G40: 40061737 | H40: 2017-09-10 | I40: 2017-09-17 | J40: =IF(AND(H40>='A - Contractor Summary'!$C$37,I40<='A - Contractor Summary'!$C$43),"Yes","No") -> Yes | K40: =VLOOKUP($D40,'C.1 - Rate Sheets'!B:F,2,FALSE) -> 218 | L40: =VLOOKUP($D40,'C.1 - Rate Sheets'!B:F,3,FALSE) -> 0 | M40: =VLOOKUP($D40,'C.1 - Rate Sheets'!B:F,4,FALSE) -> 0 | N40: =VLOOKUP($D40,'C.1 - Rate Sheets'!B:F,5,FALSE) -> 0 | O40: 0 | P40: 0 | Q40: 0 | R40: 0 | S40: 0 | T40: 0 | U40: 0 | V40: 0 | W40: 0 | X40: 0 | Y40: 0 | Z40: 0 | AA40: 0 | AB40: 0 | AC40: 0 | AD40: 0 | AE40: 0 | AF40: 0 | AG40: 0 | AH40: 0 | AI40: 0 | AJ40: 0 | AK40: 0 | AL40: 0 | AM40: 0 | AN40: 0 | AO40: 0 | AP40: 0 | AQ40: 0 | AR40: 0 | AS40: 0 | AT40: 0 | AU40: 0 | AV40: 0 | AW40: 0 | AX40: 7.5 | AY40: 0 | AZ40: 0 | BA40: 0 | BB40: 7.5 | BC40: 7.5 | BD40: 0 | BE40: 0 | BF40: 0 | BG40: 7.5 | BH40: 7.5 | BI40: 0 | BJ40: 0 | BK40: 0 | BL40: 7.5 | BM40: 0 | BN40: 0 | BO40: 0 | BP40: 0 | BQ40: 0 | BR40: 0 | BS40: 0 | BT40: 0 | BU40: 0 | BV40: 0 | BW40: 0 | BX40: 0 | BY40: 0 | BZ40: 0 | CA40: 0 | CB40: 0 | CC40: 0 | CD40: 0 | CE40: 0 | CF40: 0 | CG40: 0 | CH40: 0 | CI40: 0 | CJ40: 0 | CK40: 0 | CL40: 0 | CM40: 0 | CN40: 0 | CO40: 0 | CP40: 0 | CQ40: 0 | CR40: 0 | CS40: 0 | CT40: 0 | CU40: 0 | CV40: 0 | CW40: 0 | CX40: 0 | CY40: 0 | CZ40: 0 | DA40: 0 | DB40: 0 | DC40: 0 | DD40: 0 | DE40: 0 | DF40: 22.5 | DG40: 0 | DH40: 0 | DI40: 0 | DJ40: 22.5 | DK40: 4905 | DL40: 0 | DM40: 0 | DN40: 0 | DO40: 4905 | DP40: 4905 | DQ40: YES | DR40: 0 | DS40: 0 | DT40: 0 | DU40: 2
B41: 23 | D41: Customer Service Rep | E41: Vendor No. 38 | F41: 96271 | G41: 40061737 | H41: 2017-09-10 | I41: 2017-09-17 | J41: =IF(AND(H41>='A - Contractor Summary'!$C$37,I41<='A - Contractor Summary'!$C$43),"Yes","No") -> Yes | K41: =VLOOKUP($D41,'C.1 - Rate Sheets'!B:F,2,FALSE) -> 218 | L41: =VLOOKUP($D41,'C.1 - Rate Sheets'!B:F,3,FALSE) -> 0 | M41: =VLOOKUP($D41,'C.1 - Rate Sheets'!B:F,4,FALSE) -> 0 | N41: =VLOOKUP($D41,'C.1 - Rate Sheets'!B:F,5,FALSE) -> 0 | O41: 0 | P41: 0 | Q41: 0 | R41: 0 | S41: 0 | T41: 0 | U41: 0 | V41: 0 | W41: 0 | X41: 0 | Y41: 0 | Z41: 0 | AA41: 0 | AB41: 0 | AC41: 0 | AD41: 0 | AE41: 0 | AF41: 0 | AG41: 0 | AH41: 0 | AI41: 0 | AJ41: 0 | AK41: 0 | AL41: 0 | AM41: 0 | AN41: 0 | AO41: 0 | AP41: 0 | AQ41: 0 | AR41: 0 | AS41: 16 | AT41: 0 | AU41: 0 | AV41: 0 | AW41: 16 | AX41: 0 | AY41: 0 | AZ41: 0 | BA41: 0 | BB41: 0 | BC41: 0 | BD41: 0 | BE41: 0 | BF41: 0 | BG41: 0 | BH41: 0 | BI41: 0 | BJ41: 0 | BK41: 0 | BL41: 0 | BM41: 0 | BN41: 0 | BO41: 0 | BP41: 0 | BQ41: 0 | BR41: 0 | BS41: 0 | BT41: 0 | BU41: 0 | BV41: 0 | BW41: 0 | BX41: 0 | BY41: 0 | BZ41: 0 | CA41: 0 | CB41: 0 | CC41: 0 | CD41: 0 | CE41: 0 | CF41: 0 | CG41: 0 | CH41: 0 | CI41: 0 | CJ41: 0 | CK41: 0 | CL41: 0 | CM41: 0 | CN41: 0 | CO41: 0 | CP41: 0 | CQ41: 0 | CR41: 0 | CS41: 0 | CT41: 0 | CU41: 0 | CV41: 0 | CW41: 0 | CX41: 0 | CY41: 0 | CZ41: 0 | DA41: 0 | DB41: 0 | DC41: 0 | DD41: 0 | DE41: 0 | DF41: 16 | DG41: 0 | DH41: 0 | DI41: 0 | DJ41: 16 | DK41: 3488 | DL41: 0 | DM41: 0 | DN41: 0 | DO41: 3488 | DP41: 3488 | DQ41: YES | DR41: 0 | DS41: 0 | DT41: 0 | DU41: 2
B42: 24 | D42: Customer Service Rep | E42: Vendor No. 38 | F42: 96356 | G42: 40061737 | H42: 2017-09-10 | I42: 2017-09-17 | J42: =IF(AND(H42>='A - Contractor Summary'!$C$37,I42<='A - Contractor Summary'!$C$43),"Yes","No") -> Yes | K42: =VLOOKUP($D42,'C.1 - Rate Sheets'!B:F,2,FALSE) -> 218 | L42: =VLOOKUP($D42,'C.1 - Rate Sheets'!B:F,3,FALSE) -> 0 | M42: =VLOOKUP($D42,'C.1 - Rate Sheets'!B:F,4,FALSE) -> 0 | N42: =VLOOKUP($D42,'C.1 - Rate Sheets'!B:F,5,FALSE) -> 0 | O42: 0 | P42: 0 | Q42: 0 | R42: 0 | S42: 0 | T42: 0 | U42: 0 | V42: 0 | W42: 0 | X42: 0 | Y42: 0 | Z42: 0 | AA42: 0 | AB42: 0 | AC42: 0 | AD42: 0 | AE42: 0 | AF42: 0 | AG42: 0 | AH42: 0 | AI42: 0 | AJ42: 0 | AK42: 0 | AL42: 0 | AM42: 0 | AN42: 0 | AO42: 0 | AP42: 0 | AQ42: 0 | AR42: 0 | AS42: 0 | AT42: 0 | AU42: 0 | AV42: 0 | AW42: 0 | AX42: 7.5 | AY42: 0 | AZ42: 0 | BA42: 0 | BB42: 7.5 | BC42: 7.5 | BD42: 0 | BE42: 0 | BF42: 0 | BG42: 7.5 | BH42: 7.5 | BI42: 0 | BJ42: 0 | BK42: 0 | BL42: 7.5 | BM42: 0 | BN42: 0 | BO42: 0 | BP42: 0 | BQ42: 0 | BR42: 0 | BS42: 0 | BT42: 0 | BU42: 0 | BV42: 0 | BW42: 0 | BX42: 0 | BY42: 0 | BZ42: 0 | CA42: 0 | CB42: 0 | CC42: 0 | CD42: 0 | CE42: 0 | CF42: 0 | CG42: 0 | CH42: 0 | CI42: 0 | CJ42: 0 | CK42: 0 | CL42: 0 | CM42: 0 | CN42: 0 | CO42: 0 | CP42: 0 | CQ42: 0 | CR42: 0 | CS42: 0 | CT42: 0 | CU42: 0 | CV42: 0 | CW42: 0 | CX42: 0 | CY42: 0 | CZ42: 0 | DA42: 0 | DB42: 0 | DC42: 0 | DD42: 0 | DE42: 0 | DF42: 22.5 | DG42: 0 | DH42: 0 | DI42: 0 | DJ42: 22.5 | DK42: 4905 | DL42: 0 | DM42: 0 | DN42: 0 | DO42: 4905 | DP42: 4905 | DQ42: YES | DR42: 0 | DS42: 0 | DT42: 0 | DU42: 2
B43: 25 | D43: Customer Service Rep | E43: Vendor No. 38 | F43: 13472 | G43: 40061737 | H43: 2017-09-10 | I43: 2017-09-17 | J43: =IF(AND(H43>='A - Contractor Summary'!$C$37,I43<='A - Contractor Summary'!$C$43),"Yes","No") -> Yes | K43: =VLOOKUP($D43,'C.1 - Rate Sheets'!B:F,2,FALSE) -> 218 | L43: =VLOOKUP($D43,'C.1 - Rate Sheets'!B:F,3,FALSE) -> 0 | M43: =VLOOKUP($D43,'C.1 - Rate Sheets'!B:F,4,FALSE) -> 0 | N43: =VLOOKUP($D43,'C.1 - Rate Sheets'!B:F,5,FALSE) -> 0 | O43: 0 | P43: 0 | Q43: 0 | R43: 0 | S43: 0 | T43: 0 | U43: 0 | V43: 0 | W43: 0 | X43: 0 | Y43: 0 | Z43: 0 | AA43: 0 | AB43: 0 | AC43: 0 | AD43: 0 | AE43: 0 | AF43: 0 | AG43: 0 | AH43: 0 | AI43: 0 | AJ43: 0 | AK43: 0 | AL43: 0 | AM43: 0 | AN43: 0 | AO43: 0 | AP43: 0 | AQ43: 0 | AR43: 0 | AS43: 16 | AT43: 0 | AU43: 0 | AV43: 0 | AW43: 16 | AX43: 7.5 | AY43: 0 | AZ43: 0 | BA43: 0 | BB43: 7.5 | BC43: 7.5 | BD43: 0 | BE43: 0 | BF43: 0 | BG43: 7.5 | BH43: 0 | BI43: 0 | BJ43: 0 | BK43: 0 | BL43: 0 | BM43: 0 | BN43: 0 | BO43: 0 | BP43: 0 | BQ43: 0 | BR43: 0 | BS43: 0 | BT43: 0 | BU43: 0 | BV43: 0 | BW43: 0 | BX43: 0 | BY43: 0 | BZ43: 0 | CA43: 0 | CB43: 0 | CC43: 0 | CD43: 0 | CE43: 0 | CF43: 0 | CG43: 0 | CH43: 0 | CI43: 0 | CJ43: 0 | CK43: 0 | CL43: 0 | CM43: 0 | CN43: 0 | CO43: 0 | CP43: 0 | CQ43: 0 | CR43: 0 | CS43: 0 | CT43: 0 | CU43: 0 | CV43: 0 | CW43: 0 | CX43: 0 | CY43: 0 | CZ43: 0 | DA43: 0 | DB43: 0 | DC43: 0 | DD43: 0 | DE43: 0 | DF43: 31 | DG43: 0 | DH43: 0 | DI43: 0 | DJ43: 31 | DK43: 6758 | DL43: 0 | DM43: 0 | DN43: 0 | DO43: 6758 | DP43: 6758 | DQ43: YES | DR43: 0 | DS43: 0 | DT43: 0 | DU43: 2
B44: 26 | D44: Customer Service Rep | E44: Vendor No. 38 | F44: 96352 | G44: 40061737 | H44: 2017-09-10 | I44: 2017-09-17 | J44: =IF(AND(H44>='A - Contractor Summary'!$C$37,I44<='A - Contractor Summary'!$C$43),"Yes","No") -> Yes | K44: =VLOOKUP($D44,'C.1 - Rate Sheets'!B:F,2,FALSE) -> 218 | L44: =VLOOKUP($D44,'C.1 - Rate Sheets'!B:F,3,FALSE) -> 0 | M44: =VLOOKUP($D44,'C.1 - Rate Sheets'!B:F,4,FALSE) -> 0 | N44: =VLOOKUP($D44,'C.1 - Rate Sheets'!B:F,5,FALSE) -> 0 | O44: 0 | P44: 0 | Q44: 0 | R44: 0 | S44: 0 | T44: 0 | U44: 0 | V44: 0 | W44: 0 | X44: 0 | Y44: 0 | Z44: 0 | AA44: 0 | AB44: 0 | AC44: 0 | AD44: 0 | AE44: 0 | AF44: 0 | AG44: 0 | AH44: 0 | AI44: 0 | AJ44: 0 | AK44: 0 | AL44: 0 | AM44: 0 | AN44: 0 | AO44: 0 | AP44: 0 | AQ44: 0 | AR44: 0 | AS44: 16 | AT44: 0 | AU44: 0 | AV44: 0 | AW44: 16 | AX44: 7.5 | AY44: 0 | AZ44: 0 | BA44: 0 | BB44: 7.5 | BC44: 0 | BD44: 0 | BE44: 0 | BF44: 0 | BG44: 0 | BH44: 0 | BI44: 0 | BJ44: 0 | BK44: 0 | BL44: 0 | BM44: 0 | BN44: 0 | BO44: 0 | BP44: 0 | BQ44: 0 | BR44: 0 | BS44: 0 | BT44: 0 | BU44: 0 | BV44: 0 | BW44: 0 | BX44: 0 | BY44: 0 | BZ44: 0 | CA44: 0 | CB44: 0 | CC44: 0 | CD44: 0 | CE44: 0 | CF44: 0 | CG44: 0 | CH44: 0 | CI44: 0 | CJ44: 0 | CK44: 0 | CL44: 0 | CM44: 0 | CN44: 0 | CO44: 0 | CP44: 0 | CQ44: 0 | CR44: 0 | CS44: 0 | CT44: 0 | CU44: 0 | CV44: 0 | CW44: 0 | CX44: 0 | CY44: 0 | CZ44: 0 | DA44: 0 | DB44: 0 | DC44: 0 | DD44: 0 | DE44: 0 | DF44: 23.5 | DG44: 0 | DH44: 0 | DI44: 0 | DJ44: 23.5 | DK44: 5123 | DL44: 0 | DM44: 0 | DN44: 0 | DO44: 5123 | DP44: 5123 | DQ44: YES | DR44: 0 | DS44: 0 | DT44: 0 | DU44: 2
B45: 27 | D45: Sr. Customer Service Rep | E45: Vendor No. 38 | F45: 96760 | G45: 40061737 | H45: 2017-09-10 | I45: 2017-09-17 | J45: =IF(AND(H45>='A - Contractor Summary'!$C$37,I45<='A - Contractor Summary'!$C$43),"Yes","No") -> Yes | K45: =VLOOKUP($D45,'C.1 - Rate Sheets'!B:F,2,FALSE) -> 218 | L45: =VLOOKUP($D45,'C.1 - Rate Sheets'!B:F,3,FALSE) -> 0 | M45: =VLOOKUP($D45,'C.1 - Rate Sheets'!B:F,4,FALSE) -> 0 | N45: =VLOOKUP($D45,'C.1 - Rate Sheets'!B:F,5,FALSE) -> 0 | O45: 0 | P45: 0 | Q45: 0 | R45: 0 | S45: 0 | T45: 0 | U45: 0 | V45: 0 | W45: 0 | X45: 0 | Y45: 0 | Z45: 0 | AA45: 0 | AB45: 0 | AC45: 0 | AD45: 0 | AE45: 0 | AF45: 0 | AG45: 0 | AH45: 0 | AI45: 0 | AJ45: 0 | AK45: 0 | AL45: 0 | AM45: 0 | AN45: 0 | AO45: 0 | AP45: 0 | AQ45: 0 | AR45: 0 | AS45: 0 | AT45: 0 | AU45: 0 | AV45: 0 | AW45: 0 | AX45: 0 | AY45: 0 | AZ45: 0 | BA45: 0 | BB45: 0 | BC45: 6.5 | BD45: 0 | BE45: 0 | BF45: 0 | BG45: 6.5 | BH45: 6.5 | BI45: 0 | BJ45: 0 | BK45: 0 | BL45: 6.5 | BM45: 0 | BN45: 0 | BO45: 0 | BP45: 0 | BQ45: 0 | BR45: 0 | BS45: 0 | BT45: 0 | BU45: 0 | BV45: 0 | BW45: 0 | BX45: 0 | BY45: 0 | BZ45: 0 | CA45: 0 | CB45: 0 | CC45: 0 | CD45: 0 | CE45: 0 | CF45: 0 | CG45: 0 | CH45: 0 | CI45: 0 | CJ45: 0 | CK45: 0 | CL45: 0 | CM45: 0 | CN45: 0 | CO45: 0 | CP45: 0 | CQ45: 0 | CR45: 0 | CS45: 0 | CT45: 0 | CU45: 0 | CV45: 0 | CW45: 0 | CX45: 0 | CY45: 0 | CZ45: 0 | DA45: 0 | DB45: 0 | DC45: 0 | DD45: 0 | DE45: 0 | DF45: 13 | DG45: 0 | DH45: 0 | DI45: 0 | DJ45: 13 | DK45: 2834 | DL45: 0 | DM45: 0 | DN45: 0 | DO45: 2834 | DP45: 2834 | DQ45: YES | DR45: 0 | DS45: 0 | DT45: 0 | DU45: 2
B46: 28 | D46: Customer Service Rep | E46: Vendor No. 38 | F46: 96307 | G46: 40061737 | H46: 2017-09-10 | I46: 2017-09-17 | J46: =IF(AND(H46>='A - Contractor Summary'!$C$37,I46<='A - Contractor Summary'!$C$43),"Yes","No") -> Yes | K46: =VLOOKUP($D46,'C.1 - Rate Sheets'!B:F,2,FALSE) -> 218 | L46: =VLOOKUP($D46,'C.1 - Rate Sheets'!B:F,3,FALSE) -> 0 | M46: =VLOOKUP($D46,'C.1 - Rate Sheets'!B:F,4,FALSE) -> 0 | N46: =VLOOKUP($D46,'C.1 - Rate Sheets'!B:F,5,FALSE) -> 0 | O46: 0 | P46: 0 | Q46: 0 | R46: 0 | S46: 0 | T46: 0 | U46: 0 | V46: 0 | W46: 0 | X46: 0 | Y46: 0 | Z46: 0 | AA46: 0 | AB46: 0 | AC46: 0 | AD46: 0 | AE46: 0 | AF46: 0 | AG46: 0 | AH46: 0 | AI46: 0 | AJ46: 0 | AK46: 0 | AL46: 0 | AM46: 0 | AN46: 0 | AO46: 0 | AP46: 0 | AQ46: 0 | AR46: 0 | AS46: 16 | AT46: 0 | AU46: 0 | AV46: 0 | AW46: 16 | AX46: 7.5 | AY46: 0 | AZ46: 0 | BA46: 0 | BB46: 7.5 | BC46: 7.5 | BD46: 0 | BE46: 0 | BF46: 0 | BG46: 7.5 | BH46: 4 | BI46: 0 | BJ46: 0 | BK46: 0 | BL46: 4 | BM46: 0 | BN46: 0 | BO46: 0 | BP46: 0 | BQ46: 0 | BR46: 0 | BS46: 0 | BT46: 0 | BU46: 0 | BV46: 0 | BW46: 0 | BX46: 0 | BY46: 0 | BZ46: 0 | CA46: 0 | CB46: 0 | CC46: 0 | CD46: 0 | CE46: 0 | CF46: 0 | CG46: 0 | CH46: 0 | CI46: 0 | CJ46: 0 | CK46: 0 | CL46: 0 | CM46: 0 | CN46: 0 | CO46: 0 | CP46: 0 | CQ46: 0 | CR46: 0 | CS46: 0 | CT46: 0 | CU46: 0 | CV46: 0 | CW46: 0 | CX46: 0 | CY46: 0 | CZ46: 0 | DA46: 0 | DB46: 0 | DC46: 0 | DD46: 0 | DE46: 0 | DF46: 35 | DG46: 0 | DH46: 0 | DI46: 0 | DJ46: 35 | DK46: 7630 | DL46: 0 | DM46: 0 | DN46: 0 | DO46: 7630 | DP46: 7630 | DQ46: YES | DR46: 0 | DS46: 0 | DT46: 0 | DU46: 2
B47: 29 | D47: Customer Service Rep | E47: Vendor No. 38 | F47: 13123 | G47: 40061737 | H47: 2017-09-10 | I47: 2017-09-17 | J47: =IF(AND(H47>='A - Contractor Summary'!$C$37,I47<='A - Contractor Summary'!$C$43),"Yes","No") -> Yes | K47: =VLOOKUP($D47,'C.1 - Rate Sheets'!B:F,2,FALSE) -> 218 | L47: =VLOOKUP($D47,'C.1 - Rate Sheets'!B:F,3,FALSE) -> 0 | M47: =VLOOKUP($D47,'C.1 - Rate Sheets'!B:F,4,FALSE) -> 0 | N47: =VLOOKUP($D47,'C.1 - Rate Sheets'!B:F,5,FALSE) -> 0 | O47: 0 | P47: 0 | Q47: 0 | R47: 0 | S47: 0 | T47: 0 | U47: 0 | V47: 0 | W47: 0 | X47: 0 | Y47: 0 | Z47: 0 | AA47: 0 | AB47: 0 | AC47: 0 | AD47: 0 | AE47: 0 | AF47: 0 | AG47: 0 | AH47: 0 | AI47: 0 | AJ47: 0 | AK47: 0 | AL47: 0 | AM47: 0 | AN47: 0 | AO47: 0 | AP47: 0 | AQ47: 0 | AR47: 0 | AS47: 16 | AT47: 0 | AU47: 0 | AV47: 0 | AW47: 16 | AX47: 7.5 | AY47: 0 | AZ47: 0 | BA47: 0 | BB47: 7.5 | BC47: 7.5 | BD47: 0 | BE47: 0 | BF47: 0 | BG47: 7.5 | BH47: 7.5 | BI47: 0 | BJ47: 0 | BK47: 0 | BL47: 7.5 | BM47: 0 | BN47: 0 | BO47: 0 | BP47: 0 | BQ47: 0 | BR47: 0 | BS47: 0 | BT47: 0 | BU47: 0 | BV47: 0 | BW47: 0 | BX47: 0 | BY47: 0 | BZ47: 0 | CA47: 0 | CB47: 0 | CC47: 0 | CD47: 0 | CE47: 0 | CF47: 0 | CG47: 0 | CH47: 0 | CI47: 0 | CJ47: 0 | CK47: 0 | CL47: 0 | CM47: 0 | CN47: 0 | CO47: 0 | CP47: 0 | CQ47: 0 | CR47: 0 | CS47: 0 | CT47: 0 | CU47: 0 | CV47: 0 | CW47: 0 | CX47: 0 | CY47: 0 | CZ47: 0 | DA47: 0 | DB47: 0 | DC47: 0 | DD47: 0 | DE47: 0 | DF47: 38.5 | DG47: 0 | DH47: 0 | DI47: 0 | DJ47: 38.5 | DK47: 8393 | DL47: 0 | DM47: 0 | DN47: 0 | DO47: 8393 | DP47: 8393 | DQ47: YES | DR47: 0 | DS47: 0 | DT47: 0 | DU47: 2
B48: 30 | D48: Customer Service Rep BL | E48: Vendor No. 38 | F48: 28793 | G48: 40061737 | H48: 2017-09-10 | I48: 2017-09-17 | J48: =IF(AND(H48>='A - Contractor Summary'!$C$37,I48<='A - Contractor Summary'!$C$43),"Yes","No") -> Yes | K48: =VLOOKUP($D48,'C.1 - Rate Sheets'!B:F,2,FALSE) -> 218 | L48: =VLOOKUP($D48,'C.1 - Rate Sheets'!B:F,3,FALSE) -> 0 | M48: =VLOOKUP($D48,'C.1 - Rate Sheets'!B:F,4,FALSE) -> 0 | N48: =VLOOKUP($D48,'C.1 - Rate Sheets'!B:F,5,FALSE) -> 0 | O48: 0 | P48: 0 | Q48: 0 | R48: 0 | S48: 0 | T48: 0 | U48: 0 | V48: 0 | W48: 0 | X48: 0 | Y48: 0 | Z48: 0 | AA48: 0 | AB48: 0 | AC48: 0 | AD48: 0 | AE48: 0 | AF48: 0 | AG48: 0 | AH48: 0 | AI48: 0 | AJ48: 0 | AK48: 0 | AL48: 0 | AM48: 0 | AN48: 0 | AO48: 0 | AP48: 0 | AQ48: 0 | AR48: 0 | AS48: 16 | AT48: 0 | AU48: 0 | AV48: 0 | AW48: 16 | AX48: 0 | AY48: 0 | AZ48: 0 | BA48: 0 | BB48: 0 | BC48: 6 | BD48: 0 | BE48: 0 | BF48: 0 | BG48: 6 | BH48: 0 | BI48: 0 | BJ48: 0 | BK48: 0 | BL48: 0 | BM48: 0 | BN48: 0 | BO48: 0 | BP48: 0 | BQ48: 0 | BR48: 0 | BS48: 0 | BT48: 0 | BU48: 0 | BV48: 0 | BW48: 0 | BX48: 0 | BY48: 0 | BZ48: 0 | CA48: 0 | CB48: 0 | CC48: 0 | CD48: 0 | CE48: 0 | CF48: 0 | CG48: 0 | CH48: 0 | CI48: 0 | CJ48: 0 | CK48: 0 | CL48: 0 | CM48: 0 | CN48: 0 | CO48: 0 | CP48: 0 | CQ48: 0 | CR48: 0 | CS48: 0 | CT48: 0 | CU48: 0 | CV48: 0 | CW48: 0 | CX48: 0 | CY48: 0 | CZ48: 0 | DA48: 0 | DB48: 0 | DC48: 0 | DD48: 0 | DE48: 0 | DF48: 22 | DG48: 0 | DH48: 0 | DI48: 0 | DJ48: 22 | DK48: 4796 | DL48: 0 | DM48: 0 | DN48: 0 | DO48: 4796 | DP48: 4796 | DQ48: YES | DR48: 0 | DS48: 0 | DT48: 0 | DU48: 2
B49: 31 | D49: Customer Service Rep | E49: Vendor No. 38 | F49: 96302 | G49: 40061737 | H49: 2017-09-10 | I49: 2017-09-17 | J49: =IF(AND(H49>='A - Contractor Summary'!$C$37,I49<='A - Contractor Summary'!$C$43),"Yes","No") -> Yes | K49: =VLOOKUP($D49,'C.1 - Rate Sheets'!B:F,2,FALSE) -> 218 | L49: =VLOOKUP($D49,'C.1 - Rate Sheets'!B:F,3,FALSE) -> 0 | M49: =VLOOKUP($D49,'C.1 - Rate Sheets'!B:F,4,FALSE) -> 0 | N49: =VLOOKUP($D49,'C.1 - Rate Sheets'!B:F,5,FALSE) -> 0 | O49: 0 | P49: 0 | Q49: 0 | R49: 0 | S49: 0 | T49: 0 | U49: 0 | V49: 0 | W49: 0 | X49: 0 | Y49: 0 | Z49: 0 | AA49: 0 | AB49: 0 | AC49: 0 | AD49: 0 | AE49: 0 | AF49: 0 | AG49: 0 | AH49: 0 | AI49: 0 | AJ49: 0 | AK49: 0 | AL49: 0 | AM49: 0 | AN49: 0 | AO49: 0 | AP49: 0 | AQ49: 0 | AR49: 0 | AS49: 16 | AT49: 0 | AU49: 0 | AV49: 0 | AW49: 16 | AX49: 7.5 | AY49: 0 | AZ49: 0 | BA49: 0 | BB49: 7.5 | BC49: 0 | BD49: 0 | BE49: 0 | BF49: 0 | BG49: 0 | BH49: 0 | BI49: 0 | BJ49: 0 | BK49: 0 | BL49: 0 | BM49: 0 | BN49: 0 | BO49: 0 | BP49: 0 | BQ49: 0 | BR49: 0 | BS49: 0 | BT49: 0 | BU49: 0 | BV49: 0 | BW49: 0 | BX49: 0 | BY49: 0 | BZ49: 0 | CA49: 0 | CB49: 0 | CC49: 0 | CD49: 0 | CE49: 0 | CF49: 0 | CG49: 0 | CH49: 0 | CI49: 0 | CJ49: 0 | CK49: 0 | CL49: 0 | CM49: 0 | CN49: 0 | CO49: 0 | CP49: 0 | CQ49: 0 | CR49: 0 | CS49: 0 | CT49: 0 | CU49: 0 | CV49: 0 | CW49: 0 | CX49: 0 | CY49: 0 | CZ49: 0 | DA49: 0 | DB49: 0 | DC49: 0 | DD49: 0 | DE49: 0 | DF49: 23.5 | DG49: 0 | DH49: 0 | DI49: 0 | DJ49: 23.5 | DK49: 5123 | DL49: 0 | DM49: 0 | DN49: 0 | DO49: 5123 | DP49: 5123 | DQ49: YES | DR49: 0 | DS49: 0 | DT49: 0 | DU49: 2
B50: 32 | D50: Customer Service Rep | E50: Vendor No. 38 | F50: 96526 | G50: 40061737 | H50: 2017-09-10 | I50: 2017-09-17 | J50: =IF(AND(H50>='A - Contractor Summary'!$C$37,I50<='A - Contractor Summary'!$C$43),"Yes","No") -> Yes | K50: =VLOOKUP($D50,'C.1 - Rate Sheets'!B:F,2,FALSE) -> 218 | L50: =VLOOKUP($D50,'C.1 - Rate Sheets'!B:F,3,FALSE) -> 0 | M50: =VLOOKUP($D50,'C.1 - Rate Sheets'!B:F,4,FALSE) -> 0 | N50: =VLOOKUP($D50,'C.1 - Rate Sheets'!B:F,5,FALSE) -> 0 | O50: 0 | P50: 0 | Q50: 0 | R50: 0 | S50: 0 | T50: 0 | U50: 0 | V50: 0 | W50: 0 | X50: 0 | Y50: 0 | Z50: 0 | AA50: 0 | AB50: 0 | AC50: 0 | AD50: 0 | AE50: 0 | AF50: 0 | AG50: 0 | AH50: 0 | AI50: 0 | AJ50: 0 | AK50: 0 | AL50: 0 | AM50: 0 | AN50: 0 | AO50: 0 | AP50: 0 | AQ50: 0 | AR50: 0 | AS50: 0 | AT50: 0 | AU50: 0 | AV50: 0 | AW50: 0 | AX50: 0 | AY50: 0 | AZ50: 0 | BA50: 0 | BB50: 0 | BC50: 0 | BD50: 0 | BE50: 0 | BF50: 0 | BG50: 0 | BH50: 7.5 | BI50: 0 | BJ50: 0 | BK50: 0 | BL50: 7.5 | BM50: 0 | BN50: 0 | BO50: 0 | BP50: 0 | BQ50: 0 | BR50: 0 | BS50: 0 | BT50: 0 | BU50: 0 | BV50: 0 | BW50: 0 | BX50: 0 | BY50: 0 | BZ50: 0 | CA50: 0 | CB50: 0 | CC50: 0 | CD50: 0 | CE50: 0 | CF50: 0 | CG50: 0 | CH50: 0 | CI50: 0 | CJ50: 0 | CK50: 0 | CL50: 0 | CM50: 0 | CN50: 0 | CO50: 0 | CP50: 0 | CQ50: 0 | CR50: 0 | CS50: 0 | CT50: 0 | CU50: 0 | CV50: 0 | CW50: 0 | CX50: 0 | CY50: 0 | CZ50: 0 | DA50: 0 | DB50: 0 | DC50: 0 | DD50: 0 | DE50: 0 | DF50: 7.5 | DG50: 0 | DH50: 0 | DI50: 0 | DJ50: 7.5 | DK50: 1635 | DL50: 0 | DM50: 0 | DN50: 0 | DO50: 1635 | DP50: 1635 | DQ50: YES | DR50: 0 | DS50: 0 | DT50: 0
B51: 33 | D51: Customer Service Rep BL | E51: Vendor No. 38 | F51: 26331 | G51: 40061737 | H51: 2017-09-10 | I51: 2017-09-17 | J51: =IF(AND(H51>='A - Contractor Summary'!$C$37,I51<='A - Contractor Summary'!$C$43),"Yes","No") -> Yes | K51: =VLOOKUP($D51,'C.1 - Rate Sheets'!B:F,2,FALSE) -> 218 | L51: =VLOOKUP($D51,'C.1 - Rate Sheets'!B:F,3,FALSE) -> 0 | M51: =VLOOKUP($D51,'C.1 - Rate Sheets'!B:F,4,FALSE) -> 0 | N51: =VLOOKUP($D51,'C.1 - Rate Sheets'!B:F,5,FALSE) -> 0 | O51: 0 | P51: 0 | Q51: 0 | R51: 0 | S51: =SUM(O51:R51) -> 0 | T51: 0 | U51: 0 | V51: 0 | W51: 0 | X51: 0 | Y51: 0 | Z51: 0 | AA51: 0 | AB51: 0 | AC51: 0 | AD51: 0 | AE51: 0 | AF51: 0 | AG51: 0 | AH51: 0 | AI51: 0 | AJ51: 0 | AK51: 0 | AL51: 0 | AM51: 0 | AN51: 0 | AO51: 0 | AP51: 0 | AQ51: 0 | AR51: 0 | AS51: 16 | AT51: 0 | AU51: 0 | AV51: 0 | AW51: 16 | AY51: 0 | AZ51: 0 | BA51: 0 | BB51: 0 | BD51: 0 | BE51: 0 | BF51: 0 | BG51: 0 | BI51: 0 | BJ51: 0 | BK51: 0 | BL51: 0 | BN51: 0 | BO51: 0 | BP51: 0 | BQ51: 0 | BS51: 0 | BT51: 0 | BU51: 0 | BV51: 0 | BX51: 0 | BY51: 0 | BZ51: 0 | CA51: 0 | CC51: 0 | CD51: 0 | CE51: 0 | CF51: 0 | CG51: 0 | CH51: 0 | CI51: 0 | CJ51: 0 | CK51: 0 | CL51: 0 | CM51: 0 | CN51: 0 | CO51: 0 | CP51: 0 | CQ51: 0 | CR51: 0 | CS51: 0 | CT51: 0 | CU51: 0 | CV51: 0 | CW51: 0 | CX51: 0 | CY51: 0 | CZ51: 0 | DA51: 0 | DB51: 0 | DC51: 0 | DD51: 0 | DE51: 0 | DF51: =SUM(O51,T51,Y51,AD51,AI51,AN51,AS51,AX51,BC51,BH51,BM51,BR51,BW51,CB51,CG51,CL51,CQ51,CV51,DA51) -> 16 | DG51: =SUM(P51,U51,Z51,AE51,AJ51,AO51,AT51,AY51,BD51,BI51,BN51,BS51,BX51,CC51,CH51,CM51,CR51,CW51,DB51) -> 0 | DH51: =SUM(Q51,V51,AA51,AF51,AK51,AP51,AU51,AZ51,BE51,BJ51,BO51,BT51,BY51,CD51,CI51,CN51,CS51,CX51,DC51) -> 0 | DI51: =SUM(R51,W51,AB51,AG51,AL51,AQ51,AV51,BA51,BF51,BK51,BP51,BU51,BZ51,CE51,CJ51,CO51,CT51,CY51,DD51) -> 0 | DJ51: 16 | DK51: =DF51*K51 -> 3488 | DL51: =DG51*L51 -> 0 | DM51: =DH51*M51 -> 0 | DN51: =DI51*N51 -> 0 | DO51: 3488 | DP51: =DO51-DR51 -> 3488 | DQ51: YES | DR51: 0 | DS51: 0 | DT51: 0
B52: 34 | D52: Manager | E52: Vendor No. 38 | F52: 9606 | G52: 40061737 | H52: 2017-09-10 | I52: 2017-09-17 | J52: =IF(AND(H52>='A - Contractor Summary'!$C$37,I52<='A - Contractor Summary'!$C$43),"Yes","No") -> Yes | K52: =VLOOKUP($D52,'C.1 - Rate Sheets'!B:F,2,FALSE) -> 106.07 | L52: =VLOOKUP($D52,'C.1 - Rate Sheets'!B:F,3,FALSE) -> 0 | M52: =VLOOKUP($D52,'C.1 - Rate Sheets'!B:F,4,FALSE) -> 0 | N52: =VLOOKUP($D52,'C.1 - Rate Sheets'!B:F,5,FALSE) -> 0 | O52: 0 | P52: 0 | Q52: 0 | R52: 0 | S52: 0 | T52: 0 | U52: 0 | V52: 0 | W52: 0 | X52: 0 | Y52: 0 | Z52: 0 | AA52: 0 | AB52: 0 | AC52: 0 | AD52: 0 | AE52: 0 | AF52: 0 | AG52: 0 | AH52: 0 | AI52: 0 | AJ52: 0 | AK52: 0 | AL52: 0 | AM52: 0 | AN52: 0 | AO52: 0 | AP52: 0 | AQ52: 0 | AR52: 0 | AS52: 25 | AT52: 0 | AU52: 0 | AV52: 0 | AW52: 25 | AX52: 25 | AY52: 0 | AZ52: 0 | BA52: 0 | BB52: 25 | BC52: 28 | BD52: 0 | BE52: 0 | BF52: 0 | BG52: 28 | BH52: 26 | BI52: 0 | BJ52: 0 | BK52: 0 | BL52: 26 | BM52: 26 | BN52: 0 | BO52: 0 | BP52: 0 | BQ52: 26 | BR52: 26 | BS52: 0 | BT52: 0 | BU52: 0 | BV52: 26 | BW52: 26 | BX52: 0 | BY52: 0 | BZ52: 0 | CA52: 26 | CB52: 15 | CC52: 0 | CD52: 0 | CE52: 0 | CF52: 15 | CG52: 0 | CH52: 0 | CI52: 0 | CJ52: 0 | CK52: 0 | CL52: 0 | CM52: 0 | CN52: 0 | CO52: 0 | CP52: 0 | CQ52: 0 | CR52: 0 | CS52: 0 | CT52: 0 | CU52: 0 | CV52: 0 | CW52: 0 | CX52: 0 | CY52: 0 | CZ52: 0 | DA52: 0 | DB52: 0 | DC52: 0 | DD52: 0 | DE52: 0 | DF52: 197 | DG52: 0 | DH52: 0 | DI52: 0 | DJ52: 197 | DK52: 20895.79 | DL52: 0 | DM52: 0 | DN52: 0 | DO52: 20895.79 | DP52: 14107.31 | DQ52: Needs Reviewed | DR52: =DO52-(((BC52-8)*K52)+((BH52-8)*K52)+((BM52-8)*K52)+((BR52-8)*K52)+((BW52-8)*K52)+((CB52-8)*K52)+((AS52-8)*K52)+((AX52-8)*K52)) -> 6788.48 | DS52: 6788.48 | DT52: 0 | DU52: 1
B53: 35 | D53: Sr Specialist | E53: Vendor No. 38 | F53: 23933 | G53: 40061737 | H53: 2017-09-10 | I53: 2017-09-17 | J53: =IF(AND(H53>='A - Contractor Summary'!$C$37,I53<='A - Contractor Summary'!$C$43),"Yes","No") -> Yes | K53: =VLOOKUP($D53,'C.1 - Rate Sheets'!B:F,2,FALSE) -> 79.88 | L53: =VLOOKUP($D53,'C.1 - Rate Sheets'!B:F,3,FALSE) -> 0 | M53: =VLOOKUP($D53,'C.1 - Rate Sheets'!B:F,4,FALSE) -> 0 | N53: =VLOOKUP($D53,'C.1 - Rate Sheets'!B:F,5,FALSE) -> 0 | O53: 0 | P53: 0 | Q53: 0 | R53: 0 | S53: 0 | T53: 0 | U53: 0 | V53: 0 | W53: 0 | X53: 0 | Y53: 0 | Z53: 0 | AA53: 0 | AB53: 0 | AC53: 0 | AD53: 0 | AE53: 0 | AF53: 0 | AG53: 0 | AH53: 0 | AI53: 0 | AJ53: 0 | AK53: 0 | AL53: 0 | AM53: 0 | AN53: 0 | AO53: 0 | AP53: 0 | AQ53: 0 | AR53: 0 | AS53: 26 | AT53: 0 | AU53: 0 | AV53: 0 | AW53: 26 | AX53: 26 | AY53: 0 | AZ53: 0 | BA53: 0 | BB53: 26 | BC53: 29 | BD53: 0 | BE53: 0 | BF53: 0 | BG53: 29 | BH53: 26 | BI53: 0 | BJ53: 0 | BK53: 0 | BL53: 26 | BM53: 26 | BN53: 0 | BO53: 0 | BP53: 0 | BQ53: 26 | BR53: 26 | BS53: 0 | BT53: 0 | BU53: 0 | BV53: 26 | BW53: 0 | BX53: 0 | BY53: 0 | BZ53: 0 | CA53: 0 | CB53: 15 | CC53: 0 | CD53: 0 | CE53: 0 | CF53: 15 | CG53: 0 | CH53: 0 | CI53: 0 | CJ53: 0 | CK53: 0 | CL53: 0 | CM53: 0 | CN53: 0 | CO53: 0 | CP53: 0 | CQ53: 0 | CR53: 0 | CS53: 0 | CT53: 0 | CU53: 0 | CV53: 0 | CW53: 0 | CX53: 0 | CY53: 0 | CZ53: 0 | DA53: 0 | DB53: 0 | DC53: 0 | DD53: 0 | DE53: 0 | DF53: 174 | DG53: 0 | DH53: 0 | DI53: 0 | DJ53: 174 | DK53: 13899.12 | DL53: 0 | DM53: 0 | DN53: 0 | DO53: 13899.12 | DP53: 9425.84 | DQ53: Needs Reviewed | DR53: =DO53-(((BC53-8)*K53)+((BH53-8)*K53)+((BM53-8)*K53)+((BR53-8)*K53)+((CB53-8)*K53)+((AS53-8)*K53)+((AX53-8)*K53)) -> 4473.28 | DS53: 4473.28 | DT53: 0 | DU53: 1
B54: 36 | D54: Supervisor | E54: Vendor No. 38 | F54: 12319 | G54: 40061737 | H54: 2017-09-10 | I54: 2017-09-17 | J54: =IF(AND(H54>='A - Contractor Summary'!$C$37,I54<='A - Contractor Summary'!$C$43),"Yes","No") -> Yes | K54: =VLOOKUP($D54,'C.1 - Rate Sheets'!B:F,2,FALSE) -> 101.51 | L54: =VLOOKUP($D54,'C.1 - Rate Sheets'!B:F,3,FALSE) -> 0 | M54: =VLOOKUP($D54,'C.1 - Rate Sheets'!B:F,4,FALSE) -> 0 | N54: =VLOOKUP($D54,'C.1 - Rate Sheets'!B:F,5,FALSE) -> 0 | O54: 0 | P54: 0 | Q54: 0 | R54: 0 | S54: 0 | T54: 0 | U54: 0 | V54: 0 | W54: 0 | X54: 0 | Y54: 0 | Z54: 0 | AA54: 0 | AB54: 0 | AC54: 0 | AD54: 0 | AE54: 0 | AF54: 0 | AG54: 0 | AH54: 0 | AI54: 0 | AJ54: 0 | AK54: 0 | AL54: 0 | AM54: 0 | AN54: 0 | AO54: 0 | AP54: 0 | AQ54: 0 | AR54: 0 | AS54: 25 | AT54: 0 | AU54: 0 | AV54: 0 | AW54: 25 | AX54: 17 | AY54: 0 | AZ54: 0 | BA54: 0 | BB54: 17 | BC54: 20 | BD54: 0 | BE54: 0 | BF54: 0 | BG54: 20 | BH54: 18 | BI54: 0 | BJ54: 0 | BK54: 0 | BL54: 18 | BM54: 18 | BN54: 0 | BO54: 0 | BP54: 0 | BQ54: 18 | BR54: 18 | BS54: 0 | BT54: 0 | BU54: 0 | BV54: 18 | BW54: 26 | BX54: 0 | BY54: 0 | BZ54: 0 | CA54: 26 | CB54: 15 | CC54: 0 | CD54: 0 | CE54: 0 | CF54: 15 | CG54: 0 | CH54: 0 | CI54: 0 | CJ54: 0 | CK54: 0 | CL54: 0 | CM54: 0 | CN54: 0 | CO54: 0 | CP54: 0 | CQ54: 0 | CR54: 0 | CS54: 0 | CT54: 0 | CU54: 0 | CV54: 0 | CW54: 0 | CX54: 0 | CY54: 0 | CZ54: 0 | DA54: 0 | DB54: 0 | DC54: 0 | DD54: 0 | DE54: 0 | DF54: 157 | DG54: 0 | DH54: 0 | DI54: 0 | DJ54: 157 | DK54: 15937.07 | DL54: 0 | DM54: 0 | DN54: 0 | DO54: 15937.07 | DP54: 13500.83 | DQ54: Needs Reviewed | DR54: =K55*(24) -> 2436.24 | DS54: 2436.24 | DT54: 0 | DU54: 1
B55: 37 | D55: Supervisor | E55: Vendor No. 38 | F55: 12487 | G55: 40061737 | H55: 2017-09-10 | I55: 2017-09-17 | J55: =IF(AND(H55>='A - Contractor Summary'!$C$37,I55<='A - Contractor Summary'!$C$43),"Yes","No") -> Yes | K55: =VLOOKUP($D55,'C.1 - Rate Sheets'!B:F,2,FALSE) -> 101.51 | L55: =VLOOKUP($D55,'C.1 - Rate Sheets'!B:F,3,FALSE) -> 0 | M55: =VLOOKUP($D55,'C.1 - Rate Sheets'!B:F,4,FALSE) -> 0 | N55: =VLOOKUP($D55,'C.1 - Rate Sheets'!B:F,5,FALSE) -> 0 | O55: 0 | P55: 0 | Q55: 0 | R55: 0 | S55: 0 | T55: 0 | U55: 0 | V55: 0 | W55: 0 | X55: 0 | Y55: 0 | Z55: 0 | AA55: 0 | AB55: 0 | AC55: 0 | AD55: 0 | AE55: 0 | AF55: 0 | AG55: 0 | AH55: 0 | AI55: 0 | AJ55: 0 | AK55: 0 | AL55: 0 | AM55: 0 | AN55: 0 | AO55: 0 | AP55: 0 | AQ55: 0 | AR55: 0 | AS55: 25 | AT55: 0 | AU55: 0 | AV55: 0 | AW55: 25 | AX55: 17 | AY55: 0 | AZ55: 0 | BA55: 0 | BB55: 17 | BC55: 20 | BD55: 0 | BE55: 0 | BF55: 0 | BG55: 20 | BH55: 18 | BI55: 0 | BJ55: 0 | BK55: 0 | BL55: 18 | BM55: 18 | BN55: 0 | BO55: 0 | BP55: 0 | BQ55: 18 | BR55: 18 | BS55: 0 | BT55: 0 | BU55: 0 | BV55: 18 | BW55: 26 | BX55: 0 | BY55: 0 | BZ55: 0 | CA55: 26 | CB55: 15 | CC55: 0 | CD55: 0 | CE55: 0 | CF55: 15 | CG55: 0 | CH55: 0 | CI55: 0 | CJ55: 0 | CK55: 0 | CL55: 0 | CM55: 0 | CN55: 0 | CO55: 0 | CP55: 0 | CQ55: 0 | CR55: 0 | CS55: 0 | CT55: 0 | CU55: 0 | CV55: 0 | CW55: 0 | CX55: 0 | CY55: 0 | CZ55: 0 | DA55: 0 | DB55: 0 | DC55: 0 | DD55: 0 | DE55: 0 | DF55: 157 | DG55: 0 | DH55: 0 | DI55: 0 | DJ55: 157 | DK55: 15937.07 | DL55: 0 | DM55: 0 | DN55: 0 | DO55: 15937.07 | DP55: 13530.35 | DQ55: Needs Reviewed | DR55: =K56*(24) -> 2406.72 | DS55: 2406.72 | DT55: 0 | DU55: 1
B56: 38 | D56: Engineer | E56: Vendor No. 38 | F56: 12360 | G56: 40061737 | H56: 2017-09-10 | I56: 2017-09-17 | J56: =IF(AND(H56>='A - Contractor Summary'!$C$37,I56<='A - Contractor Summary'!$C$43),"Yes","No") -> Yes | K56: =VLOOKUP($D56,'C.1 - Rate Sheets'!B:F,2,FALSE) -> 100.28 | L56: =VLOOKUP($D56,'C.1 - Rate Sheets'!B:F,3,FALSE) -> 0 | M56: =VLOOKUP($D56,'C.1 - Rate Sheets'!B:F,4,FALSE) -> 0 | N56: =VLOOKUP($D56,'C.1 - Rate Sheets'!B:F,5,FALSE) -> 0 | O56: 0 | P56: 0 | Q56: 0 | R56: 0 | S56: 0 | T56: 0 | U56: 0 | V56: 0 | W56: 0 | X56: 0 | Y56: 0 | Z56: 0 | AA56: 0 | AB56: 0 | AC56: 0 | AD56: 0 | AE56: 0 | AF56: 0 | AG56: 0 | AH56: 0 | AI56: 0 | AJ56: 0 | AK56: 0 | AL56: 0 | AM56: 0 | AN56: 0 | AO56: 0 | AP56: 0 | AQ56: 0 | AR56: 0 | AS56: 26 | AT56: 0 | AU56: 0 | AV56: 0 | AW56: 26 | AX56: 26 | AY56: 0 | AZ56: 0 | BA56: 0 | BB56: 26 | BC56: 30 | BD56: 0 | BE56: 0 | BF56: 0 | BG56: 30 | BH56: 26 | BI56: 0 | BJ56: 0 | BK56: 0 | BL56: 26 | BM56: 26 | BN56: 0 | BO56: 0 | BP56: 0 | BQ56: 26 | BR56: 26 | BS56: 0 | BT56: 0 | BU56: 0 | BV56: 26 | BW56: 26 | BX56: 0 | BY56: 0 | BZ56: 0 | CA56: 26 | CB56: 26 | CC56: 0 | CD56: 0 | CE56: 0 | CF56: 26 | CG56: 0 | CH56: 0 | CI56: 0 | CJ56: 0 | CK56: 0 | CL56: 0 | CM56: 0 | CN56: 0 | CO56: 0 | CP56: 0 | CQ56: 0 | CR56: 0 | CS56: 0 | CT56: 0 | CU56: 0 | CV56: 0 | CW56: 0 | CX56: 0 | CY56: 0 | CZ56: 0 | DA56: 0 | DB56: 0 | DC56: 0 | DD56: 0 | DE56: 0 | DF56: 212 | DG56: 0 | DH56: 0 | DI56: 0 | DJ56: 212 | DK56: 21259.36 | DL56: 0 | DM56: 0 | DN56: 0 | DO56: 21259.36 | DP56: 14841.44 | DQ56: Needs Reviewed | DR56: =DO56-(((BC56-8)*K56)+((BH56-8)*K56)+((BM56-8)*K56)+((BR56-8)*K56)+((BW56-8)*K56)+((CB56-8)*K56)+((AS56-8)*K56)+((AX56-8)*K56)) -> 6417.92 | DS56: 6417.92 | DT56: 0 | DU56: 1
B57: 39 | D57: Sr Specialist 1 | E57: Vendor No. 38 | F57: 18652 | G57: 40061737 | H57: 2017-09-10 | I57: 2017-09-17 | J57: =IF(AND(H57>='A - Contractor Summary'!$C$37,I57<='A - Contractor Summary'!$C$43),"Yes","No") -> Yes | K57: =VLOOKUP($D57,'C.1 - Rate Sheets'!B:F,2,FALSE) -> 75.99 | L57: =VLOOKUP($D57,'C.1 - Rate Sheets'!B:F,3,FALSE) -> 0 | M57: =VLOOKUP($D57,'C.1 - Rate Sheets'!B:F,4,FALSE) -> 0 | N57: =VLOOKUP($D57,'C.1 - Rate Sheets'!B:F,5,FALSE) -> 0 | O57: 0 | P57: 0 | Q57: 0 | R57: 0 | S57: 0 | T57: 0 | U57: 0 | V57: 0 | W57: 0 | X57: 0 | Y57: 0 | Z57: 0 | AA57: 0 | AB57: 0 | AC57: 0 | AD57: 0 | AE57: 0 | AF57: 0 | AG57: 0 | AH57: 0 | AI57: 0 | AJ57: 0 | AK57: 0 | AL57: 0 | AM57: 0 | AN57: 0 | AO57: 0 | AP57: 0 | AQ57: 0 | AR57: 0 | AS57: 0 | AT57: 0 | AU57: 0 | AV57: 0 | AW57: 0 | AX57: 6 | AY57: 0 | AZ57: 0 | BA57: 0 | BB57: 6 | BC57: 2 | BD57: 0 | BE57: 0 | BF57: 0 | BG57: 2 | BH57: 0 | BI57: 0 | BJ57: 0 | BK57: 0 | BL57: 0 | BM57: 0 | BN57: 0 | BO57: 0 | BP57: 0 | BQ57: 0 | BR57: 0 | BS57: 0 | BT57: 0 | BU57: 0 | BV57: 0 | BW57: 0 | BX57: 0 | BY57: 0 | BZ57: 0 | CA57: 0 | CB57: 0 | CC57: 0 | CD57: 0 | CE57: 0 | CF57: 0 | CG57: 0 | CH57: 0 | CI57: 0 | CJ57: 0 | CK57: 0 | CL57: 0 | CM57: 0 | CN57: 0 | CO57: 0 | CP57: 0 | CQ57: 0 | CR57: 0 | CS57: 0 | CT57: 0 | CU57: 0 | CV57: 0 | CW57: 0 | CX57: 0 | CY57: 0 | CZ57: 0 | DA57: 0 | DB57: 0 | DC57: 0 | DD57: 0 | DE57: 0 | DF57: 8 | DG57: 0 | DH57: 0 | DI57: 0 | DJ57: 8 | DK57: 607.92 | DL57: 0 | DM57: 0 | DN57: 0 | DO57: 607.92 | DP57: 607.92 | DQ57: YES | DR57: 0 | DS57: 0 | DT57: 0
B58: 40 | D58: Specialist | E58: Vendor No. 38 | F58: 96872 | G58: 40061737 | H58: 2017-09-10 | I58: 2017-09-17 | J58: =IF(AND(H58>='A - Contractor Summary'!$C$37,I58<='A - Contractor Summary'!$C$43),"Yes","No") -> Yes | K58: =VLOOKUP($D58,'C.1 - Rate Sheets'!B:F,2,FALSE) -> 64.37 | L58: =VLOOKUP($D58,'C.1 - Rate Sheets'!B:F,3,FALSE) -> 0 | M58: =VLOOKUP($D58,'C.1 - Rate Sheets'!B:F,4,FALSE) -> 0 | N58: =VLOOKUP($D58,'C.1 - Rate Sheets'!B:F,5,FALSE) -> 0 | O58: 0 | P58: 0 | Q58: 0 | R58: 0 | S58: 0 | T58: 0 | U58: 0 | V58: 0 | W58: 0 | X58: 0 | Y58: 0 | Z58: 0 | AA58: 0 | AB58: 0 | AC58: 0 | AD58: 0 | AE58: 0 | AF58: 0 | AG58: 0 | AH58: 0 | AI58: 0 | AJ58: 0 | AK58: 0 | AL58: 0 | AM58: 0 | AN58: 0 | AO58: 0 | AP58: 0 | AQ58: 0 | AR58: 0 | AS58: 14 | AT58: 0 | AU58: 0 | AV58: 0 | AW58: 14 | AX58: 0 | AY58: 0 | AZ58: 0 | BA58: 0 | BB58: 0 | BC58: 8 | BD58: 0 | BE58: 0 | BF58: 0 | BG58: 8 | BH58: 8 | BI58: 0 | BJ58: 0 | BK58: 0 | BL58: 8 | BM58: 0 | BN58: 0 | BO58: 0 | BP58: 0 | BQ58: 0 | BR58: 0 | BS58: 0 | BT58: 0 | BU58: 0 | BV58: 0 | BW58: 0 | BX58: 0 | BY58: 0 | BZ58: 0 | CA58: 0 | CB58: 0 | CC58: 0 | CD58: 0 | CE58: 0 | CF58: 0 | CG58: 0 | CH58: 0 | CI58: 0 | CJ58: 0 | CK58: 0 | CL58: 0 | CM58: 0 | CN58: 0 | CO58: 0 | CP58: 0 | CQ58: 0 | CR58: 0 | CS58: 0 | CT58: 0 | CU58: 0 | CV58: 0 | CW58: 0 | CX58: 0 | CY58: 0 | CZ58: 0 | DA58: 0 | DB58: 0 | DC58: 0 | DD58: 0 | DE58: 0 | DF58: 30 | DG58: 0 | DH58: 0 | DI58: 0 | DJ58: 30 | DK58: 1931.1 | DL58: 0 | DM58: 0 | DN58: 0 | DO58: 1931.1 | DP58: 1931.1 | DQ58: YES | DR58: 0 | DS58: 0 | DT58: 0
O59: =SUM(O19:O58) -> 0 | P59: 0 | Q59: 0 | R59: 0 | S59: 0 | T59: 0 | U59: 0 | V59: 0 | W59: 0 | X59: 0 | Y59: 0 | Z59: 0 | AA59: 0 | AB59: 0 | AC59: 0 | AD59: 0 | AE59: 0 | AF59: 0 | AG59: 0 | AH59: 0 | AI59: 0 | AJ59: 0 | AK59: 0 | AL59: 0 | AM59: 0 | AN59: 0 | AO59: 0 | AP59: 0 | AQ59: 0 | AR59: 0 | AS59: 562 | AT59: 0 | AU59: =SUM(AU19:AU58) -> 0 | AV59: 0 | AW59: 562 | AX59: 378.5 | AY59: 0 | AZ59: 0 | BA59: 0 | BB59: 378.5 | BC59: 440 | BD59: 0 | BE59: 0 | BF59: 0 | BG59: 440 | BH59: 390 | BI59: 0 | BJ59: 0 | BK59: 0 | BL59: 390 | BM59: 290 | BN59: 0 | BO59: 0 | BP59: 0 | BQ59: 290 | BR59: 290 | BS59: 0 | BT59: 0 | BU59: 0 | BV59: 290 | BW59: 280 | BX59: 0 | BY59: 0 | BZ59: 0 | CA59: =SUM(CA19:CA58) -> 280 | CB59: 152 | CC59: 0 | CD59: 0 | CE59: 0 | CF59: 152 | CG59: 0 | CH59: 0 | CI59: 0 | CJ59: 0 | CK59: 0 | CL59: 0 | CM59: 0 | CN59: 0 | CO59: 0 | CP59: 0 | CQ59: 0 | CR59: 0 | CS59: 0 | CT59: 0 | CU59: 0 | CV59: 0 | CW59: 0 | CX59: 0 | CY59: 0 | CZ59: 0 | DA59: 0 | DB59: 0 | DC59: 0 | DD59: 0 | DE59: 0 | DF59: =SUM(O59,T59,Y59,AD59,AI59,AN59,AS59,AX59,BC59,BH59,BM59,BR59,BW59,CB59,CG59,CL59,CQ59,CV59,DA59) -> 2782.5 | DG59: =SUM(P59,U59,Z59,AE59,AJ59,AO59,AT59,AY59,BD59,BI59,BN59,BS59,BX59,CC59,CH59,CM59,CR59,CW59,DB59) -> 0 | DH59: =SUM(Q59,V59,AA59,AF59,AK59,AP59,AU59,AZ59,BE59,BJ59,BO59,BT59,BY59,CD59,CI59,CN59,CS59,CX59,DC59) -> 0 | DI59: =SUM(R59,W59,AB59,AG59,AL59,AQ59,AV59,BA59,BF59,BK59,BP59,BU59,BZ59,CE59,CJ59,CO59,CT59,CY59,DD59) -> 0 | DJ59: =SUM(DF59:DI59) -> 2782.5 | DK59: =SUM(DK19:DK58) -> 614347.77 | DL59: =SUM(DL19:DL58) -> 0 | DM59: =SUM(DM19:DM58) -> 0 | DN59: =SUM(DN19:DN58) -> 0 | DO59: =IFERROR(SUM(DO19:DO58),0) -> 614347.77 | DP59: =DO59-DR59 -> 591825.13 | DR59: =SUM(DR19:DR58) -> 22522.64 | DS59: =SUM(DS19:DS58) -> 22522.64 | DT59: =SUM(DT19:DT58) -> 0 | DU59: =DR59-DS59-DT59 -> 0 | DV59: check (b)
O60: Total # of Crew | S60: =COUNTIF(S19:S58,">0") -> 0 | T60: Total # of Crew | X60: =COUNTIF(X19:X58,">0") -> 0 | Y60: Total # of Crew | AC60: =COUNTIF(AC19:AC58,">0") -> 0 | AD60: Total # of Crew | AH60: =COUNTIF(AH19:AH58,">0") -> 0 | AI60: Total # of Crew | AM60: =COUNTIF(AM19:AM58,">0") -> 0 | AN60: Total # of Crew | AR60: =COUNTIF(AR19:AR58,">0") -> 0 | AS60: Total # of Crew | AW60: =COUNTIF(AW19:AW58,">0") -> 33 | AX60: Total # of Crew | BB60: =COUNTIF(BB19:BB58,">0") -> 30 | BC60: Total # of Crew | BG60: =COUNTIF(BG19:BG58,">0") -> 31 | BH60: Total # of Crew | BL60: =COUNTIF(BL19:BL58,">0") -> 30 | BM60: Total # of Crew | BQ60: =COUNTIF(BQ19:BQ58,">0") -> 16 | BR60: Total # of Crew | BV60: =COUNTIF(BV19:BV58,">0") -> 16 | BW60: Total # of Crew | CA60: =COUNTIF(CA19:CA58,">0") -> 15 | CB60: Total # of Crew | CF60: =COUNTIF(CF19:CF58,">0") -> 16 | CG60: Total # of Crew | CK60: =COUNTIF(CK19:CK58,">0") -> 0 | CL60: Total # of Crew | CP60: =COUNTIF(CP19:CP58,">0") -> 0 | CQ60: Total # of Crew | CU60: =COUNTIF(CU19:CU58,">0") -> 0 | CV60: Total # of Crew | CZ60: =COUNTIF(CZ19:CZ58,">0") -> 0 | DA60: Total # of Crew | DE60: =COUNTIF(DE19:DE58,">0") -> 0 | DF60: # of time charges | DJ60: =SUM(S60,X60,AC60,AH60,AM60,AR60,AW60,BB60,BG60,BL60,BQ60,BV60,CA60,CF60,CK60,CP60,CU60,CZ60,DE60) -> 187
B64: Tickmark Explanation:
B65: 1 | C65: Note that these individuals' timecards exceeded 24 hours. Verified with vendor that hours are due to paying double time using the quantity vs. adjusting the rate. See email from vendor as provided in the Communications section of the binder.
B67: 2 | C67: Note that the time associated with Customer Service Reps is charged to the 'Call Center Restoration' cost center and not related to foreign crew Outside Service. See the tab 'B - Summary Expenses' for further documentation.
C68: 614347.77
C69: =SUM(DP30:DP51) -> 117393
C70: =C68-C69 -> 496954.77

Sheet C.3 - Asset by Company
A1: Asset Tag | B1: Position | C1: Name
A2: ABC01 | B2: Other
A3: ABC02 | B3: Other
A4: ABC03 | B4: Other
A5: ABC04 | B5: Other
A6: ABC05 | B6: Other
A7: ABC06 | B7: Other
A8: ABC07 | B8: Other
A9: ABC08 | B9: Other
A10: ABC09 | B10: Other
A11: ABC10 | B11: Other
A12: ABC11 | B12: Other
A13: ABC12 | B13: Other
A14: ABC13 | B14: Other
A15: ABC14 | B15: Other
A16: ABC15 | B16: Other
A17: ABC16 | B17: Other
A18: ABC17 | B18: Other
A19: ABC18 | B19: Other
A20: ABC19 | B20: Other
A21: ABC20 | B21: Other
A22: ABC21 | B22: Other
A23: ABC22 | B23: Other
A24: ABC23 | B24: Other
A25: ABC24 | B25: Other
A26: ABC25 | B26: Other
A27: ABC26 | B27: Other
A28: ABC27 | B28: Other
A29: ABC28 | B29: Other
A30: ABC29 | B30: Other
A31: ABC30 | B31: Other
A32: ABC31 | B32: Other
A33: ABC32 | B33: Other
A34: ABC33 | B34: Other
A35: ABC34 | B35: Other
A36: ABC35 | B36: Other
A37: ABC36 | B37: Other
A38: ABC37 | B38: Other
A39: ABC38 | B39: Other
A40: ABC39 | B40: Other
A41: ABC40 | B41: Other
A42: ABC41 | B42: Other
A43: ABC42 | B43: Other
A44: ABC43 | B44: Other
A45: ABC44 | B45: Other
A46: ABC45 | B46: Other
A47: ABC46 | B47: Other
A48: ABC47 | B48: Other
A49: ABC48 | B49: Other
A50: ABC49 | B50: Other
A51: ABC50 | B51: Other
A52: ABC51 | B52: Other
A53: ABC52 | B53: Other
A54: ABC53 | B54: Other
A55: ABC54 | B55: Other
A56: ABC55 | B56: Other
A57: ABC56 | B57: Other
A58: ABC57 | B58: Other
A59: ABC58 | B59: Other
A60: ABC59 | B60: Other
A61: ABC60 | B61: Other
A62: ABC61 | B62: Other
A63: ABC62 | B63: Other
A64: ABC63 | B64: Other
A65: ABC64 | B65: Other
A66: ABC65 | B66: Other
A67: ABC66 | B67: Other
A68: ABC67 | B68: Other
A69: ABC68 | B69: Other
A70: ABC69 | B70: Other
A71: AEO01 | B71: Other
A72: AEO02 | B72: Other
A73: AEO03 | B73: Other
A74: AEO04 | B74: Other
A75: AEO05 | B75: Other
A76: AEO06 | B76: Other
A77: AEO07 | B77: Other
A78: AEO08 | B78: Other
A79: AEO09 | B79: Other
A80: AEO10 | B80: Other
A81: AEO100 | B81: Other
A82: AEO101 | B82: Other
A83: AEO102 | B83: Other
A84: AEO103 | B84: Other
A85: AEO104 | B85: Other
A86: AEO105 | B86: Other
A87: AEO106 | B87: Other
A88: AEO107 | B88: Other
A89: AEO108 | B89: Other
A90: AEO109 | B90: Other
A91: AEO11 | B91: Other
A92: AEO110 | B92: Other
A93: AEO111 | B93: Other
A94: AEO112 | B94: Other
A95: AEO113 | B95: Other
A96: AEO114 | B96: Other
A97: AEO115 | B97: Other
A98: AEO116 | B98: Other
A99: AEO117 | B99: Other
A100: AEO118 | B100: Other
A101: AEO119 | B101: Other
A102: AEO12 | B102: Other
A103: AEO120 | B103: Other
A104: AEO13 | B104: Other
A105: AEO14 | B105: Other
A106: AEO15 | B106: Other
A107: AEO16 | B107: Other
A108: AEO17 | B108: Other
A109: AEO18 | B109: Other
A110: AEO19 | B110: Other
A111: AEO20 | B111: Other
A112: AEO21 | B112: Other
A113: AEO22 | B113: Other
A114: AEO23 | B114: Other
A115: AEO24 | B115: Other
A116: AEO25 | B116: Other
A117: AEO26 | B117: Other
A118: AEO27 | B118: Other
A119: AEO28 | B119: Other
A120: AEO29 | B120: Other
A121: AEO30 | B121: Other
A122: AEO31 | B122: Other
A123: AEO32 | B123: Other
A124: AEO33 | B124: Other
A125: AEO34 | B125: Other
A126: AEO35 | B126: Other
A127: AEO36 | B127: Other
A128: AEO37 | B128: Other
A129: AEO38 | B129: Other
A130: AEO39 | B130: Other
A131: AEO40 | B131: Other
A132: AEO41 | B132: Other
A133: AEO42 | B133: Other
A134: AEO43 | B134: Other
A135: AEO44 | B135: Other
A136: AEO45 | B136: Other
A137: AEO46 | B137: Other
A138: AEO47 | B138: Other
A139: AEO48 | B139: Other
A140: AEO49 | B140: Other
A141: AEO50 | B141: Other
A142: AEO51 | B142: Other
A143: AEO52 | B143: Other
A144: AEO53 | B144: Other
A145: AEO54 | B145: Other
A146: AEO55 | B146: Other
A147: AEO56 | B147: Other
A148: AEO57 | B148: Other
A149: AEO58 | B149: Other
A150: AEO59 | B150: Other
A151: AEO60 | B151: Other
A152: AEO61 | B152: Other
A153: AEO62 | B153: Other
A154: AEO63 | B154: Other
A155: AEO64 | B155: Other
A156: AEO65 | B156: Other
A157: AEO66 | B157: Other
A158: AEO67 | B158: Other
A159: AEO68 | B159: Other
A160: AEO69 | B160: Other
A161: AEO70 | B161: Other
A162: AEO71 | B162: Other
A163: AEO72 | B163: Other
A164: AEO73 | B164: Other
A165: AEO74 | B165: Other
A166: AEO75 | B166: Other
A167: AEO76 | B167: Other
A168: AEO77 | B168: Other
A169: AEO78 | B169: Other
A170: AEO79 | B170: Other
A171: AEO80 | B171: Other
A172: AEO81 | B172: Other
A173: AEO82 | B173: Other
A174: AEO83 | B174: Other
A175: AEO84 | B175: Other
A176: AEO85 | B176: Other
A177: AEO86 | B177: Other
A178: AEO87 | B178: Other
A179: AEO88 | B179: Other
A180: AEO89 | B180: Other
A181: AEO90 | B181: Other
A182: AEO91 | B182: Other
A183: AEO92 | B183: Other
A184: AEO93 | B184: Other
A185: AEO94 | B185: Other
A186: AEO95 | B186: Other
A187: AEO96 | B187: Other
A188: AEO97 | B188: Other
A189: AEO98 | B189: Other
A190: AEO99 | B190: Other
A191: AEP01 | B191: Supervisor
A192: AEP02 | B192: Other
A193: AEP027 | B193: Other
A194: AEP028 | B194: Other
A195: AEP029 | B195: Other
A196: AEP03 | B196: Other
A197: AEP030 | B197: Other
A198: AEP031 | B198: Other
A199: AEP032 | B199: Other
A200: AEP033 | B200: Other
... 3504 more rows

Sheet C.4 - Timesheets - Equipment (hidden)
B2: Equipment Charges - Time Card
B4: Test Plan: | C4: Obtain the time cards. (A) Populate the equipment names and types (if provided). Find additional information regarding individual equipment charge from related invoice. (B) Enter hours worked from time card(s). (C) Confirm that the dates per the time cards fall between dates provided per 'A - Contractor Summary' tab. (D) Identify any equipment charges to be reviewed. (E) For charges which required further review, document review (include why it was determined to be allowed/disallowed via a tickmark).
B10: Rx | C10: Recalculated.
B11: a | C11: Provided from tab 'C.1 - Rate Sheets'.
B12: b | C12: Check figure should equal $0. Cell will appear yellow if discrepancies are noted.
C14: A | H14: Rx | J14: C | K14: a | L14: B | AE14: Rx | AH14: D | AJ14: E
B15: # | C15: Equipment Name | D15: Equipment ID | E15: Company | F15: Crew# | G15: Invoice | H15: Start Date | I15: End Date | J15: Dates Worked Reasonable? | K15: Rates | L15: 2017-09-04 | M15: 2017-09-05 | N15: 2017-09-06 | O15: 2017-09-07 | P15: 2017-09-08 | Q15: 2017-09-09 | R15: 2017-09-10 | S15: 2017-09-11 | T15: 2017-09-12 | U15: 2017-09-13 | V15: 2017-09-14 | W15: 2017-09-15 | X15: 2017-09-16 | Y15: 2017-09-17 | Z15: 2017-09-18 | AA15: 2017-09-19 | AB15: 2017-09-20 | AC15: 2017-09-21 | AD15: 2017-09-22 | AE15: Total Hours | AF15: Total Equipment $ | AG15: Allowable Charges | AH15: Labor Type Appropriate? | AI15: To Be Reviewed | AJ15: Reviewed - Allowable Charge | AK15: Reviewed - Unallowable Charge | AL15: Tickmarks
L16: Monday | M16: Tuesday | N16: Wednesday | O16: Thursday | P16: Friday | Q16: Saturday | R16: Sunday | S16: Monday | T16: Tuesday | U16: Wednesday | V16: Thursday | W16: Friday | X16: Saturday | Y16: Sunday | Z16: Monday | AA16: Tuesday | AB16: Wednesday | AC16: Thursday | AD16: Friday
L17: Hours | M17: Hours | N17: Hours | O17: Hours | P17: Hours | Q17: Hours | R17: Hours | S17: Hours | T17: Hours | U17: Hours | V17: Hours | W17: Hours | X17: Hours | Y17: Hours | Z17: Hours | AA17: Hours | AB17: Hours | AC17: Hours | AD17: Hours
B18: 1 | H18: =INDEX($L$15:$AD$15,MATCH(TRUE,INDEX((L18:AD18>0),0),0)) ->  | I18: =LOOKUP(2,1/(1-(L18:AD18<=0)),$L$15:$AD$15) ->  | J18: =IF(AND(H18>='A - Contractor Summary'!$C$37,I18<='A - Contractor Summary'!$C$43),"Yes","No") ->  | K18: =VLOOKUP($C18,'C.1 - Rate Sheets'!H:I,2,FALSE) ->  | L18: 0 | M18: 0 | N18: 0 | O18: 0 | P18: 0 | Q18: 0 | R18: 0 | S18: 0 | T18: 0 | U18: 0 | V18: 0 | W18: 0 | X18: 0 | Y18: 0 | Z18: 0 | AA18: 0 | AB18: 0 | AC18: 0 | AD18: 0 | AE18: =SUM(L18:AD18) -> 0 | AF18: =AE18*K18 ->  | AG18: =AF18-AI18 ->  | AI18: 0
B19: 2 | H19: =INDEX($L$15:$AD$15,MATCH(TRUE,INDEX((L19:AD19>0),0),0)) ->  | I19: =LOOKUP(2,1/(1-(L19:AD19<=0)),$L$15:$AD$15) ->  | J19: =IF(AND(H19>='A - Contractor Summary'!$C$37,I19<='A - Contractor Summary'!$C$43),"Yes","No") ->  | K19: =VLOOKUP($C19,'C.1 - Rate Sheets'!H:I,2,FALSE) ->  | L19: 0 | M19: 0 | N19: 0 | O19: 0 | P19: 0 | Q19: 0 | R19: 0 | S19: 0 | T19: 0 | U19: 0 | V19: 0 | W19: 0 | X19: 0 | Y19: 0 | Z19: 0 | AA19: 0 | AB19: 0 | AC19: 0 | AD19: 0 | AE19: =SUM(L19:AD19) -> 0 | AF19: =AE19*K19 ->  | AI19: 0
B20: 3 | J20: =IF(AND(H20>='A - Contractor Summary'!$C$37,I20<='A - Contractor Summary'!$C$43),"Yes","No") ->  | K20: =VLOOKUP($C20,'C.1 - Rate Sheets'!H:I,2,FALSE) ->  | L20: 0 | M20: 0 | N20: 0 | O20: 0 | P20: 0 | Q20: 0 | R20: 0 | S20: 0 | T20: 0 | U20: 0 | V20: 0 | W20: 0 | X20: 0 | Y20: 0 | Z20: 0 | AA20: 0 | AB20: 0 | AC20: 0 | AD20: 0 | AE20: 0 | AI20: 0
B21: 4 | J21: =IF(AND(H21>='A - Contractor Summary'!$C$37,I21<='A - Contractor Summary'!$C$43),"Yes","No") ->  | K21: =VLOOKUP($C21,'C.1 - Rate Sheets'!H:I,2,FALSE) ->  | L21: 0 | M21: 0 | N21: 0 | O21: 0 | P21: 0 | Q21: 0 | R21: 0 | S21: 0 | T21: 0 | U21: 0 | V21: 0 | W21: 0 | X21: 0 | Y21: 0 | Z21: 0 | AA21: 0 | AB21: 0 | AC21: 0 | AD21: 0 | AE21: 0 | AI21: 0
B22: 5 | J22: =IF(AND(H22>='A - Contractor Summary'!$C$37,I22<='A - Contractor Summary'!$C$43),"Yes","No") ->  | K22: =VLOOKUP($C22,'C.1 - Rate Sheets'!H:I,2,FALSE) ->  | L22: 0 | M22: 0 | N22: 0 | O22: 0 | P22: 0 | Q22: 0 | R22: 0 | S22: 0 | T22: 0 | U22: 0 | V22: 0 | W22: 0 | X22: 0 | Y22: 0 | Z22: 0 | AA22: 0 | AB22: 0 | AC22: 0 | AD22: 0 | AE22: 0 | AI22: 0
B23: 6 | J23: =IF(AND(H23>='A - Contractor Summary'!$C$37,I23<='A - Contractor Summary'!$C$43),"Yes","No") ->  | K23: =VLOOKUP($C23,'C.1 - Rate Sheets'!H:I,2,FALSE) ->  | L23: 0 | M23: 0 | N23: 0 | O23: 0 | P23: 0 | Q23: 0 | R23: 0 | S23: 0 | T23: 0 | U23: 0 | V23: 0 | W23: 0 | X23: 0 | Y23: 0 | Z23: 0 | AA23: 0 | AB23: 0 | AC23: 0 | AD23: 0 | AE23: 0 | AI23: 0
B24: 7 | J24: =IF(AND(H24>='A - Contractor Summary'!$C$37,I24<='A - Contractor Summary'!$C$43),"Yes","No") ->  | K24: =VLOOKUP($C24,'C.1 - Rate Sheets'!H:I,2,FALSE) ->  | L24: 0 | M24: 0 | N24: 0 | O24: 0 | P24: 0 | Q24: 0 | R24: 0 | S24: 0 | T24: 0 | U24: 0 | V24: 0 | W24: 0 | X24: 0 | Y24: 0 | Z24: 0 | AA24: 0 | AB24: 0 | AC24: 0 | AD24: 0 | AE24: 0 | AI24: 0
B25: 8 | J25: =IF(AND(H25>='A - Contractor Summary'!$C$37,I25<='A - Contractor Summary'!$C$43),"Yes","No") ->  | K25: =VLOOKUP($C25,'C.1 - Rate Sheets'!H:I,2,FALSE) ->  | L25: 0 | M25: 0 | N25: 0 | O25: 0 | P25: 0 | Q25: 0 | R25: 0 | S25: 0 | T25: 0 | U25: 0 | V25: 0 | W25: 0 | X25: 0 | Y25: 0 | Z25: 0 | AA25: 0 | AB25: 0 | AC25: 0 | AD25: 0 | AE25: 0 | AI25: 0
B26: 9 | J26: =IF(AND(H26>='A - Contractor Summary'!$C$37,I26<='A - Contractor Summary'!$C$43),"Yes","No") ->  | K26: =VLOOKUP($C26,'C.1 - Rate Sheets'!H:I,2,FALSE) ->  | L26: 0 | M26: 0 | N26: 0 | O26: 0 | P26: 0 | Q26: 0 | R26: 0 | S26: 0 | T26: 0 | U26: 0 | V26: 0 | W26: 0 | X26: 0 | Y26: 0 | Z26: 0 | AA26: 0 | AB26: 0 | AC26: 0 | AD26: 0 | AE26: 0 | AI26: 0
B27: 10 | J27: =IF(AND(H27>='A - Contractor Summary'!$C$37,I27<='A - Contractor Summary'!$C$43),"Yes","No") ->  | K27: =VLOOKUP($C27,'C.1 - Rate Sheets'!H:I,2,FALSE) ->  | L27: 0 | M27: 0 | N27: 0 | O27: 0 | P27: 0 | Q27: 0 | R27: 0 | S27: 0 | T27: 0 | U27: 0 | V27: 0 | W27: 0 | X27: 0 | Y27: 0 | Z27: 0 | AA27: 0 | AB27: 0 | AC27: 0 | AD27: 0 | AE27: 0 | AI27: 0
B28: 11 | J28: =IF(AND(H28>='A - Contractor Summary'!$C$37,I28<='A - Contractor Summary'!$C$43),"Yes","No") ->  | K28: =VLOOKUP($C28,'C.1 - Rate Sheets'!H:I,2,FALSE) ->  | L28: 0 | M28: 0 | N28: 0 | O28: 0 | P28: 0 | Q28: 0 | R28: 0 | S28: 0 | T28: 0 | U28: 0 | V28: 0 | W28: 0 | X28: 0 | Y28: 0 | Z28: 0 | AA28: 0 | AB28: 0 | AC28: 0 | AD28: 0 | AE28: 0 | AI28: 0
B29: 12 | J29: =IF(AND(H29>='A - Contractor Summary'!$C$37,I29<='A - Contractor Summary'!$C$43),"Yes","No") ->  | K29: =VLOOKUP($C29,'C.1 - Rate Sheets'!H:I,2,FALSE) ->  | L29: 0 | M29: 0 | N29: 0 | O29: 0 | P29: 0 | Q29: 0 | R29: 0 | S29: 0 | T29: 0 | U29: 0 | V29: 0 | W29: 0 | X29: 0 | Y29: 0 | Z29: 0 | AA29: 0 | AB29: 0 | AC29: 0 | AD29: 0 | AE29: 0 | AI29: 0
B30: 13 | J30: =IF(AND(H30>='A - Contractor Summary'!$C$37,I30<='A - Contractor Summary'!$C$43),"Yes","No") ->  | K30: =VLOOKUP($C30,'C.1 - Rate Sheets'!H:I,2,FALSE) ->  | L30: 0 | M30: 0 | N30: 0 | O30: 0 | P30: 0 | Q30: 0 | R30: 0 | S30: 0 | T30: 0 | U30: 0 | V30: 0 | W30: 0 | X30: 0 | Y30: 0 | Z30: 0 | AA30: 0 | AB30: 0 | AC30: 0 | AD30: 0 | AE30: 0 | AI30: 0
B31: 14 | J31: =IF(AND(H31>='A - Contractor Summary'!$C$37,I31<='A - Contractor Summary'!$C$43),"Yes","No") ->  | K31: =VLOOKUP($C31,'C.1 - Rate Sheets'!H:I,2,FALSE) ->  | L31: 0 | M31: 0 | N31: 0 | O31: 0 | P31: 0 | Q31: 0 | R31: 0 | S31: 0 | T31: 0 | U31: 0 | V31: 0 | W31: 0 | X31: 0 | Y31: 0 | Z31: 0 | AA31: 0 | AB31: 0 | AC31: 0 | AD31: 0 | AE31: 0 | AI31: 0
B32: 15 | J32: =IF(AND(H32>='A - Contractor Summary'!$C$37,I32<='A - Contractor Summary'!$C$43),"Yes","No") ->  | K32: =VLOOKUP($C32,'C.1 - Rate Sheets'!H:I,2,FALSE) ->  | L32: 0 | M32: 0 | N32: 0 | O32: 0 | P32: 0 | Q32: 0 | R32: 0 | S32: 0 | T32: 0 | U32: 0 | V32: 0 | W32: 0 | X32: 0 | Y32: 0 | Z32: 0 | AA32: 0 | AB32: 0 | AC32: 0 | AD32: 0 | AE32: 0 | AI32: 0
B33: 16 | J33: =IF(AND(H33>='A - Contractor Summary'!$C$37,I33<='A - Contractor Summary'!$C$43),"Yes","No") ->  | K33: =VLOOKUP($C33,'C.1 - Rate Sheets'!H:I,2,FALSE) ->  | L33: 0 | M33: 0 | N33: 0 | O33: 0 | P33: 0 | Q33: 0 | R33: 0 | S33: 0 | T33: 0 | U33: 0 | V33: 0 | W33: 0 | X33: 0 | Y33: 0 | Z33: 0 | AA33: 0 | AB33: 0 | AC33: 0 | AD33: 0 | AE33: 0 | AI33: 0
B34: 17 | J34: =IF(AND(H34>='A - Contractor Summary'!$C$37,I34<='A - Contractor Summary'!$C$43),"Yes","No") ->  | K34: =VLOOKUP($C34,'C.1 - Rate Sheets'!H:I,2,FALSE) ->  | L34: 0 | M34: 0 | N34: 0 | O34: 0 | P34: 0 | Q34: 0 | R34: 0 | S34: 0 | T34: 0 | U34: 0 | V34: 0 | W34: 0 | X34: 0 | Y34: 0 | Z34: 0 | AA34: 0 | AB34: 0 | AC34: 0 | AD34: 0 | AE34: 0 | AI34: 0
B35: 18 | J35: =IF(AND(H35>='A - Contractor Summary'!$C$37,I35<='A - Contractor Summary'!$C$43),"Yes","No") ->  | K35: =VLOOKUP($C35,'C.1 - Rate Sheets'!H:I,2,FALSE) ->  | L35: 0 | M35: 0 | N35: 0 | O35: 0 | P35: 0 | Q35: 0 | R35: 0 | S35: 0 | T35: 0 | U35: 0 | V35: 0 | W35: 0 | X35: 0 | Y35: 0 | Z35: 0 | AA35: 0 | AB35: 0 | AC35: 0 | AD35: 0 | AE35: 0 | AI35: 0
B36: 19 | J36: =IF(AND(H36>='A - Contractor Summary'!$C$37,I36<='A - Contractor Summary'!$C$43),"Yes","No") ->  | K36: =VLOOKUP($C36,'C.1 - Rate Sheets'!H:I,2,FALSE) ->  | L36: 0 | M36: 0 | N36: 0 | O36: 0 | P36: 0 | Q36: 0 | R36: 0 | S36: 0 | T36: 0 | U36: 0 | V36: 0 | W36: 0 | X36: 0 | Y36: 0 | Z36: 0 | AA36: 0 | AB36: 0 | AC36: 0 | AD36: 0 | AE36: 0 | AI36: 0
B37: 20 | J37: =IF(AND(H37>='A - Contractor Summary'!$C$37,I37<='A - Contractor Summary'!$C$43),"Yes","No") ->  | K37: =VLOOKUP($C37,'C.1 - Rate Sheets'!H:I,2,FALSE) ->  | L37: 0 | M37: 0 | N37: 0 | O37: 0 | P37: 0 | Q37: 0 | R37: 0 | S37: 0 | T37: 0 | U37: 0 | V37: 0 | W37: 0 | X37: 0 | Y37: 0 | Z37: 0 | AA37: 0 | AB37: 0 | AC37: 0 | AD37: 0 | AE37: 0 | AI37: 0
B38: 21 | J38: =IF(AND(H38>='A - Contractor Summary'!$C$37,I38<='A - Contractor Summary'!$C$43),"Yes","No") ->  | K38: =VLOOKUP($C38,'C.1 - Rate Sheets'!H:I,2,FALSE) ->  | L38: 0 | M38: 0 | N38: 0 | O38: 0 | P38: 0 | Q38: 0 | R38: 0 | S38: 0 | T38: 0 | U38: 0 | V38: 0 | W38: 0 | X38: 0 | Y38: 0 | Z38: 0 | AA38: 0 | AB38: 0 | AC38: 0 | AD38: 0 | AE38: 0 | AI38: 0
B39: 22 | J39: =IF(AND(H39>='A - Contractor Summary'!$C$37,I39<='A - Contractor Summary'!$C$43),"Yes","No") ->  | K39: =VLOOKUP($C39,'C.1 - Rate Sheets'!H:I,2,FALSE) ->  | L39: 0 | M39: 0 | N39: 0 | O39: 0 | P39: 0 | Q39: 0 | R39: 0 | S39: 0 | T39: 0 | U39: 0 | V39: 0 | W39: 0 | X39: 0 | Y39: 0 | Z39: 0 | AA39: 0 | AB39: 0 | AC39: 0 | AD39: 0 | AE39: 0 | AI39: 0
B40: 23 | J40: =IF(AND(H40>='A - Contractor Summary'!$C$37,I40<='A - Contractor Summary'!$C$43),"Yes","No") ->  | K40: =VLOOKUP($C40,'C.1 - Rate Sheets'!H:I,2,FALSE) ->  | L40: 0 | M40: 0 | N40: 0 | O40: 0 | P40: 0 | Q40: 0 | R40: 0 | S40: 0 | T40: 0 | U40: 0 | V40: 0 | W40: 0 | X40: 0 | Y40: 0 | Z40: 0 | AA40: 0 | AB40: 0 | AC40: 0 | AD40: 0 | AE40: 0 | AI40: 0
B41: 24 | J41: =IF(AND(H41>='A - Contractor Summary'!$C$37,I41<='A - Contractor Summary'!$C$43),"Yes","No") ->  | K41: =VLOOKUP($C41,'C.1 - Rate Sheets'!H:I,2,FALSE) ->  | L41: 0 | M41: 0 | N41: 0 | O41: 0 | P41: 0 | Q41: 0 | R41: 0 | S41: 0 | T41: 0 | U41: 0 | V41: 0 | W41: 0 | X41: 0 | Y41: 0 | Z41: 0 | AA41: 0 | AB41: 0 | AC41: 0 | AD41: 0 | AE41: 0 | AI41: 0
B42: 25 | J42: =IF(AND(H42>='A - Contractor Summary'!$C$37,I42<='A - Contractor Summary'!$C$43),"Yes","No") ->  | K42: =VLOOKUP($C42,'C.1 - Rate Sheets'!H:I,2,FALSE) ->  | L42: 0 | M42: 0 | N42: 0 | O42: 0 | P42: 0 | Q42: 0 | R42: 0 | S42: 0 | T42: 0 | U42: 0 | V42: 0 | W42: 0 | X42: 0 | Y42: 0 | Z42: 0 | AA42: 0 | AB42: 0 | AC42: 0 | AD42: 0 | AE42: 0 | AI42: 0
B43: 26 | H43: =INDEX($L$15:$AD$15,MATCH(TRUE,INDEX((L43:AD43>0),0),0)) ->  | I43: =LOOKUP(2,1/(1-(L43:AD43<=0)),$L$15:$AD$15) ->  | J43: =IF(AND(H43>='A - Contractor Summary'!$C$37,I43<='A - Contractor Summary'!$C$43),"Yes","No") ->  | K43: =VLOOKUP($C43,'C.1 - Rate Sheets'!H:I,2,FALSE) ->  | L43: 0 | M43: 0 | N43: 0 | O43: 0 | P43: 0 | Q43: 0 | R43: 0 | S43: 0 | T43: 0 | U43: 0 | V43: 0 | W43: 0 | X43: 0 | Y43: 0 | Z43: 0 | AA43: 0 | AB43: 0 | AC43: 0 | AD43: 0 | AE43: =SUM(L43:AD43) -> 0 | AF43: =AE43*K43 ->  | AG43: =AF43-AI43 ->  | AI43: 0
B44: 27 | J44: =IF(AND(H44>='A - Contractor Summary'!$C$37,I44<='A - Contractor Summary'!$C$43),"Yes","No") ->  | K44: =VLOOKUP($C44,'C.1 - Rate Sheets'!H:I,2,FALSE) ->  | L44: 0 | M44: 0 | N44: 0 | O44: 0 | P44: 0 | Q44: 0 | R44: 0 | S44: 0 | T44: 0 | U44: 0 | V44: 0 | W44: 0 | X44: 0 | Y44: 0 | Z44: 0 | AA44: 0 | AB44: 0 | AC44: 0 | AD44: 0 | AE44: 0 | AI44: 0
B45: 28 | J45: =IF(AND(H45>='A - Contractor Summary'!$C$37,I45<='A - Contractor Summary'!$C$43),"Yes","No") ->  | K45: =VLOOKUP($C45,'C.1 - Rate Sheets'!H:I,2,FALSE) ->  | L45: 0 | M45: 0 | N45: 0 | O45: 0 | P45: 0 | Q45: 0 | R45: 0 | S45: 0 | T45: 0 | U45: 0 | V45: 0 | W45: 0 | X45: 0 | Y45: 0 | Z45: 0 | AA45: 0 | AB45: 0 | AC45: 0 | AD45: 0 | AE45: 0 | AI45: 0
B46: 29 | J46: =IF(AND(H46>='A - Contractor Summary'!$C$37,I46<='A - Contractor Summary'!$C$43),"Yes","No") ->  | K46: =VLOOKUP($C46,'C.1 - Rate Sheets'!H:I,2,FALSE) ->  | L46: 0 | M46: 0 | N46: 0 | O46: 0 | P46: 0 | Q46: 0 | R46: 0 | S46: 0 | T46: 0 | U46: 0 | V46: 0 | W46: 0 | X46: 0 | Y46: 0 | Z46: 0 | AA46: 0 | AB46: 0 | AC46: 0 | AD46: 0 | AE46: 0 | AI46: 0
B47: 30 | J47: =IF(AND(H47>='A - Contractor Summary'!$C$37,I47<='A - Contractor Summary'!$C$43),"Yes","No") ->  | K47: =VLOOKUP($C47,'C.1 - Rate Sheets'!H:I,2,FALSE) ->  | L47: 0 | M47: 0 | N47: 0 | O47: 0 | P47: 0 | Q47: 0 | R47: 0 | S47: 0 | T47: 0 | U47: 0 | V47: 0 | W47: 0 | X47: 0 | Y47: 0 | Z47: 0 | AA47: 0 | AB47: 0 | AC47: 0 | AD47: 0 | AE47: 0 | AI47: 0
B48: 31 | J48: =IF(AND(H48>='A - Contractor Summary'!$C$37,I48<='A - Contractor Summary'!$C$43),"Yes","No") ->  | K48: =VLOOKUP($C48,'C.1 - Rate Sheets'!H:I,2,FALSE) ->  | L48: 0 | M48: 0 | N48: 0 | O48: 0 | P48: 0 | Q48: 0 | R48: 0 | S48: 0 | T48: 0 | U48: 0 | V48: 0 | W48: 0 | X48: 0 | Y48: 0 | Z48: 0 | AA48: 0 | AB48: 0 | AC48: 0 | AD48: 0 | AE48: 0 | AI48: 0
B49: 32 | J49: =IF(AND(H49>='A - Contractor Summary'!$C$37,I49<='A - Contractor Summary'!$C$43),"Yes","No") ->  | K49: =VLOOKUP($C49,'C.1 - Rate Sheets'!H:I,2,FALSE) ->  | L49: 0 | M49: 0 | N49: 0 | O49: 0 | P49: 0 | Q49: 0 | R49: 0 | S49: 0 | T49: 0 | U49: 0 | V49: 0 | W49: 0 | X49: 0 | Y49: 0 | Z49: 0 | AA49: 0 | AB49: 0 | AC49: 0 | AD49: 0 | AE49: 0 | AI49: 0
B50: 33 | J50: =IF(AND(H50>='A - Contractor Summary'!$C$37,I50<='A - Contractor Summary'!$C$43),"Yes","No") ->  | K50: =VLOOKUP($C50,'C.1 - Rate Sheets'!H:I,2,FALSE) ->  | L50: 0 | M50: 0 | N50: 0 | O50: 0 | P50: 0 | Q50: 0 | R50: 0 | S50: 0 | T50: 0 | U50: 0 | V50: 0 | W50: 0 | X50: 0 | Y50: 0 | Z50: 0 | AA50: 0 | AB50: 0 | AC50: 0 | AD50: 0 | AE50: 0 | AI50: 0
B51: 34 | J51: =IF(AND(H51>='A - Contractor Summary'!$C$37,I51<='A - Contractor Summary'!$C$43),"Yes","No") ->  | K51: =VLOOKUP($C51,'C.1 - Rate Sheets'!H:I,2,FALSE) ->  | L51: 0 | M51: 0 | N51: 0 | O51: 0 | P51: 0 | Q51: 0 | R51: 0 | S51: 0 | T51: 0 | U51: 0 | V51: 0 | W51: 0 | X51: 0 | Y51: 0 | Z51: 0 | AA51: 0 | AB51: 0 | AC51: 0 | AD51: 0 | AE51: 0 | AI51: 0
B52: 35 | J52: =IF(AND(H52>='A - Contractor Summary'!$C$37,I52<='A - Contractor Summary'!$C$43),"Yes","No") ->  | K52: =VLOOKUP($C52,'C.1 - Rate Sheets'!H:I,2,FALSE) ->  | L52: 0 | M52: 0 | N52: 0 | O52: 0 | P52: 0 | Q52: 0 | R52: 0 | S52: 0 | T52: 0 | U52: 0 | V52: 0 | W52: 0 | X52: 0 | Y52: 0 | Z52: 0 | AA52: 0 | AB52: 0 | AC52: 0 | AD52: 0 | AE52: 0 | AI52: 0
B53: 36 | J53: =IF(AND(H53>='A - Contractor Summary'!$C$37,I53<='A - Contractor Summary'!$C$43),"Yes","No") ->  | K53: =VLOOKUP($C53,'C.1 - Rate Sheets'!H:I,2,FALSE) ->  | L53: 0 | M53: 0 | N53: 0 | O53: 0 | P53: 0 | Q53: 0 | R53: 0 | S53: 0 | T53: 0 | U53: 0 | V53: 0 | W53: 0 | X53: 0 | Y53: 0 | Z53: 0 | AA53: 0 | AB53: 0 | AC53: 0 | AD53: 0 | AE53: 0 | AI53: 0
B54: 37 | J54: =IF(AND(H54>='A - Contractor Summary'!$C$37,I54<='A - Contractor Summary'!$C$43),"Yes","No") ->  | K54: =VLOOKUP($C54,'C.1 - Rate Sheets'!H:I,2,FALSE) ->  | L54: 0 | M54: 0 | N54: 0 | O54: 0 | P54: 0 | Q54: 0 | R54: 0 | S54: 0 | T54: 0 | U54: 0 | V54: 0 | W54: 0 | X54: 0 | Y54: 0 | Z54: 0 | AA54: 0 | AB54: 0 | AC54: 0 | AD54: 0 | AE54: 0 | AI54: 0
B55: 38 | J55: =IF(AND(H55>='A - Contractor Summary'!$C$37,I55<='A - Contractor Summary'!$C$43),"Yes","No") ->  | K55: =VLOOKUP($C55,'C.1 - Rate Sheets'!H:I,2,FALSE) ->  | L55: 0 | M55: 0 | N55: 0 | O55: 0 | P55: 0 | Q55: 0 | R55: 0 | S55: 0 | T55: 0 | U55: 0 | V55: 0 | W55: 0 | X55: 0 | Y55: 0 | Z55: 0 | AA55: 0 | AB55: 0 | AC55: 0 | AD55: 0 | AE55: 0 | AI55: 0
B56: 39 | J56: =IF(AND(H56>='A - Contractor Summary'!$C$37,I56<='A - Contractor Summary'!$C$43),"Yes","No") ->  | K56: =VLOOKUP($C56,'C.1 - Rate Sheets'!H:I,2,FALSE) ->  | L56: 0 | M56: 0 | N56: 0 | O56: 0 | P56: 0 | Q56: 0 | R56: 0 | S56: 0 | T56: 0 | U56: 0 | V56: 0 | W56: 0 | X56: 0 | Y56: 0 | Z56: 0 | AA56: 0 | AB56: 0 | AC56: 0 | AD56: 0 | AE56: 0 | AI56: 0
B57: 40 | J57: =IF(AND(H57>='A - Contractor Summary'!$C$37,I57<='A - Contractor Summary'!$C$43),"Yes","No") ->  | K57: =VLOOKUP($C57,'C.1 - Rate Sheets'!H:I,2,FALSE) ->  | L57: 0 | M57: 0 | N57: 0 | O57: 0 | P57: 0 | Q57: 0 | R57: 0 | S57: 0 | T57: 0 | U57: 0 | V57: 0 | W57: 0 | X57: 0 | Y57: 0 | Z57: 0 | AA57: 0 | AB57: 0 | AC57: 0 | AD57: 0 | AE57: 0 | AI57: 0
B58: 41 | J58: =IF(AND(H58>='A - Contractor Summary'!$C$37,I58<='A - Contractor Summary'!$C$43),"Yes","No") ->  | K58: =VLOOKUP($C58,'C.1 - Rate Sheets'!H:I,2,FALSE) ->  | L58: 0 | M58: 0 | N58: 0 | O58: 0 | P58: 0 | Q58: 0 | R58: 0 | S58: 0 | T58: 0 | U58: 0 | V58: 0 | W58: 0 | X58: 0 | Y58: 0 | Z58: 0 | AA58: 0 | AB58: 0 | AC58: 0 | AD58: 0 | AE58: 0 | AI58: 0
B59: 42 | J59: =IF(AND(H59>='A - Contractor Summary'!$C$37,I59<='A - Contractor Summary'!$C$43),"Yes","No") ->  | K59: =VLOOKUP($C59,'C.1 - Rate Sheets'!H:I,2,FALSE) ->  | L59: 0 | M59: 0 | N59: 0 | O59: 0 | P59: 0 | Q59: 0 | R59: 0 | S59: 0 | T59: 0 | U59: 0 | V59: 0 | W59: 0 | X59: 0 | Y59: 0 | Z59: 0 | AA59: 0 | AB59: 0 | AC59: 0 | AD59: 0 | AE59: 0 | AI59: 0
B60: 43 | J60: =IF(AND(H60>='A - Contractor Summary'!$C$37,I60<='A - Contractor Summary'!$C$43),"Yes","No") ->  | K60: =VLOOKUP($C60,'C.1 - Rate Sheets'!H:I,2,FALSE) ->  | L60: 0 | M60: 0 | N60: 0 | O60: 0 | P60: 0 | Q60: 0 | R60: 0 | S60: 0 | T60: 0 | U60: 0 | V60: 0 | W60: 0 | X60: 0 | Y60: 0 | Z60: 0 | AA60: 0 | AB60: 0 | AC60: 0 | AD60: 0 | AE60: 0 | AI60: 0
B61: 44 | J61: =IF(AND(H61>='A - Contractor Summary'!$C$37,I61<='A - Contractor Summary'!$C$43),"Yes","No") ->  | K61: =VLOOKUP($C61,'C.1 - Rate Sheets'!H:I,2,FALSE) ->  | L61: 0 | M61: 0 | N61: 0 | O61: 0 | P61: 0 | Q61: 0 | R61: 0 | S61: 0 | T61: 0 | U61: 0 | V61: 0 | W61: 0 | X61: 0 | Y61: 0 | Z61: 0 | AA61: 0 | AB61: 0 | AC61: 0 | AD61: 0 | AE61: 0 | AI61: 0
B62: 45 | J62: =IF(AND(H62>='A - Contractor Summary'!$C$37,I62<='A - Contractor Summary'!$C$43),"Yes","No") ->  | K62: =VLOOKUP($C62,'C.1 - Rate Sheets'!H:I,2,FALSE) ->  | L62: 0 | M62: 0 | N62: 0 | O62: 0 | P62: 0 | Q62: 0 | R62: 0 | S62: 0 | T62: 0 | U62: 0 | V62: 0 | W62: 0 | X62: 0 | Y62: 0 | Z62: 0 | AA62: 0 | AB62: 0 | AC62: 0 | AD62: 0 | AE62: 0 | AI62: 0
B63: 46 | J63: =IF(AND(H63>='A - Contractor Summary'!$C$37,I63<='A - Contractor Summary'!$C$43),"Yes","No") ->  | K63: =VLOOKUP($C63,'C.1 - Rate Sheets'!H:I,2,FALSE) ->  | L63: 0 | M63: 0 | N63: 0 | O63: 0 | P63: 0 | Q63: 0 | R63: 0 | S63: 0 | T63: 0 | U63: 0 | V63: 0 | W63: 0 | X63: 0 | Y63: 0 | Z63: 0 | AA63: 0 | AB63: 0 | AC63: 0 | AD63: 0 | AE63: 0 | AI63: 0
B64: 47 | J64: =IF(AND(H64>='A - Contractor Summary'!$C$37,I64<='A - Contractor Summary'!$C$43),"Yes","No") ->  | K64: =VLOOKUP($C64,'C.1 - Rate Sheets'!H:I,2,FALSE) ->  | L64: 0 | M64: 0 | N64: 0 | O64: 0 | P64: 0 | Q64: 0 | R64: 0 | S64: 0 | T64: 0 | U64: 0 | V64: 0 | W64: 0 | X64: 0 | Y64: 0 | Z64: 0 | AA64: 0 | AB64: 0 | AC64: 0 | AD64: 0 | AE64: 0 | AI64: 0
B65: 48 | J65: =IF(AND(H65>='A - Contractor Summary'!$C$37,I65<='A - Contractor Summary'!$C$43),"Yes","No") ->  | K65: =VLOOKUP($C65,'C.1 - Rate Sheets'!H:I,2,FALSE) ->  | L65: 0 | M65: 0 | N65: 0 | O65: 0 | P65: 0 | Q65: 0 | R65: 0 | S65: 0 | T65: 0 | U65: 0 | V65: 0 | W65: 0 | X65: 0 | Y65: 0 | Z65: 0 | AA65: 0 | AB65: 0 | AC65: 0 | AD65: 0 | AE65: 0 | AI65: 0
B66: 49 | J66: =IF(AND(H66>='A - Contractor Summary'!$C$37,I66<='A - Contractor Summary'!$C$43),"Yes","No") ->  | K66: =VLOOKUP($C66,'C.1 - Rate Sheets'!H:I,2,FALSE) ->  | L66: 0 | M66: 0 | N66: 0 | O66: 0 | P66: 0 | Q66: 0 | R66: 0 | S66: 0 | T66: 0 | U66: 0 | V66: 0 | W66: 0 | X66: 0 | Y66: 0 | Z66: 0 | AA66: 0 | AB66: 0 | AC66: 0 | AD66: 0 | AE66: 0 | AI66: 0
B67: 50 | J67: =IF(AND(H67>='A - Contractor Summary'!$C$37,I67<='A - Contractor Summary'!$C$43),"Yes","No") ->  | K67: =VLOOKUP($C67,'C.1 - Rate Sheets'!H:I,2,FALSE) ->  | L67: 0 | M67: 0 | N67: 0 | O67: 0 | P67: 0 | Q67: 0 | R67: 0 | S67: 0 | T67: 0 | U67: 0 | V67: 0 | W67: 0 | X67: 0 | Y67: 0 | Z67: 0 | AA67: 0 | AB67: 0 | AC67: 0 | AD67: 0 | AE67: 0 | AI67: 0
B68: 51 | J68: =IF(AND(H68>='A - Contractor Summary'!$C$37,I68<='A - Contractor Summary'!$C$43),"Yes","No") ->  | K68: =VLOOKUP($C68,'C.1 - Rate Sheets'!H:I,2,FALSE) ->  | L68: 0 | M68: 0 | N68: 0 | O68: 0 | P68: 0 | Q68: 0 | R68: 0 | S68: 0 | T68: 0 | U68: 0 | V68: 0 | W68: 0 | X68: 0 | Y68: 0 | Z68: 0 | AA68: 0 | AB68: 0 | AC68: 0 | AD68: 0 | AE68: 0 | AI68: 0
B69: 52 | J69: =IF(AND(H69>='A - Contractor Summary'!$C$37,I69<='A - Contractor Summary'!$C$43),"Yes","No") ->  | K69: =VLOOKUP($C69,'C.1 - Rate Sheets'!H:I,2,FALSE) ->  | L69: 0 | M69: 0 | N69: 0 | O69: 0 | P69: 0 | Q69: 0 | R69: 0 | S69: 0 | T69: 0 | U69: 0 | V69: 0 | W69: 0 | X69: 0 | Y69: 0 | Z69: 0 | AA69: 0 | AB69: 0 | AC69: 0 | AD69: 0 | AE69: 0 | AI69: 0
B70: 53 | J70: =IF(AND(H70>='A - Contractor Summary'!$C$37,I70<='A - Contractor Summary'!$C$43),"Yes","No") ->  | K70: =VLOOKUP($C70,'C.1 - Rate Sheets'!H:I,2,FALSE) ->  | L70: 0 | M70: 0 | N70: 0 | O70: 0 | P70: 0 | Q70: 0 | R70: 0 | S70: 0 | T70: 0 | U70: 0 | V70: 0 | W70: 0 | X70: 0 | Y70: 0 | Z70: 0 | AA70: 0 | AB70: 0 | AC70: 0 | AD70: 0 | AE70: 0 | AI70: 0
B71: 54 | J71: =IF(AND(H71>='A - Contractor Summary'!$C$37,I71<='A - Contractor Summary'!$C$43),"Yes","No") ->  | K71: =VLOOKUP($C71,'C.1 - Rate Sheets'!H:I,2,FALSE) ->  | L71: 0 | M71: 0 | N71: 0 | O71: 0 | P71: 0 | Q71: 0 | R71: 0 | S71: 0 | T71: 0 | U71: 0 | V71: 0 | W71: 0 | X71: 0 | Y71: 0 | Z71: 0 | AA71: 0 | AB71: 0 | AC71: 0 | AD71: 0 | AE71: 0 | AI71: 0
B72: 55 | J72: =IF(AND(H72>='A - Contractor Summary'!$C$37,I72<='A - Contractor Summary'!$C$43),"Yes","No") ->  | K72: =VLOOKUP($C72,'C.1 - Rate Sheets'!H:I,2,FALSE) ->  | L72: 0 | M72: 0 | N72: 0 | O72: 0 | P72: 0 | Q72: 0 | R72: 0 | S72: 0 | T72: 0 | U72: 0 | V72: 0 | W72: 0 | X72: 0 | Y72: 0 | Z72: 0 | AA72: 0 | AB72: 0 | AC72: 0 | AD72: 0 | AE72: 0 | AI72: 0
B73: 56 | J73: =IF(AND(H73>='A - Contractor Summary'!$C$37,I73<='A - Contractor Summary'!$C$43),"Yes","No") ->  | K73: =VLOOKUP($C73,'C.1 - Rate Sheets'!H:I,2,FALSE) ->  | L73: 0 | M73: 0 | N73: 0 | O73: 0 | P73: 0 | Q73: 0 | R73: 0 | S73: 0 | T73: 0 | U73: 0 | V73: 0 | W73: 0 | X73: 0 | Y73: 0 | Z73: 0 | AA73: 0 | AB73: 0 | AC73: 0 | AD73: 0 | AE73: 0 | AI73: 0
B74: 57 | J74: =IF(AND(H74>='A - Contractor Summary'!$C$37,I74<='A - Contractor Summary'!$C$43),"Yes","No") ->  | K74: =VLOOKUP($C74,'C.1 - Rate Sheets'!H:I,2,FALSE) ->  | L74: 0 | M74: 0 | N74: 0 | O74: 0 | P74: 0 | Q74: 0 | R74: 0 | S74: 0 | T74: 0 | U74: 0 | V74: 0 | W74: 0 | X74: 0 | Y74: 0 | Z74: 0 | AA74: 0 | AB74: 0 | AC74: 0 | AD74: 0 | AE74: 0 | AI74: 0
B75: 58 | J75: =IF(AND(H75>='A - Contractor Summary'!$C$37,I75<='A - Contractor Summary'!$C$43),"Yes","No") ->  | K75: =VLOOKUP($C75,'C.1 - Rate Sheets'!H:I,2,FALSE) ->  | L75: 0 | M75: 0 | N75: 0 | O75: 0 | P75: 0 | Q75: 0 | R75: 0 | S75: 0 | T75: 0 | U75: 0 | V75: 0 | W75: 0 | X75: 0 | Y75: 0 | Z75: 0 | AA75: 0 | AB75: 0 | AC75: 0 | AD75: 0 | AE75: 0 | AI75: 0
B76: 59 | J76: =IF(AND(H76>='A - Contractor Summary'!$C$37,I76<='A - Contractor Summary'!$C$43),"Yes","No") ->  | K76: =VLOOKUP($C76,'C.1 - Rate Sheets'!H:I,2,FALSE) ->  | L76: 0 | M76: 0 | N76: 0 | O76: 0 | P76: 0 | Q76: 0 | R76: 0 | S76: 0 | T76: 0 | U76: 0 | V76: 0 | W76: 0 | X76: 0 | Y76: 0 | Z76: 0 | AA76: 0 | AB76: 0 | AC76: 0 | AD76: 0 | AE76: 0 | AI76: 0
B77: 60 | J77: =IF(AND(H77>='A - Contractor Summary'!$C$37,I77<='A - Contractor Summary'!$C$43),"Yes","No") ->  | K77: =VLOOKUP($C77,'C.1 - Rate Sheets'!H:I,2,FALSE) ->  | L77: 0 | M77: 0 | N77: 0 | O77: 0 | P77: 0 | Q77: 0 | R77: 0 | S77: 0 | T77: 0 | U77: 0 | V77: 0 | W77: 0 | X77: 0 | Y77: 0 | Z77: 0 | AA77: 0 | AB77: 0 | AC77: 0 | AD77: 0 | AE77: 0 | AI77: 0
B78: 61 | J78: =IF(AND(H78>='A - Contractor Summary'!$C$37,I78<='A - Contractor Summary'!$C$43),"Yes","No") ->  | K78: =VLOOKUP($C78,'C.1 - Rate Sheets'!H:I,2,FALSE) ->  | L78: 0 | M78: 0 | N78: 0 | O78: 0 | P78: 0 | Q78: 0 | R78: 0 | S78: 0 | T78: 0 | U78: 0 | V78: 0 | W78: 0 | X78: 0 | Y78: 0 | Z78: 0 | AA78: 0 | AB78: 0 | AC78: 0 | AD78: 0 | AE78: 0 | AI78: 0
B79: 62 | J79: =IF(AND(H79>='A - Contractor Summary'!$C$37,I79<='A - Contractor Summary'!$C$43),"Yes","No") ->  | K79: =VLOOKUP($C79,'C.1 - Rate Sheets'!H:I,2,FALSE) ->  | L79: 0 | M79: 0 | N79: 0 | O79: 0 | P79: 0 | Q79: 0 | R79: 0 | S79: 0 | T79: 0 | U79: 0 | V79: 0 | W79: 0 | X79: 0 | Y79: 0 | Z79: 0 | AA79: 0 | AB79: 0 | AC79: 0 | AD79: 0 | AE79: 0 | AI79: 0
B80: 63 | J80: =IF(AND(H80>='A - Contractor Summary'!$C$37,I80<='A - Contractor Summary'!$C$43),"Yes","No") ->  | K80: =VLOOKUP($C80,'C.1 - Rate Sheets'!H:I,2,FALSE) ->  | L80: 0 | M80: 0 | N80: 0 | O80: 0 | P80: 0 | Q80: 0 | R80: 0 | S80: 0 | T80: 0 | U80: 0 | V80: 0 | W80: 0 | X80: 0 | Y80: 0 | Z80: 0 | AA80: 0 | AB80: 0 | AC80: 0 | AD80: 0 | AE80: 0 | AI80: 0
B81: 64 | J81: =IF(AND(H81>='A - Contractor Summary'!$C$37,I81<='A - Contractor Summary'!$C$43),"Yes","No") ->  | K81: =VLOOKUP($C81,'C.1 - Rate Sheets'!H:I,2,FALSE) ->  | L81: 0 | M81: 0 | N81: 0 | O81: 0 | P81: 0 | Q81: 0 | R81: 0 | S81: 0 | T81: 0 | U81: 0 | V81: 0 | W81: 0 | X81: 0 | Y81: 0 | Z81: 0 | AA81: 0 | AB81: 0 | AC81: 0 | AD81: 0 | AE81: 0 | AI81: 0
B82: 65 | J82: =IF(AND(H82>='A - Contractor Summary'!$C$37,I82<='A - Contractor Summary'!$C$43),"Yes","No") ->  | K82: =VLOOKUP($C82,'C.1 - Rate Sheets'!H:I,2,FALSE) ->  | L82: 0 | M82: 0 | N82: 0 | O82: 0 | P82: 0 | Q82: 0 | R82: 0 | S82: 0 | T82: 0 | U82: 0 | V82: 0 | W82: 0 | X82: 0 | Y82: 0 | Z82: 0 | AA82: 0 | AB82: 0 | AC82: 0 | AD82: 0 | AE82: 0 | AI82: 0
B83: 66 | J83: =IF(AND(H83>='A - Contractor Summary'!$C$37,I83<='A - Contractor Summary'!$C$43),"Yes","No") ->  | K83: =VLOOKUP($C83,'C.1 - Rate Sheets'!H:I,2,FALSE) ->  | L83: 0 | M83: 0 | N83: 0 | O83: 0 | P83: 0 | Q83: 0 | R83: 0 | S83: 0 | T83: 0 | U83: 0 | V83: 0 | W83: 0 | X83: 0 | Y83: 0 | Z83: 0 | AA83: 0 | AB83: 0 | AC83: 0 | AD83: 0 | AE83: 0 | AI83: 0
B84: 67 | J84: =IF(AND(H84>='A - Contractor Summary'!$C$37,I84<='A - Contractor Summary'!$C$43),"Yes","No") ->  | K84: =VLOOKUP($C84,'C.1 - Rate Sheets'!H:I,2,FALSE) ->  | L84: 0 | M84: 0 | N84: 0 | O84: 0 | P84: 0 | Q84: 0 | R84: 0 | S84: 0 | T84: 0 | U84: 0 | V84: 0 | W84: 0 | X84: 0 | Y84: 0 | Z84: 0 | AA84: 0 | AB84: 0 | AC84: 0 | AD84: 0 | AE84: 0 | AI84: 0
B85: 68 | J85: =IF(AND(H85>='A - Contractor Summary'!$C$37,I85<='A - Contractor Summary'!$C$43),"Yes","No") ->  | K85: =VLOOKUP($C85,'C.1 - Rate Sheets'!H:I,2,FALSE) ->  | L85: 0 | M85: 0 | N85: 0 | O85: 0 | P85: 0 | Q85: 0 | R85: 0 | S85: 0 | T85: 0 | U85: 0 | V85: 0 | W85: 0 | X85: 0 | Y85: 0 | Z85: 0 | AA85: 0 | AB85: 0 | AC85: 0 | AD85: 0 | AE85: 0 | AI85: 0
B86: 69 | J86: =IF(AND(H86>='A - Contractor Summary'!$C$37,I86<='A - Contractor Summary'!$C$43),"Yes","No") ->  | K86: =VLOOKUP($C86,'C.1 - Rate Sheets'!H:I,2,FALSE) ->  | L86: 0 | M86: 0 | N86: 0 | O86: 0 | P86: 0 | Q86: 0 | R86: 0 | S86: 0 | T86: 0 | U86: 0 | V86: 0 | W86: 0 | X86: 0 | Y86: 0 | Z86: 0 | AA86: 0 | AB86: 0 | AC86: 0 | AD86: 0 | AE86: 0 | AI86: 0
B87: 70 | J87: =IF(AND(H87>='A - Contractor Summary'!$C$37,I87<='A - Contractor Summary'!$C$43),"Yes","No") ->  | K87: =VLOOKUP($C87,'C.1 - Rate Sheets'!H:I,2,FALSE) ->  | L87: 0 | M87: 0 | N87: 0 | O87: 0 | P87: 0 | Q87: 0 | R87: 0 | S87: 0 | T87: 0 | U87: 0 | V87: 0 | W87: 0 | X87: 0 | Y87: 0 | Z87: 0 | AA87: 0 | AB87: 0 | AC87: 0 | AD87: 0 | AE87: 0 | AI87: 0
B88: 71 | J88: =IF(AND(H88>='A - Contractor Summary'!$C$37,I88<='A - Contractor Summary'!$C$43),"Yes","No") ->  | K88: =VLOOKUP($C88,'C.1 - Rate Sheets'!H:I,2,FALSE) ->  | L88: 0 | M88: 0 | N88: 0 | O88: 0 | P88: 0 | Q88: 0 | R88: 0 | S88: 0 | T88: 0 | U88: 0 | V88: 0 | W88: 0 | X88: 0 | Y88: 0 | Z88: 0 | AA88: 0 | AB88: 0 | AC88: 0 | AD88: 0 | AE88: 0 | AI88: 0
B89: 72 | J89: =IF(AND(H89>='A - Contractor Summary'!$C$37,I89<='A - Contractor Summary'!$C$43),"Yes","No") ->  | K89: =VLOOKUP($C89,'C.1 - Rate Sheets'!H:I,2,FALSE) ->  | L89: 0 | M89: 0 | N89: 0 | O89: 0 | P89: 0 | Q89: 0 | R89: 0 | S89: 0 | T89: 0 | U89: 0 | V89: 0 | W89: 0 | X89: 0 | Y89: 0 | Z89: 0 | AA89: 0 | AB89: 0 | AC89: 0 | AD89: 0 | AE89: 0 | AI89: 0
B90: 73 | J90: =IF(AND(H90>='A - Contractor Summary'!$C$37,I90<='A - Contractor Summary'!$C$43),"Yes","No") ->  | K90: =VLOOKUP($C90,'C.1 - Rate Sheets'!H:I,2,FALSE) ->  | L90: 0 | M90: 0 | N90: 0 | O90: 0 | P90: 0 | Q90: 0 | R90: 0 | S90: 0 | T90: 0 | U90: 0 | V90: 0 | W90: 0 | X90: 0 | Y90: 0 | Z90: 0 | AA90: 0 | AB90: 0 | AC90: 0 | AD90: 0 | AE90: 0 | AI90: 0
B91: 74 | J91: =IF(AND(H91>='A - Contractor Summary'!$C$37,I91<='A - Contractor Summary'!$C$43),"Yes","No") ->  | K91: =VLOOKUP($C91,'C.1 - Rate Sheets'!H:I,2,FALSE) ->  | L91: 0 | M91: 0 | N91: 0 | O91: 0 | P91: 0 | Q91: 0 | R91: 0 | S91: 0 | T91: 0 | U91: 0 | V91: 0 | W91: 0 | X91: 0 | Y91: 0 | Z91: 0 | AA91: 0 | AB91: 0 | AC91: 0 | AD91: 0 | AE91: 0 | AI91: 0
B92: 75 | J92: =IF(AND(H92>='A - Contractor Summary'!$C$37,I92<='A - Contractor Summary'!$C$43),"Yes","No") ->  | K92: =VLOOKUP($C92,'C.1 - Rate Sheets'!H:I,2,FALSE) ->  | L92: 0 | M92: 0 | N92: 0 | O92: 0 | P92: 0 | Q92: 0 | R92: 0 | S92: 0 | T92: 0 | U92: 0 | V92: 0 | W92: 0 | X92: 0 | Y92: 0 | Z92: 0 | AA92: 0 | AB92: 0 | AC92: 0 | AD92: 0 | AE92: 0 | AI92: 0
L93: =SUM(L18:L92) -> 0 | M93: 0 | N93: 0 | O93: 0 | P93: 0 | Q93: 0 | R93: 0 | S93: 0 | T93: 0 | U93: =SUM(U18:U92) -> 0 | V93: =SUM(V18:V92) -> 0 | W93: 0 | X93: 0 | Y93: 0 | Z93: 0 | AA93: 0 | AB93: 0 | AC93: 0 | AD93: 0 | AE93: =SUM(AE18:AE92) -> 0 | AF93: =IFERROR(SUM(AF18:AF92),0) -> 0 | AG93: =IFERROR(SUM(AG18:AG92),0) -> 0 | AI93: =SUM(AI18:AI92) -> 0 | AJ93: =SUM(AJ18:AJ92) -> 0 | AK93: =SUM(AK18:AK92) -> 0 | AL93: =AI93-AJ93-AK93 -> 0 | AM93: check (b)
B97: Tickmark Explanation:

Sheet D - Lodging (hidden)
B2: Lodging Charges
B4: Test Plan: (A) Obtain support of individual charges. (B) Enter Yes/No if receipt is itemized (C) Enter Yes/No if proof of payment has been provided. (D) Ensure charges fall between the dates the vendor was mobilized and the date they arrived. (E) Ensure charges are prior to the date the vendor arrived home or was released to another utility. (F) Ensure the location of stay was reasonable (G) Determine the amount(s) to be reviewed, allowed and/or disallowed. (H) For charges which required further review, document review (include why it was determined to be allowed/disallowed via a tickmark).
B8: Rx | C8: Recalculated.
B9: a | C9: Check figure should equal $0. Cell will appear yellow if discrepancies are noted.
C11: A | L11: Rx | M11: B | N11: C | O11: D | P11: E | Q11: F | R11: G | U11: H
B12: Support Reviewed | O12: Conclusion
B13: # | C13: Type of Support | D13: Support Identifier | E13: Company | F13: Check In Date | G13: Person | H13: Hotel Name | I13: Location | J13: # of Nights | K13: Total Invoice | L13: $ / Night | M13: Itemized Receipt | N13: Proof of Payment | O13: Reasonable based on Mobilization date(s) | P13: Reasonable based on Demobilization date(s) | Q13: Location Reasonable | R13: Conclusion | S13: $ Allowable Charge | T13: $ To Be Reviewed | U13: Reviewed - Allowable $ | V13: Reviewed - Unallowable $ | W13: Tickmark
B14: 1 | L14: =K14/J14 ->  | O14: =IF(AND(F14>='A - Contractor Summary'!$C$37,F14<='A - Contractor Summary'!$C$39),"Yes",IF(F14<'A - Contractor Summary'!$C$37,"No",IF(F14>'A - Contractor Summary'!$C$40,"",""))) -> No | P14: =IF(OR(O14="Yes",O14="No")*AND(F14<'A - Contractor Summary'!$C$40),"",IF(AND(F14>'A - Contractor Summary'!$C$40,F14<'A - Contractor Summary'!$C$43),"Yes",IF(F14>'A - Contractor Summary'!$C$43,"No","Needs Review"))) ->  | R14: =IF(AND(Q14="YES",N14="Yes",M14="Yes")*OR(O14="Yes",P14="Yes"),"Yes",IF(OR(M14="No",N14="No",O14="No",P14="No",Q14="No"),"No","Needs Review")) -> No | S14: =IF(R14="Yes",K14,0) -> 0 | T14: =IF(R14="Needs Review",K14,0) -> 0
B15: 2 | L15: =K15/J15 ->  | O15: =IF(AND(F15>='A - Contractor Summary'!$C$37,F15<='A - Contractor Summary'!$C$39),"Yes",IF(F15<'A - Contractor Summary'!$C$37,"No",IF(F15>'A - Contractor Summary'!$C$40,"",""))) -> No | P15: =IF(OR(O15="Yes",O15="No")*AND(F15<'A - Contractor Summary'!$C$40),"",IF(AND(F15>'A - Contractor Summary'!$C$40,F15<'A - Contractor Summary'!$C$43),"Yes",IF(F15>'A - Contractor Summary'!$C$43,"No","Needs Review"))) ->  | R15: No | S15: =IF(R15="Yes",K15,0) -> 0 | T15: =IF(R15="Needs Review",K15,0) -> 0
B16: 3 | O16: =IF(AND(F16>='A - Contractor Summary'!$C$37,F16<='A - Contractor Summary'!$C$39),"Yes",IF(F16<'A - Contractor Summary'!$C$37,"No",IF(F16>'A - Contractor Summary'!$C$40,"",""))) -> No | P16: =IF(OR(O16="Yes",O16="No")*AND(F16<'A - Contractor Summary'!$C$40),"",IF(AND(F16>'A - Contractor Summary'!$C$40,F16<'A - Contractor Summary'!$C$43),"Yes",IF(F16>'A - Contractor Summary'!$C$43,"No","Needs Review"))) ->  | R16: No | S16: 0 | T16: 0
B17: 4 | O17: =IF(AND(F17>='A - Contractor Summary'!$C$37,F17<='A - Contractor Summary'!$C$39),"Yes",IF(F17<'A - Contractor Summary'!$C$37,"No",IF(F17>'A - Contractor Summary'!$C$40,"",""))) -> No | P17: =IF(OR(O17="Yes",O17="No")*AND(F17<'A - Contractor Summary'!$C$40),"",IF(AND(F17>'A - Contractor Summary'!$C$40,F17<'A - Contractor Summary'!$C$43),"Yes",IF(F17>'A - Contractor Summary'!$C$43,"No","Needs Review"))) ->  | R17: No | S17: 0 | T17: 0
B18: 5 | O18: =IF(AND(F18>='A - Contractor Summary'!$C$37,F18<='A - Contractor Summary'!$C$39),"Yes",IF(F18<'A - Contractor Summary'!$C$37,"No",IF(F18>'A - Contractor Summary'!$C$40,"",""))) -> No | P18: =IF(OR(O18="Yes",O18="No")*AND(F18<'A - Contractor Summary'!$C$40),"",IF(AND(F18>'A - Contractor Summary'!$C$40,F18<'A - Contractor Summary'!$C$43),"Yes",IF(F18>'A - Contractor Summary'!$C$43,"No","Needs Review"))) ->  | R18: No | S18: 0 | T18: 0
B19: 6 | O19: =IF(AND(F19>='A - Contractor Summary'!$C$37,F19<='A - Contractor Summary'!$C$39),"Yes",IF(F19<'A - Contractor Summary'!$C$37,"No",IF(F19>'A - Contractor Summary'!$C$40,"",""))) -> No | P19: =IF(OR(O19="Yes",O19="No")*AND(F19<'A - Contractor Summary'!$C$40),"",IF(AND(F19>'A - Contractor Summary'!$C$40,F19<'A - Contractor Summary'!$C$43),"Yes",IF(F19>'A - Contractor Summary'!$C$43,"No","Needs Review"))) ->  | R19: No | S19: 0 | T19: 0
B20: 7 | O20: =IF(AND(F20>='A - Contractor Summary'!$C$37,F20<='A - Contractor Summary'!$C$39),"Yes",IF(F20<'A - Contractor Summary'!$C$37,"No",IF(F20>'A - Contractor Summary'!$C$40,"",""))) -> No | P20: =IF(OR(O20="Yes",O20="No")*AND(F20<'A - Contractor Summary'!$C$40),"",IF(AND(F20>'A - Contractor Summary'!$C$40,F20<'A - Contractor Summary'!$C$43),"Yes",IF(F20>'A - Contractor Summary'!$C$43,"No","Needs Review"))) ->  | R20: No | S20: 0 | T20: 0
B21: 8 | O21: =IF(AND(F21>='A - Contractor Summary'!$C$37,F21<='A - Contractor Summary'!$C$39),"Yes",IF(F21<'A - Contractor Summary'!$C$37,"No",IF(F21>'A - Contractor Summary'!$C$40,"",""))) -> No | P21: =IF(OR(O21="Yes",O21="No")*AND(F21<'A - Contractor Summary'!$C$40),"",IF(AND(F21>'A - Contractor Summary'!$C$40,F21<'A - Contractor Summary'!$C$43),"Yes",IF(F21>'A - Contractor Summary'!$C$43,"No","Needs Review"))) ->  | R21: No | S21: 0 | T21: 0
B22: 9 | O22: =IF(AND(F22>='A - Contractor Summary'!$C$37,F22<='A - Contractor Summary'!$C$39),"Yes",IF(F22<'A - Contractor Summary'!$C$37,"No",IF(F22>'A - Contractor Summary'!$C$40,"",""))) -> No | P22: =IF(OR(O22="Yes",O22="No")*AND(F22<'A - Contractor Summary'!$C$40),"",IF(AND(F22>'A - Contractor Summary'!$C$40,F22<'A - Contractor Summary'!$C$43),"Yes",IF(F22>'A - Contractor Summary'!$C$43,"No","Needs Review"))) ->  | R22: No | S22: 0 | T22: 0
B23: 10 | O23: =IF(AND(F23>='A - Contractor Summary'!$C$37,F23<='A - Contractor Summary'!$C$39),"Yes",IF(F23<'A - Contractor Summary'!$C$37,"No",IF(F23>'A - Contractor Summary'!$C$40,"",""))) -> No | P23: =IF(OR(O23="Yes",O23="No")*AND(F23<'A - Contractor Summary'!$C$40),"",IF(AND(F23>'A - Contractor Summary'!$C$40,F23<'A - Contractor Summary'!$C$43),"Yes",IF(F23>'A - Contractor Summary'!$C$43,"No","Needs Review"))) ->  | R23: No | S23: 0 | T23: 0
B24: 11 | O24: =IF(AND(F24>='A - Contractor Summary'!$C$37,F24<='A - Contractor Summary'!$C$39),"Yes",IF(F24<'A - Contractor Summary'!$C$37,"No",IF(F24>'A - Contractor Summary'!$C$40,"",""))) -> No | P24: =IF(OR(O24="Yes",O24="No")*AND(F24<'A - Contractor Summary'!$C$40),"",IF(AND(F24>'A - Contractor Summary'!$C$40,F24<'A - Contractor Summary'!$C$43),"Yes",IF(F24>'A - Contractor Summary'!$C$43,"No","Needs Review"))) ->  | R24: No | S24: 0 | T24: 0
B25: 12 | O25: =IF(AND(F25>='A - Contractor Summary'!$C$37,F25<='A - Contractor Summary'!$C$39),"Yes",IF(F25<'A - Contractor Summary'!$C$37,"No",IF(F25>'A - Contractor Summary'!$C$40,"",""))) -> No | P25: =IF(OR(O25="Yes",O25="No")*AND(F25<'A - Contractor Summary'!$C$40),"",IF(AND(F25>'A - Contractor Summary'!$C$40,F25<'A - Contractor Summary'!$C$43),"Yes",IF(F25>'A - Contractor Summary'!$C$43,"No","Needs Review"))) ->  | R25: No | S25: 0 | T25: 0
B26: 13 | O26: =IF(AND(F26>='A - Contractor Summary'!$C$37,F26<='A - Contractor Summary'!$C$39),"Yes",IF(F26<'A - Contractor Summary'!$C$37,"No",IF(F26>'A - Contractor Summary'!$C$40,"",""))) -> No | P26: =IF(OR(O26="Yes",O26="No")*AND(F26<'A - Contractor Summary'!$C$40),"",IF(AND(F26>'A - Contractor Summary'!$C$40,F26<'A - Contractor Summary'!$C$43),"Yes",IF(F26>'A - Contractor Summary'!$C$43,"No","Needs Review"))) ->  | R26: No | S26: 0 | T26: 0
B27: 14 | O27: =IF(AND(F27>='A - Contractor Summary'!$C$37,F27<='A - Contractor Summary'!$C$39),"Yes",IF(F27<'A - Contractor Summary'!$C$37,"No",IF(F27>'A - Contractor Summary'!$C$40,"",""))) -> No | P27: =IF(OR(O27="Yes",O27="No")*AND(F27<'A - Contractor Summary'!$C$40),"",IF(AND(F27>'A - Contractor Summary'!$C$40,F27<'A - Contractor Summary'!$C$43),"Yes",IF(F27>'A - Contractor Summary'!$C$43,"No","Needs Review"))) ->  | R27: No | S27: 0 | T27: 0
B28: 15 | O28: =IF(AND(F28>='A - Contractor Summary'!$C$37,F28<='A - Contractor Summary'!$C$39),"Yes",IF(F28<'A - Contractor Summary'!$C$37,"No",IF(F28>'A - Contractor Summary'!$C$40,"",""))) -> No | P28: =IF(OR(O28="Yes",O28="No")*AND(F28<'A - Contractor Summary'!$C$40),"",IF(AND(F28>'A - Contractor Summary'!$C$40,F28<'A - Contractor Summary'!$C$43),"Yes",IF(F28>'A - Contractor Summary'!$C$43,"No","Needs Review"))) ->  | R28: No | S28: 0 | T28: 0
B29: 16 | O29: =IF(AND(F29>='A - Contractor Summary'!$C$37,F29<='A - Contractor Summary'!$C$39),"Yes",IF(F29<'A - Contractor Summary'!$C$37,"No",IF(F29>'A - Contractor Summary'!$C$40,"",""))) -> No | P29: =IF(OR(O29="Yes",O29="No")*AND(F29<'A - Contractor Summary'!$C$40),"",IF(AND(F29>'A - Contractor Summary'!$C$40,F29<'A - Contractor Summary'!$C$43),"Yes",IF(F29>'A - Contractor Summary'!$C$43,"No","Needs Review"))) ->  | R29: No | S29: 0 | T29: 0
B30: 17 | O30: =IF(AND(F30>='A - Contractor Summary'!$C$37,F30<='A - Contractor Summary'!$C$39),"Yes",IF(F30<'A - Contractor Summary'!$C$37,"No",IF(F30>'A - Contractor Summary'!$C$40,"",""))) -> No | P30: =IF(OR(O30="Yes",O30="No")*AND(F30<'A - Contractor Summary'!$C$40),"",IF(AND(F30>'A - Contractor Summary'!$C$40,F30<'A - Contractor Summary'!$C$43),"Yes",IF(F30>'A - Contractor Summary'!$C$43,"No","Needs Review"))) ->  | R30: No | S30: 0 | T30: 0
B31: 18 | O31: =IF(AND(F31>='A - Contractor Summary'!$C$37,F31<='A - Contractor Summary'!$C$39),"Yes",IF(F31<'A - Contractor Summary'!$C$37,"No",IF(F31>'A - Contractor Summary'!$C$40,"",""))) -> No | P31: =IF(OR(O31="Yes",O31="No")*AND(F31<'A - Contractor Summary'!$C$40),"",IF(AND(F31>'A - Contractor Summary'!$C$40,F31<'A - Contractor Summary'!$C$43),"Yes",IF(F31>'A - Contractor Summary'!$C$43,"No","Needs Review"))) ->  | R31: No | S31: 0 | T31: 0
B32: 19 | O32: =IF(AND(F32>='A - Contractor Summary'!$C$37,F32<='A - Contractor Summary'!$C$39),"Yes",IF(F32<'A - Contractor Summary'!$C$37,"No",IF(F32>'A - Contractor Summary'!$C$40,"",""))) -> No | P32: =IF(OR(O32="Yes",O32="No")*AND(F32<'A - Contractor Summary'!$C$40),"",IF(AND(F32>'A - Contractor Summary'!$C$40,F32<'A - Contractor Summary'!$C$43),"Yes",IF(F32>'A - Contractor Summary'!$C$43,"No","Needs Review"))) ->  | R32: No | S32: 0 | T32: 0
B33: 20 | O33: =IF(AND(F33>='A - Contractor Summary'!$C$37,F33<='A - Contractor Summary'!$C$39),"Yes",IF(F33<'A - Contractor Summary'!$C$37,"No",IF(F33>'A - Contractor Summary'!$C$40,"",""))) -> No | P33: =IF(OR(O33="Yes",O33="No")*AND(F33<'A - Contractor Summary'!$C$40),"",IF(AND(F33>'A - Contractor Summary'!$C$40,F33<'A - Contractor Summary'!$C$43),"Yes",IF(F33>'A - Contractor Summary'!$C$43,"No","Needs Review"))) ->  | R33: No | S33: 0 | T33: 0
K34: =SUM(K14:K33) -> 0 | S34: =IFERROR(SUM(S14:S33),0) -> 0 | T34: =IFERROR(SUM(T14:T33),0) -> 0 | U34: =SUM(U13:U33) -> 0 | V34: =SUM(V13:V33) -> 0 | W34: =T34-U34-V34 -> 0 | X34: check (a)
B37: Tickmark Explanation:
B40: Note: | C40: No lodging charges

Sheet E - Fuel (hidden)
B2: Fuel Charges
B4: Test Plan: (A) Obtain support of individual charges. (B) Enter Yes/No if receipt is itemized (C) Enter Yes/No if proof of payment has been provided. (D) Ensure charges fall between the dates the vendor was mobilized and the date they arrived. (E) Ensure charges are prior to the date the vendor arrived home or was released to another utility. (F) Ensure the location of charge was reasonable (G) Determine the amount(s) to be reviewed, allowed and/or disallowed. (H) For charges which required further review, document review (include why it was determined to be allowed/disallowed via a tickmark).
B9: a | C9: Check figure should equal $0. Cell will appear yellow if discrepancies are noted.
C11: A | K11: B | L11: C | M11: D | N11: E | O11: F | P11: G | S11: H
B12: Support Reviewed | M12: Conclusions
B13: # | C13: Type of Support | D13: Support Identifier | E13: Company | F13: Date | G13: Person | H13: Name | I13: Location | J13: Total Charge | K13: Itemized Receipt | L13: Proof of Payment | M13: Reasonable based on Mobilization date(s) | N13: Reasonable based on Demobilization date(s) | O13: Locations Reasonable | P13: Conclusion | Q13: $ Allowable Charge | R13: $ To Be Reviewed | S13: Reviewed - Allowable Charge | T13: Reviewed - Unallowable Charge | U13: Tickmarks
B14: 1 | M14: =IF(AND(F14>='A - Contractor Summary'!$C$37,F14<='A - Contractor Summary'!$C$39),"Yes",IF(F14<'A - Contractor Summary'!$C$37,"No",IF(F14>'A - Contractor Summary'!$C$40,"",""))) -> No | N14: =IF(OR(M14="Yes",M14="No")*AND(F14<'A - Contractor Summary'!$C$40),"",IF(AND(F14>'A - Contractor Summary'!$C$40,F14<'A - Contractor Summary'!$C$43),"Yes",IF(F14>'A - Contractor Summary'!$C$43,"No","Needs Review"))) ->  | P14: =IF(AND(O14="Yes",K14="Yes",L14="Yes")*OR(N14="Yes",M14="Yes"),"Yes",IF(OR(K14="No",M14="No",N14="No",O14="No",L14="No"),"No","Needs Review")) -> No | Q14: =IF(P14="Yes",J14,0) -> 0 | R14: =IF(P14="Needs Review",J14,0) -> 0
B15: 2 | M15: =IF(AND(F15>='A - Contractor Summary'!$C$37,F15<='A - Contractor Summary'!$C$39),"Yes",IF(F15<'A - Contractor Summary'!$C$37,"No",IF(F15>'A - Contractor Summary'!$C$40,"",""))) -> No | N15: =IF(OR(M15="Yes",M15="No")*AND(F15<'A - Contractor Summary'!$C$40),"",IF(AND(F15>'A - Contractor Summary'!$C$40,F15<'A - Contractor Summary'!$C$43),"Yes",IF(F15>'A - Contractor Summary'!$C$43,"No","Needs Review"))) ->  | P15: =IF(AND(O15="Yes",K15="Yes",L15="Yes")*OR(N15="Yes",M15="Yes"),"Yes",IF(OR(K15="No",M15="No",N15="No",O15="No",L15="No"),"No","Needs Review")) -> No | Q15: 0 | R15: 0
B16: 3 | M16: =IF(AND(F16>='A - Contractor Summary'!$C$37,F16<='A - Contractor Summary'!$C$39),"Yes",IF(F16<'A - Contractor Summary'!$C$37,"No",IF(F16>'A - Contractor Summary'!$C$40,"",""))) -> No | N16: =IF(OR(M16="Yes",M16="No")*AND(F16<'A - Contractor Summary'!$C$40),"",IF(AND(F16>'A - Contractor Summary'!$C$40,F16<'A - Contractor Summary'!$C$43),"Yes",IF(F16>'A - Contractor Summary'!$C$43,"No","Needs Review"))) ->  | P16: No | Q16: 0 | R16: 0
B17: 4 | M17: =IF(AND(F17>='A - Contractor Summary'!$C$37,F17<='A - Contractor Summary'!$C$39),"Yes",IF(F17<'A - Contractor Summary'!$C$37,"No",IF(F17>'A - Contractor Summary'!$C$40,"",""))) -> No | N17: =IF(OR(M17="Yes",M17="No")*AND(F17<'A - Contractor Summary'!$C$40),"",IF(AND(F17>'A - Contractor Summary'!$C$40,F17<'A - Contractor Summary'!$C$43),"Yes",IF(F17>'A - Contractor Summary'!$C$43,"No","Needs Review"))) ->  | P17: No | Q17: 0 | R17: 0
B18: 5 | M18: =IF(AND(F18>='A - Contractor Summary'!$C$37,F18<='A - Contractor Summary'!$C$39),"Yes",IF(F18<'A - Contractor Summary'!$C$37,"No",IF(F18>'A - Contractor Summary'!$C$40,"",""))) -> No | N18: =IF(OR(M18="Yes",M18="No")*AND(F18<'A - Contractor Summary'!$C$40),"",IF(AND(F18>'A - Contractor Summary'!$C$40,F18<'A - Contractor Summary'!$C$43),"Yes",IF(F18>'A - Contractor Summary'!$C$43,"No","Needs Review"))) ->  | P18: No | Q18: 0 | R18: 0
B19: 6 | M19: =IF(AND(F19>='A - Contractor Summary'!$C$37,F19<='A - Contractor Summary'!$C$39),"Yes",IF(F19<'A - Contractor Summary'!$C$37,"No",IF(F19>'A - Contractor Summary'!$C$40,"",""))) -> No | N19: =IF(OR(M19="Yes",M19="No")*AND(F19<'A - Contractor Summary'!$C$40),"",IF(AND(F19>'A - Contractor Summary'!$C$40,F19<'A - Contractor Summary'!$C$43),"Yes",IF(F19>'A - Contractor Summary'!$C$43,"No","Needs Review"))) ->  | P19: No | Q19: 0 | R19: 0
B20: 7 | M20: =IF(AND(F20>='A - Contractor Summary'!$C$37,F20<='A - Contractor Summary'!$C$39),"Yes",IF(F20<'A - Contractor Summary'!$C$37,"No",IF(F20>'A - Contractor Summary'!$C$40,"",""))) -> No | N20: =IF(OR(M20="Yes",M20="No")*AND(F20<'A - Contractor Summary'!$C$40),"",IF(AND(F20>'A - Contractor Summary'!$C$40,F20<'A - Contractor Summary'!$C$43),"Yes",IF(F20>'A - Contractor Summary'!$C$43,"No","Needs Review"))) ->  | P20: No | Q20: 0 | R20: 0
B21: 8 | M21: =IF(AND(F21>='A - Contractor Summary'!$C$37,F21<='A - Contractor Summary'!$C$39),"Yes",IF(F21<'A - Contractor Summary'!$C$37,"No",IF(F21>'A - Contractor Summary'!$C$40,"",""))) -> No | N21: =IF(OR(M21="Yes",M21="No")*AND(F21<'A - Contractor Summary'!$C$40),"",IF(AND(F21>'A - Contractor Summary'!$C$40,F21<'A - Contractor Summary'!$C$43),"Yes",IF(F21>'A - Contractor Summary'!$C$43,"No","Needs Review"))) ->  | P21: No | Q21: 0 | R21: 0
B22: 9 | M22: =IF(AND(F22>='A - Contractor Summary'!$C$37,F22<='A - Contractor Summary'!$C$39),"Yes",IF(F22<'A - Contractor Summary'!$C$37,"No",IF(F22>'A - Contractor Summary'!$C$40,"",""))) -> No | N22: =IF(OR(M22="Yes",M22="No")*AND(F22<'A - Contractor Summary'!$C$40),"",IF(AND(F22>'A - Contractor Summary'!$C$40,F22<'A - Contractor Summary'!$C$43),"Yes",IF(F22>'A - Contractor Summary'!$C$43,"No","Needs Review"))) ->  | P22: No | Q22: 0 | R22: 0
B23: 10 | M23: =IF(AND(F23>='A - Contractor Summary'!$C$37,F23<='A - Contractor Summary'!$C$39),"Yes",IF(F23<'A - Contractor Summary'!$C$37,"No",IF(F23>'A - Contractor Summary'!$C$40,"",""))) -> No | N23: =IF(OR(M23="Yes",M23="No")*AND(F23<'A - Contractor Summary'!$C$40),"",IF(AND(F23>'A - Contractor Summary'!$C$40,F23<'A - Contractor Summary'!$C$43),"Yes",IF(F23>'A - Contractor Summary'!$C$43,"No","Needs Review"))) ->  | P23: No | Q23: 0 | R23: 0
B24: 11 | M24: =IF(AND(F24>='A - Contractor Summary'!$C$37,F24<='A - Contractor Summary'!$C$39),"Yes",IF(F24<'A - Contractor Summary'!$C$37,"No",IF(F24>'A - Contractor Summary'!$C$40,"",""))) -> No | N24: =IF(OR(M24="Yes",M24="No")*AND(F24<'A - Contractor Summary'!$C$40),"",IF(AND(F24>'A - Contractor Summary'!$C$40,F24<'A - Contractor Summary'!$C$43),"Yes",IF(F24>'A - Contractor Summary'!$C$43,"No","Needs Review"))) ->  | P24: No | Q24: 0 | R24: 0
B25: 12 | M25: =IF(AND(F25>='A - Contractor Summary'!$C$37,F25<='A - Contractor Summary'!$C$39),"Yes",IF(F25<'A - Contractor Summary'!$C$37,"No",IF(F25>'A - Contractor Summary'!$C$40,"",""))) -> No | N25: =IF(OR(M25="Yes",M25="No")*AND(F25<'A - Contractor Summary'!$C$40),"",IF(AND(F25>'A - Contractor Summary'!$C$40,F25<'A - Contractor Summary'!$C$43),"Yes",IF(F25>'A - Contractor Summary'!$C$43,"No","Needs Review"))) ->  | P25: No | Q25: 0 | R25: 0
B26: 13 | M26: =IF(AND(F26>='A - Contractor Summary'!$C$37,F26<='A - Contractor Summary'!$C$39),"Yes",IF(F26<'A - Contractor Summary'!$C$37,"No",IF(F26>'A - Contractor Summary'!$C$40,"",""))) -> No | N26: =IF(OR(M26="Yes",M26="No")*AND(F26<'A - Contractor Summary'!$C$40),"",IF(AND(F26>'A - Contractor Summary'!$C$40,F26<'A - Contractor Summary'!$C$43),"Yes",IF(F26>'A - Contractor Summary'!$C$43,"No","Needs Review"))) ->  | P26: No | Q26: 0 | R26: 0
B27: 14 | M27: =IF(AND(F27>='A - Contractor Summary'!$C$37,F27<='A - Contractor Summary'!$C$39),"Yes",IF(F27<'A - Contractor Summary'!$C$37,"No",IF(F27>'A - Contractor Summary'!$C$40,"",""))) -> No | N27: =IF(OR(M27="Yes",M27="No")*AND(F27<'A - Contractor Summary'!$C$40),"",IF(AND(F27>'A - Contractor Summary'!$C$40,F27<'A - Contractor Summary'!$C$43),"Yes",IF(F27>'A - Contractor Summary'!$C$43,"No","Needs Review"))) ->  | P27: No | Q27: 0 | R27: 0
B28: 15 | M28: =IF(AND(F28>='A - Contractor Summary'!$C$37,F28<='A - Contractor Summary'!$C$39),"Yes",IF(F28<'A - Contractor Summary'!$C$37,"No",IF(F28>'A - Contractor Summary'!$C$40,"",""))) -> No | N28: =IF(OR(M28="Yes",M28="No")*AND(F28<'A - Contractor Summary'!$C$40),"",IF(AND(F28>'A - Contractor Summary'!$C$40,F28<'A - Contractor Summary'!$C$43),"Yes",IF(F28>'A - Contractor Summary'!$C$43,"No","Needs Review"))) ->  | P28: No | Q28: 0 | R28: 0
B29: 16 | M29: =IF(AND(F29>='A - Contractor Summary'!$C$37,F29<='A - Contractor Summary'!$C$39),"Yes",IF(F29<'A - Contractor Summary'!$C$37,"No",IF(F29>'A - Contractor Summary'!$C$40,"",""))) -> No | N29: =IF(OR(M29="Yes",M29="No")*AND(F29<'A - Contractor Summary'!$C$40),"",IF(AND(F29>'A - Contractor Summary'!$C$40,F29<'A - Contractor Summary'!$C$43),"Yes",IF(F29>'A - Contractor Summary'!$C$43,"No","Needs Review"))) ->  | P29: No | Q29: 0 | R29: 0
B30: 17 | M30: =IF(AND(F30>='A - Contractor Summary'!$C$37,F30<='A - Contractor Summary'!$C$39),"Yes",IF(F30<'A - Contractor Summary'!$C$37,"No",IF(F30>'A - Contractor Summary'!$C$40,"",""))) -> No | N30: =IF(OR(M30="Yes",M30="No")*AND(F30<'A - Contractor Summary'!$C$40),"",IF(AND(F30>'A - Contractor Summary'!$C$40,F30<'A - Contractor Summary'!$C$43),"Yes",IF(F30>'A - Contractor Summary'!$C$43,"No","Needs Review"))) ->  | P30: No | Q30: 0 | R30: 0
B31: 18 | M31: =IF(AND(F31>='A - Contractor Summary'!$C$37,F31<='A - Contractor Summary'!$C$39),"Yes",IF(F31<'A - Contractor Summary'!$C$37,"No",IF(F31>'A - Contractor Summary'!$C$40,"",""))) -> No | N31: =IF(OR(M31="Yes",M31="No")*AND(F31<'A - Contractor Summary'!$C$40),"",IF(AND(F31>'A - Contractor Summary'!$C$40,F31<'A - Contractor Summary'!$C$43),"Yes",IF(F31>'A - Contractor Summary'!$C$43,"No","Needs Review"))) ->  | P31: No | Q31: =IF(P31="Yes",#REF!,0) -> 0 | R31: =IF(P31="ED Review",#REF!,0) -> 0
B32: 19 | M32: =IF(AND(F32>='A - Contractor Summary'!$C$37,F32<='A - Contractor Summary'!$C$39),"Yes",IF(F32<'A - Contractor Summary'!$C$37,"No",IF(F32>'A - Contractor Summary'!$C$40,"",""))) -> No | N32: =IF(OR(M32="Yes",M32="No")*AND(F32<'A - Contractor Summary'!$C$40),"",IF(AND(F32>'A - Contractor Summary'!$C$40,F32<'A - Contractor Summary'!$C$43),"Yes",IF(F32>'A - Contractor Summary'!$C$43,"No","Needs Review"))) ->  | P32: No | Q32: =IF(P32="Yes",#REF!,0) -> 0 | R32: =IF(P32="ED Review",#REF!,0) -> 0
B33: 20 | M33: =IF(AND(F33>='A - Contractor Summary'!$C$37,F33<='A - Contractor Summary'!$C$39),"Yes",IF(F33<'A - Contractor Summary'!$C$37,"No",IF(F33>'A - Contractor Summary'!$C$40,"",""))) -> No | N33: =IF(OR(M33="Yes",M33="No")*AND(F33<'A - Contractor Summary'!$C$40),"",IF(AND(F33>'A - Contractor Summary'!$C$40,F33<'A - Contractor Summary'!$C$43),"Yes",IF(F33>'A - Contractor Summary'!$C$43,"No","Needs Review"))) ->  | P33: No | Q33: =IF(P33="Yes",#REF!,0) -> 0 | R33: =IF(P33="ED Review",#REF!,0) -> 0
J34: =SUM(J14:J33) -> 0 | Q34: =IFERROR(SUM(Q14:Q33),0) -> 0 | R34: =IFERROR(SUM(R14:R33),0) -> 0 | S34: =SUM(S14:S33) -> 0 | T34: =SUM(T14:T33) -> 0 | U34: =R34-S34-T34 -> 0 | V34: check (a)
B40: Tickmark Explanation:
C42: Note: | D42: No Fuel charges

Sheet F - Meals (hidden)
B2: Meal Charges
B4: Test Plan: (A) Obtain support of individual charges. (B) Enter Yes/No if receipt is itemized. (C) Enter Yes/No if proof of payment has been provided. (D) Ensure charges fall between the dates the vendor was mobilized and the date they arrived. (E) Ensure charges are prior to the date the vendor arrived home or was released to another utility. (F) Ensure the location of charge was reasonable (G) Determine the amount(s) to be reviewed, allowed and/or disallowed. (H) For charges which required further review, document review and include why it was determined to be allowed/disallowed via a tickmark.
B9: a | C9: Check figure should equal $0. Cell will appear yellow if discrepancies are noted.
C11: A | K11: B | L11: C | M11: D | N11: E | O11: F | P11: G | S11: H
B12: Support Reviewed | M12: Conclusions
B13: # | C13: Type of Support | D13: Support Identifier | E13: Company | F13: Date | G13: Person | H13: Restaurant Name | I13: Location | J13: $ Total | K13: Itemized Receipt | L13: Proof of Payment | M13: Reasonable based on Mobilization date(s) | N13: Reasonable based on Demobilization date(s) | O13: Locations Reasonable | P13: Conclusion | Q13: $ Allowable Charge | R13: $ To Be Reviewed | S13: Reviewed - Allowable Charge | T13: Reviewed - Unallowable Charge | U13: Tickmarks
B14: 1 | M14: =IF(AND(F14>='A - Contractor Summary'!$C$37,F14<='A - Contractor Summary'!$C$39),"Yes",IF(F14<'A - Contractor Summary'!$C$37,"No",IF(F14>'A - Contractor Summary'!$C$40,"",""))) -> No | N14: =IF(OR(M14="Yes",M14="No")*AND(F14<'A - Contractor Summary'!$C$40),"",IF(AND(F14>'A - Contractor Summary'!$C$40,F14<'A - Contractor Summary'!$C$43),"Yes",IF(F14>'A - Contractor Summary'!$C$43,"No","Needs Review"))) ->  | P14: =IF(AND(O14="Yes",K14="Yes",L14="Yes")*OR(N14="Yes",M14="Yes"),"Yes",IF(OR(K14="No",M14="No",N14="No",O14="No",L14="No"),"No","Needs Review")) -> No | Q14: =IF(P14="Yes",J14,0) -> 0 | R14: =IF(P14="Needs Review",J14,0) -> 0
B15: 2 | M15: =IF(AND(F15>='A - Contractor Summary'!$C$37,F15<='A - Contractor Summary'!$C$39),"Yes",IF(F15<'A - Contractor Summary'!$C$37,"No",IF(F15>'A - Contractor Summary'!$C$40,"",""))) -> No | N15: =IF(OR(M15="Yes",M15="No")*AND(F15<'A - Contractor Summary'!$C$40),"",IF(AND(F15>'A - Contractor Summary'!$C$40,F15<'A - Contractor Summary'!$C$43),"Yes",IF(F15>'A - Contractor Summary'!$C$43,"No","Needs Review"))) ->  | P15: =IF(AND(O15="Yes",K15="Yes",L15="Yes")*OR(N15="Yes",M15="Yes"),"Yes",IF(OR(K15="No",M15="No",N15="No",O15="No",L15="No"),"No","Needs Review")) -> No | Q15: =IF(P15="Yes",J15,0) -> 0 | R15: 0
B16: 3 | M16: =IF(AND(F16>='A - Contractor Summary'!$C$37,F16<='A - Contractor Summary'!$C$39),"Yes",IF(F16<'A - Contractor Summary'!$C$37,"No",IF(F16>'A - Contractor Summary'!$C$40,"",""))) -> No | N16: =IF(OR(M16="Yes",M16="No")*AND(F16<'A - Contractor Summary'!$C$40),"",IF(AND(F16>'A - Contractor Summary'!$C$40,F16<'A - Contractor Summary'!$C$43),"Yes",IF(F16>'A - Contractor Summary'!$C$43,"No","Needs Review"))) ->  | P16: No | Q16: 0 | R16: 0
B17: 4 | M17: =IF(AND(F17>='A - Contractor Summary'!$C$37,F17<='A - Contractor Summary'!$C$39),"Yes",IF(F17<'A - Contractor Summary'!$C$37,"No",IF(F17>'A - Contractor Summary'!$C$40,"",""))) -> No | N17: =IF(OR(M17="Yes",M17="No")*AND(F17<'A - Contractor Summary'!$C$40),"",IF(AND(F17>'A - Contractor Summary'!$C$40,F17<'A - Contractor Summary'!$C$43),"Yes",IF(F17>'A - Contractor Summary'!$C$43,"No","Needs Review"))) ->  | P17: No | Q17: 0 | R17: 0
B18: 5 | M18: =IF(AND(F18>='A - Contractor Summary'!$C$37,F18<='A - Contractor Summary'!$C$39),"Yes",IF(F18<'A - Contractor Summary'!$C$37,"No",IF(F18>'A - Contractor Summary'!$C$40,"",""))) -> No | N18: =IF(OR(M18="Yes",M18="No")*AND(F18<'A - Contractor Summary'!$C$40),"",IF(AND(F18>'A - Contractor Summary'!$C$40,F18<'A - Contractor Summary'!$C$43),"Yes",IF(F18>'A - Contractor Summary'!$C$43,"No","Needs Review"))) ->  | P18: No | Q18: 0 | R18: 0
B19: 6 | M19: =IF(AND(F19>='A - Contractor Summary'!$C$37,F19<='A - Contractor Summary'!$C$39),"Yes",IF(F19<'A - Contractor Summary'!$C$37,"No",IF(F19>'A - Contractor Summary'!$C$40,"",""))) -> No | N19: =IF(OR(M19="Yes",M19="No")*AND(F19<'A - Contractor Summary'!$C$40),"",IF(AND(F19>'A - Contractor Summary'!$C$40,F19<'A - Contractor Summary'!$C$43),"Yes",IF(F19>'A - Contractor Summary'!$C$43,"No","Needs Review"))) ->  | P19: No | Q19: 0 | R19: 0
B20: 7 | M20: =IF(AND(F20>='A - Contractor Summary'!$C$37,F20<='A - Contractor Summary'!$C$39),"Yes",IF(F20<'A - Contractor Summary'!$C$37,"No",IF(F20>'A - Contractor Summary'!$C$40,"",""))) -> No | N20: =IF(OR(M20="Yes",M20="No")*AND(F20<'A - Contractor Summary'!$C$40),"",IF(AND(F20>'A - Contractor Summary'!$C$40,F20<'A - Contractor Summary'!$C$43),"Yes",IF(F20>'A - Contractor Summary'!$C$43,"No","Needs Review"))) ->  | P20: No | Q20: 0 | R20: 0
B21: 8 | M21: =IF(AND(F21>='A - Contractor Summary'!$C$37,F21<='A - Contractor Summary'!$C$39),"Yes",IF(F21<'A - Contractor Summary'!$C$37,"No",IF(F21>'A - Contractor Summary'!$C$40,"",""))) -> No | N21: =IF(OR(M21="Yes",M21="No")*AND(F21<'A - Contractor Summary'!$C$40),"",IF(AND(F21>'A - Contractor Summary'!$C$40,F21<'A - Contractor Summary'!$C$43),"Yes",IF(F21>'A - Contractor Summary'!$C$43,"No","Needs Review"))) ->  | P21: No | Q21: 0 | R21: 0
B22: 9 | M22: =IF(AND(F22>='A - Contractor Summary'!$C$37,F22<='A - Contractor Summary'!$C$39),"Yes",IF(F22<'A - Contractor Summary'!$C$37,"No",IF(F22>'A - Contractor Summary'!$C$40,"",""))) -> No | N22: =IF(OR(M22="Yes",M22="No")*AND(F22<'A - Contractor Summary'!$C$40),"",IF(AND(F22>'A - Contractor Summary'!$C$40,F22<'A - Contractor Summary'!$C$43),"Yes",IF(F22>'A - Contractor Summary'!$C$43,"No","Needs Review"))) ->  | P22: No | Q22: 0 | R22: 0
B23: 10 | M23: =IF(AND(F23>='A - Contractor Summary'!$C$37,F23<='A - Contractor Summary'!$C$39),"Yes",IF(F23<'A - Contractor Summary'!$C$37,"No",IF(F23>'A - Contractor Summary'!$C$40,"",""))) -> No | N23: =IF(OR(M23="Yes",M23="No")*AND(F23<'A - Contractor Summary'!$C$40),"",IF(AND(F23>'A - Contractor Summary'!$C$40,F23<'A - Contractor Summary'!$C$43),"Yes",IF(F23>'A - Contractor Summary'!$C$43,"No","Needs Review"))) ->  | P23: No | Q23: 0 | R23: 0
B24: 11 | M24: =IF(AND(F24>='A - Contractor Summary'!$C$37,F24<='A - Contractor Summary'!$C$39),"Yes",IF(F24<'A - Contractor Summary'!$C$37,"No",IF(F24>'A - Contractor Summary'!$C$40,"",""))) -> No | N24: =IF(OR(M24="Yes",M24="No")*AND(F24<'A - Contractor Summary'!$C$40),"",IF(AND(F24>'A - Contractor Summary'!$C$40,F24<'A - Contractor Summary'!$C$43),"Yes",IF(F24>'A - Contractor Summary'!$C$43,"No","Needs Review"))) ->  | P24: No | Q24: 0 | R24: 0
B25: 12 | M25: =IF(AND(F25>='A - Contractor Summary'!$C$37,F25<='A - Contractor Summary'!$C$39),"Yes",IF(F25<'A - Contractor Summary'!$C$37,"No",IF(F25>'A - Contractor Summary'!$C$40,"",""))) -> No | N25: =IF(OR(M25="Yes",M25="No")*AND(F25<'A - Contractor Summary'!$C$40),"",IF(AND(F25>'A - Contractor Summary'!$C$40,F25<'A - Contractor Summary'!$C$43),"Yes",IF(F25>'A - Contractor Summary'!$C$43,"No","Needs Review"))) ->  | P25: No | Q25: 0 | R25: 0
B26: 13 | M26: =IF(AND(F26>='A - Contractor Summary'!$C$37,F26<='A - Contractor Summary'!$C$39),"Yes",IF(F26<'A - Contractor Summary'!$C$37,"No",IF(F26>'A - Contractor Summary'!$C$40,"",""))) -> No | N26: =IF(OR(M26="Yes",M26="No")*AND(F26<'A - Contractor Summary'!$C$40),"",IF(AND(F26>'A - Contractor Summary'!$C$40,F26<'A - Contractor Summary'!$C$43),"Yes",IF(F26>'A - Contractor Summary'!$C$43,"No","Needs Review"))) ->  | P26: No | Q26: 0 | R26: 0
B27: 14 | M27: =IF(AND(F27>='A - Contractor Summary'!$C$37,F27<='A - Contractor Summary'!$C$39),"Yes",IF(F27<'A - Contractor Summary'!$C$37,"No",IF(F27>'A - Contractor Summary'!$C$40,"",""))) -> No | N27: =IF(OR(M27="Yes",M27="No")*AND(F27<'A - Contractor Summary'!$C$40),"",IF(AND(F27>'A - Contractor Summary'!$C$40,F27<'A - Contractor Summary'!$C$43),"Yes",IF(F27>'A - Contractor Summary'!$C$43,"No","Needs Review"))) ->  | P27: No | Q27: 0 | R27: 0
B28: 15 | M28: =IF(AND(F28>='A - Contractor Summary'!$C$37,F28<='A - Contractor Summary'!$C$39),"Yes",IF(F28<'A - Contractor Summary'!$C$37,"No",IF(F28>'A - Contractor Summary'!$C$40,"",""))) -> No | N28: =IF(OR(M28="Yes",M28="No")*AND(F28<'A - Contractor Summary'!$C$40),"",IF(AND(F28>'A - Contractor Summary'!$C$40,F28<'A - Contractor Summary'!$C$43),"Yes",IF(F28>'A - Contractor Summary'!$C$43,"No","Needs Review"))) ->  | P28: No | Q28: 0 | R28: 0
B29: 16 | M29: =IF(AND(F29>='A - Contractor Summary'!$C$37,F29<='A - Contractor Summary'!$C$39),"Yes",IF(F29<'A - Contractor Summary'!$C$37,"No",IF(F29>'A - Contractor Summary'!$C$40,"",""))) -> No | N29: =IF(OR(M29="Yes",M29="No")*AND(F29<'A - Contractor Summary'!$C$40),"",IF(AND(F29>'A - Contractor Summary'!$C$40,F29<'A - Contractor Summary'!$C$43),"Yes",IF(F29>'A - Contractor Summary'!$C$43,"No","Needs Review"))) ->  | P29: No | Q29: 0 | R29: 0
B30: 17 | M30: =IF(AND(F30>='A - Contractor Summary'!$C$37,F30<='A - Contractor Summary'!$C$39),"Yes",IF(F30<'A - Contractor Summary'!$C$37,"No",IF(F30>'A - Contractor Summary'!$C$40,"",""))) -> No | N30: =IF(OR(M30="Yes",M30="No")*AND(F30<'A - Contractor Summary'!$C$40),"",IF(AND(F30>'A - Contractor Summary'!$C$40,F30<'A - Contractor Summary'!$C$43),"Yes",IF(F30>'A - Contractor Summary'!$C$43,"No","Needs Review"))) ->  | P30: No | Q30: 0 | R30: 0
B31: 18 | M31: =IF(AND(F31>='A - Contractor Summary'!$C$37,F31<='A - Contractor Summary'!$C$39),"Yes",IF(F31<'A - Contractor Summary'!$C$37,"No",IF(F31>'A - Contractor Summary'!$C$40,"",""))) -> No | N31: =IF(OR(M31="Yes",M31="No")*AND(F31<'A - Contractor Summary'!$C$40),"",IF(AND(F31>'A - Contractor Summary'!$C$40,F31<'A - Contractor Summary'!$C$43),"Yes",IF(F31>'A - Contractor Summary'!$C$43,"No","Needs Review"))) ->  | P31: No | Q31: 0 | R31: 0
B32: 19 | M32: =IF(AND(F32>='A - Contractor Summary'!$C$37,F32<='A - Contractor Summary'!$C$39),"Yes",IF(F32<'A - Contractor Summary'!$C$37,"No",IF(F32>'A - Contractor Summary'!$C$40,"",""))) -> No | N32: =IF(OR(M32="Yes",M32="No")*AND(F32<'A - Contractor Summary'!$C$40),"",IF(AND(F32>'A - Contractor Summary'!$C$40,F32<'A - Contractor Summary'!$C$43),"Yes",IF(F32>'A - Contractor Summary'!$C$43,"No","Needs Review"))) ->  | P32: No | Q32: 0 | R32: 0
B33: 20 | M33: =IF(AND(F33>='A - Contractor Summary'!$C$37,F33<='A - Contractor Summary'!$C$39),"Yes",IF(F33<'A - Contractor Summary'!$C$37,"No",IF(F33>'A - Contractor Summary'!$C$40,"",""))) -> No | N33: =IF(OR(M33="Yes",M33="No")*AND(F33<'A - Contractor Summary'!$C$40),"",IF(AND(F33>'A - Contractor Summary'!$C$40,F33<'A - Contractor Summary'!$C$43),"Yes",IF(F33>'A - Contractor Summary'!$C$43,"No","Needs Review"))) ->  | P33: No | Q33: 0 | R33: 0
B34: 21 | M34: =IF(AND(F34>='A - Contractor Summary'!$C$37,F34<='A - Contractor Summary'!$C$39),"Yes",IF(F34<'A - Contractor Summary'!$C$37,"No",IF(F34>'A - Contractor Summary'!$C$40,"",""))) -> No | N34: =IF(OR(M34="Yes",M34="No")*AND(F34<'A - Contractor Summary'!$C$40),"",IF(AND(F34>'A - Contractor Summary'!$C$40,F34<'A - Contractor Summary'!$C$43),"Yes",IF(F34>'A - Contractor Summary'!$C$43,"No","Needs Review"))) ->  | P34: No | Q34: 0 | R34: 0
B35: 22 | M35: =IF(AND(F35>='A - Contractor Summary'!$C$37,F35<='A - Contractor Summary'!$C$39),"Yes",IF(F35<'A - Contractor Summary'!$C$37,"No",IF(F35>'A - Contractor Summary'!$C$40,"",""))) -> No | N35: =IF(OR(M35="Yes",M35="No")*AND(F35<'A - Contractor Summary'!$C$40),"",IF(AND(F35>'A - Contractor Summary'!$C$40,F35<'A - Contractor Summary'!$C$43),"Yes",IF(F35>'A - Contractor Summary'!$C$43,"No","Needs Review"))) ->  | P35: No | Q35: 0 | R35: 0
B36: 23 | M36: =IF(AND(F36>='A - Contractor Summary'!$C$37,F36<='A - Contractor Summary'!$C$39),"Yes",IF(F36<'A - Contractor Summary'!$C$37,"No",IF(F36>'A - Contractor Summary'!$C$40,"",""))) -> No | N36: =IF(OR(M36="Yes",M36="No")*AND(F36<'A - Contractor Summary'!$C$40),"",IF(AND(F36>'A - Contractor Summary'!$C$40,F36<'A - Contractor Summary'!$C$43),"Yes",IF(F36>'A - Contractor Summary'!$C$43,"No","Needs Review"))) ->  | P36: No | Q36: 0 | R36: 0
B37: 24 | M37: =IF(AND(F37>='A - Contractor Summary'!$C$37,F37<='A - Contractor Summary'!$C$39),"Yes",IF(F37<'A - Contractor Summary'!$C$37,"No",IF(F37>'A - Contractor Summary'!$C$40,"",""))) -> No | N37: =IF(OR(M37="Yes",M37="No")*AND(F37<'A - Contractor Summary'!$C$40),"",IF(AND(F37>'A - Contractor Summary'!$C$40,F37<'A - Contractor Summary'!$C$43),"Yes",IF(F37>'A - Contractor Summary'!$C$43,"No","Needs Review"))) ->  | P37: No | Q37: 0 | R37: 0
B38: 25 | M38: =IF(AND(F38>='A - Contractor Summary'!$C$37,F38<='A - Contractor Summary'!$C$39),"Yes",IF(F38<'A - Contractor Summary'!$C$37,"No",IF(F38>'A - Contractor Summary'!$C$40,"",""))) -> No | N38: =IF(OR(M38="Yes",M38="No")*AND(F38<'A - Contractor Summary'!$C$40),"",IF(AND(F38>'A - Contractor Summary'!$C$40,F38<'A - Contractor Summary'!$C$43),"Yes",IF(F38>'A - Contractor Summary'!$C$43,"No","Needs Review"))) ->  | P38: No | Q38: 0 | R38: 0
B39: 26 | M39: =IF(AND(F39>='A - Contractor Summary'!$C$37,F39<='A - Contractor Summary'!$C$39),"Yes",IF(F39<'A - Contractor Summary'!$C$37,"No",IF(F39>'A - Contractor Summary'!$C$40,"",""))) -> No | N39: =IF(OR(M39="Yes",M39="No")*AND(F39<'A - Contractor Summary'!$C$40),"",IF(AND(F39>'A - Contractor Summary'!$C$40,F39<'A - Contractor Summary'!$C$43),"Yes",IF(F39>'A - Contractor Summary'!$C$43,"No","Needs Review"))) ->  | P39: No | Q39: 0 | R39: 0
B40: 27 | M40: =IF(AND(F40>='A - Contractor Summary'!$C$37,F40<='A - Contractor Summary'!$C$39),"Yes",IF(F40<'A - Contractor Summary'!$C$37,"No",IF(F40>'A - Contractor Summary'!$C$40,"",""))) -> No | N40: =IF(OR(M40="Yes",M40="No")*AND(F40<'A - Contractor Summary'!$C$40),"",IF(AND(F40>'A - Contractor Summary'!$C$40,F40<'A - Contractor Summary'!$C$43),"Yes",IF(F40>'A - Contractor Summary'!$C$43,"No","Needs Review"))) ->  | P40: No | Q40: 0 | R40: 0
B41: 28 | M41: =IF(AND(F41>='A - Contractor Summary'!$C$37,F41<='A - Contractor Summary'!$C$39),"Yes",IF(F41<'A - Contractor Summary'!$C$37,"No",IF(F41>'A - Contractor Summary'!$C$40,"",""))) -> No | N41: =IF(OR(M41="Yes",M41="No")*AND(F41<'A - Contractor Summary'!$C$40),"",IF(AND(F41>'A - Contractor Summary'!$C$40,F41<'A - Contractor Summary'!$C$43),"Yes",IF(F41>'A - Contractor Summary'!$C$43,"No","Needs Review"))) ->  | P41: No | Q41: 0 | R41: 0
B42: 29 | M42: =IF(AND(F42>='A - Contractor Summary'!$C$37,F42<='A - Contractor Summary'!$C$39),"Yes",IF(F42<'A - Contractor Summary'!$C$37,"No",IF(F42>'A - Contractor Summary'!$C$40,"",""))) -> No | N42: =IF(OR(M42="Yes",M42="No")*AND(F42<'A - Contractor Summary'!$C$40),"",IF(AND(F42>'A - Contractor Summary'!$C$40,F42<'A - Contractor Summary'!$C$43),"Yes",IF(F42>'A - Contractor Summary'!$C$43,"No","Needs Review"))) ->  | P42: No | Q42: 0 | R42: 0
B43: 30 | M43: =IF(AND(F43>='A - Contractor Summary'!$C$37,F43<='A - Contractor Summary'!$C$39),"Yes",IF(F43<'A - Contractor Summary'!$C$37,"No",IF(F43>'A - Contractor Summary'!$C$40,"",""))) -> No | N43: =IF(OR(M43="Yes",M43="No")*AND(F43<'A - Contractor Summary'!$C$40),"",IF(AND(F43>'A - Contractor Summary'!$C$40,F43<'A - Contractor Summary'!$C$43),"Yes",IF(F43>'A - Contractor Summary'!$C$43,"No","Needs Review"))) ->  | P43: No | Q43: 0 | R43: 0
B44: 31 | M44: =IF(AND(F44>='A - Contractor Summary'!$C$37,F44<='A - Contractor Summary'!$C$39),"Yes",IF(F44<'A - Contractor Summary'!$C$37,"No",IF(F44>'A - Contractor Summary'!$C$40,"",""))) -> No | N44: =IF(OR(M44="Yes",M44="No")*AND(F44<'A - Contractor Summary'!$C$40),"",IF(AND(F44>'A - Contractor Summary'!$C$40,F44<'A - Contractor Summary'!$C$43),"Yes",IF(F44>'A - Contractor Summary'!$C$43,"No","Needs Review"))) ->  | P44: No | Q44: 0 | R44: 0
B45: 32 | M45: =IF(AND(F45>='A - Contractor Summary'!$C$37,F45<='A - Contractor Summary'!$C$39),"Yes",IF(F45<'A - Contractor Summary'!$C$37,"No",IF(F45>'A - Contractor Summary'!$C$40,"",""))) -> No | N45: =IF(OR(M45="Yes",M45="No")*AND(F45<'A - Contractor Summary'!$C$40),"",IF(AND(F45>'A - Contractor Summary'!$C$40,F45<'A - Contractor Summary'!$C$43),"Yes",IF(F45>'A - Contractor Summary'!$C$43,"No","Needs Review"))) ->  | P45: No | Q45: 0 | R45: 0
B46: 33 | M46: =IF(AND(F46>='A - Contractor Summary'!$C$37,F46<='A - Contractor Summary'!$C$39),"Yes",IF(F46<'A - Contractor Summary'!$C$37,"No",IF(F46>'A - Contractor Summary'!$C$40,"",""))) -> No | N46: =IF(OR(M46="Yes",M46="No")*AND(F46<'A - Contractor Summary'!$C$40),"",IF(AND(F46>'A - Contractor Summary'!$C$40,F46<'A - Contractor Summary'!$C$43),"Yes",IF(F46>'A - Contractor Summary'!$C$43,"No","Needs Review"))) ->  | P46: No | Q46: 0 | R46: 0
B47: 34 | M47: =IF(AND(F47>='A - Contractor Summary'!$C$37,F47<='A - Contractor Summary'!$C$39),"Yes",IF(F47<'A - Contractor Summary'!$C$37,"No",IF(F47>'A - Contractor Summary'!$C$40,"",""))) -> No | N47: =IF(OR(M47="Yes",M47="No")*AND(F47<'A - Contractor Summary'!$C$40),"",IF(AND(F47>'A - Contractor Summary'!$C$40,F47<'A - Contractor Summary'!$C$43),"Yes",IF(F47>'A - Contractor Summary'!$C$43,"No","Needs Review"))) ->  | P47: No | Q47: 0 | R47: 0
B48: 35 | M48: =IF(AND(F48>='A - Contractor Summary'!$C$37,F48<='A - Contractor Summary'!$C$39),"Yes",IF(F48<'A - Contractor Summary'!$C$37,"No",IF(F48>'A - Contractor Summary'!$C$40,"",""))) -> No | N48: =IF(OR(M48="Yes",M48="No")*AND(F48<'A - Contractor Summary'!$C$40),"",IF(AND(F48>'A - Contractor Summary'!$C$40,F48<'A - Contractor Summary'!$C$43),"Yes",IF(F48>'A - Contractor Summary'!$C$43,"No","Needs Review"))) ->  | P48: No | Q48: 0 | R48: 0
B49: 36 | M49: =IF(AND(F49>='A - Contractor Summary'!$C$37,F49<='A - Contractor Summary'!$C$39),"Yes",IF(F49<'A - Contractor Summary'!$C$37,"No",IF(F49>'A - Contractor Summary'!$C$40,"",""))) -> No | N49: =IF(OR(M49="Yes",M49="No")*AND(F49<'A - Contractor Summary'!$C$40),"",IF(AND(F49>'A - Contractor Summary'!$C$40,F49<'A - Contractor Summary'!$C$43),"Yes",IF(F49>'A - Contractor Summary'!$C$43,"No","Needs Review"))) ->  | P49: No | Q49: 0 | R49: 0
B50: 37 | M50: =IF(AND(F50>='A - Contractor Summary'!$C$37,F50<='A - Contractor Summary'!$C$39),"Yes",IF(F50<'A - Contractor Summary'!$C$37,"No",IF(F50>'A - Contractor Summary'!$C$40,"",""))) -> No | N50: =IF(OR(M50="Yes",M50="No")*AND(F50<'A - Contractor Summary'!$C$40),"",IF(AND(F50>'A - Contractor Summary'!$C$40,F50<'A - Contractor Summary'!$C$43),"Yes",IF(F50>'A - Contractor Summary'!$C$43,"No","Needs Review"))) ->  | P50: No | Q50: 0 | R50: 0
B51: 38 | M51: =IF(AND(F51>='A - Contractor Summary'!$C$37,F51<='A - Contractor Summary'!$C$39),"Yes",IF(F51<'A - Contractor Summary'!$C$37,"No",IF(F51>'A - Contractor Summary'!$C$40,"",""))) -> No | N51: =IF(OR(M51="Yes",M51="No")*AND(F51<'A - Contractor Summary'!$C$40),"",IF(AND(F51>'A - Contractor Summary'!$C$40,F51<'A - Contractor Summary'!$C$43),"Yes",IF(F51>'A - Contractor Summary'!$C$43,"No","Needs Review"))) ->  | P51: No | Q51: 0 | R51: 0
B52: 39 | M52: =IF(AND(F52>='A - Contractor Summary'!$C$37,F52<='A - Contractor Summary'!$C$39),"Yes",IF(F52<'A - Contractor Summary'!$C$37,"No",IF(F52>'A - Contractor Summary'!$C$40,"",""))) -> No | N52: =IF(OR(M52="Yes",M52="No")*AND(F52<'A - Contractor Summary'!$C$40),"",IF(AND(F52>'A - Contractor Summary'!$C$40,F52<'A - Contractor Summary'!$C$43),"Yes",IF(F52>'A - Contractor Summary'!$C$43,"No","Needs Review"))) ->  | P52: No | Q52: 0 | R52: 0
B53: 40 | M53: =IF(AND(F53>='A - Contractor Summary'!$C$37,F53<='A - Contractor Summary'!$C$39),"Yes",IF(F53<'A - Contractor Summary'!$C$37,"No",IF(F53>'A - Contractor Summary'!$C$40,"",""))) -> No | N53: =IF(OR(M53="Yes",M53="No")*AND(F53<'A - Contractor Summary'!$C$40),"",IF(AND(F53>'A - Contractor Summary'!$C$40,F53<'A - Contractor Summary'!$C$43),"Yes",IF(F53>'A - Contractor Summary'!$C$43,"No","Needs Review"))) ->  | P53: No | Q53: 0 | R53: 0
B54: 41 | M54: =IF(AND(F54>='A - Contractor Summary'!$C$37,F54<='A - Contractor Summary'!$C$39),"Yes",IF(F54<'A - Contractor Summary'!$C$37,"No",IF(F54>'A - Contractor Summary'!$C$40,"",""))) -> No | N54: =IF(OR(M54="Yes",M54="No")*AND(F54<'A - Contractor Summary'!$C$40),"",IF(AND(F54>'A - Contractor Summary'!$C$40,F54<'A - Contractor Summary'!$C$43),"Yes",IF(F54>'A - Contractor Summary'!$C$43,"No","Needs Review"))) ->  | P54: No | Q54: 0 | R54: 0
B55: 42 | M55: =IF(AND(F55>='A - Contractor Summary'!$C$37,F55<='A - Contractor Summary'!$C$39),"Yes",IF(F55<'A - Contractor Summary'!$C$37,"No",IF(F55>'A - Contractor Summary'!$C$40,"",""))) -> No | N55: =IF(OR(M55="Yes",M55="No")*AND(F55<'A - Contractor Summary'!$C$40),"",IF(AND(F55>'A - Contractor Summary'!$C$40,F55<'A - Contractor Summary'!$C$43),"Yes",IF(F55>'A - Contractor Summary'!$C$43,"No","Needs Review"))) ->  | P55: No | Q55: 0 | R55: 0
B56: 43 | M56: =IF(AND(F56>='A - Contractor Summary'!$C$37,F56<='A - Contractor Summary'!$C$39),"Yes",IF(F56<'A - Contractor Summary'!$C$37,"No",IF(F56>'A - Contractor Summary'!$C$40,"",""))) -> No | N56: =IF(OR(M56="Yes",M56="No")*AND(F56<'A - Contractor Summary'!$C$40),"",IF(AND(F56>'A - Contractor Summary'!$C$40,F56<'A - Contractor Summary'!$C$43),"Yes",IF(F56>'A - Contractor Summary'!$C$43,"No","Needs Review"))) ->  | P56: No | Q56: 0 | R56: 0
B57: 44 | M57: =IF(AND(F57>='A - Contractor Summary'!$C$37,F57<='A - Contractor Summary'!$C$39),"Yes",IF(F57<'A - Contractor Summary'!$C$37,"No",IF(F57>'A - Contractor Summary'!$C$40,"",""))) -> No | N57: =IF(OR(M57="Yes",M57="No")*AND(F57<'A - Contractor Summary'!$C$40),"",IF(AND(F57>'A - Contractor Summary'!$C$40,F57<'A - Contractor Summary'!$C$43),"Yes",IF(F57>'A - Contractor Summary'!$C$43,"No","Needs Review"))) ->  | P57: No | Q57: 0 | R57: 0
J58: =SUM(J14:J57) -> 0 | Q58: =IFERROR(SUM(Q14:Q57),0) -> 0 | R58: =IFERROR(SUM(R14:R57),0) -> 0 | S58: =SUM(S14:S57) -> 0 | T58: =SUM(T14:T57) -> 0 | U58: =R58-S58-T58 -> 0 | V58: check (a)
B62: Tickmark Explanation:
C64: Note: | D64: No Meals charges

Sheet G - Per Diem (hidden)
B2: Per Diem Charges
B4: Test Plan: (A) Enter per diem charges per invoice. (B) Enter number of crew worked per timecard. (C) Enter the Per Diem Rate charged per person per meal (D) Ensure the number of crew members being charged is appropriate (This is comparing the submitted timecards and the per diem charges invoiced). (E) Ensure charges fall between the dates the vendor was mobilized and the date they arrived. (F) Ensure charges are prior to the date the vendor arrived home or was released to another utility. (G) Determine the amount(s) to be reviewed, allowed and/or disallowed. (H) For charges which required further review, document review and include why it was determined to be allowed/disallowed via a tickmark.
B10: Rx | C10: Recalculated.
B11: a | C11: Check figure should equal $0. Cell will appear yellow if discrepancies are noted.
B14: A | F14: B | G14: Rx | H14: C | I14: Rx | J14: D | K14: E | L14: F | M14: G | P14: H
B15: Support Reviewed | J15: Conclusion
B16: Dates | C16: Company | D16: Per Diem Type | E16: # Crew Worked (per invoice) | F16: # Crew Worked (per timecards) | G16: Difference | H16: Per Diem Rate | I16: Total Per Diem | J16: # Crew Reasonable | K16: Reasonable based on Mobilization date(s) | L16: Reasonable based on Demobilization date(s) | M16: Conclusion | N16: $ Allowable Charge | O16: $ To Be Reviewed | P16: Reviewed - Allowable Charge | Q16: Reviewed - Unallowable Charge | R16: Tickmarks
G17: =E17-F17 -> 0 | I17: =H17*F17 -> 0 | J17: =IF(G17>0,"No",IF(F17=0,"N/A","Yes")) -> N/A | K17: =IF(AND(B17>='A - Contractor Summary'!$C$37,B17<='A - Contractor Summary'!$C$39),"Yes",IF(B17<'A - Contractor Summary'!$C$37,"No",IF(B17>'A - Contractor Summary'!$C$40,"",""))) -> No | L17: =IF(OR(K17="Yes",K17="No")*AND(B17<'A - Contractor Summary'!$C$40),"",IF(AND(B17>'A - Contractor Summary'!$C$40,B17<'A - Contractor Summary'!$C$43),"Yes",IF(B17>'A - Contractor Summary'!$C$43,"No","Needs Review"))) ->  | M17: =IF(AND(J17="Yes")*OR(K17="Yes",L17="Yes"),"Yes",IF(OR(K17="No",J17="No",L17="No"),"No","Needs Review")) -> No | N17: =IF(M17="Yes",I17,0) -> 0 | O17: =IF(M17="Needs Review",I17,0) -> 0
G18: 0 | I18: 0 | J18: =IF(G18>0,"No",IF(F18=0,"N/A","Yes")) -> N/A | K18: =IF(AND(B18>='A - Contractor Summary'!$C$37,B18<='A - Contractor Summary'!$C$39),"Yes",IF(B18<'A - Contractor Summary'!$C$37,"No",IF(B18>'A - Contractor Summary'!$C$40,"",""))) -> No | L18: =IF(OR(K18="Yes",K18="No")*AND(B18<'A - Contractor Summary'!$C$40),"",IF(AND(B18>'A - Contractor Summary'!$C$40,B18<'A - Contractor Summary'!$C$43),"Yes",IF(B18>'A - Contractor Summary'!$C$43,"No","Needs Review"))) ->  | M18: =IF(AND(J18="Yes")*OR(K18="Yes",L18="Yes"),"Yes",IF(OR(K18="No",J18="No",L18="No"),"No","Needs Review")) -> No | N18: =IF(M18="Yes",I18,0) -> 0 | O18: =IF(M18="Needs Review",I18,0) -> 0
G19: 0 | I19: 0 | J19: =IF(G19>0,"No",IF(F19=0,"N/A","Yes")) -> N/A | K19: =IF(AND(B19>='A - Contractor Summary'!$C$37,B19<='A - Contractor Summary'!$C$39),"Yes",IF(B19<'A - Contractor Summary'!$C$37,"No",IF(B19>'A - Contractor Summary'!$C$40,"",""))) -> No | L19: =IF(OR(K19="Yes",K19="No")*AND(B19<'A - Contractor Summary'!$C$40),"",IF(AND(B19>'A - Contractor Summary'!$C$40,B19<'A - Contractor Summary'!$C$43),"Yes",IF(B19>'A - Contractor Summary'!$C$43,"No","Needs Review"))) ->  | M19: No | N19: 0 | O19: 0
G20: 0 | I20: 0 | J20: N/A | K20: =IF(AND(B20>='A - Contractor Summary'!$C$37,B20<='A - Contractor Summary'!$C$39),"Yes",IF(B20<'A - Contractor Summary'!$C$37,"No",IF(B20>'A - Contractor Summary'!$C$40,"",""))) -> No | L20: =IF(OR(K20="Yes",K20="No")*AND(B20<'A - Contractor Summary'!$C$40),"",IF(AND(B20>'A - Contractor Summary'!$C$40,B20<'A - Contractor Summary'!$C$43),"Yes",IF(B20>'A - Contractor Summary'!$C$43,"No","Needs Review"))) ->  | M20: No | N20: 0 | O20: 0
G21: 0 | I21: 0 | J21: N/A | K21: =IF(AND(B21>='A - Contractor Summary'!$C$37,B21<='A - Contractor Summary'!$C$39),"Yes",IF(B21<'A - Contractor Summary'!$C$37,"No",IF(B21>'A - Contractor Summary'!$C$40,"",""))) -> No | L21: =IF(OR(K21="Yes",K21="No")*AND(B21<'A - Contractor Summary'!$C$40),"",IF(AND(B21>'A - Contractor Summary'!$C$40,B21<'A - Contractor Summary'!$C$43),"Yes",IF(B21>'A - Contractor Summary'!$C$43,"No","Needs Review"))) ->  | M21: No | N21: 0 | O21: 0
G22: 0 | I22: 0 | J22: N/A | K22: =IF(AND(B22>='A - Contractor Summary'!$C$37,B22<='A - Contractor Summary'!$C$39),"Yes",IF(B22<'A - Contractor Summary'!$C$37,"No",IF(B22>'A - Contractor Summary'!$C$40,"",""))) -> No | L22: =IF(OR(K22="Yes",K22="No")*AND(B22<'A - Contractor Summary'!$C$40),"",IF(AND(B22>'A - Contractor Summary'!$C$40,B22<'A - Contractor Summary'!$C$43),"Yes",IF(B22>'A - Contractor Summary'!$C$43,"No","Needs Review"))) ->  | M22: No | N22: 0 | O22: 0
G23: 0 | I23: 0 | J23: N/A | K23: =IF(AND(B23>='A - Contractor Summary'!$C$37,B23<='A - Contractor Summary'!$C$39),"Yes",IF(B23<'A - Contractor Summary'!$C$37,"No",IF(B23>'A - Contractor Summary'!$C$40,"",""))) -> No | L23: =IF(OR(K23="Yes",K23="No")*AND(B23<'A - Contractor Summary'!$C$40),"",IF(AND(B23>'A - Contractor Summary'!$C$40,B23<'A - Contractor Summary'!$C$43),"Yes",IF(B23>'A - Contractor Summary'!$C$43,"No","Needs Review"))) ->  | M23: No | N23: 0 | O23: 0
G24: 0 | I24: 0 | J24: N/A | K24: =IF(AND(B24>='A - Contractor Summary'!$C$37,B24<='A - Contractor Summary'!$C$39),"Yes",IF(B24<'A - Contractor Summary'!$C$37,"No",IF(B24>'A - Contractor Summary'!$C$40,"",""))) -> No | L24: =IF(OR(K24="Yes",K24="No")*AND(B24<'A - Contractor Summary'!$C$40),"",IF(AND(B24>'A - Contractor Summary'!$C$40,B24<'A - Contractor Summary'!$C$43),"Yes",IF(B24>'A - Contractor Summary'!$C$43,"No","Needs Review"))) ->  | M24: No | N24: 0 | O24: 0
G25: 0 | I25: 0 | J25: N/A | K25: =IF(AND(B25>='A - Contractor Summary'!$C$37,B25<='A - Contractor Summary'!$C$39),"Yes",IF(B25<'A - Contractor Summary'!$C$37,"No",IF(B25>'A - Contractor Summary'!$C$40,"",""))) -> No | L25: =IF(OR(K25="Yes",K25="No")*AND(B25<'A - Contractor Summary'!$C$40),"",IF(AND(B25>'A - Contractor Summary'!$C$40,B25<'A - Contractor Summary'!$C$43),"Yes",IF(B25>'A - Contractor Summary'!$C$43,"No","Needs Review"))) ->  | M25: No | N25: 0 | O25: 0
G26: 0 | I26: 0 | J26: N/A | K26: =IF(AND(B26>='A - Contractor Summary'!$C$37,B26<='A - Contractor Summary'!$C$39),"Yes",IF(B26<'A - Contractor Summary'!$C$37,"No",IF(B26>'A - Contractor Summary'!$C$40,"",""))) -> No | L26: =IF(OR(K26="Yes",K26="No")*AND(B26<'A - Contractor Summary'!$C$40),"",IF(AND(B26>'A - Contractor Summary'!$C$40,B26<'A - Contractor Summary'!$C$43),"Yes",IF(B26>'A - Contractor Summary'!$C$43,"No","Needs Review"))) ->  | M26: No | N26: 0 | O26: 0
G27: 0 | I27: 0 | J27: N/A | K27: =IF(AND(B27>='A - Contractor Summary'!$C$37,B27<='A - Contractor Summary'!$C$39),"Yes",IF(B27<'A - Contractor Summary'!$C$37,"No",IF(B27>'A - Contractor Summary'!$C$40,"",""))) -> No | L27: =IF(OR(K27="Yes",K27="No")*AND(B27<'A - Contractor Summary'!$C$40),"",IF(AND(B27>'A - Contractor Summary'!$C$40,B27<'A - Contractor Summary'!$C$43),"Yes",IF(B27>'A - Contractor Summary'!$C$43,"No","Needs Review"))) ->  | M27: No | N27: 0 | O27: 0
G28: 0 | I28: 0 | J28: N/A | K28: =IF(AND(B28>='A - Contractor Summary'!$C$37,B28<='A - Contractor Summary'!$C$39),"Yes",IF(B28<'A - Contractor Summary'!$C$37,"No",IF(B28>'A - Contractor Summary'!$C$40,"",""))) -> No | L28: =IF(OR(K28="Yes",K28="No")*AND(B28<'A - Contractor Summary'!$C$40),"",IF(AND(B28>'A - Contractor Summary'!$C$40,B28<'A - Contractor Summary'!$C$43),"Yes",IF(B28>'A - Contractor Summary'!$C$43,"No","Needs Review"))) ->  | M28: No | N28: 0 | O28: 0
G29: 0 | I29: 0 | J29: N/A | K29: =IF(AND(B29>='A - Contractor Summary'!$C$37,B29<='A - Contractor Summary'!$C$39),"Yes",IF(B29<'A - Contractor Summary'!$C$37,"No",IF(B29>'A - Contractor Summary'!$C$40,"",""))) -> No | L29: =IF(OR(K29="Yes",K29="No")*AND(B29<'A - Contractor Summary'!$C$40),"",IF(AND(B29>'A - Contractor Summary'!$C$40,B29<'A - Contractor Summary'!$C$43),"Yes",IF(B29>'A - Contractor Summary'!$C$43,"No","Needs Review"))) ->  | M29: No | N29: 0 | O29: 0
G30: 0 | I30: 0 | J30: N/A | K30: =IF(AND(B30>='A - Contractor Summary'!$C$37,B30<='A - Contractor Summary'!$C$39),"Yes",IF(B30<'A - Contractor Summary'!$C$37,"No",IF(B30>'A - Contractor Summary'!$C$40,"",""))) -> No | L30: =IF(OR(K30="Yes",K30="No")*AND(B30<'A - Contractor Summary'!$C$40),"",IF(AND(B30>'A - Contractor Summary'!$C$40,B30<'A - Contractor Summary'!$C$43),"Yes",IF(B30>'A - Contractor Summary'!$C$43,"No","Needs Review"))) ->  | M30: No | N30: 0 | O30: 0
G31: 0 | I31: 0 | J31: N/A | K31: =IF(AND(B31>='A - Contractor Summary'!$C$37,B31<='A - Contractor Summary'!$C$39),"Yes",IF(B31<'A - Contractor Summary'!$C$37,"No",IF(B31>'A - Contractor Summary'!$C$40,"",""))) -> No | L31: =IF(OR(K31="Yes",K31="No")*AND(B31<'A - Contractor Summary'!$C$40),"",IF(AND(B31>'A - Contractor Summary'!$C$40,B31<'A - Contractor Summary'!$C$43),"Yes",IF(B31>'A - Contractor Summary'!$C$43,"No","Needs Review"))) ->  | M31: No | N31: 0 | O31: 0
G32: 0 | I32: 0 | J32: N/A | K32: =IF(AND(B32>='A - Contractor Summary'!$C$37,B32<='A - Contractor Summary'!$C$39),"Yes",IF(B32<'A - Contractor Summary'!$C$37,"No",IF(B32>'A - Contractor Summary'!$C$40,"",""))) -> No | L32: =IF(OR(K32="Yes",K32="No")*AND(B32<'A - Contractor Summary'!$C$40),"",IF(AND(B32>'A - Contractor Summary'!$C$40,B32<'A - Contractor Summary'!$C$43),"Yes",IF(B32>'A - Contractor Summary'!$C$43,"No","Needs Review"))) ->  | M32: No | N32: 0 | O32: 0
G33: 0 | I33: 0 | J33: N/A | K33: =IF(AND(B33>='A - Contractor Summary'!$C$37,B33<='A - Contractor Summary'!$C$39),"Yes",IF(B33<'A - Contractor Summary'!$C$37,"No",IF(B33>'A - Contractor Summary'!$C$40,"",""))) -> No | L33: =IF(OR(K33="Yes",K33="No")*AND(B33<'A - Contractor Summary'!$C$40),"",IF(AND(B33>'A - Contractor Summary'!$C$40,B33<'A - Contractor Summary'!$C$43),"Yes",IF(B33>'A - Contractor Summary'!$C$43,"No","Needs Review"))) ->  | M33: No | N33: 0 | O33: 0
G34: 0 | I34: 0 | J34: N/A | K34: =IF(AND(B34>='A - Contractor Summary'!$C$37,B34<='A - Contractor Summary'!$C$39),"Yes",IF(B34<'A - Contractor Summary'!$C$37,"No",IF(B34>'A - Contractor Summary'!$C$40,"",""))) -> No | L34: =IF(OR(K34="Yes",K34="No")*AND(B34<'A - Contractor Summary'!$C$40),"",IF(AND(B34>'A - Contractor Summary'!$C$40,B34<'A - Contractor Summary'!$C$43),"Yes",IF(B34>'A - Contractor Summary'!$C$43,"No","Needs Review"))) ->  | M34: No | N34: 0 | O34: 0
G35: 0 | I35: 0 | J35: N/A | K35: =IF(AND(B35>='A - Contractor Summary'!$C$37,B35<='A - Contractor Summary'!$C$39),"Yes",IF(B35<'A - Contractor Summary'!$C$37,"No",IF(B35>'A - Contractor Summary'!$C$40,"",""))) -> No | L35: =IF(OR(K35="Yes",K35="No")*AND(B35<'A - Contractor Summary'!$C$40),"",IF(AND(B35>'A - Contractor Summary'!$C$40,B35<'A - Contractor Summary'!$C$43),"Yes",IF(B35>'A - Contractor Summary'!$C$43,"No","Needs Review"))) ->  | M35: No | N35: 0 | O35: 0
G36: =SUM(G17:G35) -> 0 | I36: =SUM(I17:I35) -> 0 | N36: =IFERROR(SUM(N17:N35),0) -> 0 | O36: =IFERROR(SUM(O17:O35),0) -> 0 | P36: =SUM(P17:P35) -> 0 | Q36: =SUM(Q17:Q35) -> 0 | R36: =O36-P36-Q36 -> 0 | S36: check (a)
B39: Tickmark Explanation:
B41: Note: | C41: No Per Diem charges

Sheet H - Mileage (hidden)
B2: Mileage Charges
B4: Test Plan: (A) Obtain support of individual mileage charged (Typically a rate and mileage included on invoice). (B) Ensure charges fall between the dates the vendor was mobilized and the date they arrived. (C) Ensure charges are prior to the date the vendor arrived home or was released to another utility. (D) Ensure number of miles charged deemed reasonable based on vendor location (recalculated per 'A - Contractor Summary' tab). (E) Ensure the location of charge was reasonable (If mobilizing, charges should be related to travelling to TECO Service area, and home, if demobilizing). (F) Determine the amount(s) to be reviewed, allowed and/or disallowed. (G) For charges which required further review, document review and include why it was determined to be allowed/disallowed via a tickmark.
B10: Rx | C10: Recalculated.
B11: a | C11: Check figure should equal $0. Cell will appear yellow if discrepancies are noted.
C13: A | L13: Rx | M13: B | N13: C | O13: D | P13: E | Q13: F | T13: G
B14: Support Reviewed | M14: Conclusions
B15: # | C15: Type of Support | D15: Company | E15: Equipment Name | F15: Equipment ID | G15: Crew | H15: Date | I15: Location | J15: Miles Charged | K15: $ / Mile (Rate) | L15: Total Charge | M15: Reasonable based on Mobilization date(s) | N15: Reasonable based on Demobilization date(s) | O15: Number of Miles Charged Reasonable | P15: Locations Reasonable | Q15: Conclusion | R15: $ Allowable Charge | S15: $ To Be Reviewed | T15: Reviewed - Allowable Charge | U15: Reviewed - Unallowable Charge | V15: Tickmarks
B16: 1 | L16: =J16*K16 -> 0 | M16: =IF(AND(H16>='A - Contractor Summary'!$C$37,H16<='A - Contractor Summary'!$C$39),"Yes",IF(H16<'A - Contractor Summary'!$C$37,"No",IF(H16>'A - Contractor Summary'!$C$40,"",""))) -> No | N16: =IF(OR(M16="Yes",M16="No")*AND(H16<'A - Contractor Summary'!$C$40),"",IF(AND(H16>'A - Contractor Summary'!$C$40,H16<'A - Contractor Summary'!$C$43),"Yes",IF(H16>'A - Contractor Summary'!$C$43,"No","Needs Review"))) ->  | O16: =IF(AND(J16>PRODUCT('A - Contractor Summary'!$C$29,0.85),J16<PRODUCT('A - Contractor Summary'!$C$29,1.15)),"Yes","No") -> No | Q16: =IF(AND(P16="Yes",O16="Yes")*OR(N16="Yes",M16="Yes"),"Yes",IF(OR(M16="No",N16="No",P16="No",O16="No"),"No","Needs Review")) -> No | R16: =IF(Q16="Yes",L16,0) -> 0 | S16: =IF(Q16="Needs Review",L16,0) -> 0
B17: 2 | L17: 0 | M17: =IF(AND(H17>='A - Contractor Summary'!$C$37,H17<='A - Contractor Summary'!$C$39),"Yes",IF(H17<'A - Contractor Summary'!$C$37,"No",IF(H17>'A - Contractor Summary'!$C$40,"",""))) -> No | N17: =IF(OR(M17="Yes",M17="No")*AND(H17<'A - Contractor Summary'!$C$40),"",IF(AND(H17>'A - Contractor Summary'!$C$40,H17<'A - Contractor Summary'!$C$43),"Yes",IF(H17>'A - Contractor Summary'!$C$43,"No","Needs Review"))) ->  | O17: =IF(AND(J17>PRODUCT('A - Contractor Summary'!$C$29,0.85),J17<PRODUCT('A - Contractor Summary'!$C$29,1.15)),"Yes","No") -> No | Q17: No | R17: 0 | S17: 0
B18: 3 | L18: 0 | M18: =IF(AND(H18>='A - Contractor Summary'!$C$37,H18<='A - Contractor Summary'!$C$39),"Yes",IF(H18<'A - Contractor Summary'!$C$37,"No",IF(H18>'A - Contractor Summary'!$C$40,"",""))) -> No | N18: =IF(OR(M18="Yes",M18="No")*AND(H18<'A - Contractor Summary'!$C$40),"",IF(AND(H18>'A - Contractor Summary'!$C$40,H18<'A - Contractor Summary'!$C$43),"Yes",IF(H18>'A - Contractor Summary'!$C$43,"No","Needs Review"))) ->  | O18: =IF(AND(J18>PRODUCT('A - Contractor Summary'!$C$29,0.85),J18<PRODUCT('A - Contractor Summary'!$C$29,1.15)),"Yes","No") -> No | Q18: No | R18: 0 | S18: 0
B19: 4 | L19: 0 | M19: =IF(AND(H19>='A - Contractor Summary'!$C$37,H19<='A - Contractor Summary'!$C$39),"Yes",IF(H19<'A - Contractor Summary'!$C$37,"No",IF(H19>'A - Contractor Summary'!$C$40,"",""))) -> No | N19: =IF(OR(M19="Yes",M19="No")*AND(H19<'A - Contractor Summary'!$C$40),"",IF(AND(H19>'A - Contractor Summary'!$C$40,H19<'A - Contractor Summary'!$C$43),"Yes",IF(H19>'A - Contractor Summary'!$C$43,"No","Needs Review"))) ->  | O19: =IF(AND(J19>PRODUCT('A - Contractor Summary'!$C$29,0.85),J19<PRODUCT('A - Contractor Summary'!$C$29,1.15)),"Yes","No") -> No | Q19: No | R19: 0 | S19: 0
B20: 5 | L20: 0 | M20: =IF(AND(H20>='A - Contractor Summary'!$C$37,H20<='A - Contractor Summary'!$C$39),"Yes",IF(H20<'A - Contractor Summary'!$C$37,"No",IF(H20>'A - Contractor Summary'!$C$40,"",""))) -> No | N20: =IF(OR(M20="Yes",M20="No")*AND(H20<'A - Contractor Summary'!$C$40),"",IF(AND(H20>'A - Contractor Summary'!$C$40,H20<'A - Contractor Summary'!$C$43),"Yes",IF(H20>'A - Contractor Summary'!$C$43,"No","Needs Review"))) ->  | O20: =IF(AND(J20>PRODUCT('A - Contractor Summary'!$C$29,0.85),J20<PRODUCT('A - Contractor Summary'!$C$29,1.15)),"Yes","No") -> No | Q20: No | R20: 0 | S20: 0
B21: 6 | L21: 0 | M21: =IF(AND(H21>='A - Contractor Summary'!$C$37,H21<='A - Contractor Summary'!$C$39),"Yes",IF(H21<'A - Contractor Summary'!$C$37,"No",IF(H21>'A - Contractor Summary'!$C$40,"",""))) -> No | N21: =IF(OR(M21="Yes",M21="No")*AND(H21<'A - Contractor Summary'!$C$40),"",IF(AND(H21>'A - Contractor Summary'!$C$40,H21<'A - Contractor Summary'!$C$43),"Yes",IF(H21>'A - Contractor Summary'!$C$43,"No","Needs Review"))) ->  | O21: =IF(AND(J21>PRODUCT('A - Contractor Summary'!$C$29,0.85),J21<PRODUCT('A - Contractor Summary'!$C$29,1.15)),"Yes","No") -> No | Q21: No | R21: 0 | S21: 0
B22: 7 | L22: 0 | M22: =IF(AND(H22>='A - Contractor Summary'!$C$37,H22<='A - Contractor Summary'!$C$39),"Yes",IF(H22<'A - Contractor Summary'!$C$37,"No",IF(H22>'A - Contractor Summary'!$C$40,"",""))) -> No | N22: =IF(OR(M22="Yes",M22="No")*AND(H22<'A - Contractor Summary'!$C$40),"",IF(AND(H22>'A - Contractor Summary'!$C$40,H22<'A - Contractor Summary'!$C$43),"Yes",IF(H22>'A - Contractor Summary'!$C$43,"No","Needs Review"))) ->  | O22: =IF(AND(J22>PRODUCT('A - Contractor Summary'!$C$29,0.85),J22<PRODUCT('A - Contractor Summary'!$C$29,1.15)),"Yes","No") -> No | Q22: No | R22: 0 | S22: 0
B23: 8 | L23: 0 | M23: =IF(AND(H23>='A - Contractor Summary'!$C$37,H23<='A - Contractor Summary'!$C$39),"Yes",IF(H23<'A - Contractor Summary'!$C$37,"No",IF(H23>'A - Contractor Summary'!$C$40,"",""))) -> No | N23: =IF(OR(M23="Yes",M23="No")*AND(H23<'A - Contractor Summary'!$C$40),"",IF(AND(H23>'A - Contractor Summary'!$C$40,H23<'A - Contractor Summary'!$C$43),"Yes",IF(H23>'A - Contractor Summary'!$C$43,"No","Needs Review"))) ->  | O23: =IF(AND(J23>PRODUCT('A - Contractor Summary'!$C$29,0.85),J23<PRODUCT('A - Contractor Summary'!$C$29,1.15)),"Yes","No") -> No | Q23: No | R23: 0 | S23: 0
B24: 9 | L24: 0 | M24: =IF(AND(H24>='A - Contractor Summary'!$C$37,H24<='A - Contractor Summary'!$C$39),"Yes",IF(H24<'A - Contractor Summary'!$C$37,"No",IF(H24>'A - Contractor Summary'!$C$40,"",""))) -> No | N24: =IF(OR(M24="Yes",M24="No")*AND(H24<'A - Contractor Summary'!$C$40),"",IF(AND(H24>'A - Contractor Summary'!$C$40,H24<'A - Contractor Summary'!$C$43),"Yes",IF(H24>'A - Contractor Summary'!$C$43,"No","Needs Review"))) ->  | O24: =IF(AND(J24>PRODUCT('A - Contractor Summary'!$C$29,0.85),J24<PRODUCT('A - Contractor Summary'!$C$29,1.15)),"Yes","No") -> No | Q24: No | R24: 0 | S24: 0
B25: 10 | L25: 0 | M25: =IF(AND(H25>='A - Contractor Summary'!$C$37,H25<='A - Contractor Summary'!$C$39),"Yes",IF(H25<'A - Contractor Summary'!$C$37,"No",IF(H25>'A - Contractor Summary'!$C$40,"",""))) -> No | N25: =IF(OR(M25="Yes",M25="No")*AND(H25<'A - Contractor Summary'!$C$40),"",IF(AND(H25>'A - Contractor Summary'!$C$40,H25<'A - Contractor Summary'!$C$43),"Yes",IF(H25>'A - Contractor Summary'!$C$43,"No","Needs Review"))) ->  | O25: =IF(AND(J25>PRODUCT('A - Contractor Summary'!$C$29,0.85),J25<PRODUCT('A - Contractor Summary'!$C$29,1.15)),"Yes","No") -> No | Q25: No | R25: 0 | S25: 0
B26: 11 | L26: 0 | M26: =IF(AND(H26>='A - Contractor Summary'!$C$37,H26<='A - Contractor Summary'!$C$39),"Yes",IF(H26<'A - Contractor Summary'!$C$37,"No",IF(H26>'A - Contractor Summary'!$C$40,"",""))) -> No | N26: =IF(OR(M26="Yes",M26="No")*AND(H26<'A - Contractor Summary'!$C$40),"",IF(AND(H26>'A - Contractor Summary'!$C$40,H26<'A - Contractor Summary'!$C$43),"Yes",IF(H26>'A - Contractor Summary'!$C$43,"No","Needs Review"))) ->  | O26: =IF(AND(J26>PRODUCT('A - Contractor Summary'!$C$29,0.85),J26<PRODUCT('A - Contractor Summary'!$C$29,1.15)),"Yes","No") -> No | Q26: No | R26: 0 | S26: 0
B27: 12 | L27: 0 | M27: =IF(AND(H27>='A - Contractor Summary'!$C$37,H27<='A - Contractor Summary'!$C$39),"Yes",IF(H27<'A - Contractor Summary'!$C$37,"No",IF(H27>'A - Contractor Summary'!$C$40,"",""))) -> No | N27: =IF(OR(M27="Yes",M27="No")*AND(H27<'A - Contractor Summary'!$C$40),"",IF(AND(H27>'A - Contractor Summary'!$C$40,H27<'A - Contractor Summary'!$C$43),"Yes",IF(H27>'A - Contractor Summary'!$C$43,"No","Needs Review"))) ->  | O27: =IF(AND(J27>PRODUCT('A - Contractor Summary'!$C$29,0.85),J27<PRODUCT('A - Contractor Summary'!$C$29,1.15)),"Yes","No") -> No | Q27: No | R27: 0 | S27: 0
B28: 13 | L28: 0 | M28: =IF(AND(H28>='A - Contractor Summary'!$C$37,H28<='A - Contractor Summary'!$C$39),"Yes",IF(H28<'A - Contractor Summary'!$C$37,"No",IF(H28>'A - Contractor Summary'!$C$40,"",""))) -> No | N28: =IF(OR(M28="Yes",M28="No")*AND(H28<'A - Contractor Summary'!$C$40),"",IF(AND(H28>'A - Contractor Summary'!$C$40,H28<'A - Contractor Summary'!$C$43),"Yes",IF(H28>'A - Contractor Summary'!$C$43,"No","Needs Review"))) ->  | O28: =IF(AND(J28>PRODUCT('A - Contractor Summary'!$C$29,0.85),J28<PRODUCT('A - Contractor Summary'!$C$29,1.15)),"Yes","No") -> No | Q28: No | R28: 0 | S28: 0
B29: 14 | L29: 0 | M29: =IF(AND(H29>='A - Contractor Summary'!$C$37,H29<='A - Contractor Summary'!$C$39),"Yes",IF(H29<'A - Contractor Summary'!$C$37,"No",IF(H29>'A - Contractor Summary'!$C$40,"",""))) -> No | N29: =IF(OR(M29="Yes",M29="No")*AND(H29<'A - Contractor Summary'!$C$40),"",IF(AND(H29>'A - Contractor Summary'!$C$40,H29<'A - Contractor Summary'!$C$43),"Yes",IF(H29>'A - Contractor Summary'!$C$43,"No","Needs Review"))) ->  | O29: =IF(AND(J29>PRODUCT('A - Contractor Summary'!$C$29,0.85),J29<PRODUCT('A - Contractor Summary'!$C$29,1.15)),"Yes","No") -> No | Q29: No | R29: 0 | S29: 0
B30: 15 | L30: 0 | M30: =IF(AND(H30>='A - Contractor Summary'!$C$37,H30<='A - Contractor Summary'!$C$39),"Yes",IF(H30<'A - Contractor Summary'!$C$37,"No",IF(H30>'A - Contractor Summary'!$C$40,"",""))) -> No | N30: =IF(OR(M30="Yes",M30="No")*AND(H30<'A - Contractor Summary'!$C$40),"",IF(AND(H30>'A - Contractor Summary'!$C$40,H30<'A - Contractor Summary'!$C$43),"Yes",IF(H30>'A - Contractor Summary'!$C$43,"No","Needs Review"))) ->  | O30: =IF(AND(J30>PRODUCT('A - Contractor Summary'!$C$29,0.85),J30<PRODUCT('A - Contractor Summary'!$C$29,1.15)),"Yes","No") -> No | Q30: No | R30: 0 | S30: 0
B31: 16 | L31: 0 | M31: =IF(AND(H31>='A - Contractor Summary'!$C$37,H31<='A - Contractor Summary'!$C$39),"Yes",IF(H31<'A - Contractor Summary'!$C$37,"No",IF(H31>'A - Contractor Summary'!$C$40,"",""))) -> No | N31: =IF(OR(M31="Yes",M31="No")*AND(H31<'A - Contractor Summary'!$C$40),"",IF(AND(H31>'A - Contractor Summary'!$C$40,H31<'A - Contractor Summary'!$C$43),"Yes",IF(H31>'A - Contractor Summary'!$C$43,"No","Needs Review"))) ->  | O31: =IF(AND(J31>PRODUCT('A - Contractor Summary'!$C$29,0.85),J31<PRODUCT('A - Contractor Summary'!$C$29,1.15)),"Yes","No") -> No | Q31: No | R31: 0 | S31: 0
B32: 17 | L32: 0 | M32: =IF(AND(H32>='A - Contractor Summary'!$C$37,H32<='A - Contractor Summary'!$C$39),"Yes",IF(H32<'A - Contractor Summary'!$C$37,"No",IF(H32>'A - Contractor Summary'!$C$40,"",""))) -> No | N32: =IF(OR(M32="Yes",M32="No")*AND(H32<'A - Contractor Summary'!$C$40),"",IF(AND(H32>'A - Contractor Summary'!$C$40,H32<'A - Contractor Summary'!$C$43),"Yes",IF(H32>'A - Contractor Summary'!$C$43,"No","Needs Review"))) ->  | O32: =IF(AND(J32>PRODUCT('A - Contractor Summary'!$C$29,0.85),J32<PRODUCT('A - Contractor Summary'!$C$29,1.15)),"Yes","No") -> No | Q32: No | R32: 0 | S32: 0
B33: 18 | L33: 0 | M33: =IF(AND(H33>='A - Contractor Summary'!$C$37,H33<='A - Contractor Summary'!$C$39),"Yes",IF(H33<'A - Contractor Summary'!$C$37,"No",IF(H33>'A - Contractor Summary'!$C$40,"",""))) -> No | N33: =IF(OR(M33="Yes",M33="No")*AND(H33<'A - Contractor Summary'!$C$40),"",IF(AND(H33>'A - Contractor Summary'!$C$40,H33<'A - Contractor Summary'!$C$43),"Yes",IF(H33>'A - Contractor Summary'!$C$43,"No","Needs Review"))) ->  | O33: =IF(AND(J33>PRODUCT('A - Contractor Summary'!$C$29,0.85),J33<PRODUCT('A - Contractor Summary'!$C$29,1.15)),"Yes","No") -> No | Q33: No | R33: =IF(Q33="Yes",#REF!,0) -> 0 | S33: 0
B34: 19 | L34: 0 | M34: =IF(AND(H34>='A - Contractor Summary'!$C$37,H34<='A - Contractor Summary'!$C$39),"Yes",IF(H34<'A - Contractor Summary'!$C$37,"No",IF(H34>'A - Contractor Summary'!$C$40,"",""))) -> No | N34: =IF(OR(M34="Yes",M34="No")*AND(H34<'A - Contractor Summary'!$C$40),"",IF(AND(H34>'A - Contractor Summary'!$C$40,H34<'A - Contractor Summary'!$C$43),"Yes",IF(H34>'A - Contractor Summary'!$C$43,"No","Needs Review"))) ->  | O34: =IF(AND(J34>PRODUCT('A - Contractor Summary'!$C$29,0.85),J34<PRODUCT('A - Contractor Summary'!$C$29,1.15)),"Yes","No") -> No | Q34: No | R34: =IF(Q34="Yes",#REF!,0) -> 0 | S34: 0
B35: 20 | L35: 0 | M35: =IF(AND(H35>='A - Contractor Summary'!$C$37,H35<='A - Contractor Summary'!$C$39),"Yes",IF(H35<'A - Contractor Summary'!$C$37,"No",IF(H35>'A - Contractor Summary'!$C$40,"",""))) -> No | N35: =IF(OR(M35="Yes",M35="No")*AND(H35<'A - Contractor Summary'!$C$40),"",IF(AND(H35>'A - Contractor Summary'!$C$40,H35<'A - Contractor Summary'!$C$43),"Yes",IF(H35>'A - Contractor Summary'!$C$43,"No","Needs Review"))) ->  | O35: =IF(AND(J35>PRODUCT('A - Contractor Summary'!$C$29,0.85),J35<PRODUCT('A - Contractor Summary'!$C$29,1.15)),"Yes","No") -> No | Q35: No | R35: =IF(Q35="Yes",#REF!,0) -> 0 | S35: =IF(Q35="ED Review",#REF!,0) -> 0
L36: =SUM(L16:L35) -> 0 | R36: =IFERROR(SUM(R16:R35),0) -> 0 | S36: =IFERROR(SUM(S16:S35),0) -> 0 | T36: =SUM(T16:T35) -> 0 | U36: =SUM(U16:U35) -> 0 | V36: =S36-T36-U36 -> 0 | W36: check (a)
B42: Tickmark Explanation:
C44: Note: | D44: No mileage charges

Sheet I - Other
A1: \
B2: Other Charges
B4: Test Plan: (A) Obtain support of individual charges. (B) Enter Yes/No if receipt is itemized. (C) Enter Yes/No if proof of payment has been provided. (D) Ensure charges fall between the dates the vendor was mobilized and the date they arrived. (E) Ensure charges are prior to the date the vendor arrived home or was released to another utility. (F) Ensure the expense type is reasonable (G) Determine the amount(s) to be reviewed, allowed and/or disallowed. (H) For charges which required further review, document review and include why it was determined to be allowed/disallowed via a tickmark.
B9: a | C9: Check figure should equal $0. Cell will appear yellow if discrepancies are noted.
C12: A | J12: B | K12: C | L12: D | M12: E | N12: F | O12: G | R12: H
B13: Support Reviewed | L13: Conclusions
B14: # | C14: Type of Support | D14: Support Identifier | E14: Company | F14: Date | G14: Type of Expense | H14: Location | I14: $ Total | J14: Itemized Receipt | K14: Proof of Payment | L14: Reasonable based on Mobilization date(s) | M14: Reasonable based on Demobilization date(s) | N14: Expense Type Appropriate | O14: Conclusion | P14: $ Allowable Charge | Q14: $ To Be Reviewed | R14: Reviewed - Allowable Charge | S14: Reviewed - Unallowable Charge | T14: Tickmarks
B15: 1 | C15: Invoice | D15: 3848 | E15: Vendor No. 38 | F15: 2017-09-10 | G15: A & G Corporate Overhead | H15: N/A | I15: =('B - Summary Expenses '!C11)*0.034 -> 20887.82418 | J15: YES | K15: YES | L15: =IF(AND(F15>='A - Contractor Summary'!$C$37,F15<='A - Contractor Summary'!$C$39),"Yes",IF(F15<'A - Contractor Summary'!$C$37,"No",IF(F15>'A - Contractor Summary'!$C$40,"",""))) -> Yes | M15: =IF(OR(L15="Yes",L15="No")*AND(F15<'A - Contractor Summary'!$C$40),"",IF(AND(F15>'A - Contractor Summary'!$C$40,F15<'A - Contractor Summary'!$C$43),"Yes",IF(F15>'A - Contractor Summary'!$C$43,"No","Needs Review"))) ->  | N15: Needs Reviewed | O15: =IF(AND(N15="YES",J15="Yes",K15="yes")*OR(L15="Yes",M15="Yes"),"Yes",IF(OR(M15="No",N15="No",L15="No",K15="No"),"No","Needs Review")) -> Needs Review | P15: =IF(O15="Yes",I15,0) -> 0 | Q15: =IF(O15="Needs Review",I15,0) -> 20887.82418 | R15: =SUM('B - Summary Expenses '!E11:F11,'C.2 - Timesheets - Labor'!C69)*0.034 -> 20887.82418 | S15: =Q15-R15 -> 0 | T15: 1
I16: =SUM(I15:I15) -> 20887.82418 | P16: =IFERROR(SUM(P15:P15),0) -> 0 | Q16: =IFERROR(SUM(Q15:Q15),0) -> 20887.82418 | R16: =SUM(R15:R15) -> 20887.82418 | S16: =SUM(S15:S15) -> 0 | T16: =Q16-R16-S16 -> 3.637978807e-12 | U16: check (a)
B20: Tickmark Explanation:
B21: 1 | C21: A 3.4% Administrative and General Corporate Overhead charge is applied to the total direct costs.

Sheet C.1 - Rate Sheets (2) (hidden)
B2: Labor Charges - Rate Sheet
B4: Test Plan: (A) Using the vendor rate sheet, ensure that a rate was provided for all Positions and Equipment types.
B6: Labor Types:
B7: ST | C7: Straight Time
B8: OT | C8: Over Time
B9: DT | C9: Double Time
B10: MOB/DMOB | C10: Mobilization/Demobilization Time
B13: Labor per Man Hour | H13: Labor per Equipment Hour
B14: A | H14: A
B15: POSITION | C15: ST | D15: OT | E15: DT | F15: MOB/DMOB | H15: Type | I15: $/HOUR
B52: Tickmark Explanation:

Sheet C.2 - Timesheets - Labor (2) (hidden)
B2: Labor Charges - Time Card
B4: Test Plan: | C4: Obtain the time cards. (A) Using the Asset by Company tab (C.3), populate the crew members names and positions (if provided). Find additional information regarding individual crew member from related invoice. (B) Enter hours worked from time card(s). (C) Confirm that the dates per the time cards fall between dates provided per 'A - Contractor Summary' tab. (D) Confirm the labor type charged agrees to the rate sheet. (E) Identify any labor charges to be reviewed (manually enter amounts based on reasonability of time period labor was charged, discrepancies between timecards and invoice, etc. (F) For charges which required further review, document review (include why it was determined to be allowed/disallowed via a tickmark).
B10: Rx | C10: Recalculated.
B11: a | C11: Provided from tab 'C.1 - Rate Sheets (2)'.
B12: b | C12: Check figure should equal $0. Cell will appear yellow if discrepancies are noted.
C14: A | H14: Rx | J14: C | K14: a | O14: B | DF14: Rx | DK14: Rx | DP14: Rx | DR14: E | DS14: F
B15: # | C15: Name | D15: Position | E15: Company | F15: Crew# | G15: Invoice# | H15: Start Date | I15: End Date | J15: Dates Worked Reasonable? | K15: Rates | O15: 2017-09-04 | T15: 2017-09-05 | Y15: 2017-09-06 | AD15: 2017-09-07 | AI15: 2017-09-08 | AN15: 2017-09-09 | AS15: 2017-09-10 | AX15: 2017-09-11 | BC15: 2017-09-12 | BH15: 2017-09-13 | BM15: 2017-09-14 | BR15: 2017-09-15 | BW15: 2017-09-16 | CB15: 2017-09-17 | CG15: 2017-09-18 | CL15: 2017-09-19 | CQ15: 2017-09-20 | CV15: 2017-09-21 | DA15: 2017-09-22 | DF15: Total Labor Hours | DK15: Total Labor $ | DP15: Allowable Charges | DQ15: Labor Type Appropriate? | DR15: To Be Reviewed | DS15: Reviewed - Allowable Charge | DT15: Reviewed - Unallowable Charge | DU15: Tickmarks
O16: 2017-09-04 | P16: 2017-09-04 | Q16: 2017-09-04 | R16: 2017-09-04 | S16: 2017-09-04 | T16: 2017-09-05 | U16: 2017-09-05 | V16: 2017-09-05 | W16: 2017-09-05 | X16: 2017-09-05 | Y16: 2017-09-06 | Z16: 2017-09-06 | AA16: 2017-09-06 | AB16: 2017-09-06 | AC16: 2017-09-06 | AD16: 2017-09-07 | AE16: 2017-09-07 | AF16: 2017-09-07 | AG16: 2017-09-07 | AH16: 2017-09-07 | AI16: 2017-09-08 | AJ16: 2017-09-08 | AK16: 2017-09-08 | AL16: 2017-09-08 | AM16: 2017-09-08 | AN16: 2017-09-09 | AO16: 2017-09-09 | AP16: 2017-09-09 | AQ16: 2017-09-09 | AR16: 2017-09-09 | AS16: 2017-09-10 | AT16: 2017-09-10 | AU16: 2017-09-10 | AV16: 2017-09-10 | AW16: 2017-09-10 | AX16: 2017-09-11 | AY16: 2017-09-11 | AZ16: 2017-09-11 | BA16: 2017-09-11 | BB16: 2017-09-11 | BC16: 2017-09-12 | BD16: 2017-09-12 | BE16: 2017-09-12 | BF16: 2017-09-12 | BG16: 2017-09-12 | BH16: 2017-09-13 | BI16: 2017-09-13 | BJ16: 2017-09-13 | BK16: 2017-09-13 | BL16: 2017-09-13 | BM16: 2017-09-14 | BN16: 2017-09-14 | BO16: 2017-09-14 | BP16: 2017-09-14 | BQ16: 2017-09-14 | BR16: 2017-09-15 | BS16: 2017-09-15 | BT16: 2017-09-15 | BU16: 2017-09-15 | BV16: 2017-09-15 | BW16: 2017-09-16 | BX16: 2017-09-16 | BY16: 2017-09-16 | BZ16: 2017-09-16 | CA16: 2017-09-16 | CB16: 2017-09-17 | CC16: 2017-09-17 | CD16: 2017-09-17 | CE16: 2017-09-17 | CF16: 2017-09-17 | CG16: 2017-09-18 | CH16: 2017-09-18 | CI16: 2017-09-18 | CJ16: 2017-09-18 | CK16: 2017-09-18 | CL16: 2017-09-19 | CM16: 2017-09-19 | CN16: 2017-09-19 | CO16: 2017-09-19 | CP16: 2017-09-19 | CQ16: 2017-09-20 | CR16: 2017-09-20 | CS16: 2017-09-20 | CT16: 2017-09-20 | CU16: 2017-09-20 | CV16: 2017-09-21 | CW16: 2017-09-21 | CX16: 2017-09-21 | CY16: 2017-09-21 | CZ16: 2017-09-21 | DA16: 2017-09-22 | DB16: 2017-09-22 | DC16: 2017-09-22 | DD16: 2017-09-22 | DE16: 2017-09-22 | DF16: Total ST | DG16: OT | DH16: DT | DI16: MOB/DMOB | DJ16: Total Hours | DK16: Total ST $ | DL16: Total OT $ | DM16: Total DT $ | DN16: Total MOB/DMOB $ | DO16: Total Labor $
O17: Monday | T17: Tuesday | Y17: Wednesday | AD17: Thursday | AI17: Friday | AN17: Saturday | AS17: Sunday | AX17: Monday | BC17: Tuesday | BH17: Wednesday | BM17: Thursday | BR17: Friday | BW17: Saturday | CB17: Sunday | CG17: Monday | CL17: Tuesday | CQ17: Wednesday | CV17: Thursday | DA17: Friday
K18: ST | L18: OT | M18: DT | N18: MOB/DMOB | O18: ST | P18: OT | Q18: DT | R18: MOB/DMOB | S18: Total | T18: ST | U18: OT | V18: DT | W18: MOB/DMOB | X18: Total | Y18: ST | Z18: OT | AA18: DT | AB18: MOB/DMOB | AC18: Total | AD18: ST | AE18: OT | AF18: DT | AG18: MOB/DMOB | AH18: Total | AI18: ST | AJ18: OT | AK18: DT | AL18: MOB/DMOB | AM18: Total | AN18: ST | AO18: OT | AP18: DT | AQ18: MOB/DMOB | AR18: Total | AS18: ST | AT18: OT | AU18: DT | AV18: MOB/DMOB | AW18: Total | AX18: ST | AY18: OT | AZ18: DT | BA18: MOB/DMOB | BB18: Total | BC18: ST | BD18: OT | BE18: DT | BF18: MOB/DMOB | BG18: Total | BH18: ST | BI18: OT | BJ18: DT | BK18: MOB/DMOB | BL18: Total | BM18: ST | BN18: OT | BO18: DT | BP18: MOB/DMOB | BQ18: Total | BR18: ST | BS18: OT | BT18: DT | BU18: MOB/DMOB | BV18: Total | BW18: ST | BX18: OT | BY18: DT | BZ18: MOB/DMOB | CA18: Total | CB18: ST | CC18: OT | CD18: DT | CE18: MOB/DMOB | CF18: Total | CG18: ST | CH18: OT | CI18: DT | CJ18: MOB/DMOB | CK18: Total | CL18: ST | CM18: OT | CN18: DT | CO18: MOB/DMOB | CP18: Total | CQ18: ST | CR18: OT | CS18: DT | CT18: MOB/DMOB | CU18: Total | CV18: ST | CW18: OT | CX18: DT | CY18: MOB/DMOB | CZ18: Total | DA18: ST | DB18: OT | DC18: DT | DD18: MOB/DMOB | DE18: Total
B19: 1 | H19: =INDEX($O$16:$DE$16,MATCH(TRUE,INDEX((O19:DE19>0),0),0)) ->  | I19: =LOOKUP(2,1/(1-(O19:DE19<=0)),$O$16:$DE$16) ->  | J19: =IF(AND(H19>='A - Contractor Summary'!$F$37,I19<='A - Contractor Summary'!$F$43),"Yes","No") ->  | K19: =VLOOKUP($D19,'C.1 - Rate Sheets (2)'!B:F,2,FALSE) ->  | L19: =VLOOKUP($D19,'C.1 - Rate Sheets (2)'!B:F,3,FALSE) ->  | M19: =VLOOKUP($D19,'C.1 - Rate Sheets (2)'!B:F,4,FALSE) ->  | N19: =VLOOKUP($D19,'C.1 - Rate Sheets (2)'!B:F,5,FALSE) ->  | O19: 0 | P19: 0 | Q19: 0 | R19: 0 | S19: =SUM(O19:R19) -> 0 | T19: 0 | U19: 0 | V19: 0 | W19: 0 | X19: =SUM(T19:W19) -> 0 | Y19: 0 | Z19: 0 | AA19: 0 | AB19: 0 | AC19: =SUM(Y19:AB19) -> 0 | AD19: 0 | AE19: 0 | AF19: 0 | AG19: 0 | AH19: =SUM(AD19:AG19) -> 0 | AI19: 0 | AJ19: 0 | AK19: 0 | AL19: 0 | AM19: =SUM(AI19:AL19) -> 0 | AN19: 0 | AO19: 0 | AP19: 0 | AQ19: 0 | AR19: =SUM(AN19:AQ19) -> 0 | AS19: 0 | AT19: 0 | AU19: 0 | AV19: 0 | AW19: =SUM(AS19:AV19) -> 0 | AX19: 0 | AY19: 0 | AZ19: 0 | BA19: 0 | BB19: =SUM(AX19:BA19) -> 0 | BC19: 0 | BD19: 0 | BE19: 0 | BF19: 0 | BG19: =SUM(BC19:BF19) -> 0 | BH19: 0 | BI19: 0 | BJ19: 0 | BK19: 0 | BL19: =SUM(BH19:BK19) -> 0 | BM19: 0 | BN19: 0 | BO19: 0 | BP19: 0 | BQ19: =SUM(BM19:BP19) -> 0 | BR19: 0 | BS19: 0 | BT19: 0 | BU19: 0 | BV19: =SUM(BR19:BU19) -> 0 | BW19: 0 | BX19: 0 | BY19: 0 | BZ19: 0 | CA19: =SUM(BW19:BZ19) -> 0 | CB19: 0 | CC19: 0 | CD19: 0 | CE19: 0 | CF19: =SUM(CB19:CE19) -> 0 | CG19: 0 | CH19: 0 | CI19: 0 | CJ19: 0 | CK19: =SUM(CG19:CJ19) -> 0 | CL19: 0 | CM19: 0 | CN19: 0 | CO19: 0 | CP19: =SUM(CL19:CO19) -> 0 | CQ19: 0 | CR19: 0 | CS19: 0 | CT19: 0 | CU19: =SUM(CQ19:CT19) -> 0 | CV19: 0 | CW19: 0 | CX19: 0 | CY19: 0 | CZ19: =SUM(CV19:CY19) -> 0 | DA19: 0 | DB19: 0 | DC19: 0 | DD19: 0 | DE19: =SUM(DA19:DD19) -> 0 | DF19: =SUM(O19,T19,Y19,AD19,AI19,AN19,AS19,AX19,BC19,BH19,BM19,BR19,BW19,CB19,CG19,CL19,CQ19,CV19,DA19) -> 0 | DG19: 0 | DH19: 0 | DI19: 0 | DJ19: =SUM(DF19:DI19) -> 0 | DK19: =DF19*K19 ->  | DO19: =SUM(DK19:DN19) ->  | DP19: =DO19-DR19 ->  | DR19: 0
B20: 2 | J20: =IF(AND(H20>='A - Contractor Summary'!$F$37,I20<='A - Contractor Summary'!$F$43),"Yes","No") ->  | K20: =VLOOKUP($D20,'C.1 - Rate Sheets (2)'!B:F,2,FALSE) ->  | L20: =VLOOKUP($D20,'C.1 - Rate Sheets (2)'!B:F,3,FALSE) ->  | M20: =VLOOKUP($D20,'C.1 - Rate Sheets (2)'!B:F,4,FALSE) ->  | N20: =VLOOKUP($D20,'C.1 - Rate Sheets (2)'!B:F,5,FALSE) ->  | O20: 0 | P20: 0 | Q20: 0 | R20: 0 | S20: 0 | T20: 0 | U20: 0 | V20: 0 | W20: 0 | X20: =SUM(T20:W20) -> 0 | Y20: 0 | Z20: 0 | AA20: 0 | AB20: 0 | AC20: =SUM(Y20:AB20) -> 0 | AD20: 0 | AE20: 0 | AF20: 0 | AG20: 0 | AH20: =SUM(AD20:AG20) -> 0 | AI20: 0 | AJ20: 0 | AK20: 0 | AL20: 0 | AM20: =SUM(AI20:AL20) -> 0 | AN20: 0 | AO20: 0 | AP20: 0 | AQ20: 0 | AR20: =SUM(AN20:AQ20) -> 0 | AS20: 0 | AT20: 0 | AU20: 0 | AV20: 0 | AW20: =SUM(AS20:AV20) -> 0 | AX20: 0 | AY20: 0 | AZ20: 0 | BA20: 0 | BB20: =SUM(AX20:BA20) -> 0 | BC20: 0 | BD20: 0 | BE20: 0 | BF20: 0 | BG20: =SUM(BC20:BF20) -> 0 | BH20: 0 | BI20: 0 | BJ20: 0 | BK20: 0 | BL20: =SUM(BH20:BK20) -> 0 | BM20: 0 | BN20: 0 | BO20: 0 | BP20: 0 | BQ20: =SUM(BM20:BP20) -> 0 | BR20: 0 | BS20: 0 | BT20: 0 | BU20: 0 | BV20: =SUM(BR20:BU20) -> 0 | BW20: 0 | BX20: 0 | BY20: 0 | BZ20: 0 | CA20: =SUM(BW20:BZ20) -> 0 | CB20: 0 | CC20: 0 | CD20: 0 | CE20: 0 | CF20: =SUM(CB20:CE20) -> 0 | CG20: 0 | CH20: 0 | CI20: 0 | CJ20: 0 | CK20: =SUM(CG20:CJ20) -> 0 | CL20: 0 | CM20: 0 | CN20: 0 | CO20: 0 | CP20: =SUM(CL20:CO20) -> 0 | CQ20: 0 | CR20: 0 | CS20: 0 | CT20: 0 | CU20: =SUM(CQ20:CT20) -> 0 | CV20: 0 | CW20: 0 | CX20: 0 | CY20: 0 | CZ20: =SUM(CV20:CY20) -> 0 | DA20: 0 | DB20: 0 | DC20: 0 | DD20: 0 | DE20: =SUM(DA20:DD20) -> 0 | DF20: 0 | DG20: 0 | DH20: 0 | DI20: 0 | DJ20: =SUM(DF20:DI20) -> 0 | DO20: =SUM(DK20:DN20) ->  | DR20: 0
B21: 3 | J21: =IF(AND(H21>='A - Contractor Summary'!$F$37,I21<='A - Contractor Summary'!$F$43),"Yes","No") ->  | K21: =VLOOKUP($D21,'C.1 - Rate Sheets (2)'!B:F,2,FALSE) ->  | L21: =VLOOKUP($D21,'C.1 - Rate Sheets (2)'!B:F,3,FALSE) ->  | M21: =VLOOKUP($D21,'C.1 - Rate Sheets (2)'!B:F,4,FALSE) ->  | N21: =VLOOKUP($D21,'C.1 - Rate Sheets (2)'!B:F,5,FALSE) ->  | O21: 0 | P21: 0 | Q21: 0 | R21: 0 | S21: 0 | T21: 0 | U21: 0 | V21: 0 | W21: 0 | X21: 0 | Y21: 0 | Z21: 0 | AA21: 0 | AB21: 0 | AC21: 0 | AD21: 0 | AE21: 0 | AF21: 0 | AG21: 0 | AH21: 0 | AI21: 0 | AJ21: 0 | AK21: 0 | AL21: 0 | AM21: 0 | AN21: 0 | AO21: 0 | AP21: 0 | AQ21: 0 | AR21: 0 | AS21: 0 | AT21: 0 | AU21: 0 | AV21: 0 | AW21: 0 | AX21: 0 | AY21: 0 | AZ21: 0 | BA21: 0 | BB21: 0 | BC21: 0 | BD21: 0 | BE21: 0 | BF21: 0 | BG21: 0 | BH21: 0 | BI21: 0 | BJ21: 0 | BK21: 0 | BL21: 0 | BM21: 0 | BN21: 0 | BO21: 0 | BP21: 0 | BQ21: 0 | BR21: 0 | BS21: 0 | BT21: 0 | BU21: 0 | BV21: 0 | BW21: 0 | BX21: 0 | BY21: 0 | BZ21: 0 | CA21: 0 | CB21: 0 | CC21: 0 | CD21: 0 | CE21: 0 | CF21: 0 | CG21: 0 | CH21: 0 | CI21: 0 | CJ21: 0 | CK21: 0 | CL21: 0 | CM21: 0 | CN21: 0 | CO21: 0 | CP21: 0 | CQ21: 0 | CR21: 0 | CS21: 0 | CT21: 0 | CU21: 0 | CV21: 0 | CW21: 0 | CX21: 0 | CY21: 0 | CZ21: 0 | DA21: 0 | DB21: 0 | DC21: 0 | DD21: 0 | DE21: 0 | DF21: 0 | DG21: 0 | DH21: 0 | DI21: 0 | DJ21: 0 | DR21: 0
B22: 4 | J22: =IF(AND(H22>='A - Contractor Summary'!$F$37,I22<='A - Contractor Summary'!$F$43),"Yes","No") ->  | K22: =VLOOKUP($D22,'C.1 - Rate Sheets (2)'!B:F,2,FALSE) ->  | L22: =VLOOKUP($D22,'C.1 - Rate Sheets (2)'!B:F,3,FALSE) ->  | M22: =VLOOKUP($D22,'C.1 - Rate Sheets (2)'!B:F,4,FALSE) ->  | N22: =VLOOKUP($D22,'C.1 - Rate Sheets (2)'!B:F,5,FALSE) ->  | O22: 0 | P22: 0 | Q22: 0 | R22: 0 | S22: 0 | T22: 0 | U22: 0 | V22: 0 | W22: 0 | X22: 0 | Y22: 0 | Z22: 0 | AA22: 0 | AB22: 0 | AC22: 0 | AD22: 0 | AE22: 0 | AF22: 0 | AG22: 0 | AH22: 0 | AI22: 0 | AJ22: 0 | AK22: 0 | AL22: 0 | AM22: 0 | AN22: 0 | AO22: 0 | AP22: 0 | AQ22: 0 | AR22: 0 | AS22: 0 | AT22: 0 | AU22: 0 | AV22: 0 | AW22: 0 | AX22: 0 | AY22: 0 | AZ22: 0 | BA22: 0 | BB22: 0 | BC22: 0 | BD22: 0 | BE22: 0 | BF22: 0 | BG22: 0 | BH22: 0 | BI22: 0 | BJ22: 0 | BK22: 0 | BL22: 0 | BM22: 0 | BN22: 0 | BO22: 0 | BP22: 0 | BQ22: 0 | BR22: 0 | BS22: 0 | BT22: 0 | BU22: 0 | BV22: 0 | BW22: 0 | BX22: 0 | BY22: 0 | BZ22: 0 | CA22: 0 | CB22: 0 | CC22: 0 | CD22: 0 | CE22: 0 | CF22: 0 | CG22: 0 | CH22: 0 | CI22: 0 | CJ22: 0 | CK22: 0 | CL22: 0 | CM22: 0 | CN22: 0 | CO22: 0 | CP22: 0 | CQ22: 0 | CR22: 0 | CS22: 0 | CT22: 0 | CU22: 0 | CV22: 0 | CW22: 0 | CX22: 0 | CY22: 0 | CZ22: 0 | DA22: 0 | DB22: 0 | DC22: 0 | DD22: 0 | DE22: 0 | DF22: 0 | DG22: 0 | DH22: 0 | DI22: 0 | DJ22: 0 | DR22: 0
B23: 5 | J23: =IF(AND(H23>='A - Contractor Summary'!$F$37,I23<='A - Contractor Summary'!$F$43),"Yes","No") ->  | K23: =VLOOKUP($D23,'C.1 - Rate Sheets (2)'!B:F,2,FALSE) ->  | L23: =VLOOKUP($D23,'C.1 - Rate Sheets (2)'!B:F,3,FALSE) ->  | M23: =VLOOKUP($D23,'C.1 - Rate Sheets (2)'!B:F,4,FALSE) ->  | N23: =VLOOKUP($D23,'C.1 - Rate Sheets (2)'!B:F,5,FALSE) ->  | O23: 0 | P23: 0 | Q23: 0 | R23: 0 | S23: 0 | T23: 0 | U23: 0 | V23: 0 | W23: 0 | X23: 0 | Y23: 0 | Z23: 0 | AA23: 0 | AB23: 0 | AC23: 0 | AD23: 0 | AE23: 0 | AF23: 0 | AG23: 0 | AH23: 0 | AI23: 0 | AJ23: 0 | AK23: 0 | AL23: 0 | AM23: 0 | AN23: 0 | AO23: 0 | AP23: 0 | AQ23: 0 | AR23: 0 | AS23: 0 | AT23: 0 | AU23: 0 | AV23: 0 | AW23: 0 | AX23: 0 | AY23: 0 | AZ23: 0 | BA23: 0 | BB23: 0 | BC23: 0 | BD23: 0 | BE23: 0 | BF23: 0 | BG23: 0 | BH23: 0 | BI23: 0 | BJ23: 0 | BK23: 0 | BL23: 0 | BM23: 0 | BN23: 0 | BO23: 0 | BP23: 0 | BQ23: 0 | BR23: 0 | BS23: 0 | BT23: 0 | BU23: 0 | BV23: 0 | BW23: 0 | BX23: 0 | BY23: 0 | BZ23: 0 | CA23: 0 | CB23: 0 | CC23: 0 | CD23: 0 | CE23: 0 | CF23: 0 | CG23: 0 | CH23: 0 | CI23: 0 | CJ23: 0 | CK23: 0 | CL23: 0 | CM23: 0 | CN23: 0 | CO23: 0 | CP23: 0 | CQ23: 0 | CR23: 0 | CS23: 0 | CT23: 0 | CU23: 0 | CV23: 0 | CW23: 0 | CX23: 0 | CY23: 0 | CZ23: 0 | DA23: 0 | DB23: 0 | DC23: 0 | DD23: 0 | DE23: 0 | DF23: 0 | DG23: 0 | DH23: 0 | DI23: 0 | DJ23: 0 | DR23: 0
B24: 6 | J24: =IF(AND(H24>='A - Contractor Summary'!$F$37,I24<='A - Contractor Summary'!$F$43),"Yes","No") ->  | K24: =VLOOKUP($D24,'C.1 - Rate Sheets (2)'!B:F,2,FALSE) ->  | L24: =VLOOKUP($D24,'C.1 - Rate Sheets (2)'!B:F,3,FALSE) ->  | M24: =VLOOKUP($D24,'C.1 - Rate Sheets (2)'!B:F,4,FALSE) ->  | N24: =VLOOKUP($D24,'C.1 - Rate Sheets (2)'!B:F,5,FALSE) ->  | O24: 0 | P24: 0 | Q24: 0 | R24: 0 | S24: 0 | T24: 0 | U24: 0 | V24: 0 | W24: 0 | X24: 0 | Y24: 0 | Z24: 0 | AA24: 0 | AB24: 0 | AC24: 0 | AD24: 0 | AE24: 0 | AF24: 0 | AG24: 0 | AH24: 0 | AI24: 0 | AJ24: 0 | AK24: 0 | AL24: 0 | AM24: 0 | AN24: 0 | AO24: 0 | AP24: 0 | AQ24: 0 | AR24: 0 | AS24: 0 | AT24: 0 | AU24: 0 | AV24: 0 | AW24: 0 | AX24: 0 | AY24: 0 | AZ24: 0 | BA24: 0 | BB24: 0 | BC24: 0 | BD24: 0 | BE24: 0 | BF24: 0 | BG24: 0 | BH24: 0 | BI24: 0 | BJ24: 0 | BK24: 0 | BL24: 0 | BM24: 0 | BN24: 0 | BO24: 0 | BP24: 0 | BQ24: 0 | BR24: 0 | BS24: 0 | BT24: 0 | BU24: 0 | BV24: 0 | BW24: 0 | BX24: 0 | BY24: 0 | BZ24: 0 | CA24: 0 | CB24: 0 | CC24: 0 | CD24: 0 | CE24: 0 | CF24: 0 | CG24: 0 | CH24: 0 | CI24: 0 | CJ24: 0 | CK24: 0 | CL24: 0 | CM24: 0 | CN24: 0 | CO24: 0 | CP24: 0 | CQ24: 0 | CR24: 0 | CS24: 0 | CT24: 0 | CU24: 0 | CV24: 0 | CW24: 0 | CX24: 0 | CY24: 0 | CZ24: 0 | DA24: 0 | DB24: 0 | DC24: 0 | DD24: 0 | DE24: 0 | DF24: 0 | DG24: 0 | DH24: 0 | DI24: 0 | DJ24: 0 | DR24: 0
B25: 7 | J25: =IF(AND(H25>='A - Contractor Summary'!$F$37,I25<='A - Contractor Summary'!$F$43),"Yes","No") ->  | K25: =VLOOKUP($D25,'C.1 - Rate Sheets (2)'!B:F,2,FALSE) ->  | L25: =VLOOKUP($D25,'C.1 - Rate Sheets (2)'!B:F,3,FALSE) ->  | M25: =VLOOKUP($D25,'C.1 - Rate Sheets (2)'!B:F,4,FALSE) ->  | N25: =VLOOKUP($D25,'C.1 - Rate Sheets (2)'!B:F,5,FALSE) ->  | O25: 0 | P25: 0 | Q25: 0 | R25: 0 | S25: 0 | T25: 0 | U25: 0 | V25: 0 | W25: 0 | X25: 0 | Y25: 0 | Z25: 0 | AA25: 0 | AB25: 0 | AC25: 0 | AD25: 0 | AE25: 0 | AF25: 0 | AG25: 0 | AH25: 0 | AI25: 0 | AJ25: 0 | AK25: 0 | AL25: 0 | AM25: 0 | AN25: 0 | AO25: 0 | AP25: 0 | AQ25: 0 | AR25: 0 | AS25: 0 | AT25: 0 | AU25: 0 | AV25: 0 | AW25: 0 | AX25: 0 | AY25: 0 | AZ25: 0 | BA25: 0 | BB25: 0 | BC25: 0 | BD25: 0 | BE25: 0 | BF25: 0 | BG25: 0 | BH25: 0 | BI25: 0 | BJ25: 0 | BK25: 0 | BL25: 0 | BM25: 0 | BN25: 0 | BO25: 0 | BP25: 0 | BQ25: 0 | BR25: 0 | BS25: 0 | BT25: 0 | BU25: 0 | BV25: 0 | BW25: 0 | BX25: 0 | BY25: 0 | BZ25: 0 | CA25: 0 | CB25: 0 | CC25: 0 | CD25: 0 | CE25: 0 | CF25: 0 | CG25: 0 | CH25: 0 | CI25: 0 | CJ25: 0 | CK25: 0 | CL25: 0 | CM25: 0 | CN25: 0 | CO25: 0 | CP25: 0 | CQ25: 0 | CR25: 0 | CS25: 0 | CT25: 0 | CU25: 0 | CV25: 0 | CW25: 0 | CX25: 0 | CY25: 0 | CZ25: 0 | DA25: 0 | DB25: 0 | DC25: 0 | DD25: 0 | DE25: 0 | DF25: 0 | DG25: 0 | DH25: 0 | DI25: 0 | DJ25: 0 | DR25: 0
B26: 8 | J26: =IF(AND(H26>='A - Contractor Summary'!$F$37,I26<='A - Contractor Summary'!$F$43),"Yes","No") ->  | K26: =VLOOKUP($D26,'C.1 - Rate Sheets (2)'!B:F,2,FALSE) ->  | L26: =VLOOKUP($D26,'C.1 - Rate Sheets (2)'!B:F,3,FALSE) ->  | M26: =VLOOKUP($D26,'C.1 - Rate Sheets (2)'!B:F,4,FALSE) ->  | N26: =VLOOKUP($D26,'C.1 - Rate Sheets (2)'!B:F,5,FALSE) ->  | O26: 0 | P26: 0 | Q26: 0 | R26: 0 | S26: 0 | T26: 0 | U26: 0 | V26: 0 | W26: 0 | X26: 0 | Y26: 0 | Z26: 0 | AA26: 0 | AB26: 0 | AC26: 0 | AD26: 0 | AE26: 0 | AF26: 0 | AG26: 0 | AH26: 0 | AI26: 0 | AJ26: 0 | AK26: 0 | AL26: 0 | AM26: 0 | AN26: 0 | AO26: 0 | AP26: 0 | AQ26: 0 | AR26: 0 | AS26: 0 | AT26: 0 | AU26: 0 | AV26: 0 | AW26: 0 | AX26: 0 | AY26: 0 | AZ26: 0 | BA26: 0 | BB26: 0 | BC26: 0 | BD26: 0 | BE26: 0 | BF26: 0 | BG26: 0 | BH26: 0 | BI26: 0 | BJ26: 0 | BK26: 0 | BL26: 0 | BM26: 0 | BN26: 0 | BO26: 0 | BP26: 0 | BQ26: 0 | BR26: 0 | BS26: 0 | BT26: 0 | BU26: 0 | BV26: 0 | BW26: 0 | BX26: 0 | BY26: 0 | BZ26: 0 | CA26: 0 | CB26: 0 | CC26: 0 | CD26: 0 | CE26: 0 | CF26: 0 | CG26: 0 | CH26: 0 | CI26: 0 | CJ26: 0 | CK26: 0 | CL26: 0 | CM26: 0 | CN26: 0 | CO26: 0 | CP26: 0 | CQ26: 0 | CR26: 0 | CS26: 0 | CT26: 0 | CU26: 0 | CV26: 0 | CW26: 0 | CX26: 0 | CY26: 0 | CZ26: 0 | DA26: 0 | DB26: 0 | DC26: 0 | DD26: 0 | DE26: 0 | DF26: 0 | DG26: 0 | DH26: 0 | DI26: 0 | DJ26: 0 | DR26: 0
B27: 9 | J27: =IF(AND(H27>='A - Contractor Summary'!$F$37,I27<='A - Contractor Summary'!$F$43),"Yes","No") ->  | K27: =VLOOKUP($D27,'C.1 - Rate Sheets (2)'!B:F,2,FALSE) ->  | L27: =VLOOKUP($D27,'C.1 - Rate Sheets (2)'!B:F,3,FALSE) ->  | M27: =VLOOKUP($D27,'C.1 - Rate Sheets (2)'!B:F,4,FALSE) ->  | N27: =VLOOKUP($D27,'C.1 - Rate Sheets (2)'!B:F,5,FALSE) ->  | O27: 0 | P27: 0 | Q27: 0 | R27: 0 | S27: 0 | T27: 0 | U27: 0 | V27: 0 | W27: 0 | X27: 0 | Y27: 0 | Z27: 0 | AA27: 0 | AB27: 0 | AC27: 0 | AD27: 0 | AE27: 0 | AF27: 0 | AG27: 0 | AH27: 0 | AI27: 0 | AJ27: 0 | AK27: 0 | AL27: 0 | AM27: 0 | AN27: 0 | AO27: 0 | AP27: 0 | AQ27: 0 | AR27: 0 | AS27: 0 | AT27: 0 | AU27: 0 | AV27: 0 | AW27: 0 | AX27: 0 | AY27: 0 | AZ27: 0 | BA27: 0 | BB27: 0 | BC27: 0 | BD27: 0 | BE27: 0 | BF27: 0 | BG27: 0 | BH27: 0 | BI27: 0 | BJ27: 0 | BK27: 0 | BL27: 0 | BM27: 0 | BN27: 0 | BO27: 0 | BP27: 0 | BQ27: 0 | BR27: 0 | BS27: 0 | BT27: 0 | BU27: 0 | BV27: 0 | BW27: 0 | BX27: 0 | BY27: 0 | BZ27: 0 | CA27: 0 | CB27: 0 | CC27: 0 | CD27: 0 | CE27: 0 | CF27: 0 | CG27: 0 | CH27: 0 | CI27: 0 | CJ27: 0 | CK27: 0 | CL27: 0 | CM27: 0 | CN27: 0 | CO27: 0 | CP27: 0 | CQ27: 0 | CR27: 0 | CS27: 0 | CT27: 0 | CU27: 0 | CV27: 0 | CW27: 0 | CX27: 0 | CY27: 0 | CZ27: 0 | DA27: 0 | DB27: 0 | DC27: 0 | DD27: 0 | DE27: 0 | DF27: 0 | DG27: 0 | DH27: 0 | DI27: 0 | DJ27: 0 | DR27: 0
B28: 10 | J28: =IF(AND(H28>='A - Contractor Summary'!$F$37,I28<='A - Contractor Summary'!$F$43),"Yes","No") ->  | K28: =VLOOKUP($D28,'C.1 - Rate Sheets (2)'!B:F,2,FALSE) ->  | L28: =VLOOKUP($D28,'C.1 - Rate Sheets (2)'!B:F,3,FALSE) ->  | M28: =VLOOKUP($D28,'C.1 - Rate Sheets (2)'!B:F,4,FALSE) ->  | N28: =VLOOKUP($D28,'C.1 - Rate Sheets (2)'!B:F,5,FALSE) ->  | O28: 0 | P28: 0 | Q28: 0 | R28: 0 | S28: 0 | T28: 0 | U28: 0 | V28: 0 | W28: 0 | X28: 0 | Y28: 0 | Z28: 0 | AA28: 0 | AB28: 0 | AC28: 0 | AD28: 0 | AE28: 0 | AF28: 0 | AG28: 0 | AH28: 0 | AI28: 0 | AJ28: 0 | AK28: 0 | AL28: 0 | AM28: 0 | AN28: 0 | AO28: 0 | AP28: 0 | AQ28: 0 | AR28: 0 | AS28: 0 | AT28: 0 | AU28: 0 | AV28: 0 | AW28: 0 | AX28: 0 | AY28: 0 | AZ28: 0 | BA28: 0 | BB28: 0 | BC28: 0 | BD28: 0 | BE28: 0 | BF28: 0 | BG28: 0 | BH28: 0 | BI28: 0 | BJ28: 0 | BK28: 0 | BL28: 0 | BM28: 0 | BN28: 0 | BO28: 0 | BP28: 0 | BQ28: 0 | BR28: 0 | BS28: 0 | BT28: 0 | BU28: 0 | BV28: 0 | BW28: 0 | BX28: 0 | BY28: 0 | BZ28: 0 | CA28: 0 | CB28: 0 | CC28: 0 | CD28: 0 | CE28: 0 | CF28: 0 | CG28: 0 | CH28: 0 | CI28: 0 | CJ28: 0 | CK28: 0 | CL28: 0 | CM28: 0 | CN28: 0 | CO28: 0 | CP28: 0 | CQ28: 0 | CR28: 0 | CS28: 0 | CT28: 0 | CU28: 0 | CV28: 0 | CW28: 0 | CX28: 0 | CY28: 0 | CZ28: 0 | DA28: 0 | DB28: 0 | DC28: 0 | DD28: 0 | DE28: 0 | DF28: 0 | DG28: 0 | DH28: 0 | DI28: 0 | DJ28: 0 | DR28: 0
B29: 11 | J29: =IF(AND(H29>='A - Contractor Summary'!$F$37,I29<='A - Contractor Summary'!$F$43),"Yes","No") ->  | K29: =VLOOKUP($D29,'C.1 - Rate Sheets (2)'!B:F,2,FALSE) ->  | L29: =VLOOKUP($D29,'C.1 - Rate Sheets (2)'!B:F,3,FALSE) ->  | M29: =VLOOKUP($D29,'C.1 - Rate Sheets (2)'!B:F,4,FALSE) ->  | N29: =VLOOKUP($D29,'C.1 - Rate Sheets (2)'!B:F,5,FALSE) ->  | O29: 0 | P29: 0 | Q29: 0 | R29: 0 | S29: 0 | T29: 0 | U29: 0 | V29: 0 | W29: 0 | X29: 0 | Y29: 0 | Z29: 0 | AA29: 0 | AB29: 0 | AC29: 0 | AD29: 0 | AE29: 0 | AF29: 0 | AG29: 0 | AH29: 0 | AI29: 0 | AJ29: 0 | AK29: 0 | AL29: 0 | AM29: 0 | AN29: 0 | AO29: 0 | AP29: 0 | AQ29: 0 | AR29: 0 | AS29: 0 | AT29: 0 | AU29: 0 | AV29: 0 | AW29: 0 | AX29: 0 | AY29: 0 | AZ29: 0 | BA29: 0 | BB29: 0 | BC29: 0 | BD29: 0 | BE29: 0 | BF29: 0 | BG29: 0 | BH29: 0 | BI29: 0 | BJ29: 0 | BK29: 0 | BL29: 0 | BM29: 0 | BN29: 0 | BO29: 0 | BP29: 0 | BQ29: 0 | BR29: 0 | BS29: 0 | BT29: 0 | BU29: 0 | BV29: 0 | BW29: 0 | BX29: 0 | BY29: 0 | BZ29: 0 | CA29: 0 | CB29: 0 | CC29: 0 | CD29: 0 | CE29: 0 | CF29: 0 | CG29: 0 | CH29: 0 | CI29: 0 | CJ29: 0 | CK29: 0 | CL29: 0 | CM29: 0 | CN29: 0 | CO29: 0 | CP29: 0 | CQ29: 0 | CR29: 0 | CS29: 0 | CT29: 0 | CU29: 0 | CV29: 0 | CW29: 0 | CX29: 0 | CY29: 0 | CZ29: 0 | DA29: 0 | DB29: 0 | DC29: 0 | DD29: 0 | DE29: 0 | DF29: 0 | DG29: 0 | DH29: 0 | DI29: 0 | DJ29: 0 | DR29: 0
B30: 12 | J30: =IF(AND(H30>='A - Contractor Summary'!$F$37,I30<='A - Contractor Summary'!$F$43),"Yes","No") ->  | K30: =VLOOKUP($D30,'C.1 - Rate Sheets (2)'!B:F,2,FALSE) ->  | L30: =VLOOKUP($D30,'C.1 - Rate Sheets (2)'!B:F,3,FALSE) ->  | M30: =VLOOKUP($D30,'C.1 - Rate Sheets (2)'!B:F,4,FALSE) ->  | N30: =VLOOKUP($D30,'C.1 - Rate Sheets (2)'!B:F,5,FALSE) ->  | O30: 0 | P30: 0 | Q30: 0 | R30: 0 | S30: 0 | T30: 0 | U30: 0 | V30: 0 | W30: 0 | X30: 0 | Y30: 0 | Z30: 0 | AA30: 0 | AB30: 0 | AC30: 0 | AD30: 0 | AE30: 0 | AF30: 0 | AG30: 0 | AH30: 0 | AI30: 0 | AJ30: 0 | AK30: 0 | AL30: 0 | AM30: 0 | AN30: 0 | AO30: 0 | AP30: 0 | AQ30: 0 | AR30: 0 | AS30: 0 | AT30: 0 | AU30: 0 | AV30: 0 | AW30: 0 | AX30: 0 | AY30: 0 | AZ30: 0 | BA30: 0 | BB30: 0 | BC30: 0 | BD30: 0 | BE30: 0 | BF30: 0 | BG30: 0 | BH30: 0 | BI30: 0 | BJ30: 0 | BK30: 0 | BL30: 0 | BM30: 0 | BN30: 0 | BO30: 0 | BP30: 0 | BQ30: 0 | BR30: 0 | BS30: 0 | BT30: 0 | BU30: 0 | BV30: 0 | BW30: 0 | BX30: 0 | BY30: 0 | BZ30: 0 | CA30: 0 | CB30: 0 | CC30: 0 | CD30: 0 | CE30: 0 | CF30: 0 | CG30: 0 | CH30: 0 | CI30: 0 | CJ30: 0 | CK30: 0 | CL30: 0 | CM30: 0 | CN30: 0 | CO30: 0 | CP30: 0 | CQ30: 0 | CR30: 0 | CS30: 0 | CT30: 0 | CU30: 0 | CV30: 0 | CW30: 0 | CX30: 0 | CY30: 0 | CZ30: 0 | DA30: 0 | DB30: 0 | DC30: 0 | DD30: 0 | DE30: 0 | DF30: 0 | DG30: 0 | DH30: 0 | DI30: 0 | DJ30: 0 | DR30: 0
B31: 13 | J31: =IF(AND(H31>='A - Contractor Summary'!$F$37,I31<='A - Contractor Summary'!$F$43),"Yes","No") ->  | K31: =VLOOKUP($D31,'C.1 - Rate Sheets (2)'!B:F,2,FALSE) ->  | L31: =VLOOKUP($D31,'C.1 - Rate Sheets (2)'!B:F,3,FALSE) ->  | M31: =VLOOKUP($D31,'C.1 - Rate Sheets (2)'!B:F,4,FALSE) ->  | N31: =VLOOKUP($D31,'C.1 - Rate Sheets (2)'!B:F,5,FALSE) ->  | O31: 0 | P31: 0 | Q31: 0 | R31: 0 | S31: 0 | T31: 0 | U31: 0 | V31: 0 | W31: 0 | X31: 0 | Y31: 0 | Z31: 0 | AA31: 0 | AB31: 0 | AC31: 0 | AD31: 0 | AE31: 0 | AF31: 0 | AG31: 0 | AH31: 0 | AI31: 0 | AJ31: 0 | AK31: 0 | AL31: 0 | AM31: 0 | AN31: 0 | AO31: 0 | AP31: 0 | AQ31: 0 | AR31: 0 | AS31: 0 | AT31: 0 | AU31: 0 | AV31: 0 | AW31: 0 | AX31: 0 | AY31: 0 | AZ31: 0 | BA31: 0 | BB31: 0 | BC31: 0 | BD31: 0 | BE31: 0 | BF31: 0 | BG31: 0 | BH31: 0 | BI31: 0 | BJ31: 0 | BK31: 0 | BL31: 0 | BM31: 0 | BN31: 0 | BO31: 0 | BP31: 0 | BQ31: 0 | BR31: 0 | BS31: 0 | BT31: 0 | BU31: 0 | BV31: 0 | BW31: 0 | BX31: 0 | BY31: 0 | BZ31: 0 | CA31: 0 | CB31: 0 | CC31: 0 | CD31: 0 | CE31: 0 | CF31: 0 | CG31: 0 | CH31: 0 | CI31: 0 | CJ31: 0 | CK31: 0 | CL31: 0 | CM31: 0 | CN31: 0 | CO31: 0 | CP31: 0 | CQ31: 0 | CR31: 0 | CS31: 0 | CT31: 0 | CU31: 0 | CV31: 0 | CW31: 0 | CX31: 0 | CY31: 0 | CZ31: 0 | DA31: 0 | DB31: 0 | DC31: 0 | DD31: 0 | DE31: 0 | DF31: 0 | DG31: 0 | DH31: 0 | DI31: 0 | DJ31: 0 | DR31: 0
B32: 14 | J32: =IF(AND(H32>='A - Contractor Summary'!$F$37,I32<='A - Contractor Summary'!$F$43),"Yes","No") ->  | K32: =VLOOKUP($D32,'C.1 - Rate Sheets (2)'!B:F,2,FALSE) ->  | L32: =VLOOKUP($D32,'C.1 - Rate Sheets (2)'!B:F,3,FALSE) ->  | M32: =VLOOKUP($D32,'C.1 - Rate Sheets (2)'!B:F,4,FALSE) ->  | N32: =VLOOKUP($D32,'C.1 - Rate Sheets (2)'!B:F,5,FALSE) ->  | O32: 0 | P32: 0 | Q32: 0 | R32: 0 | S32: 0 | T32: 0 | U32: 0 | V32: 0 | W32: 0 | X32: 0 | Y32: 0 | Z32: 0 | AA32: 0 | AB32: 0 | AC32: 0 | AD32: 0 | AE32: 0 | AF32: 0 | AG32: 0 | AH32: 0 | AI32: 0 | AJ32: 0 | AK32: 0 | AL32: 0 | AM32: 0 | AN32: 0 | AO32: 0 | AP32: 0 | AQ32: 0 | AR32: 0 | AS32: 0 | AT32: 0 | AU32: 0 | AV32: 0 | AW32: 0 | AX32: 0 | AY32: 0 | AZ32: 0 | BA32: 0 | BB32: 0 | BC32: 0 | BD32: 0 | BE32: 0 | BF32: 0 | BG32: 0 | BH32: 0 | BI32: 0 | BJ32: 0 | BK32: 0 | BL32: 0 | BM32: 0 | BN32: 0 | BO32: 0 | BP32: 0 | BQ32: 0 | BR32: 0 | BS32: 0 | BT32: 0 | BU32: 0 | BV32: 0 | BW32: 0 | BX32: 0 | BY32: 0 | BZ32: 0 | CA32: 0 | CB32: 0 | CC32: 0 | CD32: 0 | CE32: 0 | CF32: 0 | CG32: 0 | CH32: 0 | CI32: 0 | CJ32: 0 | CK32: 0 | CL32: 0 | CM32: 0 | CN32: 0 | CO32: 0 | CP32: 0 | CQ32: 0 | CR32: 0 | CS32: 0 | CT32: 0 | CU32: 0 | CV32: 0 | CW32: 0 | CX32: 0 | CY32: 0 | CZ32: 0 | DA32: 0 | DB32: 0 | DC32: 0 | DD32: 0 | DE32: 0 | DF32: 0 | DG32: 0 | DH32: 0 | DI32: 0 | DJ32: 0 | DR32: 0
B33: 15 | J33: =IF(AND(H33>='A - Contractor Summary'!$F$37,I33<='A - Contractor Summary'!$F$43),"Yes","No") ->  | K33: =VLOOKUP($D33,'C.1 - Rate Sheets (2)'!B:F,2,FALSE) ->  | L33: =VLOOKUP($D33,'C.1 - Rate Sheets (2)'!B:F,3,FALSE) ->  | M33: =VLOOKUP($D33,'C.1 - Rate Sheets (2)'!B:F,4,FALSE) ->  | N33: =VLOOKUP($D33,'C.1 - Rate Sheets (2)'!B:F,5,FALSE) ->  | O33: 0 | P33: 0 | Q33: 0 | R33: 0 | S33: 0 | T33: 0 | U33: 0 | V33: 0 | W33: 0 | X33: 0 | Y33: 0 | Z33: 0 | AA33: 0 | AB33: 0 | AC33: 0 | AD33: 0 | AE33: 0 | AF33: 0 | AG33: 0 | AH33: 0 | AI33: 0 | AJ33: 0 | AK33: 0 | AL33: 0 | AM33: 0 | AN33: 0 | AO33: 0 | AP33: 0 | AQ33: 0 | AR33: 0 | AS33: 0 | AT33: 0 | AU33: 0 | AV33: 0 | AW33: 0 | AX33: 0 | AY33: 0 | AZ33: 0 | BA33: 0 | BB33: 0 | BC33: 0 | BD33: 0 | BE33: 0 | BF33: 0 | BG33: 0 | BH33: 0 | BI33: 0 | BJ33: 0 | BK33: 0 | BL33: 0 | BM33: 0 | BN33: 0 | BO33: 0 | BP33: 0 | BQ33: 0 | BR33: 0 | BS33: 0 | BT33: 0 | BU33: 0 | BV33: 0 | BW33: 0 | BX33: 0 | BY33: 0 | BZ33: 0 | CA33: 0 | CB33: 0 | CC33: 0 | CD33: 0 | CE33: 0 | CF33: 0 | CG33: 0 | CH33: 0 | CI33: 0 | CJ33: 0 | CK33: 0 | CL33: 0 | CM33: 0 | CN33: 0 | CO33: 0 | CP33: 0 | CQ33: 0 | CR33: 0 | CS33: 0 | CT33: 0 | CU33: 0 | CV33: 0 | CW33: 0 | CX33: 0 | CY33: 0 | CZ33: 0 | DA33: 0 | DB33: 0 | DC33: 0 | DD33: 0 | DE33: 0 | DF33: 0 | DG33: 0 | DH33: 0 | DI33: 0 | DJ33: 0 | DR33: 0
B34: 16 | J34: =IF(AND(H34>='A - Contractor Summary'!$F$37,I34<='A - Contractor Summary'!$F$43),"Yes","No") ->  | K34: =VLOOKUP($D34,'C.1 - Rate Sheets (2)'!B:F,2,FALSE) ->  | L34: =VLOOKUP($D34,'C.1 - Rate Sheets (2)'!B:F,3,FALSE) ->  | M34: =VLOOKUP($D34,'C.1 - Rate Sheets (2)'!B:F,4,FALSE) ->  | N34: =VLOOKUP($D34,'C.1 - Rate Sheets (2)'!B:F,5,FALSE) ->  | O34: 0 | P34: 0 | Q34: 0 | R34: 0 | S34: 0 | T34: 0 | U34: 0 | V34: 0 | W34: 0 | X34: 0 | Y34: 0 | Z34: 0 | AA34: 0 | AB34: 0 | AC34: 0 | AD34: 0 | AE34: 0 | AF34: 0 | AG34: 0 | AH34: 0 | AI34: 0 | AJ34: 0 | AK34: 0 | AL34: 0 | AM34: 0 | AN34: 0 | AO34: 0 | AP34: 0 | AQ34: 0 | AR34: 0 | AS34: 0 | AT34: 0 | AU34: 0 | AV34: 0 | AW34: 0 | AX34: 0 | AY34: 0 | AZ34: 0 | BA34: 0 | BB34: 0 | BC34: 0 | BD34: 0 | BE34: 0 | BF34: 0 | BG34: 0 | BH34: 0 | BI34: 0 | BJ34: 0 | BK34: 0 | BL34: 0 | BM34: 0 | BN34: 0 | BO34: 0 | BP34: 0 | BQ34: 0 | BR34: 0 | BS34: 0 | BT34: 0 | BU34: 0 | BV34: 0 | BW34: 0 | BX34: 0 | BY34: 0 | BZ34: 0 | CA34: 0 | CB34: 0 | CC34: 0 | CD34: 0 | CE34: 0 | CF34: 0 | CG34: 0 | CH34: 0 | CI34: 0 | CJ34: 0 | CK34: 0 | CL34: 0 | CM34: 0 | CN34: 0 | CO34: 0 | CP34: 0 | CQ34: 0 | CR34: 0 | CS34: 0 | CT34: 0 | CU34: 0 | CV34: 0 | CW34: 0 | CX34: 0 | CY34: 0 | CZ34: 0 | DA34: 0 | DB34: 0 | DC34: 0 | DD34: 0 | DE34: 0 | DF34: 0 | DG34: 0 | DH34: 0 | DI34: 0 | DJ34: 0 | DR34: 0
B35: 17 | J35: =IF(AND(H35>='A - Contractor Summary'!$F$37,I35<='A - Contractor Summary'!$F$43),"Yes","No") ->  | K35: =VLOOKUP($D35,'C.1 - Rate Sheets (2)'!B:F,2,FALSE) ->  | L35: =VLOOKUP($D35,'C.1 - Rate Sheets (2)'!B:F,3,FALSE) ->  | M35: =VLOOKUP($D35,'C.1 - Rate Sheets (2)'!B:F,4,FALSE) ->  | N35: =VLOOKUP($D35,'C.1 - Rate Sheets (2)'!B:F,5,FALSE) ->  | O35: 0 | P35: 0 | Q35: 0 | R35: 0 | S35: 0 | T35: 0 | U35: 0 | V35: 0 | W35: 0 | X35: 0 | Y35: 0 | Z35: 0 | AA35: 0 | AB35: 0 | AC35: 0 | AD35: 0 | AE35: 0 | AF35: 0 | AG35: 0 | AH35: 0 | AI35: 0 | AJ35: 0 | AK35: 0 | AL35: 0 | AM35: 0 | AN35: 0 | AO35: 0 | AP35: 0 | AQ35: 0 | AR35: 0 | AS35: 0 | AT35: 0 | AU35: 0 | AV35: 0 | AW35: 0 | AX35: 0 | AY35: 0 | AZ35: 0 | BA35: 0 | BB35: 0 | BC35: 0 | BD35: 0 | BE35: 0 | BF35: 0 | BG35: 0 | BH35: 0 | BI35: 0 | BJ35: 0 | BK35: 0 | BL35: 0 | BM35: 0 | BN35: 0 | BO35: 0 | BP35: 0 | BQ35: 0 | BR35: 0 | BS35: 0 | BT35: 0 | BU35: 0 | BV35: 0 | BW35: 0 | BX35: 0 | BY35: 0 | BZ35: 0 | CA35: 0 | CB35: 0 | CC35: 0 | CD35: 0 | CE35: 0 | CF35: 0 | CG35: 0 | CH35: 0 | CI35: 0 | CJ35: 0 | CK35: 0 | CL35: 0 | CM35: 0 | CN35: 0 | CO35: 0 | CP35: 0 | CQ35: 0 | CR35: 0 | CS35: 0 | CT35: 0 | CU35: 0 | CV35: 0 | CW35: 0 | CX35: 0 | CY35: 0 | CZ35: 0 | DA35: 0 | DB35: 0 | DC35: 0 | DD35: 0 | DE35: 0 | DF35: 0 | DG35: 0 | DH35: 0 | DI35: 0 | DJ35: 0 | DR35: 0
B36: 18 | J36: =IF(AND(H36>='A - Contractor Summary'!$F$37,I36<='A - Contractor Summary'!$F$43),"Yes","No") ->  | K36: =VLOOKUP($D36,'C.1 - Rate Sheets (2)'!B:F,2,FALSE) ->  | L36: =VLOOKUP($D36,'C.1 - Rate Sheets (2)'!B:F,3,FALSE) ->  | M36: =VLOOKUP($D36,'C.1 - Rate Sheets (2)'!B:F,4,FALSE) ->  | N36: =VLOOKUP($D36,'C.1 - Rate Sheets (2)'!B:F,5,FALSE) ->  | O36: 0 | P36: 0 | Q36: 0 | R36: 0 | S36: 0 | T36: 0 | U36: 0 | V36: 0 | W36: 0 | X36: 0 | Y36: 0 | Z36: 0 | AA36: 0 | AB36: 0 | AC36: 0 | AD36: 0 | AE36: 0 | AF36: 0 | AG36: 0 | AH36: 0 | AI36: 0 | AJ36: 0 | AK36: 0 | AL36: 0 | AM36: 0 | AN36: 0 | AO36: 0 | AP36: 0 | AQ36: 0 | AR36: 0 | AS36: 0 | AT36: 0 | AU36: 0 | AV36: 0 | AW36: 0 | AX36: 0 | AY36: 0 | AZ36: 0 | BA36: 0 | BB36: 0 | BC36: 0 | BD36: 0 | BE36: 0 | BF36: 0 | BG36: 0 | BH36: 0 | BI36: 0 | BJ36: 0 | BK36: 0 | BL36: 0 | BM36: 0 | BN36: 0 | BO36: 0 | BP36: 0 | BQ36: 0 | BR36: 0 | BS36: 0 | BT36: 0 | BU36: 0 | BV36: 0 | BW36: 0 | BX36: 0 | BY36: 0 | BZ36: 0 | CA36: 0 | CB36: 0 | CC36: 0 | CD36: 0 | CE36: 0 | CF36: 0 | CG36: 0 | CH36: 0 | CI36: 0 | CJ36: 0 | CK36: 0 | CL36: 0 | CM36: 0 | CN36: 0 | CO36: 0 | CP36: 0 | CQ36: 0 | CR36: 0 | CS36: 0 | CT36: 0 | CU36: 0 | CV36: 0 | CW36: 0 | CX36: 0 | CY36: 0 | CZ36: 0 | DA36: 0 | DB36: 0 | DC36: 0 | DD36: 0 | DE36: 0 | DF36: 0 | DG36: 0 | DH36: 0 | DI36: 0 | DJ36: 0 | DR36: 0
B37: 19 | J37: =IF(AND(H37>='A - Contractor Summary'!$F$37,I37<='A - Contractor Summary'!$F$43),"Yes","No") ->  | K37: =VLOOKUP($D37,'C.1 - Rate Sheets (2)'!B:F,2,FALSE) ->  | L37: =VLOOKUP($D37,'C.1 - Rate Sheets (2)'!B:F,3,FALSE) ->  | M37: =VLOOKUP($D37,'C.1 - Rate Sheets (2)'!B:F,4,FALSE) ->  | N37: =VLOOKUP($D37,'C.1 - Rate Sheets (2)'!B:F,5,FALSE) ->  | O37: 0 | P37: 0 | Q37: 0 | R37: 0 | S37: 0 | T37: 0 | U37: 0 | V37: 0 | W37: 0 | X37: 0 | Y37: 0 | Z37: 0 | AA37: 0 | AB37: 0 | AC37: 0 | AD37: 0 | AE37: 0 | AF37: 0 | AG37: 0 | AH37: 0 | AI37: 0 | AJ37: 0 | AK37: 0 | AL37: 0 | AM37: 0 | AN37: 0 | AO37: 0 | AP37: 0 | AQ37: 0 | AR37: 0 | AS37: 0 | AT37: 0 | AU37: 0 | AV37: 0 | AW37: 0 | AX37: 0 | AY37: 0 | AZ37: 0 | BA37: 0 | BB37: 0 | BC37: 0 | BD37: 0 | BE37: 0 | BF37: 0 | BG37: 0 | BH37: 0 | BI37: 0 | BJ37: 0 | BK37: 0 | BL37: 0 | BM37: 0 | BN37: 0 | BO37: 0 | BP37: 0 | BQ37: 0 | BR37: 0 | BS37: 0 | BT37: 0 | BU37: 0 | BV37: 0 | BW37: 0 | BX37: 0 | BY37: 0 | BZ37: 0 | CA37: 0 | CB37: 0 | CC37: 0 | CD37: 0 | CE37: 0 | CF37: 0 | CG37: 0 | CH37: 0 | CI37: 0 | CJ37: 0 | CK37: 0 | CL37: 0 | CM37: 0 | CN37: 0 | CO37: 0 | CP37: 0 | CQ37: 0 | CR37: 0 | CS37: 0 | CT37: 0 | CU37: 0 | CV37: 0 | CW37: 0 | CX37: 0 | CY37: 0 | CZ37: 0 | DA37: 0 | DB37: 0 | DC37: 0 | DD37: 0 | DE37: 0 | DF37: 0 | DG37: 0 | DH37: 0 | DI37: 0 | DJ37: 0 | DO37: =SUM(DK37:DN37) ->  | DR37: 0
B38: 20 | J38: =IF(AND(H38>='A - Contractor Summary'!$F$37,I38<='A - Contractor Summary'!$F$43),"Yes","No") ->  | K38: =VLOOKUP($D38,'C.1 - Rate Sheets (2)'!B:F,2,FALSE) ->  | L38: =VLOOKUP($D38,'C.1 - Rate Sheets (2)'!B:F,3,FALSE) ->  | M38: =VLOOKUP($D38,'C.1 - Rate Sheets (2)'!B:F,4,FALSE) ->  | N38: =VLOOKUP($D38,'C.1 - Rate Sheets (2)'!B:F,5,FALSE) ->  | O38: 0 | P38: 0 | Q38: 0 | R38: 0 | S38: 0 | T38: 0 | U38: 0 | V38: 0 | W38: 0 | X38: 0 | Y38: 0 | Z38: 0 | AA38: 0 | AB38: 0 | AC38: 0 | AD38: 0 | AE38: 0 | AF38: 0 | AG38: 0 | AH38: 0 | AI38: 0 | AJ38: 0 | AK38: 0 | AL38: 0 | AM38: 0 | AN38: 0 | AO38: 0 | AP38: 0 | AQ38: 0 | AR38: 0 | AS38: 0 | AT38: 0 | AU38: 0 | AV38: 0 | AW38: 0 | AX38: 0 | AY38: 0 | AZ38: 0 | BA38: 0 | BB38: 0 | BC38: 0 | BD38: 0 | BE38: 0 | BF38: 0 | BG38: 0 | BH38: 0 | BI38: 0 | BJ38: 0 | BK38: 0 | BL38: 0 | BM38: 0 | BN38: 0 | BO38: 0 | BP38: 0 | BQ38: 0 | BR38: 0 | BS38: 0 | BT38: 0 | BU38: 0 | BV38: 0 | BW38: 0 | BX38: 0 | BY38: 0 | BZ38: 0 | CA38: 0 | CB38: 0 | CC38: 0 | CD38: 0 | CE38: 0 | CF38: 0 | CG38: 0 | CH38: 0 | CI38: 0 | CJ38: 0 | CK38: 0 | CL38: 0 | CM38: 0 | CN38: 0 | CO38: 0 | CP38: 0 | CQ38: 0 | CR38: 0 | CS38: 0 | CT38: 0 | CU38: 0 | CV38: 0 | CW38: 0 | CX38: 0 | CY38: 0 | CZ38: 0 | DA38: 0 | DB38: 0 | DC38: 0 | DD38: 0 | DE38: 0 | DF38: 0 | DG38: 0 | DH38: 0 | DI38: 0 | DJ38: 0 | DR38: 0
B39: 21 | J39: =IF(AND(H39>='A - Contractor Summary'!$F$37,I39<='A - Contractor Summary'!$F$43),"Yes","No") ->  | K39: =VLOOKUP($D39,'C.1 - Rate Sheets (2)'!B:F,2,FALSE) ->  | L39: =VLOOKUP($D39,'C.1 - Rate Sheets (2)'!B:F,3,FALSE) ->  | M39: =VLOOKUP($D39,'C.1 - Rate Sheets (2)'!B:F,4,FALSE) ->  | N39: =VLOOKUP($D39,'C.1 - Rate Sheets (2)'!B:F,5,FALSE) ->  | O39: 0 | P39: 0 | Q39: 0 | R39: 0 | S39: 0 | T39: 0 | U39: 0 | V39: 0 | W39: 0 | X39: 0 | Y39: 0 | Z39: 0 | AA39: 0 | AB39: 0 | AC39: =SUM(Y39:AB39) -> 0 | AD39: 0 | AE39: 0 | AF39: 0 | AG39: 0 | AH39: 0 | AI39: 0 | AJ39: 0 | AK39: 0 | AL39: 0 | AM39: 0 | AN39: 0 | AO39: 0 | AP39: 0 | AQ39: 0 | AR39: 0 | AS39: 0 | AT39: 0 | AU39: 0 | AV39: 0 | AW39: 0 | AX39: 0 | AY39: 0 | AZ39: 0 | BA39: 0 | BB39: 0 | BC39: 0 | BD39: 0 | BE39: 0 | BF39: 0 | BG39: 0 | BH39: 0 | BI39: 0 | BJ39: 0 | BK39: 0 | BL39: 0 | BM39: 0 | BN39: 0 | BO39: 0 | BP39: 0 | BQ39: 0 | BR39: 0 | BS39: 0 | BT39: 0 | BU39: 0 | BV39: 0 | BW39: 0 | BX39: 0 | BY39: 0 | BZ39: 0 | CA39: 0 | CB39: 0 | CC39: 0 | CD39: 0 | CE39: 0 | CF39: 0 | CG39: 0 | CH39: 0 | CI39: 0 | CJ39: 0 | CK39: 0 | CL39: 0 | CM39: 0 | CN39: 0 | CO39: 0 | CP39: 0 | CQ39: 0 | CR39: 0 | CS39: 0 | CT39: 0 | CU39: 0 | CV39: 0 | CW39: 0 | CX39: 0 | CY39: 0 | CZ39: 0 | DA39: 0 | DB39: 0 | DC39: 0 | DD39: 0 | DE39: 0 | DF39: 0 | DG39: 0 | DH39: 0 | DI39: 0 | DJ39: 0 | DO39: =SUM(DK39:DN39) ->  | DR39: 0
B40: 22 | J40: =IF(AND(H40>='A - Contractor Summary'!$F$37,I40<='A - Contractor Summary'!$F$43),"Yes","No") ->  | K40: =VLOOKUP($D40,'C.1 - Rate Sheets (2)'!B:F,2,FALSE) ->  | L40: =VLOOKUP($D40,'C.1 - Rate Sheets (2)'!B:F,3,FALSE) ->  | M40: =VLOOKUP($D40,'C.1 - Rate Sheets (2)'!B:F,4,FALSE) ->  | N40: =VLOOKUP($D40,'C.1 - Rate Sheets (2)'!B:F,5,FALSE) ->  | O40: 0 | P40: 0 | Q40: 0 | R40: 0 | S40: 0 | T40: 0 | U40: 0 | V40: 0 | W40: 0 | X40: 0 | Y40: 0 | Z40: 0 | AA40: 0 | AB40: 0 | AC40: 0 | AD40: 0 | AE40: 0 | AF40: 0 | AG40: 0 | AH40: 0 | AI40: 0 | AJ40: 0 | AK40: 0 | AL40: 0 | AM40: 0 | AN40: 0 | AO40: 0 | AP40: 0 | AQ40: 0 | AR40: 0 | AS40: 0 | AT40: 0 | AU40: 0 | AV40: 0 | AW40: 0 | AX40: 0 | AY40: 0 | AZ40: 0 | BA40: 0 | BB40: 0 | BC40: 0 | BD40: 0 | BE40: 0 | BF40: 0 | BG40: 0 | BH40: 0 | BI40: 0 | BJ40: 0 | BK40: 0 | BL40: 0 | BM40: 0 | BN40: 0 | BO40: 0 | BP40: 0 | BQ40: 0 | BR40: 0 | BS40: 0 | BT40: 0 | BU40: 0 | BV40: 0 | BW40: 0 | BX40: 0 | BY40: 0 | BZ40: 0 | CA40: 0 | CB40: 0 | CC40: 0 | CD40: 0 | CE40: 0 | CF40: 0 | CG40: 0 | CH40: 0 | CI40: 0 | CJ40: 0 | CK40: 0 | CL40: 0 | CM40: 0 | CN40: 0 | CO40: 0 | CP40: 0 | CQ40: 0 | CR40: 0 | CS40: 0 | CT40: 0 | CU40: 0 | CV40: 0 | CW40: 0 | CX40: 0 | CY40: 0 | CZ40: 0 | DA40: 0 | DB40: 0 | DC40: 0 | DD40: 0 | DE40: 0 | DF40: 0 | DG40: 0 | DH40: 0 | DI40: 0 | DJ40: 0 | DR40: 0
B41: 23 | J41: =IF(AND(H41>='A - Contractor Summary'!$F$37,I41<='A - Contractor Summary'!$F$43),"Yes","No") ->  | K41: =VLOOKUP($D41,'C.1 - Rate Sheets (2)'!B:F,2,FALSE) ->  | L41: =VLOOKUP($D41,'C.1 - Rate Sheets (2)'!B:F,3,FALSE) ->  | M41: =VLOOKUP($D41,'C.1 - Rate Sheets (2)'!B:F,4,FALSE) ->  | N41: =VLOOKUP($D41,'C.1 - Rate Sheets (2)'!B:F,5,FALSE) ->  | O41: 0 | P41: 0 | Q41: 0 | R41: 0 | S41: 0 | T41: 0 | U41: 0 | V41: 0 | W41: 0 | X41: 0 | Y41: 0 | Z41: 0 | AA41: 0 | AB41: 0 | AC41: 0 | AD41: 0 | AE41: 0 | AF41: 0 | AG41: 0 | AH41: 0 | AI41: 0 | AJ41: 0 | AK41: 0 | AL41: 0 | AM41: 0 | AN41: 0 | AO41: 0 | AP41: 0 | AQ41: 0 | AR41: 0 | AS41: 0 | AT41: 0 | AU41: 0 | AV41: 0 | AW41: 0 | AX41: 0 | AY41: 0 | AZ41: 0 | BA41: 0 | BB41: 0 | BC41: 0 | BD41: 0 | BE41: 0 | BF41: 0 | BG41: 0 | BH41: 0 | BI41: 0 | BJ41: 0 | BK41: 0 | BL41: 0 | BM41: 0 | BN41: 0 | BO41: 0 | BP41: 0 | BQ41: 0 | BR41: 0 | BS41: 0 | BT41: 0 | BU41: 0 | BV41: 0 | BW41: 0 | BX41: 0 | BY41: 0 | BZ41: 0 | CA41: 0 | CB41: 0 | CC41: 0 | CD41: 0 | CE41: 0 | CF41: 0 | CG41: 0 | CH41: 0 | CI41: 0 | CJ41: 0 | CK41: 0 | CL41: 0 | CM41: 0 | CN41: 0 | CO41: 0 | CP41: 0 | CQ41: 0 | CR41: 0 | CS41: 0 | CT41: 0 | CU41: 0 | CV41: 0 | CW41: 0 | CX41: 0 | CY41: 0 | CZ41: 0 | DA41: 0 | DB41: 0 | DC41: 0 | DD41: 0 | DE41: 0 | DF41: 0 | DG41: 0 | DH41: 0 | DI41: 0 | DJ41: 0 | DR41: 0
B42: 24 | J42: =IF(AND(H42>='A - Contractor Summary'!$F$37,I42<='A - Contractor Summary'!$F$43),"Yes","No") ->  | K42: =VLOOKUP($D42,'C.1 - Rate Sheets (2)'!B:F,2,FALSE) ->  | L42: =VLOOKUP($D42,'C.1 - Rate Sheets (2)'!B:F,3,FALSE) ->  | M42: =VLOOKUP($D42,'C.1 - Rate Sheets (2)'!B:F,4,FALSE) ->  | N42: =VLOOKUP($D42,'C.1 - Rate Sheets (2)'!B:F,5,FALSE) ->  | O42: 0 | P42: 0 | Q42: 0 | R42: 0 | S42: 0 | T42: 0 | U42: 0 | V42: 0 | W42: 0 | X42: 0 | Y42: 0 | Z42: 0 | AA42: 0 | AB42: 0 | AC42: 0 | AD42: 0 | AE42: 0 | AF42: 0 | AG42: 0 | AH42: 0 | AI42: 0 | AJ42: 0 | AK42: 0 | AL42: 0 | AM42: 0 | AN42: 0 | AO42: 0 | AP42: 0 | AQ42: 0 | AR42: 0 | AS42: 0 | AT42: 0 | AU42: 0 | AV42: 0 | AW42: 0 | AX42: 0 | AY42: 0 | AZ42: 0 | BA42: 0 | BB42: 0 | BC42: 0 | BD42: 0 | BE42: 0 | BF42: 0 | BG42: 0 | BH42: 0 | BI42: 0 | BJ42: 0 | BK42: 0 | BL42: 0 | BM42: 0 | BN42: 0 | BO42: 0 | BP42: 0 | BQ42: 0 | BR42: 0 | BS42: 0 | BT42: 0 | BU42: 0 | BV42: 0 | BW42: 0 | BX42: 0 | BY42: 0 | BZ42: 0 | CA42: 0 | CB42: 0 | CC42: 0 | CD42: 0 | CE42: 0 | CF42: 0 | CG42: 0 | CH42: 0 | CI42: 0 | CJ42: 0 | CK42: 0 | CL42: 0 | CM42: 0 | CN42: 0 | CO42: 0 | CP42: 0 | CQ42: 0 | CR42: 0 | CS42: 0 | CT42: 0 | CU42: 0 | CV42: 0 | CW42: 0 | CX42: 0 | CY42: 0 | CZ42: 0 | DA42: 0 | DB42: 0 | DC42: 0 | DD42: 0 | DE42: 0 | DF42: 0 | DG42: 0 | DH42: 0 | DI42: 0 | DJ42: 0 | DR42: 0
B43: 25 | J43: =IF(AND(H43>='A - Contractor Summary'!$F$37,I43<='A - Contractor Summary'!$F$43),"Yes","No") ->  | K43: =VLOOKUP($D43,'C.1 - Rate Sheets (2)'!B:F,2,FALSE) ->  | L43: =VLOOKUP($D43,'C.1 - Rate Sheets (2)'!B:F,3,FALSE) ->  | M43: =VLOOKUP($D43,'C.1 - Rate Sheets (2)'!B:F,4,FALSE) ->  | N43: =VLOOKUP($D43,'C.1 - Rate Sheets (2)'!B:F,5,FALSE) ->  | O43: 0 | P43: 0 | Q43: 0 | R43: 0 | S43: 0 | T43: 0 | U43: 0 | V43: 0 | W43: 0 | X43: 0 | Y43: 0 | Z43: 0 | AA43: 0 | AB43: 0 | AC43: 0 | AD43: 0 | AE43: 0 | AF43: 0 | AG43: 0 | AH43: 0 | AI43: 0 | AJ43: 0 | AK43: 0 | AL43: 0 | AM43: 0 | AN43: 0 | AO43: 0 | AP43: 0 | AQ43: 0 | AR43: 0 | AS43: 0 | AT43: 0 | AU43: 0 | AV43: 0 | AW43: 0 | AX43: 0 | AY43: 0 | AZ43: 0 | BA43: 0 | BB43: 0 | BC43: 0 | BD43: 0 | BE43: 0 | BF43: 0 | BG43: 0 | BH43: 0 | BI43: 0 | BJ43: 0 | BK43: 0 | BL43: 0 | BM43: 0 | BN43: 0 | BO43: 0 | BP43: 0 | BQ43: 0 | BR43: 0 | BS43: 0 | BT43: 0 | BU43: 0 | BV43: 0 | BW43: 0 | BX43: 0 | BY43: 0 | BZ43: 0 | CA43: 0 | CB43: 0 | CC43: 0 | CD43: 0 | CE43: 0 | CF43: 0 | CG43: 0 | CH43: 0 | CI43: 0 | CJ43: 0 | CK43: 0 | CL43: 0 | CM43: 0 | CN43: 0 | CO43: 0 | CP43: 0 | CQ43: 0 | CR43: 0 | CS43: 0 | CT43: 0 | CU43: 0 | CV43: 0 | CW43: 0 | CX43: 0 | CY43: 0 | CZ43: 0 | DA43: 0 | DB43: 0 | DC43: 0 | DD43: 0 | DE43: 0 | DF43: 0 | DG43: 0 | DH43: 0 | DI43: 0 | DJ43: 0 | DR43: 0
B44: 26 | J44: =IF(AND(H44>='A - Contractor Summary'!$F$37,I44<='A - Contractor Summary'!$F$43),"Yes","No") ->  | K44: =VLOOKUP($D44,'C.1 - Rate Sheets (2)'!B:F,2,FALSE) ->  | L44: =VLOOKUP($D44,'C.1 - Rate Sheets (2)'!B:F,3,FALSE) ->  | M44: =VLOOKUP($D44,'C.1 - Rate Sheets (2)'!B:F,4,FALSE) ->  | N44: =VLOOKUP($D44,'C.1 - Rate Sheets (2)'!B:F,5,FALSE) ->  | O44: 0 | P44: 0 | Q44: 0 | R44: 0 | S44: 0 | T44: 0 | U44: 0 | V44: 0 | W44: 0 | X44: 0 | Y44: 0 | Z44: 0 | AA44: 0 | AB44: 0 | AC44: 0 | AD44: 0 | AE44: 0 | AF44: 0 | AG44: 0 | AH44: 0 | AI44: 0 | AJ44: 0 | AK44: 0 | AL44: 0 | AM44: 0 | AN44: 0 | AO44: 0 | AP44: 0 | AQ44: 0 | AR44: 0 | AS44: 0 | AT44: 0 | AU44: 0 | AV44: 0 | AW44: 0 | AX44: 0 | AY44: 0 | AZ44: 0 | BA44: 0 | BB44: 0 | BC44: 0 | BD44: 0 | BE44: 0 | BF44: 0 | BG44: 0 | BH44: 0 | BI44: 0 | BJ44: 0 | BK44: 0 | BL44: 0 | BM44: 0 | BN44: 0 | BO44: 0 | BP44: 0 | BQ44: 0 | BR44: 0 | BS44: 0 | BT44: 0 | BU44: 0 | BV44: 0 | BW44: 0 | BX44: 0 | BY44: 0 | BZ44: 0 | CA44: 0 | CB44: 0 | CC44: 0 | CD44: 0 | CE44: 0 | CF44: 0 | CG44: 0 | CH44: 0 | CI44: 0 | CJ44: 0 | CK44: 0 | CL44: 0 | CM44: 0 | CN44: 0 | CO44: 0 | CP44: 0 | CQ44: 0 | CR44: 0 | CS44: 0 | CT44: 0 | CU44: 0 | CV44: 0 | CW44: 0 | CX44: 0 | CY44: 0 | CZ44: 0 | DA44: 0 | DB44: 0 | DC44: 0 | DD44: 0 | DE44: 0 | DF44: 0 | DG44: 0 | DH44: 0 | DI44: 0 | DJ44: 0 | DR44: 0
B45: 27 | J45: =IF(AND(H45>='A - Contractor Summary'!$F$37,I45<='A - Contractor Summary'!$F$43),"Yes","No") ->  | K45: =VLOOKUP($D45,'C.1 - Rate Sheets (2)'!B:F,2,FALSE) ->  | L45: =VLOOKUP($D45,'C.1 - Rate Sheets (2)'!B:F,3,FALSE) ->  | M45: =VLOOKUP($D45,'C.1 - Rate Sheets (2)'!B:F,4,FALSE) ->  | N45: =VLOOKUP($D45,'C.1 - Rate Sheets (2)'!B:F,5,FALSE) ->  | O45: 0 | P45: 0 | Q45: 0 | R45: 0 | S45: 0 | T45: 0 | U45: 0 | V45: 0 | W45: 0 | X45: 0 | Y45: 0 | Z45: 0 | AA45: 0 | AB45: 0 | AC45: 0 | AD45: 0 | AE45: 0 | AF45: 0 | AG45: 0 | AH45: 0 | AI45: 0 | AJ45: 0 | AK45: 0 | AL45: 0 | AM45: 0 | AN45: 0 | AO45: 0 | AP45: 0 | AQ45: 0 | AR45: 0 | AS45: 0 | AT45: 0 | AU45: 0 | AV45: 0 | AW45: 0 | AX45: 0 | AY45: 0 | AZ45: 0 | BA45: 0 | BB45: 0 | BC45: 0 | BD45: 0 | BE45: 0 | BF45: 0 | BG45: 0 | BH45: 0 | BI45: 0 | BJ45: 0 | BK45: 0 | BL45: 0 | BM45: 0 | BN45: 0 | BO45: 0 | BP45: 0 | BQ45: 0 | BR45: 0 | BS45: 0 | BT45: 0 | BU45: 0 | BV45: 0 | BW45: 0 | BX45: 0 | BY45: 0 | BZ45: 0 | CA45: 0 | CB45: 0 | CC45: 0 | CD45: 0 | CE45: 0 | CF45: 0 | CG45: 0 | CH45: 0 | CI45: 0 | CJ45: 0 | CK45: 0 | CL45: 0 | CM45: 0 | CN45: 0 | CO45: 0 | CP45: 0 | CQ45: 0 | CR45: 0 | CS45: 0 | CT45: 0 | CU45: 0 | CV45: 0 | CW45: 0 | CX45: 0 | CY45: 0 | CZ45: 0 | DA45: 0 | DB45: 0 | DC45: 0 | DD45: 0 | DE45: 0 | DF45: 0 | DG45: 0 | DH45: 0 | DI45: 0 | DJ45: 0 | DR45: 0
B46: 28 | J46: =IF(AND(H46>='A - Contractor Summary'!$F$37,I46<='A - Contractor Summary'!$F$43),"Yes","No") ->  | K46: =VLOOKUP($D46,'C.1 - Rate Sheets (2)'!B:F,2,FALSE) ->  | L46: =VLOOKUP($D46,'C.1 - Rate Sheets (2)'!B:F,3,FALSE) ->  | M46: =VLOOKUP($D46,'C.1 - Rate Sheets (2)'!B:F,4,FALSE) ->  | N46: =VLOOKUP($D46,'C.1 - Rate Sheets (2)'!B:F,5,FALSE) ->  | O46: 0 | P46: 0 | Q46: 0 | R46: 0 | S46: 0 | T46: 0 | U46: 0 | V46: 0 | W46: 0 | X46: 0 | Y46: 0 | Z46: 0 | AA46: 0 | AB46: 0 | AC46: 0 | AD46: 0 | AE46: 0 | AF46: 0 | AG46: 0 | AH46: 0 | AI46: 0 | AJ46: 0 | AK46: 0 | AL46: 0 | AM46: 0 | AN46: 0 | AO46: 0 | AP46: 0 | AQ46: 0 | AR46: 0 | AS46: 0 | AT46: 0 | AU46: 0 | AV46: 0 | AW46: 0 | AX46: 0 | AY46: 0 | AZ46: 0 | BA46: 0 | BB46: 0 | BC46: 0 | BD46: 0 | BE46: 0 | BF46: 0 | BG46: 0 | BH46: 0 | BI46: 0 | BJ46: 0 | BK46: 0 | BL46: 0 | BM46: 0 | BN46: 0 | BO46: 0 | BP46: 0 | BQ46: 0 | BR46: 0 | BS46: 0 | BT46: 0 | BU46: 0 | BV46: 0 | BW46: 0 | BX46: 0 | BY46: 0 | BZ46: 0 | CA46: 0 | CB46: 0 | CC46: 0 | CD46: 0 | CE46: 0 | CF46: 0 | CG46: 0 | CH46: 0 | CI46: 0 | CJ46: 0 | CK46: 0 | CL46: 0 | CM46: 0 | CN46: 0 | CO46: 0 | CP46: 0 | CQ46: 0 | CR46: 0 | CS46: 0 | CT46: 0 | CU46: 0 | CV46: 0 | CW46: 0 | CX46: 0 | CY46: 0 | CZ46: 0 | DA46: 0 | DB46: 0 | DC46: 0 | DD46: 0 | DE46: 0 | DF46: 0 | DG46: 0 | DH46: 0 | DI46: 0 | DJ46: 0 | DR46: 0
B47: 29 | J47: =IF(AND(H47>='A - Contractor Summary'!$F$37,I47<='A - Contractor Summary'!$F$43),"Yes","No") ->  | K47: =VLOOKUP($D47,'C.1 - Rate Sheets (2)'!B:F,2,FALSE) ->  | L47: =VLOOKUP($D47,'C.1 - Rate Sheets (2)'!B:F,3,FALSE) ->  | M47: =VLOOKUP($D47,'C.1 - Rate Sheets (2)'!B:F,4,FALSE) ->  | N47: =VLOOKUP($D47,'C.1 - Rate Sheets (2)'!B:F,5,FALSE) ->  | O47: 0 | P47: 0 | Q47: 0 | R47: 0 | S47: 0 | T47: 0 | U47: 0 | V47: 0 | W47: 0 | X47: 0 | Y47: 0 | Z47: 0 | AA47: 0 | AB47: 0 | AC47: 0 | AD47: 0 | AE47: 0 | AF47: 0 | AG47: 0 | AH47: 0 | AI47: 0 | AJ47: 0 | AK47: 0 | AL47: 0 | AM47: 0 | AN47: 0 | AO47: 0 | AP47: 0 | AQ47: 0 | AR47: 0 | AS47: 0 | AT47: 0 | AU47: 0 | AV47: 0 | AW47: 0 | AX47: 0 | AY47: 0 | AZ47: 0 | BA47: 0 | BB47: 0 | BC47: 0 | BD47: 0 | BE47: 0 | BF47: 0 | BG47: 0 | BH47: 0 | BI47: 0 | BJ47: 0 | BK47: 0 | BL47: 0 | BM47: 0 | BN47: 0 | BO47: 0 | BP47: 0 | BQ47: 0 | BR47: 0 | BS47: 0 | BT47: 0 | BU47: 0 | BV47: 0 | BW47: 0 | BX47: 0 | BY47: 0 | BZ47: 0 | CA47: 0 | CB47: 0 | CC47: 0 | CD47: 0 | CE47: 0 | CF47: 0 | CG47: 0 | CH47: 0 | CI47: 0 | CJ47: 0 | CK47: 0 | CL47: 0 | CM47: 0 | CN47: 0 | CO47: 0 | CP47: 0 | CQ47: 0 | CR47: 0 | CS47: 0 | CT47: 0 | CU47: 0 | CV47: 0 | CW47: 0 | CX47: 0 | CY47: 0 | CZ47: 0 | DA47: 0 | DB47: 0 | DC47: 0 | DD47: 0 | DE47: 0 | DF47: 0 | DG47: 0 | DH47: 0 | DI47: 0 | DJ47: 0 | DR47: 0
B48: 30 | J48: =IF(AND(H48>='A - Contractor Summary'!$F$37,I48<='A - Contractor Summary'!$F$43),"Yes","No") ->  | K48: =VLOOKUP($D48,'C.1 - Rate Sheets (2)'!B:F,2,FALSE) ->  | L48: =VLOOKUP($D48,'C.1 - Rate Sheets (2)'!B:F,3,FALSE) ->  | M48: =VLOOKUP($D48,'C.1 - Rate Sheets (2)'!B:F,4,FALSE) ->  | N48: =VLOOKUP($D48,'C.1 - Rate Sheets (2)'!B:F,5,FALSE) ->  | O48: 0 | P48: 0 | Q48: 0 | R48: 0 | S48: 0 | T48: 0 | U48: 0 | V48: 0 | W48: 0 | X48: 0 | Y48: 0 | Z48: 0 | AA48: 0 | AB48: 0 | AC48: 0 | AD48: 0 | AE48: 0 | AF48: 0 | AG48: 0 | AH48: 0 | AI48: 0 | AJ48: 0 | AK48: 0 | AL48: 0 | AM48: 0 | AN48: 0 | AO48: 0 | AP48: 0 | AQ48: 0 | AR48: 0 | AS48: 0 | AT48: 0 | AU48: 0 | AV48: 0 | AW48: 0 | AX48: 0 | AY48: 0 | AZ48: 0 | BA48: 0 | BB48: 0 | BC48: 0 | BD48: 0 | BE48: 0 | BF48: 0 | BG48: 0 | BH48: 0 | BI48: 0 | BJ48: 0 | BK48: 0 | BL48: 0 | BM48: 0 | BN48: 0 | BO48: 0 | BP48: 0 | BQ48: 0 | BR48: 0 | BS48: 0 | BT48: 0 | BU48: 0 | BV48: 0 | BW48: 0 | BX48: 0 | BY48: 0 | BZ48: 0 | CA48: 0 | CB48: 0 | CC48: 0 | CD48: 0 | CE48: 0 | CF48: 0 | CG48: 0 | CH48: 0 | CI48: 0 | CJ48: 0 | CK48: 0 | CL48: 0 | CM48: 0 | CN48: 0 | CO48: 0 | CP48: 0 | CQ48: 0 | CR48: 0 | CS48: 0 | CT48: 0 | CU48: 0 | CV48: 0 | CW48: 0 | CX48: 0 | CY48: 0 | CZ48: 0 | DA48: 0 | DB48: 0 | DC48: 0 | DD48: 0 | DE48: 0 | DF48: 0 | DG48: 0 | DH48: 0 | DI48: 0 | DJ48: 0 | DR48: 0
B49: 31 | J49: =IF(AND(H49>='A - Contractor Summary'!$F$37,I49<='A - Contractor Summary'!$F$43),"Yes","No") ->  | K49: =VLOOKUP($D49,'C.1 - Rate Sheets (2)'!B:F,2,FALSE) ->  | L49: =VLOOKUP($D49,'C.1 - Rate Sheets (2)'!B:F,3,FALSE) ->  | M49: =VLOOKUP($D49,'C.1 - Rate Sheets (2)'!B:F,4,FALSE) ->  | N49: =VLOOKUP($D49,'C.1 - Rate Sheets (2)'!B:F,5,FALSE) ->  | O49: 0 | P49: 0 | Q49: 0 | R49: 0 | S49: 0 | T49: 0 | U49: 0 | V49: 0 | W49: 0 | X49: 0 | Y49: 0 | Z49: 0 | AA49: 0 | AB49: 0 | AC49: 0 | AD49: 0 | AE49: 0 | AF49: 0 | AG49: 0 | AH49: 0 | AI49: 0 | AJ49: 0 | AK49: 0 | AL49: 0 | AM49: 0 | AN49: 0 | AO49: 0 | AP49: 0 | AQ49: 0 | AR49: 0 | AS49: 0 | AT49: 0 | AU49: 0 | AV49: 0 | AW49: 0 | AX49: 0 | AY49: 0 | AZ49: 0 | BA49: 0 | BB49: 0 | BC49: 0 | BD49: 0 | BE49: 0 | BF49: 0 | BG49: 0 | BH49: 0 | BI49: 0 | BJ49: 0 | BK49: 0 | BL49: 0 | BM49: 0 | BN49: 0 | BO49: 0 | BP49: 0 | BQ49: 0 | BR49: 0 | BS49: 0 | BT49: 0 | BU49: 0 | BV49: 0 | BW49: 0 | BX49: 0 | BY49: 0 | BZ49: 0 | CA49: 0 | CB49: 0 | CC49: 0 | CD49: 0 | CE49: 0 | CF49: 0 | CG49: 0 | CH49: 0 | CI49: 0 | CJ49: 0 | CK49: 0 | CL49: 0 | CM49: 0 | CN49: 0 | CO49: 0 | CP49: 0 | CQ49: 0 | CR49: 0 | CS49: 0 | CT49: 0 | CU49: 0 | CV49: 0 | CW49: 0 | CX49: 0 | CY49: 0 | CZ49: 0 | DA49: 0 | DB49: 0 | DC49: 0 | DD49: 0 | DE49: 0 | DF49: 0 | DG49: 0 | DH49: 0 | DI49: 0 | DJ49: 0 | DR49: 0
B50: 32 | J50: =IF(AND(H50>='A - Contractor Summary'!$F$37,I50<='A - Contractor Summary'!$F$43),"Yes","No") ->  | K50: =VLOOKUP($D50,'C.1 - Rate Sheets (2)'!B:F,2,FALSE) ->  | L50: =VLOOKUP($D50,'C.1 - Rate Sheets (2)'!B:F,3,FALSE) ->  | M50: =VLOOKUP($D50,'C.1 - Rate Sheets (2)'!B:F,4,FALSE) ->  | N50: =VLOOKUP($D50,'C.1 - Rate Sheets (2)'!B:F,5,FALSE) ->  | O50: 0 | P50: 0 | Q50: 0 | R50: 0 | S50: 0 | T50: 0 | U50: 0 | V50: 0 | W50: 0 | X50: 0 | Y50: 0 | Z50: 0 | AA50: 0 | AB50: 0 | AC50: 0 | AD50: 0 | AE50: 0 | AF50: 0 | AG50: 0 | AH50: 0 | AI50: 0 | AJ50: 0 | AK50: 0 | AL50: 0 | AM50: 0 | AN50: 0 | AO50: 0 | AP50: 0 | AQ50: 0 | AR50: 0 | AS50: 0 | AT50: 0 | AU50: 0 | AV50: 0 | AW50: 0 | AX50: 0 | AY50: 0 | AZ50: 0 | BA50: 0 | BB50: 0 | BC50: 0 | BD50: 0 | BE50: 0 | BF50: 0 | BG50: 0 | BH50: 0 | BI50: 0 | BJ50: 0 | BK50: 0 | BL50: 0 | BM50: 0 | BN50: 0 | BO50: 0 | BP50: 0 | BQ50: 0 | BR50: 0 | BS50: 0 | BT50: 0 | BU50: 0 | BV50: 0 | BW50: 0 | BX50: 0 | BY50: 0 | BZ50: 0 | CA50: 0 | CB50: 0 | CC50: 0 | CD50: 0 | CE50: 0 | CF50: 0 | CG50: 0 | CH50: 0 | CI50: 0 | CJ50: 0 | CK50: 0 | CL50: 0 | CM50: 0 | CN50: 0 | CO50: 0 | CP50: 0 | CQ50: 0 | CR50: 0 | CS50: 0 | CT50: 0 | CU50: 0 | CV50: 0 | CW50: 0 | CX50: 0 | CY50: 0 | CZ50: 0 | DA50: 0 | DB50: 0 | DC50: 0 | DD50: 0 | DE50: 0 | DF50: 0 | DG50: 0 | DH50: 0 | DI50: 0 | DJ50: 0 | DR50: 0
B51: 33 | J51: =IF(AND(H51>='A - Contractor Summary'!$F$37,I51<='A - Contractor Summary'!$F$43),"Yes","No") ->  | K51: =VLOOKUP($D51,'C.1 - Rate Sheets (2)'!B:F,2,FALSE) ->  | L51: =VLOOKUP($D51,'C.1 - Rate Sheets (2)'!B:F,3,FALSE) ->  | M51: =VLOOKUP($D51,'C.1 - Rate Sheets (2)'!B:F,4,FALSE) ->  | N51: =VLOOKUP($D51,'C.1 - Rate Sheets (2)'!B:F,5,FALSE) ->  | O51: 0 | P51: 0 | Q51: 0 | R51: 0 | S51: 0 | T51: 0 | U51: 0 | V51: 0 | W51: 0 | X51: 0 | Y51: 0 | Z51: 0 | AA51: 0 | AB51: 0 | AC51: 0 | AD51: 0 | AE51: 0 | AF51: 0 | AG51: 0 | AH51: 0 | AI51: 0 | AJ51: 0 | AK51: 0 | AL51: 0 | AM51: 0 | AN51: 0 | AO51: 0 | AP51: 0 | AQ51: 0 | AR51: 0 | AS51: 0 | AT51: 0 | AU51: 0 | AV51: 0 | AW51: 0 | AX51: 0 | AY51: 0 | AZ51: 0 | BA51: 0 | BB51: 0 | BC51: 0 | BD51: 0 | BE51: 0 | BF51: 0 | BG51: 0 | BH51: 0 | BI51: 0 | BJ51: 0 | BK51: 0 | BL51: 0 | BM51: 0 | BN51: 0 | BO51: 0 | BP51: 0 | BQ51: 0 | BR51: 0 | BS51: 0 | BT51: 0 | BU51: 0 | BV51: 0 | BW51: 0 | BX51: 0 | BY51: 0 | BZ51: 0 | CA51: 0 | CB51: 0 | CC51: 0 | CD51: 0 | CE51: 0 | CF51: 0 | CG51: 0 | CH51: 0 | CI51: 0 | CJ51: 0 | CK51: 0 | CL51: 0 | CM51: 0 | CN51: 0 | CO51: 0 | CP51: 0 | CQ51: 0 | CR51: 0 | CS51: 0 | CT51: 0 | CU51: 0 | CV51: 0 | CW51: 0 | CX51: 0 | CY51: 0 | CZ51: 0 | DA51: 0 | DB51: 0 | DC51: 0 | DD51: 0 | DE51: 0 | DF51: =SUM(O51,T51,Y51,AD51,AI51,AN51,AS51,AX51,BC51,BH51,BM51,BR51,BW51,CB51,CG51,CL51,CQ51,CV51,DA51) -> 0 | DG51: 0 | DH51: 0 | DI51: 0 | DJ51: 0 | DK51: =DF51*K51 ->  | DR51: 0
B52: 34 | J52: =IF(AND(H52>='A - Contractor Summary'!$F$37,I52<='A - Contractor Summary'!$F$43),"Yes","No") ->  | K52: =VLOOKUP($D52,'C.1 - Rate Sheets (2)'!B:F,2,FALSE) ->  | L52: =VLOOKUP($D52,'C.1 - Rate Sheets (2)'!B:F,3,FALSE) ->  | M52: =VLOOKUP($D52,'C.1 - Rate Sheets (2)'!B:F,4,FALSE) ->  | N52: =VLOOKUP($D52,'C.1 - Rate Sheets (2)'!B:F,5,FALSE) ->  | O52: 0 | P52: 0 | Q52: 0 | R52: 0 | S52: 0 | T52: 0 | U52: 0 | V52: 0 | W52: 0 | X52: 0 | Y52: 0 | Z52: 0 | AA52: 0 | AB52: 0 | AC52: 0 | AD52: 0 | AE52: 0 | AF52: 0 | AG52: 0 | AH52: 0 | AI52: 0 | AJ52: 0 | AK52: 0 | AL52: 0 | AM52: 0 | AN52: 0 | AO52: 0 | AP52: 0 | AQ52: 0 | AR52: 0 | AS52: 0 | AT52: 0 | AU52: 0 | AV52: 0 | AW52: 0 | AX52: 0 | AY52: 0 | AZ52: 0 | BA52: 0 | BB52: 0 | BC52: 0 | BD52: 0 | BE52: 0 | BF52: 0 | BG52: 0 | BH52: 0 | BI52: 0 | BJ52: 0 | BK52: 0 | BL52: 0 | BM52: 0 | BN52: 0 | BO52: 0 | BP52: 0 | BQ52: 0 | BR52: 0 | BS52: 0 | BT52: 0 | BU52: 0 | BV52: 0 | BW52: 0 | BX52: 0 | BY52: 0 | BZ52: 0 | CA52: 0 | CB52: 0 | CC52: 0 | CD52: 0 | CE52: 0 | CF52: 0 | CG52: 0 | CH52: 0 | CI52: 0 | CJ52: 0 | CK52: 0 | CL52: 0 | CM52: 0 | CN52: 0 | CO52: 0 | CP52: 0 | CQ52: 0 | CR52: 0 | CS52: 0 | CT52: 0 | CU52: 0 | CV52: 0 | CW52: 0 | CX52: 0 | CY52: 0 | CZ52: 0 | DA52: 0 | DB52: 0 | DC52: 0 | DD52: 0 | DE52: 0 | DF52: 0 | DG52: 0 | DH52: 0 | DI52: 0 | DJ52: 0 | DR52: 0
B53: 35 | J53: =IF(AND(H53>='A - Contractor Summary'!$F$37,I53<='A - Contractor Summary'!$F$43),"Yes","No") ->  | K53: =VLOOKUP($D53,'C.1 - Rate Sheets (2)'!B:F,2,FALSE) ->  | L53: =VLOOKUP($D53,'C.1 - Rate Sheets (2)'!B:F,3,FALSE) ->  | M53: =VLOOKUP($D53,'C.1 - Rate Sheets (2)'!B:F,4,FALSE) ->  | N53: =VLOOKUP($D53,'C.1 - Rate Sheets (2)'!B:F,5,FALSE) ->  | O53: 0 | P53: 0 | Q53: 0 | R53: 0 | S53: 0 | T53: 0 | U53: 0 | V53: 0 | W53: 0 | X53: 0 | Y53: 0 | Z53: 0 | AA53: 0 | AB53: 0 | AC53: 0 | AD53: 0 | AE53: 0 | AF53: 0 | AG53: 0 | AH53: 0 | AI53: 0 | AJ53: 0 | AK53: 0 | AL53: 0 | AM53: 0 | AN53: 0 | AO53: 0 | AP53: 0 | AQ53: 0 | AR53: 0 | AS53: 0 | AT53: 0 | AU53: 0 | AV53: 0 | AW53: 0 | AX53: 0 | AY53: 0 | AZ53: 0 | BA53: 0 | BB53: 0 | BC53: 0 | BD53: 0 | BE53: 0 | BF53: 0 | BG53: 0 | BH53: 0 | BI53: 0 | BJ53: 0 | BK53: 0 | BL53: 0 | BM53: 0 | BN53: 0 | BO53: 0 | BP53: 0 | BQ53: 0 | BR53: 0 | BS53: 0 | BT53: 0 | BU53: 0 | BV53: 0 | BW53: 0 | BX53: 0 | BY53: 0 | BZ53: 0 | CA53: 0 | CB53: 0 | CC53: 0 | CD53: 0 | CE53: 0 | CF53: 0 | CG53: 0 | CH53: 0 | CI53: 0 | CJ53: 0 | CK53: 0 | CL53: 0 | CM53: 0 | CN53: 0 | CO53: 0 | CP53: 0 | CQ53: 0 | CR53: 0 | CS53: 0 | CT53: 0 | CU53: 0 | CV53: 0 | CW53: 0 | CX53: 0 | CY53: 0 | CZ53: 0 | DA53: 0 | DB53: 0 | DC53: 0 | DD53: 0 | DE53: 0 | DF53: 0 | DG53: 0 | DH53: 0 | DI53: 0 | DJ53: 0 | DR53: 0
B54: 36 | J54: =IF(AND(H54>='A - Contractor Summary'!$F$37,I54<='A - Contractor Summary'!$F$43),"Yes","No") ->  | K54: =VLOOKUP($D54,'C.1 - Rate Sheets (2)'!B:F,2,FALSE) ->  | L54: =VLOOKUP($D54,'C.1 - Rate Sheets (2)'!B:F,3,FALSE) ->  | M54: =VLOOKUP($D54,'C.1 - Rate Sheets (2)'!B:F,4,FALSE) ->  | N54: =VLOOKUP($D54,'C.1 - Rate Sheets (2)'!B:F,5,FALSE) ->  | O54: 0 | P54: 0 | Q54: 0 | R54: 0 | S54: 0 | T54: 0 | U54: 0 | V54: 0 | W54: 0 | X54: 0 | Y54: 0 | Z54: 0 | AA54: 0 | AB54: 0 | AC54: 0 | AD54: 0 | AE54: 0 | AF54: 0 | AG54: 0 | AH54: 0 | AI54: 0 | AJ54: 0 | AK54: 0 | AL54: 0 | AM54: 0 | AN54: 0 | AO54: 0 | AP54: 0 | AQ54: 0 | AR54: 0 | AS54: 0 | AT54: 0 | AU54: 0 | AV54: 0 | AW54: 0 | AX54: 0 | AY54: 0 | AZ54: 0 | BA54: 0 | BB54: 0 | BC54: 0 | BD54: 0 | BE54: 0 | BF54: 0 | BG54: 0 | BH54: 0 | BI54: 0 | BJ54: 0 | BK54: 0 | BL54: 0 | BM54: 0 | BN54: 0 | BO54: 0 | BP54: 0 | BQ54: 0 | BR54: 0 | BS54: 0 | BT54: 0 | BU54: 0 | BV54: 0 | BW54: 0 | BX54: 0 | BY54: 0 | BZ54: 0 | CA54: 0 | CB54: 0 | CC54: 0 | CD54: 0 | CE54: 0 | CF54: 0 | CG54: 0 | CH54: 0 | CI54: 0 | CJ54: 0 | CK54: 0 | CL54: 0 | CM54: 0 | CN54: 0 | CO54: 0 | CP54: 0 | CQ54: 0 | CR54: 0 | CS54: 0 | CT54: 0 | CU54: 0 | CV54: 0 | CW54: 0 | CX54: 0 | CY54: 0 | CZ54: 0 | DA54: 0 | DB54: 0 | DC54: 0 | DD54: 0 | DE54: 0 | DF54: 0 | DG54: 0 | DH54: 0 | DI54: 0 | DJ54: 0 | DR54: 0
B55: 37 | J55: =IF(AND(H55>='A - Contractor Summary'!$F$37,I55<='A - Contractor Summary'!$F$43),"Yes","No") ->  | K55: =VLOOKUP($D55,'C.1 - Rate Sheets (2)'!B:F,2,FALSE) ->  | L55: =VLOOKUP($D55,'C.1 - Rate Sheets (2)'!B:F,3,FALSE) ->  | M55: =VLOOKUP($D55,'C.1 - Rate Sheets (2)'!B:F,4,FALSE) ->  | N55: =VLOOKUP($D55,'C.1 - Rate Sheets (2)'!B:F,5,FALSE) ->  | O55: 0 | P55: 0 | Q55: 0 | R55: 0 | S55: 0 | T55: 0 | U55: 0 | V55: 0 | W55: 0 | X55: 0 | Y55: 0 | Z55: 0 | AA55: 0 | AB55: 0 | AC55: 0 | AD55: 0 | AE55: 0 | AF55: 0 | AG55: 0 | AH55: 0 | AI55: 0 | AJ55: 0 | AK55: 0 | AL55: 0 | AM55: 0 | AN55: 0 | AO55: 0 | AP55: 0 | AQ55: 0 | AR55: 0 | AS55: 0 | AT55: 0 | AU55: 0 | AV55: 0 | AW55: 0 | AX55: 0 | AY55: 0 | AZ55: 0 | BA55: 0 | BB55: 0 | BC55: 0 | BD55: 0 | BE55: 0 | BF55: 0 | BG55: 0 | BH55: 0 | BI55: 0 | BJ55: 0 | BK55: 0 | BL55: 0 | BM55: 0 | BN55: 0 | BO55: 0 | BP55: 0 | BQ55: 0 | BR55: 0 | BS55: 0 | BT55: 0 | BU55: 0 | BV55: 0 | BW55: 0 | BX55: 0 | BY55: 0 | BZ55: 0 | CA55: 0 | CB55: 0 | CC55: 0 | CD55: 0 | CE55: 0 | CF55: 0 | CG55: 0 | CH55: 0 | CI55: 0 | CJ55: 0 | CK55: 0 | CL55: 0 | CM55: 0 | CN55: 0 | CO55: 0 | CP55: 0 | CQ55: 0 | CR55: 0 | CS55: 0 | CT55: 0 | CU55: 0 | CV55: 0 | CW55: 0 | CX55: 0 | CY55: 0 | CZ55: 0 | DA55: 0 | DB55: 0 | DC55: 0 | DD55: 0 | DE55: 0 | DF55: 0 | DG55: 0 | DH55: 0 | DI55: 0 | DJ55: 0 | DR55: 0
B56: 38 | J56: =IF(AND(H56>='A - Contractor Summary'!$F$37,I56<='A - Contractor Summary'!$F$43),"Yes","No") ->  | K56: =VLOOKUP($D56,'C.1 - Rate Sheets (2)'!B:F,2,FALSE) ->  | L56: =VLOOKUP($D56,'C.1 - Rate Sheets (2)'!B:F,3,FALSE) ->  | M56: =VLOOKUP($D56,'C.1 - Rate Sheets (2)'!B:F,4,FALSE) ->  | N56: =VLOOKUP($D56,'C.1 - Rate Sheets (2)'!B:F,5,FALSE) ->  | O56: 0 | P56: 0 | Q56: 0 | R56: 0 | S56: 0 | T56: 0 | U56: 0 | V56: 0 | W56: 0 | X56: 0 | Y56: 0 | Z56: 0 | AA56: 0 | AB56: 0 | AC56: 0 | AD56: 0 | AE56: 0 | AF56: 0 | AG56: 0 | AH56: 0 | AI56: 0 | AJ56: 0 | AK56: 0 | AL56: 0 | AM56: 0 | AN56: 0 | AO56: 0 | AP56: 0 | AQ56: 0 | AR56: 0 | AS56: 0 | AT56: 0 | AU56: 0 | AV56: 0 | AW56: 0 | AX56: 0 | AY56: 0 | AZ56: 0 | BA56: 0 | BB56: 0 | BC56: 0 | BD56: 0 | BE56: 0 | BF56: 0 | BG56: 0 | BH56: 0 | BI56: 0 | BJ56: 0 | BK56: 0 | BL56: 0 | BM56: 0 | BN56: 0 | BO56: 0 | BP56: 0 | BQ56: 0 | BR56: 0 | BS56: 0 | BT56: 0 | BU56: 0 | BV56: 0 | BW56: 0 | BX56: 0 | BY56: 0 | BZ56: 0 | CA56: 0 | CB56: 0 | CC56: 0 | CD56: 0 | CE56: 0 | CF56: 0 | CG56: 0 | CH56: 0 | CI56: 0 | CJ56: 0 | CK56: 0 | CL56: 0 | CM56: 0 | CN56: 0 | CO56: 0 | CP56: 0 | CQ56: 0 | CR56: 0 | CS56: 0 | CT56: 0 | CU56: 0 | CV56: 0 | CW56: 0 | CX56: 0 | CY56: 0 | CZ56: 0 | DA56: 0 | DB56: 0 | DC56: 0 | DD56: 0 | DE56: 0 | DF56: 0 | DG56: 0 | DH56: 0 | DI56: 0 | DJ56: 0 | DR56: 0
B57: 39 | J57: =IF(AND(H57>='A - Contractor Summary'!$F$37,I57<='A - Contractor Summary'!$F$43),"Yes","No") ->  | K57: =VLOOKUP($D57,'C.1 - Rate Sheets (2)'!B:F,2,FALSE) ->  | L57: =VLOOKUP($D57,'C.1 - Rate Sheets (2)'!B:F,3,FALSE) ->  | M57: =VLOOKUP($D57,'C.1 - Rate Sheets (2)'!B:F,4,FALSE) ->  | N57: =VLOOKUP($D57,'C.1 - Rate Sheets (2)'!B:F,5,FALSE) ->  | O57: 0 | P57: 0 | Q57: 0 | R57: 0 | S57: 0 | T57: 0 | U57: 0 | V57: 0 | W57: 0 | X57: 0 | Y57: 0 | Z57: 0 | AA57: 0 | AB57: 0 | AC57: 0 | AD57: 0 | AE57: 0 | AF57: 0 | AG57: 0 | AH57: 0 | AI57: 0 | AJ57: 0 | AK57: 0 | AL57: 0 | AM57: 0 | AN57: 0 | AO57: 0 | AP57: 0 | AQ57: 0 | AR57: 0 | AS57: 0 | AT57: 0 | AU57: 0 | AV57: 0 | AW57: 0 | AX57: 0 | AY57: 0 | AZ57: 0 | BA57: 0 | BB57: 0 | BC57: 0 | BD57: 0 | BE57: 0 | BF57: 0 | BG57: 0 | BH57: 0 | BI57: 0 | BJ57: 0 | BK57: 0 | BL57: 0 | BM57: 0 | BN57: 0 | BO57: 0 | BP57: 0 | BQ57: 0 | BR57: 0 | BS57: 0 | BT57: 0 | BU57: 0 | BV57: 0 | BW57: 0 | BX57: 0 | BY57: 0 | BZ57: 0 | CA57: 0 | CB57: 0 | CC57: 0 | CD57: 0 | CE57: 0 | CF57: 0 | CG57: 0 | CH57: 0 | CI57: 0 | CJ57: 0 | CK57: 0 | CL57: 0 | CM57: 0 | CN57: 0 | CO57: 0 | CP57: 0 | CQ57: 0 | CR57: 0 | CS57: 0 | CT57: 0 | CU57: 0 | CV57: 0 | CW57: 0 | CX57: 0 | CY57: 0 | CZ57: 0 | DA57: 0 | DB57: 0 | DC57: 0 | DD57: 0 | DE57: 0 | DF57: 0 | DG57: 0 | DH57: 0 | DI57: 0 | DJ57: 0 | DR57: 0
B58: 40 | J58: =IF(AND(H58>='A - Contractor Summary'!$F$37,I58<='A - Contractor Summary'!$F$43),"Yes","No") ->  | K58: =VLOOKUP($D58,'C.1 - Rate Sheets (2)'!B:F,2,FALSE) ->  | L58: =VLOOKUP($D58,'C.1 - Rate Sheets (2)'!B:F,3,FALSE) ->  | M58: =VLOOKUP($D58,'C.1 - Rate Sheets (2)'!B:F,4,FALSE) ->  | N58: =VLOOKUP($D58,'C.1 - Rate Sheets (2)'!B:F,5,FALSE) ->  | O58: 0 | P58: 0 | Q58: 0 | R58: 0 | S58: 0 | T58: 0 | U58: 0 | V58: 0 | W58: 0 | X58: 0 | Y58: 0 | Z58: 0 | AA58: 0 | AB58: 0 | AC58: 0 | AD58: 0 | AE58: 0 | AF58: 0 | AG58: 0 | AH58: 0 | AI58: 0 | AJ58: 0 | AK58: 0 | AL58: 0 | AM58: 0 | AN58: 0 | AO58: 0 | AP58: 0 | AQ58: 0 | AR58: 0 | AS58: 0 | AT58: 0 | AU58: 0 | AV58: 0 | AW58: 0 | AX58: 0 | AY58: 0 | AZ58: 0 | BA58: 0 | BB58: 0 | BC58: 0 | BD58: 0 | BE58: 0 | BF58: 0 | BG58: 0 | BH58: 0 | BI58: 0 | BJ58: 0 | BK58: 0 | BL58: 0 | BM58: 0 | BN58: 0 | BO58: 0 | BP58: 0 | BQ58: 0 | BR58: 0 | BS58: 0 | BT58: 0 | BU58: 0 | BV58: 0 | BW58: 0 | BX58: 0 | BY58: 0 | BZ58: 0 | CA58: 0 | CB58: 0 | CC58: 0 | CD58: 0 | CE58: 0 | CF58: 0 | CG58: 0 | CH58: 0 | CI58: 0 | CJ58: 0 | CK58: 0 | CL58: 0 | CM58: 0 | CN58: 0 | CO58: 0 | CP58: 0 | CQ58: 0 | CR58: 0 | CS58: 0 | CT58: 0 | CU58: 0 | CV58: 0 | CW58: 0 | CX58: 0 | CY58: 0 | CZ58: 0 | DA58: 0 | DB58: 0 | DC58: 0 | DD58: 0 | DE58: 0 | DF58: 0 | DG58: 0 | DH58: 0 | DI58: 0 | DJ58: 0 | DR58: 0
B59: 41 | J59: =IF(AND(H59>='A - Contractor Summary'!$F$37,I59<='A - Contractor Summary'!$F$43),"Yes","No") ->  | K59: =VLOOKUP($D59,'C.1 - Rate Sheets (2)'!B:F,2,FALSE) ->  | L59: =VLOOKUP($D59,'C.1 - Rate Sheets (2)'!B:F,3,FALSE) ->  | M59: =VLOOKUP($D59,'C.1 - Rate Sheets (2)'!B:F,4,FALSE) ->  | N59: =VLOOKUP($D59,'C.1 - Rate Sheets (2)'!B:F,5,FALSE) ->  | O59: 0 | P59: 0 | Q59: 0 | R59: 0 | S59: 0 | T59: 0 | U59: 0 | V59: 0 | W59: 0 | X59: 0 | Y59: 0 | Z59: 0 | AA59: 0 | AB59: 0 | AC59: 0 | AD59: 0 | AE59: 0 | AF59: 0 | AG59: 0 | AH59: 0 | AI59: 0 | AJ59: 0 | AK59: 0 | AL59: 0 | AM59: 0 | AN59: 0 | AO59: 0 | AP59: 0 | AQ59: 0 | AR59: 0 | AS59: 0 | AT59: 0 | AU59: 0 | AV59: 0 | AW59: 0 | AX59: 0 | AY59: 0 | AZ59: 0 | BA59: 0 | BB59: 0 | BC59: 0 | BD59: 0 | BE59: 0 | BF59: 0 | BG59: 0 | BH59: 0 | BI59: 0 | BJ59: 0 | BK59: 0 | BL59: 0 | BM59: 0 | BN59: 0 | BO59: 0 | BP59: 0 | BQ59: 0 | BR59: 0 | BS59: 0 | BT59: 0 | BU59: 0 | BV59: 0 | BW59: 0 | BX59: 0 | BY59: 0 | BZ59: 0 | CA59: 0 | CB59: 0 | CC59: 0 | CD59: 0 | CE59: 0 | CF59: 0 | CG59: 0 | CH59: 0 | CI59: 0 | CJ59: 0 | CK59: 0 | CL59: 0 | CM59: 0 | CN59: 0 | CO59: 0 | CP59: 0 | CQ59: 0 | CR59: 0 | CS59: 0 | CT59: 0 | CU59: 0 | CV59: 0 | CW59: 0 | CX59: 0 | CY59: 0 | CZ59: 0 | DA59: 0 | DB59: 0 | DC59: 0 | DD59: 0 | DE59: 0 | DF59: 0 | DG59: 0 | DH59: 0 | DI59: 0 | DJ59: 0 | DR59: 0
B60: 42 | J60: =IF(AND(H60>='A - Contractor Summary'!$F$37,I60<='A - Contractor Summary'!$F$43),"Yes","No") ->  | K60: =VLOOKUP($D60,'C.1 - Rate Sheets (2)'!B:F,2,FALSE) ->  | L60: =VLOOKUP($D60,'C.1 - Rate Sheets (2)'!B:F,3,FALSE) ->  | M60: =VLOOKUP($D60,'C.1 - Rate Sheets (2)'!B:F,4,FALSE) ->  | N60: =VLOOKUP($D60,'C.1 - Rate Sheets (2)'!B:F,5,FALSE) ->  | O60: 0 | P60: 0 | Q60: 0 | R60: 0 | S60: 0 | T60: 0 | U60: 0 | V60: 0 | W60: 0 | X60: 0 | Y60: 0 | Z60: 0 | AA60: 0 | AB60: 0 | AC60: 0 | AD60: 0 | AE60: 0 | AF60: 0 | AG60: 0 | AH60: 0 | AI60: 0 | AJ60: 0 | AK60: 0 | AL60: 0 | AM60: 0 | AN60: 0 | AO60: 0 | AP60: 0 | AQ60: 0 | AR60: 0 | AS60: 0 | AT60: 0 | AU60: 0 | AV60: 0 | AW60: 0 | AX60: 0 | AY60: 0 | AZ60: 0 | BA60: 0 | BB60: 0 | BC60: 0 | BD60: 0 | BE60: 0 | BF60: 0 | BG60: 0 | BH60: 0 | BI60: 0 | BJ60: 0 | BK60: 0 | BL60: 0 | BM60: 0 | BN60: 0 | BO60: 0 | BP60: 0 | BQ60: 0 | BR60: 0 | BS60: 0 | BT60: 0 | BU60: 0 | BV60: 0 | BW60: 0 | BX60: 0 | BY60: 0 | BZ60: 0 | CA60: 0 | CB60: 0 | CC60: 0 | CD60: 0 | CE60: 0 | CF60: 0 | CG60: 0 | CH60: 0 | CI60: 0 | CJ60: 0 | CK60: 0 | CL60: 0 | CM60: 0 | CN60: 0 | CO60: 0 | CP60: 0 | CQ60: 0 | CR60: 0 | CS60: 0 | CT60: 0 | CU60: 0 | CV60: 0 | CW60: 0 | CX60: 0 | CY60: 0 | CZ60: 0 | DA60: 0 | DB60: 0 | DC60: 0 | DD60: 0 | DE60: 0 | DF60: 0 | DG60: 0 | DH60: 0 | DI60: 0 | DJ60: 0 | DR60: 0
B61: 43 | J61: =IF(AND(H61>='A - Contractor Summary'!$F$37,I61<='A - Contractor Summary'!$F$43),"Yes","No") ->  | K61: =VLOOKUP($D61,'C.1 - Rate Sheets (2)'!B:F,2,FALSE) ->  | L61: =VLOOKUP($D61,'C.1 - Rate Sheets (2)'!B:F,3,FALSE) ->  | M61: =VLOOKUP($D61,'C.1 - Rate Sheets (2)'!B:F,4,FALSE) ->  | N61: =VLOOKUP($D61,'C.1 - Rate Sheets (2)'!B:F,5,FALSE) ->  | O61: 0 | P61: 0 | Q61: 0 | R61: 0 | S61: 0 | T61: 0 | U61: 0 | V61: 0 | W61: 0 | X61: 0 | Y61: 0 | Z61: 0 | AA61: 0 | AB61: 0 | AC61: 0 | AD61: 0 | AE61: 0 | AF61: 0 | AG61: 0 | AH61: 0 | AI61: 0 | AJ61: 0 | AK61: 0 | AL61: 0 | AM61: 0 | AN61: 0 | AO61: 0 | AP61: 0 | AQ61: 0 | AR61: 0 | AS61: 0 | AT61: 0 | AU61: 0 | AV61: 0 | AW61: 0 | AX61: 0 | AY61: 0 | AZ61: 0 | BA61: 0 | BB61: 0 | BC61: 0 | BD61: 0 | BE61: 0 | BF61: 0 | BG61: 0 | BH61: 0 | BI61: 0 | BJ61: 0 | BK61: 0 | BL61: 0 | BM61: 0 | BN61: 0 | BO61: 0 | BP61: 0 | BQ61: 0 | BR61: 0 | BS61: 0 | BT61: 0 | BU61: 0 | BV61: 0 | BW61: 0 | BX61: 0 | BY61: 0 | BZ61: 0 | CA61: 0 | CB61: 0 | CC61: 0 | CD61: 0 | CE61: 0 | CF61: 0 | CG61: 0 | CH61: 0 | CI61: 0 | CJ61: 0 | CK61: 0 | CL61: 0 | CM61: 0 | CN61: 0 | CO61: 0 | CP61: 0 | CQ61: 0 | CR61: 0 | CS61: 0 | CT61: 0 | CU61: 0 | CV61: 0 | CW61: 0 | CX61: 0 | CY61: 0 | CZ61: 0 | DA61: 0 | DB61: 0 | DC61: 0 | DD61: 0 | DE61: 0 | DF61: 0 | DG61: 0 | DH61: 0 | DI61: 0 | DJ61: 0 | DR61: 0
B62: 44 | J62: =IF(AND(H62>='A - Contractor Summary'!$F$37,I62<='A - Contractor Summary'!$F$43),"Yes","No") ->  | K62: =VLOOKUP($D62,'C.1 - Rate Sheets (2)'!B:F,2,FALSE) ->  | L62: =VLOOKUP($D62,'C.1 - Rate Sheets (2)'!B:F,3,FALSE) ->  | M62: =VLOOKUP($D62,'C.1 - Rate Sheets (2)'!B:F,4,FALSE) ->  | N62: =VLOOKUP($D62,'C.1 - Rate Sheets (2)'!B:F,5,FALSE) ->  | O62: 0 | P62: 0 | Q62: 0 | R62: 0 | S62: 0 | T62: 0 | U62: 0 | V62: 0 | W62: 0 | X62: 0 | Y62: 0 | Z62: 0 | AA62: 0 | AB62: 0 | AC62: 0 | AD62: 0 | AE62: 0 | AF62: 0 | AG62: 0 | AH62: 0 | AI62: 0 | AJ62: 0 | AK62: 0 | AL62: 0 | AM62: 0 | AN62: 0 | AO62: 0 | AP62: 0 | AQ62: 0 | AR62: 0 | AS62: 0 | AT62: 0 | AU62: 0 | AV62: 0 | AW62: 0 | AX62: 0 | AY62: 0 | AZ62: 0 | BA62: 0 | BB62: 0 | BC62: 0 | BD62: 0 | BE62: 0 | BF62: 0 | BG62: 0 | BH62: 0 | BI62: 0 | BJ62: 0 | BK62: 0 | BL62: 0 | BM62: 0 | BN62: 0 | BO62: 0 | BP62: 0 | BQ62: 0 | BR62: 0 | BS62: 0 | BT62: 0 | BU62: 0 | BV62: 0 | BW62: 0 | BX62: 0 | BY62: 0 | BZ62: 0 | CA62: 0 | CB62: 0 | CC62: 0 | CD62: 0 | CE62: 0 | CF62: 0 | CG62: 0 | CH62: 0 | CI62: 0 | CJ62: 0 | CK62: 0 | CL62: 0 | CM62: 0 | CN62: 0 | CO62: 0 | CP62: 0 | CQ62: 0 | CR62: 0 | CS62: 0 | CT62: 0 | CU62: 0 | CV62: 0 | CW62: 0 | CX62: 0 | CY62: 0 | CZ62: 0 | DA62: 0 | DB62: 0 | DC62: 0 | DD62: 0 | DE62: 0 | DF62: 0 | DG62: 0 | DH62: 0 | DI62: 0 | DJ62: 0 | DR62: 0
B63: 45 | J63: =IF(AND(H63>='A - Contractor Summary'!$F$37,I63<='A - Contractor Summary'!$F$43),"Yes","No") ->  | K63: =VLOOKUP($D63,'C.1 - Rate Sheets (2)'!B:F,2,FALSE) ->  | L63: =VLOOKUP($D63,'C.1 - Rate Sheets (2)'!B:F,3,FALSE) ->  | M63: =VLOOKUP($D63,'C.1 - Rate Sheets (2)'!B:F,4,FALSE) ->  | N63: =VLOOKUP($D63,'C.1 - Rate Sheets (2)'!B:F,5,FALSE) ->  | O63: 0 | P63: 0 | Q63: 0 | R63: 0 | S63: 0 | T63: 0 | U63: 0 | V63: 0 | W63: 0 | X63: 0 | Y63: 0 | Z63: 0 | AA63: 0 | AB63: 0 | AC63: 0 | AD63: 0 | AE63: 0 | AF63: 0 | AG63: 0 | AH63: 0 | AI63: 0 | AJ63: 0 | AK63: 0 | AL63: 0 | AM63: 0 | AN63: 0 | AO63: 0 | AP63: 0 | AQ63: 0 | AR63: 0 | AS63: 0 | AT63: 0 | AU63: 0 | AV63: 0 | AW63: 0 | AX63: 0 | AY63: 0 | AZ63: 0 | BA63: 0 | BB63: 0 | BC63: 0 | BD63: 0 | BE63: 0 | BF63: 0 | BG63: 0 | BH63: 0 | BI63: 0 | BJ63: 0 | BK63: 0 | BL63: 0 | BM63: 0 | BN63: 0 | BO63: 0 | BP63: 0 | BQ63: 0 | BR63: 0 | BS63: 0 | BT63: 0 | BU63: 0 | BV63: 0 | BW63: 0 | BX63: 0 | BY63: 0 | BZ63: 0 | CA63: 0 | CB63: 0 | CC63: 0 | CD63: 0 | CE63: 0 | CF63: 0 | CG63: 0 | CH63: 0 | CI63: 0 | CJ63: 0 | CK63: 0 | CL63: 0 | CM63: 0 | CN63: 0 | CO63: 0 | CP63: 0 | CQ63: 0 | CR63: 0 | CS63: 0 | CT63: 0 | CU63: 0 | CV63: 0 | CW63: 0 | CX63: 0 | CY63: 0 | CZ63: 0 | DA63: 0 | DB63: 0 | DC63: 0 | DD63: 0 | DE63: 0 | DF63: 0 | DG63: 0 | DH63: 0 | DI63: 0 | DJ63: 0 | DR63: 0
B64: 46 | J64: =IF(AND(H64>='A - Contractor Summary'!$F$37,I64<='A - Contractor Summary'!$F$43),"Yes","No") ->  | K64: =VLOOKUP($D64,'C.1 - Rate Sheets (2)'!B:F,2,FALSE) ->  | L64: =VLOOKUP($D64,'C.1 - Rate Sheets (2)'!B:F,3,FALSE) ->  | M64: =VLOOKUP($D64,'C.1 - Rate Sheets (2)'!B:F,4,FALSE) ->  | N64: =VLOOKUP($D64,'C.1 - Rate Sheets (2)'!B:F,5,FALSE) ->  | O64: 0 | P64: 0 | Q64: 0 | R64: 0 | S64: 0 | T64: 0 | U64: 0 | V64: 0 | W64: 0 | X64: 0 | Y64: 0 | Z64: 0 | AA64: 0 | AB64: 0 | AC64: 0 | AD64: 0 | AE64: 0 | AF64: 0 | AG64: 0 | AH64: 0 | AI64: 0 | AJ64: 0 | AK64: 0 | AL64: 0 | AM64: 0 | AN64: 0 | AO64: 0 | AP64: 0 | AQ64: 0 | AR64: 0 | AS64: 0 | AT64: 0 | AU64: 0 | AV64: 0 | AW64: 0 | AX64: 0 | AY64: 0 | AZ64: 0 | BA64: 0 | BB64: 0 | BC64: 0 | BD64: 0 | BE64: 0 | BF64: 0 | BG64: 0 | BH64: 0 | BI64: 0 | BJ64: 0 | BK64: 0 | BL64: 0 | BM64: 0 | BN64: 0 | BO64: 0 | BP64: 0 | BQ64: 0 | BR64: 0 | BS64: 0 | BT64: 0 | BU64: 0 | BV64: 0 | BW64: 0 | BX64: 0 | BY64: 0 | BZ64: 0 | CA64: 0 | CB64: 0 | CC64: 0 | CD64: 0 | CE64: 0 | CF64: 0 | CG64: 0 | CH64: 0 | CI64: 0 | CJ64: 0 | CK64: 0 | CL64: 0 | CM64: 0 | CN64: 0 | CO64: 0 | CP64: 0 | CQ64: 0 | CR64: 0 | CS64: 0 | CT64: 0 | CU64: 0 | CV64: 0 | CW64: 0 | CX64: 0 | CY64: 0 | CZ64: 0 | DA64: 0 | DB64: 0 | DC64: 0 | DD64: 0 | DE64: 0 | DF64: 0 | DG64: 0 | DH64: 0 | DI64: 0 | DJ64: 0 | DR64: 0
B65: 47 | J65: =IF(AND(H65>='A - Contractor Summary'!$F$37,I65<='A - Contractor Summary'!$F$43),"Yes","No") ->  | K65: =VLOOKUP($D65,'C.1 - Rate Sheets (2)'!B:F,2,FALSE) ->  | L65: =VLOOKUP($D65,'C.1 - Rate Sheets (2)'!B:F,3,FALSE) ->  | M65: =VLOOKUP($D65,'C.1 - Rate Sheets (2)'!B:F,4,FALSE) ->  | N65: =VLOOKUP($D65,'C.1 - Rate Sheets (2)'!B:F,5,FALSE) ->  | O65: 0 | P65: 0 | Q65: 0 | R65: 0 | S65: 0 | T65: 0 | U65: 0 | V65: 0 | W65: 0 | X65: 0 | Y65: 0 | Z65: 0 | AA65: 0 | AB65: 0 | AC65: 0 | AD65: 0 | AE65: 0 | AF65: 0 | AG65: 0 | AH65: 0 | AI65: 0 | AJ65: 0 | AK65: 0 | AL65: 0 | AM65: 0 | AN65: 0 | AO65: 0 | AP65: 0 | AQ65: 0 | AR65: 0 | AS65: 0 | AT65: 0 | AU65: 0 | AV65: 0 | AW65: 0 | AX65: 0 | AY65: 0 | AZ65: 0 | BA65: 0 | BB65: 0 | BC65: 0 | BD65: 0 | BE65: 0 | BF65: 0 | BG65: 0 | BH65: 0 | BI65: 0 | BJ65: 0 | BK65: 0 | BL65: 0 | BM65: 0 | BN65: 0 | BO65: 0 | BP65: 0 | BQ65: 0 | BR65: 0 | BS65: 0 | BT65: 0 | BU65: 0 | BV65: 0 | BW65: 0 | BX65: 0 | BY65: 0 | BZ65: 0 | CA65: 0 | CB65: 0 | CC65: 0 | CD65: 0 | CE65: 0 | CF65: 0 | CG65: 0 | CH65: 0 | CI65: 0 | CJ65: 0 | CK65: 0 | CL65: 0 | CM65: 0 | CN65: 0 | CO65: 0 | CP65: 0 | CQ65: 0 | CR65: 0 | CS65: 0 | CT65: 0 | CU65: 0 | CV65: 0 | CW65: 0 | CX65: 0 | CY65: 0 | CZ65: 0 | DA65: 0 | DB65: 0 | DC65: 0 | DD65: 0 | DE65: 0 | DF65: 0 | DG65: 0 | DH65: 0 | DI65: 0 | DJ65: 0 | DR65: 0
B66: 48 | J66: =IF(AND(H66>='A - Contractor Summary'!$F$37,I66<='A - Contractor Summary'!$F$43),"Yes","No") ->  | K66: =VLOOKUP($D66,'C.1 - Rate Sheets (2)'!B:F,2,FALSE) ->  | L66: =VLOOKUP($D66,'C.1 - Rate Sheets (2)'!B:F,3,FALSE) ->  | M66: =VLOOKUP($D66,'C.1 - Rate Sheets (2)'!B:F,4,FALSE) ->  | N66: =VLOOKUP($D66,'C.1 - Rate Sheets (2)'!B:F,5,FALSE) ->  | O66: 0 | P66: 0 | Q66: 0 | R66: 0 | S66: 0 | T66: 0 | U66: 0 | V66: 0 | W66: 0 | X66: 0 | Y66: 0 | Z66: 0 | AA66: 0 | AB66: 0 | AC66: 0 | AD66: 0 | AE66: 0 | AF66: 0 | AG66: 0 | AH66: 0 | AI66: 0 | AJ66: 0 | AK66: 0 | AL66: 0 | AM66: 0 | AN66: 0 | AO66: 0 | AP66: 0 | AQ66: 0 | AR66: 0 | AS66: 0 | AT66: 0 | AU66: 0 | AV66: 0 | AW66: 0 | AX66: 0 | AY66: 0 | AZ66: 0 | BA66: 0 | BB66: 0 | BC66: 0 | BD66: 0 | BE66: 0 | BF66: 0 | BG66: 0 | BH66: 0 | BI66: 0 | BJ66: 0 | BK66: 0 | BL66: 0 | BM66: 0 | BN66: 0 | BO66: 0 | BP66: 0 | BQ66: 0 | BR66: 0 | BS66: 0 | BT66: 0 | BU66: 0 | BV66: 0 | BW66: 0 | BX66: 0 | BY66: 0 | BZ66: 0 | CA66: 0 | CB66: 0 | CC66: 0 | CD66: 0 | CE66: 0 | CF66: 0 | CG66: 0 | CH66: 0 | CI66: 0 | CJ66: 0 | CK66: 0 | CL66: 0 | CM66: 0 | CN66: 0 | CO66: 0 | CP66: 0 | CQ66: 0 | CR66: 0 | CS66: 0 | CT66: 0 | CU66: 0 | CV66: 0 | CW66: 0 | CX66: 0 | CY66: 0 | CZ66: 0 | DA66: 0 | DB66: 0 | DC66: 0 | DD66: 0 | DE66: 0 | DF66: 0 | DG66: 0 | DH66: 0 | DI66: 0 | DJ66: 0 | DR66: 0
B67: 49 | J67: =IF(AND(H67>='A - Contractor Summary'!$F$37,I67<='A - Contractor Summary'!$F$43),"Yes","No") ->  | K67: =VLOOKUP($D67,'C.1 - Rate Sheets (2)'!B:F,2,FALSE) ->  | L67: =VLOOKUP($D67,'C.1 - Rate Sheets (2)'!B:F,3,FALSE) ->  | M67: =VLOOKUP($D67,'C.1 - Rate Sheets (2)'!B:F,4,FALSE) ->  | N67: =VLOOKUP($D67,'C.1 - Rate Sheets (2)'!B:F,5,FALSE) ->  | O67: 0 | P67: 0 | Q67: 0 | R67: 0 | S67: 0 | T67: 0 | U67: 0 | V67: 0 | W67: 0 | X67: 0 | Y67: 0 | Z67: 0 | AA67: 0 | AB67: 0 | AC67: 0 | AD67: 0 | AE67: 0 | AF67: 0 | AG67: 0 | AH67: 0 | AI67: 0 | AJ67: 0 | AK67: 0 | AL67: 0 | AM67: 0 | AN67: 0 | AO67: 0 | AP67: 0 | AQ67: 0 | AR67: 0 | AS67: 0 | AT67: 0 | AU67: 0 | AV67: 0 | AW67: 0 | AX67: 0 | AY67: 0 | AZ67: 0 | BA67: 0 | BB67: 0 | BC67: 0 | BD67: 0 | BE67: 0 | BF67: 0 | BG67: 0 | BH67: 0 | BI67: 0 | BJ67: 0 | BK67: 0 | BL67: 0 | BM67: 0 | BN67: 0 | BO67: 0 | BP67: 0 | BQ67: 0 | BR67: 0 | BS67: 0 | BT67: 0 | BU67: 0 | BV67: 0 | BW67: 0 | BX67: 0 | BY67: 0 | BZ67: 0 | CA67: 0 | CB67: 0 | CC67: 0 | CD67: 0 | CE67: 0 | CF67: 0 | CG67: 0 | CH67: 0 | CI67: 0 | CJ67: 0 | CK67: 0 | CL67: 0 | CM67: 0 | CN67: 0 | CO67: 0 | CP67: 0 | CQ67: 0 | CR67: 0 | CS67: 0 | CT67: 0 | CU67: 0 | CV67: 0 | CW67: 0 | CX67: 0 | CY67: 0 | CZ67: 0 | DA67: 0 | DB67: 0 | DC67: 0 | DD67: 0 | DE67: 0 | DF67: 0 | DG67: 0 | DH67: 0 | DI67: 0 | DJ67: 0 | DR67: 0
B68: 50 | J68: =IF(AND(H68>='A - Contractor Summary'!$F$37,I68<='A - Contractor Summary'!$F$43),"Yes","No") ->  | K68: =VLOOKUP($D68,'C.1 - Rate Sheets (2)'!B:F,2,FALSE) ->  | L68: =VLOOKUP($D68,'C.1 - Rate Sheets (2)'!B:F,3,FALSE) ->  | M68: =VLOOKUP($D68,'C.1 - Rate Sheets (2)'!B:F,4,FALSE) ->  | N68: =VLOOKUP($D68,'C.1 - Rate Sheets (2)'!B:F,5,FALSE) ->  | O68: 0 | P68: 0 | Q68: 0 | R68: 0 | S68: 0 | T68: 0 | U68: 0 | V68: 0 | W68: 0 | X68: 0 | Y68: 0 | Z68: 0 | AA68: 0 | AB68: 0 | AC68: 0 | AD68: 0 | AE68: 0 | AF68: 0 | AG68: 0 | AH68: 0 | AI68: 0 | AJ68: 0 | AK68: 0 | AL68: 0 | AM68: 0 | AN68: 0 | AO68: 0 | AP68: 0 | AQ68: 0 | AR68: 0 | AS68: 0 | AT68: 0 | AU68: 0 | AV68: 0 | AW68: 0 | AX68: 0 | AY68: 0 | AZ68: 0 | BA68: 0 | BB68: 0 | BC68: 0 | BD68: 0 | BE68: 0 | BF68: 0 | BG68: 0 | BH68: 0 | BI68: 0 | BJ68: 0 | BK68: 0 | BL68: 0 | BM68: 0 | BN68: 0 | BO68: 0 | BP68: 0 | BQ68: 0 | BR68: 0 | BS68: 0 | BT68: 0 | BU68: 0 | BV68: 0 | BW68: 0 | BX68: 0 | BY68: 0 | BZ68: 0 | CA68: 0 | CB68: 0 | CC68: 0 | CD68: 0 | CE68: 0 | CF68: 0 | CG68: 0 | CH68: 0 | CI68: 0 | CJ68: 0 | CK68: 0 | CL68: 0 | CM68: 0 | CN68: 0 | CO68: 0 | CP68: 0 | CQ68: 0 | CR68: 0 | CS68: 0 | CT68: 0 | CU68: 0 | CV68: 0 | CW68: 0 | CX68: 0 | CY68: 0 | CZ68: 0 | DA68: 0 | DB68: 0 | DC68: 0 | DD68: 0 | DE68: 0 | DF68: 0 | DG68: 0 | DH68: 0 | DI68: 0 | DJ68: 0 | DR68: 0
B69: 51 | J69: =IF(AND(H69>='A - Contractor Summary'!$F$37,I69<='A - Contractor Summary'!$F$43),"Yes","No") ->  | K69: =VLOOKUP($D69,'C.1 - Rate Sheets (2)'!B:F,2,FALSE) ->  | L69: =VLOOKUP($D69,'C.1 - Rate Sheets (2)'!B:F,3,FALSE) ->  | M69: =VLOOKUP($D69,'C.1 - Rate Sheets (2)'!B:F,4,FALSE) ->  | N69: =VLOOKUP($D69,'C.1 - Rate Sheets (2)'!B:F,5,FALSE) ->  | O69: 0 | P69: 0 | Q69: 0 | R69: 0 | S69: 0 | T69: 0 | U69: 0 | V69: 0 | W69: 0 | X69: 0 | Y69: 0 | Z69: 0 | AA69: 0 | AB69: 0 | AC69: 0 | AD69: 0 | AE69: 0 | AF69: 0 | AG69: 0 | AH69: 0 | AI69: 0 | AJ69: 0 | AK69: 0 | AL69: 0 | AM69: 0 | AN69: 0 | AO69: 0 | AP69: 0 | AQ69: 0 | AR69: 0 | AS69: 0 | AT69: 0 | AU69: 0 | AV69: 0 | AW69: 0 | AX69: 0 | AY69: 0 | AZ69: 0 | BA69: 0 | BB69: 0 | BC69: 0 | BD69: 0 | BE69: 0 | BF69: 0 | BG69: 0 | BH69: 0 | BI69: 0 | BJ69: 0 | BK69: 0 | BL69: 0 | BM69: 0 | BN69: 0 | BO69: 0 | BP69: 0 | BQ69: 0 | BR69: 0 | BS69: 0 | BT69: 0 | BU69: 0 | BV69: 0 | BW69: 0 | BX69: 0 | BY69: 0 | BZ69: 0 | CA69: 0 | CB69: 0 | CC69: 0 | CD69: 0 | CE69: 0 | CF69: 0 | CG69: 0 | CH69: 0 | CI69: 0 | CJ69: 0 | CK69: 0 | CL69: 0 | CM69: 0 | CN69: 0 | CO69: 0 | CP69: 0 | CQ69: 0 | CR69: 0 | CS69: 0 | CT69: 0 | CU69: 0 | CV69: 0 | CW69: 0 | CX69: 0 | CY69: 0 | CZ69: 0 | DA69: 0 | DB69: 0 | DC69: 0 | DD69: 0 | DE69: 0 | DF69: 0 | DG69: 0 | DH69: 0 | DI69: 0 | DJ69: 0 | DR69: 0
B70: 52 | J70: =IF(AND(H70>='A - Contractor Summary'!$F$37,I70<='A - Contractor Summary'!$F$43),"Yes","No") ->  | K70: =VLOOKUP($D70,'C.1 - Rate Sheets (2)'!B:F,2,FALSE) ->  | L70: =VLOOKUP($D70,'C.1 - Rate Sheets (2)'!B:F,3,FALSE) ->  | M70: =VLOOKUP($D70,'C.1 - Rate Sheets (2)'!B:F,4,FALSE) ->  | N70: =VLOOKUP($D70,'C.1 - Rate Sheets (2)'!B:F,5,FALSE) ->  | O70: 0 | P70: 0 | Q70: 0 | R70: 0 | S70: 0 | T70: 0 | U70: 0 | V70: 0 | W70: 0 | X70: 0 | Y70: 0 | Z70: 0 | AA70: 0 | AB70: 0 | AC70: 0 | AD70: 0 | AE70: 0 | AF70: 0 | AG70: 0 | AH70: 0 | AI70: 0 | AJ70: 0 | AK70: 0 | AL70: 0 | AM70: 0 | AN70: 0 | AO70: 0 | AP70: 0 | AQ70: 0 | AR70: 0 | AS70: 0 | AT70: 0 | AU70: 0 | AV70: 0 | AW70: 0 | AX70: 0 | AY70: 0 | AZ70: 0 | BA70: 0 | BB70: 0 | BC70: 0 | BD70: 0 | BE70: 0 | BF70: 0 | BG70: 0 | BH70: 0 | BI70: 0 | BJ70: 0 | BK70: 0 | BL70: 0 | BM70: 0 | BN70: 0 | BO70: 0 | BP70: 0 | BQ70: 0 | BR70: 0 | BS70: 0 | BT70: 0 | BU70: 0 | BV70: 0 | BW70: 0 | BX70: 0 | BY70: 0 | BZ70: 0 | CA70: 0 | CB70: 0 | CC70: 0 | CD70: 0 | CE70: 0 | CF70: 0 | CG70: 0 | CH70: 0 | CI70: 0 | CJ70: 0 | CK70: 0 | CL70: 0 | CM70: 0 | CN70: 0 | CO70: 0 | CP70: 0 | CQ70: 0 | CR70: 0 | CS70: 0 | CT70: 0 | CU70: 0 | CV70: 0 | CW70: 0 | CX70: 0 | CY70: 0 | CZ70: 0 | DA70: 0 | DB70: 0 | DC70: 0 | DD70: 0 | DE70: 0 | DF70: 0 | DG70: 0 | DH70: 0 | DI70: 0 | DJ70: 0 | DR70: 0
B71: 53 | J71: =IF(AND(H71>='A - Contractor Summary'!$F$37,I71<='A - Contractor Summary'!$F$43),"Yes","No") ->  | K71: =VLOOKUP($D71,'C.1 - Rate Sheets (2)'!B:F,2,FALSE) ->  | L71: =VLOOKUP($D71,'C.1 - Rate Sheets (2)'!B:F,3,FALSE) ->  | M71: =VLOOKUP($D71,'C.1 - Rate Sheets (2)'!B:F,4,FALSE) ->  | N71: =VLOOKUP($D71,'C.1 - Rate Sheets (2)'!B:F,5,FALSE) ->  | O71: 0 | P71: 0 | Q71: 0 | R71: 0 | S71: 0 | T71: 0 | U71: 0 | V71: 0 | W71: 0 | X71: 0 | Y71: 0 | Z71: 0 | AA71: 0 | AB71: 0 | AC71: 0 | AD71: 0 | AE71: 0 | AF71: 0 | AG71: 0 | AH71: 0 | AI71: 0 | AJ71: 0 | AK71: 0 | AL71: 0 | AM71: 0 | AN71: 0 | AO71: 0 | AP71: 0 | AQ71: 0 | AR71: 0 | AS71: 0 | AT71: 0 | AU71: 0 | AV71: 0 | AW71: 0 | AX71: 0 | AY71: 0 | AZ71: 0 | BA71: 0 | BB71: 0 | BC71: 0 | BD71: 0 | BE71: 0 | BF71: 0 | BG71: 0 | BH71: 0 | BI71: 0 | BJ71: 0 | BK71: 0 | BL71: 0 | BM71: 0 | BN71: 0 | BO71: 0 | BP71: 0 | BQ71: 0 | BR71: 0 | BS71: 0 | BT71: 0 | BU71: 0 | BV71: 0 | BW71: 0 | BX71: 0 | BY71: 0 | BZ71: 0 | CA71: 0 | CB71: 0 | CC71: 0 | CD71: 0 | CE71: 0 | CF71: 0 | CG71: 0 | CH71: 0 | CI71: 0 | CJ71: 0 | CK71: 0 | CL71: 0 | CM71: 0 | CN71: 0 | CO71: 0 | CP71: 0 | CQ71: 0 | CR71: 0 | CS71: 0 | CT71: 0 | CU71: 0 | CV71: 0 | CW71: 0 | CX71: 0 | CY71: 0 | CZ71: 0 | DA71: 0 | DB71: 0 | DC71: 0 | DD71: 0 | DE71: 0 | DF71: 0 | DG71: 0 | DH71: 0 | DI71: 0 | DJ71: =SUM(DF71:DI71) -> 0 | DR71: 0
B72: 54 | J72: =IF(AND(H72>='A - Contractor Summary'!$F$37,I72<='A - Contractor Summary'!$F$43),"Yes","No") ->  | K72: =VLOOKUP($D72,'C.1 - Rate Sheets (2)'!B:F,2,FALSE) ->  | L72: =VLOOKUP($D72,'C.1 - Rate Sheets (2)'!B:F,3,FALSE) ->  | M72: =VLOOKUP($D72,'C.1 - Rate Sheets (2)'!B:F,4,FALSE) ->  | N72: =VLOOKUP($D72,'C.1 - Rate Sheets (2)'!B:F,5,FALSE) ->  | O72: 0 | P72: 0 | Q72: 0 | R72: 0 | S72: 0 | T72: 0 | U72: 0 | V72: 0 | W72: 0 | X72: 0 | Y72: 0 | Z72: 0 | AA72: 0 | AB72: 0 | AC72: 0 | AD72: 0 | AE72: 0 | AF72: 0 | AG72: 0 | AH72: 0 | AI72: 0 | AJ72: 0 | AK72: 0 | AL72: 0 | AM72: 0 | AN72: 0 | AO72: 0 | AP72: 0 | AQ72: 0 | AR72: 0 | AS72: 0 | AT72: 0 | AU72: 0 | AV72: 0 | AW72: 0 | AX72: 0 | AY72: 0 | AZ72: 0 | BA72: 0 | BB72: 0 | BC72: 0 | BD72: 0 | BE72: 0 | BF72: 0 | BG72: 0 | BH72: 0 | BI72: 0 | BJ72: 0 | BK72: 0 | BL72: 0 | BM72: 0 | BN72: 0 | BO72: 0 | BP72: 0 | BQ72: 0 | BR72: 0 | BS72: 0 | BT72: 0 | BU72: 0 | BV72: 0 | BW72: 0 | BX72: 0 | BY72: 0 | BZ72: 0 | CA72: 0 | CB72: 0 | CC72: 0 | CD72: 0 | CE72: 0 | CF72: 0 | CG72: 0 | CH72: 0 | CI72: 0 | CJ72: 0 | CK72: 0 | CL72: 0 | CM72: 0 | CN72: 0 | CO72: 0 | CP72: 0 | CQ72: 0 | CR72: 0 | CS72: 0 | CT72: 0 | CU72: 0 | CV72: 0 | CW72: 0 | CX72: 0 | CY72: 0 | CZ72: 0 | DA72: 0 | DB72: 0 | DC72: 0 | DD72: 0 | DE72: 0 | DF72: 0 | DG72: 0 | DH72: 0 | DI72: 0 | DJ72: 0 | DR72: 0
B73: 55 | J73: =IF(AND(H73>='A - Contractor Summary'!$F$37,I73<='A - Contractor Summary'!$F$43),"Yes","No") ->  | K73: =VLOOKUP($D73,'C.1 - Rate Sheets (2)'!B:F,2,FALSE) ->  | L73: =VLOOKUP($D73,'C.1 - Rate Sheets (2)'!B:F,3,FALSE) ->  | M73: =VLOOKUP($D73,'C.1 - Rate Sheets (2)'!B:F,4,FALSE) ->  | N73: =VLOOKUP($D73,'C.1 - Rate Sheets (2)'!B:F,5,FALSE) ->  | O73: 0 | P73: 0 | Q73: 0 | R73: 0 | S73: 0 | T73: 0 | U73: 0 | V73: 0 | W73: 0 | X73: 0 | Y73: 0 | Z73: 0 | AA73: 0 | AB73: 0 | AC73: 0 | AD73: 0 | AE73: 0 | AF73: 0 | AG73: 0 | AH73: 0 | AI73: 0 | AJ73: 0 | AK73: 0 | AL73: 0 | AM73: 0 | AN73: 0 | AO73: 0 | AP73: 0 | AQ73: 0 | AR73: 0 | AS73: 0 | AT73: 0 | AU73: 0 | AV73: 0 | AW73: 0 | AX73: 0 | AY73: 0 | AZ73: 0 | BA73: 0 | BB73: 0 | BC73: 0 | BD73: 0 | BE73: 0 | BF73: 0 | BG73: 0 | BH73: 0 | BI73: 0 | BJ73: 0 | BK73: 0 | BL73: 0 | BM73: 0 | BN73: 0 | BO73: 0 | BP73: 0 | BQ73: 0 | BR73: 0 | BS73: 0 | BT73: 0 | BU73: 0 | BV73: 0 | BW73: 0 | BX73: 0 | BY73: 0 | BZ73: 0 | CA73: 0 | CB73: 0 | CC73: 0 | CD73: 0 | CE73: 0 | CF73: 0 | CG73: 0 | CH73: 0 | CI73: 0 | CJ73: 0 | CK73: 0 | CL73: 0 | CM73: 0 | CN73: 0 | CO73: 0 | CP73: 0 | CQ73: 0 | CR73: 0 | CS73: 0 | CT73: 0 | CU73: 0 | CV73: 0 | CW73: 0 | CX73: 0 | CY73: 0 | CZ73: 0 | DA73: 0 | DB73: 0 | DC73: 0 | DD73: 0 | DE73: 0 | DF73: 0 | DG73: 0 | DH73: 0 | DI73: 0 | DJ73: 0 | DR73: 0
B74: 56 | J74: =IF(AND(H74>='A - Contractor Summary'!$F$37,I74<='A - Contractor Summary'!$F$43),"Yes","No") ->  | K74: =VLOOKUP($D74,'C.1 - Rate Sheets (2)'!B:F,2,FALSE) ->  | L74: =VLOOKUP($D74,'C.1 - Rate Sheets (2)'!B:F,3,FALSE) ->  | M74: =VLOOKUP($D74,'C.1 - Rate Sheets (2)'!B:F,4,FALSE) ->  | N74: =VLOOKUP($D74,'C.1 - Rate Sheets (2)'!B:F,5,FALSE) ->  | O74: 0 | P74: 0 | Q74: 0 | R74: 0 | S74: 0 | T74: 0 | U74: 0 | V74: 0 | W74: 0 | X74: 0 | Y74: 0 | Z74: 0 | AA74: 0 | AB74: 0 | AC74: 0 | AD74: 0 | AE74: 0 | AF74: 0 | AG74: 0 | AH74: 0 | AI74: 0 | AJ74: 0 | AK74: 0 | AL74: 0 | AM74: 0 | AN74: 0 | AO74: 0 | AP74: 0 | AQ74: 0 | AR74: 0 | AS74: 0 | AT74: 0 | AU74: 0 | AV74: 0 | AW74: 0 | AX74: 0 | AY74: 0 | AZ74: 0 | BA74: 0 | BB74: 0 | BC74: 0 | BD74: 0 | BE74: 0 | BF74: 0 | BG74: 0 | BH74: 0 | BI74: 0 | BJ74: 0 | BK74: 0 | BL74: 0 | BM74: 0 | BN74: 0 | BO74: 0 | BP74: 0 | BQ74: 0 | BR74: 0 | BS74: 0 | BT74: 0 | BU74: 0 | BV74: 0 | BW74: 0 | BX74: 0 | BY74: 0 | BZ74: 0 | CA74: 0 | CB74: 0 | CC74: 0 | CD74: 0 | CE74: 0 | CF74: 0 | CG74: 0 | CH74: 0 | CI74: 0 | CJ74: 0 | CK74: 0 | CL74: 0 | CM74: 0 | CN74: 0 | CO74: 0 | CP74: 0 | CQ74: 0 | CR74: 0 | CS74: 0 | CT74: 0 | CU74: 0 | CV74: 0 | CW74: 0 | CX74: 0 | CY74: 0 | CZ74: 0 | DA74: 0 | DB74: 0 | DC74: 0 | DD74: 0 | DE74: 0 | DF74: 0 | DG74: 0 | DH74: 0 | DI74: 0 | DJ74: 0 | DR74: 0
B75: 57 | J75: =IF(AND(H75>='A - Contractor Summary'!$F$37,I75<='A - Contractor Summary'!$F$43),"Yes","No") ->  | K75: =VLOOKUP($D75,'C.1 - Rate Sheets (2)'!B:F,2,FALSE) ->  | L75: =VLOOKUP($D75,'C.1 - Rate Sheets (2)'!B:F,3,FALSE) ->  | M75: =VLOOKUP($D75,'C.1 - Rate Sheets (2)'!B:F,4,FALSE) ->  | N75: =VLOOKUP($D75,'C.1 - Rate Sheets (2)'!B:F,5,FALSE) ->  | O75: 0 | P75: 0 | Q75: 0 | R75: 0 | S75: 0 | T75: 0 | U75: 0 | V75: 0 | W75: 0 | X75: 0 | Y75: 0 | Z75: 0 | AA75: 0 | AB75: 0 | AC75: 0 | AD75: 0 | AE75: 0 | AF75: 0 | AG75: 0 | AH75: 0 | AI75: 0 | AJ75: 0 | AK75: 0 | AL75: 0 | AM75: 0 | AN75: 0 | AO75: 0 | AP75: 0 | AQ75: 0 | AR75: 0 | AS75: 0 | AT75: 0 | AU75: 0 | AV75: 0 | AW75: 0 | AX75: 0 | AY75: 0 | AZ75: 0 | BA75: 0 | BB75: 0 | BC75: 0 | BD75: 0 | BE75: 0 | BF75: 0 | BG75: 0 | BH75: 0 | BI75: 0 | BJ75: 0 | BK75: 0 | BL75: 0 | BM75: 0 | BN75: 0 | BO75: 0 | BP75: 0 | BQ75: 0 | BR75: 0 | BS75: 0 | BT75: 0 | BU75: 0 | BV75: 0 | BW75: 0 | BX75: 0 | BY75: 0 | BZ75: 0 | CA75: 0 | CB75: 0 | CC75: 0 | CD75: 0 | CE75: 0 | CF75: 0 | CG75: 0 | CH75: 0 | CI75: 0 | CJ75: 0 | CK75: 0 | CL75: 0 | CM75: 0 | CN75: 0 | CO75: 0 | CP75: 0 | CQ75: 0 | CR75: 0 | CS75: 0 | CT75: 0 | CU75: 0 | CV75: 0 | CW75: 0 | CX75: 0 | CY75: 0 | CZ75: 0 | DA75: 0 | DB75: 0 | DC75: 0 | DD75: 0 | DE75: 0 | DF75: 0 | DG75: 0 | DH75: 0 | DI75: 0 | DJ75: 0 | DR75: 0
B76: 58 | J76: =IF(AND(H76>='A - Contractor Summary'!$F$37,I76<='A - Contractor Summary'!$F$43),"Yes","No") ->  | K76: =VLOOKUP($D76,'C.1 - Rate Sheets (2)'!B:F,2,FALSE) ->  | L76: =VLOOKUP($D76,'C.1 - Rate Sheets (2)'!B:F,3,FALSE) ->  | M76: =VLOOKUP($D76,'C.1 - Rate Sheets (2)'!B:F,4,FALSE) ->  | N76: =VLOOKUP($D76,'C.1 - Rate Sheets (2)'!B:F,5,FALSE) ->  | O76: 0 | P76: 0 | Q76: 0 | R76: 0 | S76: 0 | T76: 0 | U76: 0 | V76: 0 | W76: 0 | X76: 0 | Y76: 0 | Z76: 0 | AA76: 0 | AB76: 0 | AC76: 0 | AD76: 0 | AE76: 0 | AF76: 0 | AG76: 0 | AH76: 0 | AI76: 0 | AJ76: 0 | AK76: 0 | AL76: 0 | AM76: 0 | AN76: 0 | AO76: 0 | AP76: 0 | AQ76: 0 | AR76: 0 | AS76: 0 | AT76: 0 | AU76: 0 | AV76: 0 | AW76: 0 | AX76: 0 | AY76: 0 | AZ76: 0 | BA76: 0 | BB76: 0 | BC76: 0 | BD76: 0 | BE76: 0 | BF76: 0 | BG76: 0 | BH76: 0 | BI76: 0 | BJ76: 0 | BK76: 0 | BL76: 0 | BM76: 0 | BN76: 0 | BO76: 0 | BP76: 0 | BQ76: 0 | BR76: 0 | BS76: 0 | BT76: 0 | BU76: 0 | BV76: 0 | BW76: 0 | BX76: 0 | BY76: 0 | BZ76: 0 | CA76: 0 | CB76: 0 | CC76: 0 | CD76: 0 | CE76: 0 | CF76: 0 | CG76: 0 | CH76: 0 | CI76: 0 | CJ76: 0 | CK76: 0 | CL76: 0 | CM76: 0 | CN76: 0 | CO76: 0 | CP76: 0 | CQ76: 0 | CR76: 0 | CS76: 0 | CT76: 0 | CU76: 0 | CV76: 0 | CW76: 0 | CX76: 0 | CY76: 0 | CZ76: 0 | DA76: 0 | DB76: 0 | DC76: 0 | DD76: 0 | DE76: 0 | DF76: 0 | DG76: 0 | DH76: 0 | DI76: 0 | DJ76: 0 | DR76: 0
B77: 59 | J77: =IF(AND(H77>='A - Contractor Summary'!$F$37,I77<='A - Contractor Summary'!$F$43),"Yes","No") ->  | K77: =VLOOKUP($D77,'C.1 - Rate Sheets (2)'!B:F,2,FALSE) ->  | L77: =VLOOKUP($D77,'C.1 - Rate Sheets (2)'!B:F,3,FALSE) ->  | M77: =VLOOKUP($D77,'C.1 - Rate Sheets (2)'!B:F,4,FALSE) ->  | N77: =VLOOKUP($D77,'C.1 - Rate Sheets (2)'!B:F,5,FALSE) ->  | O77: 0 | P77: 0 | Q77: 0 | R77: 0 | S77: 0 | T77: 0 | U77: 0 | V77: 0 | W77: 0 | X77: 0 | Y77: 0 | Z77: 0 | AA77: 0 | AB77: 0 | AC77: 0 | AD77: 0 | AE77: 0 | AF77: 0 | AG77: 0 | AH77: 0 | AI77: 0 | AJ77: 0 | AK77: 0 | AL77: 0 | AM77: 0 | AN77: 0 | AO77: 0 | AP77: 0 | AQ77: 0 | AR77: 0 | AS77: 0 | AT77: 0 | AU77: 0 | AV77: 0 | AW77: 0 | AX77: 0 | AY77: 0 | AZ77: 0 | BA77: 0 | BB77: 0 | BC77: 0 | BD77: 0 | BE77: 0 | BF77: 0 | BG77: 0 | BH77: 0 | BI77: 0 | BJ77: 0 | BK77: 0 | BL77: 0 | BM77: 0 | BN77: 0 | BO77: 0 | BP77: 0 | BQ77: 0 | BR77: 0 | BS77: 0 | BT77: 0 | BU77: 0 | BV77: 0 | BW77: 0 | BX77: 0 | BY77: 0 | BZ77: 0 | CA77: 0 | CB77: 0 | CC77: 0 | CD77: 0 | CE77: 0 | CF77: 0 | CG77: 0 | CH77: 0 | CI77: 0 | CJ77: 0 | CK77: 0 | CL77: 0 | CM77: 0 | CN77: 0 | CO77: 0 | CP77: 0 | CQ77: 0 | CR77: 0 | CS77: 0 | CT77: 0 | CU77: 0 | CV77: 0 | CW77: 0 | CX77: 0 | CY77: 0 | CZ77: 0 | DA77: 0 | DB77: 0 | DC77: 0 | DD77: 0 | DE77: 0 | DF77: 0 | DG77: 0 | DH77: 0 | DI77: 0 | DJ77: 0 | DR77: 0
B78: 60 | J78: =IF(AND(H78>='A - Contractor Summary'!$F$37,I78<='A - Contractor Summary'!$F$43),"Yes","No") ->  | K78: =VLOOKUP($D78,'C.1 - Rate Sheets (2)'!B:F,2,FALSE) ->  | L78: =VLOOKUP($D78,'C.1 - Rate Sheets (2)'!B:F,3,FALSE) ->  | M78: =VLOOKUP($D78,'C.1 - Rate Sheets (2)'!B:F,4,FALSE) ->  | N78: =VLOOKUP($D78,'C.1 - Rate Sheets (2)'!B:F,5,FALSE) ->  | O78: 0 | P78: 0 | Q78: 0 | R78: 0 | S78: 0 | T78: 0 | U78: 0 | V78: 0 | W78: 0 | X78: 0 | Y78: 0 | Z78: 0 | AA78: 0 | AB78: 0 | AC78: 0 | AD78: 0 | AE78: 0 | AF78: 0 | AG78: 0 | AH78: 0 | AI78: 0 | AJ78: 0 | AK78: 0 | AL78: 0 | AM78: 0 | AN78: 0 | AO78: 0 | AP78: 0 | AQ78: 0 | AR78: 0 | AS78: 0 | AT78: 0 | AU78: 0 | AV78: 0 | AW78: 0 | AX78: 0 | AY78: 0 | AZ78: 0 | BA78: 0 | BB78: 0 | BC78: 0 | BD78: 0 | BE78: 0 | BF78: 0 | BG78: 0 | BH78: 0 | BI78: 0 | BJ78: 0 | BK78: 0 | BL78: 0 | BM78: 0 | BN78: 0 | BO78: 0 | BP78: 0 | BQ78: 0 | BR78: 0 | BS78: 0 | BT78: 0 | BU78: 0 | BV78: 0 | BW78: 0 | BX78: 0 | BY78: 0 | BZ78: 0 | CA78: 0 | CB78: 0 | CC78: 0 | CD78: 0 | CE78: 0 | CF78: 0 | CG78: 0 | CH78: 0 | CI78: 0 | CJ78: 0 | CK78: 0 | CL78: 0 | CM78: 0 | CN78: 0 | CO78: 0 | CP78: 0 | CQ78: 0 | CR78: 0 | CS78: 0 | CT78: 0 | CU78: 0 | CV78: 0 | CW78: 0 | CX78: 0 | CY78: 0 | CZ78: 0 | DA78: 0 | DB78: 0 | DC78: 0 | DD78: 0 | DE78: 0 | DF78: 0 | DG78: 0 | DH78: 0 | DI78: 0 | DJ78: 0 | DR78: 0
B79: 61 | J79: =IF(AND(H79>='A - Contractor Summary'!$F$37,I79<='A - Contractor Summary'!$F$43),"Yes","No") ->  | K79: =VLOOKUP($D79,'C.1 - Rate Sheets (2)'!B:F,2,FALSE) ->  | L79: =VLOOKUP($D79,'C.1 - Rate Sheets (2)'!B:F,3,FALSE) ->  | M79: =VLOOKUP($D79,'C.1 - Rate Sheets (2)'!B:F,4,FALSE) ->  | N79: =VLOOKUP($D79,'C.1 - Rate Sheets (2)'!B:F,5,FALSE) ->  | O79: 0 | P79: 0 | Q79: 0 | R79: 0 | S79: 0 | T79: 0 | U79: 0 | V79: 0 | W79: 0 | X79: 0 | Y79: 0 | Z79: 0 | AA79: 0 | AB79: 0 | AC79: 0 | AD79: 0 | AE79: 0 | AF79: 0 | AG79: 0 | AH79: 0 | AI79: 0 | AJ79: 0 | AK79: 0 | AL79: 0 | AM79: 0 | AN79: 0 | AO79: 0 | AP79: 0 | AQ79: 0 | AR79: 0 | AS79: 0 | AT79: 0 | AU79: 0 | AV79: 0 | AW79: 0 | AX79: 0 | AY79: 0 | AZ79: 0 | BA79: 0 | BB79: 0 | BC79: 0 | BD79: 0 | BE79: 0 | BF79: 0 | BG79: 0 | BH79: 0 | BI79: 0 | BJ79: 0 | BK79: 0 | BL79: 0 | BM79: 0 | BN79: 0 | BO79: 0 | BP79: 0 | BQ79: 0 | BR79: 0 | BS79: 0 | BT79: 0 | BU79: 0 | BV79: 0 | BW79: 0 | BX79: 0 | BY79: 0 | BZ79: 0 | CA79: 0 | CB79: 0 | CC79: 0 | CD79: 0 | CE79: 0 | CF79: 0 | CG79: 0 | CH79: 0 | CI79: 0 | CJ79: 0 | CK79: 0 | CL79: 0 | CM79: 0 | CN79: 0 | CO79: 0 | CP79: 0 | CQ79: 0 | CR79: 0 | CS79: 0 | CT79: 0 | CU79: 0 | CV79: 0 | CW79: 0 | CX79: 0 | CY79: 0 | CZ79: 0 | DA79: 0 | DB79: 0 | DC79: 0 | DD79: 0 | DE79: 0 | DF79: 0 | DG79: 0 | DH79: 0 | DI79: 0 | DJ79: 0 | DR79: 0
B80: 62 | J80: =IF(AND(H80>='A - Contractor Summary'!$F$37,I80<='A - Contractor Summary'!$F$43),"Yes","No") ->  | K80: =VLOOKUP($D80,'C.1 - Rate Sheets (2)'!B:F,2,FALSE) ->  | L80: =VLOOKUP($D80,'C.1 - Rate Sheets (2)'!B:F,3,FALSE) ->  | M80: =VLOOKUP($D80,'C.1 - Rate Sheets (2)'!B:F,4,FALSE) ->  | N80: =VLOOKUP($D80,'C.1 - Rate Sheets (2)'!B:F,5,FALSE) ->  | O80: 0 | P80: 0 | Q80: 0 | R80: 0 | S80: 0 | T80: 0 | U80: 0 | V80: 0 | W80: 0 | X80: 0 | Y80: 0 | Z80: 0 | AA80: 0 | AB80: 0 | AC80: 0 | AD80: 0 | AE80: 0 | AF80: 0 | AG80: 0 | AH80: 0 | AI80: 0 | AJ80: 0 | AK80: 0 | AL80: 0 | AM80: 0 | AN80: 0 | AO80: 0 | AP80: 0 | AQ80: 0 | AR80: 0 | AS80: 0 | AT80: 0 | AU80: 0 | AV80: 0 | AW80: 0 | AX80: 0 | AY80: 0 | AZ80: 0 | BA80: 0 | BB80: 0 | BC80: 0 | BD80: 0 | BE80: 0 | BF80: 0 | BG80: 0 | BH80: 0 | BI80: 0 | BJ80: 0 | BK80: 0 | BL80: 0 | BM80: 0 | BN80: 0 | BO80: 0 | BP80: 0 | BQ80: 0 | BR80: 0 | BS80: 0 | BT80: 0 | BU80: 0 | BV80: 0 | BW80: 0 | BX80: 0 | BY80: 0 | BZ80: 0 | CA80: 0 | CB80: 0 | CC80: 0 | CD80: 0 | CE80: 0 | CF80: 0 | CG80: 0 | CH80: 0 | CI80: 0 | CJ80: 0 | CK80: 0 | CL80: 0 | CM80: 0 | CN80: 0 | CO80: 0 | CP80: 0 | CQ80: 0 | CR80: 0 | CS80: 0 | CT80: 0 | CU80: 0 | CV80: 0 | CW80: 0 | CX80: 0 | CY80: 0 | CZ80: 0 | DA80: 0 | DB80: 0 | DC80: 0 | DD80: 0 | DE80: 0 | DF80: 0 | DG80: 0 | DH80: 0 | DI80: 0 | DJ80: 0 | DR80: 0
B81: 63 | J81: =IF(AND(H81>='A - Contractor Summary'!$F$37,I81<='A - Contractor Summary'!$F$43),"Yes","No") ->  | K81: =VLOOKUP($D81,'C.1 - Rate Sheets (2)'!B:F,2,FALSE) ->  | L81: =VLOOKUP($D81,'C.1 - Rate Sheets (2)'!B:F,3,FALSE) ->  | M81: =VLOOKUP($D81,'C.1 - Rate Sheets (2)'!B:F,4,FALSE) ->  | N81: =VLOOKUP($D81,'C.1 - Rate Sheets (2)'!B:F,5,FALSE) ->  | O81: 0 | P81: 0 | Q81: 0 | R81: 0 | S81: 0 | T81: 0 | U81: 0 | V81: 0 | W81: 0 | X81: 0 | Y81: 0 | Z81: 0 | AA81: 0 | AB81: 0 | AC81: 0 | AD81: 0 | AE81: 0 | AF81: 0 | AG81: 0 | AH81: 0 | AI81: 0 | AJ81: 0 | AK81: 0 | AL81: 0 | AM81: 0 | AN81: 0 | AO81: 0 | AP81: 0 | AQ81: 0 | AR81: 0 | AS81: 0 | AT81: 0 | AU81: 0 | AV81: 0 | AW81: 0 | AX81: 0 | AY81: 0 | AZ81: 0 | BA81: 0 | BB81: 0 | BC81: 0 | BD81: 0 | BE81: 0 | BF81: 0 | BG81: 0 | BH81: 0 | BI81: 0 | BJ81: 0 | BK81: 0 | BL81: 0 | BM81: 0 | BN81: 0 | BO81: 0 | BP81: 0 | BQ81: 0 | BR81: 0 | BS81: 0 | BT81: 0 | BU81: 0 | BV81: 0 | BW81: 0 | BX81: 0 | BY81: 0 | BZ81: 0 | CA81: 0 | CB81: 0 | CC81: 0 | CD81: 0 | CE81: 0 | CF81: 0 | CG81: 0 | CH81: 0 | CI81: 0 | CJ81: 0 | CK81: 0 | CL81: 0 | CM81: 0 | CN81: 0 | CO81: 0 | CP81: 0 | CQ81: 0 | CR81: 0 | CS81: 0 | CT81: 0 | CU81: 0 | CV81: 0 | CW81: 0 | CX81: 0 | CY81: 0 | CZ81: 0 | DA81: 0 | DB81: 0 | DC81: 0 | DD81: 0 | DE81: 0 | DF81: 0 | DG81: 0 | DH81: 0 | DI81: 0 | DJ81: 0 | DR81: 0
B82: 64 | J82: =IF(AND(H82>='A - Contractor Summary'!$F$37,I82<='A - Contractor Summary'!$F$43),"Yes","No") ->  | K82: =VLOOKUP($D82,'C.1 - Rate Sheets (2)'!B:F,2,FALSE) ->  | L82: =VLOOKUP($D82,'C.1 - Rate Sheets (2)'!B:F,3,FALSE) ->  | M82: =VLOOKUP($D82,'C.1 - Rate Sheets (2)'!B:F,4,FALSE) ->  | N82: =VLOOKUP($D82,'C.1 - Rate Sheets (2)'!B:F,5,FALSE) ->  | O82: 0 | P82: 0 | Q82: 0 | R82: 0 | S82: 0 | T82: 0 | U82: 0 | V82: 0 | W82: 0 | X82: 0 | Y82: 0 | Z82: 0 | AA82: 0 | AB82: 0 | AC82: 0 | AD82: 0 | AE82: 0 | AF82: 0 | AG82: 0 | AH82: 0 | AI82: 0 | AJ82: 0 | AK82: 0 | AL82: 0 | AM82: 0 | AN82: 0 | AO82: 0 | AP82: 0 | AQ82: 0 | AR82: 0 | AS82: 0 | AT82: 0 | AU82: 0 | AV82: 0 | AW82: 0 | AX82: 0 | AY82: 0 | AZ82: 0 | BA82: 0 | BB82: 0 | BC82: 0 | BD82: 0 | BE82: 0 | BF82: 0 | BG82: 0 | BH82: 0 | BI82: 0 | BJ82: 0 | BK82: 0 | BL82: 0 | BM82: 0 | BN82: 0 | BO82: 0 | BP82: 0 | BQ82: 0 | BR82: 0 | BS82: 0 | BT82: 0 | BU82: 0 | BV82: 0 | BW82: 0 | BX82: 0 | BY82: 0 | BZ82: 0 | CA82: 0 | CB82: 0 | CC82: 0 | CD82: 0 | CE82: 0 | CF82: 0 | CG82: 0 | CH82: 0 | CI82: 0 | CJ82: 0 | CK82: 0 | CL82: 0 | CM82: 0 | CN82: 0 | CO82: 0 | CP82: 0 | CQ82: 0 | CR82: 0 | CS82: 0 | CT82: 0 | CU82: 0 | CV82: 0 | CW82: 0 | CX82: 0 | CY82: 0 | CZ82: 0 | DA82: 0 | DB82: 0 | DC82: 0 | DD82: 0 | DE82: 0 | DF82: 0 | DG82: 0 | DH82: 0 | DI82: 0 | DJ82: 0 | DR82: 0
B83: 65 | H83: =INDEX($O$16:$DE$16,MATCH(TRUE,INDEX((O83:DE83>0),0),0)) ->  | I83: =LOOKUP(2,1/(1-(O83:DE83<=0)),$O$16:$DE$16) ->  | J83: =IF(AND(H83>='A - Contractor Summary'!$F$37,I83<='A - Contractor Summary'!$F$43),"Yes","No") ->  | K83: =VLOOKUP($D83,'C.1 - Rate Sheets (2)'!B:F,2,FALSE) ->  | L83: =VLOOKUP($D83,'C.1 - Rate Sheets (2)'!B:F,3,FALSE) ->  | M83: =VLOOKUP($D83,'C.1 - Rate Sheets (2)'!B:F,4,FALSE) ->  | N83: =VLOOKUP($D83,'C.1 - Rate Sheets (2)'!B:F,5,FALSE) ->  | O83: 0 | P83: 0 | Q83: 0 | R83: 0 | S83: =SUM(O83:R83) -> 0 | T83: 0 | U83: 0 | V83: 0 | W83: 0 | X83: 0 | Y83: 0 | Z83: 0 | AA83: 0 | AB83: 0 | AC83: 0 | AD83: 0 | AE83: 0 | AF83: 0 | AG83: 0 | AH83: 0 | AI83: 0 | AJ83: 0 | AK83: 0 | AL83: 0 | AM83: 0 | AN83: 0 | AO83: 0 | AP83: 0 | AQ83: 0 | AR83: 0 | AS83: 0 | AT83: 0 | AU83: 0 | AV83: 0 | AW83: 0 | AX83: 0 | AY83: 0 | AZ83: 0 | BA83: 0 | BB83: 0 | BC83: 0 | BD83: 0 | BE83: 0 | BF83: 0 | BG83: 0 | BH83: 0 | BI83: 0 | BJ83: 0 | BK83: 0 | BL83: 0 | BM83: 0 | BN83: 0 | BO83: 0 | BP83: 0 | BQ83: 0 | BR83: 0 | BS83: 0 | BT83: 0 | BU83: 0 | BV83: 0 | BW83: 0 | BX83: 0 | BY83: 0 | BZ83: 0 | CA83: 0 | CB83: 0 | CC83: 0 | CD83: 0 | CE83: 0 | CF83: 0 | CG83: 0 | CH83: 0 | CI83: 0 | CJ83: 0 | CK83: 0 | CL83: 0 | CM83: 0 | CN83: 0 | CO83: 0 | CP83: 0 | CQ83: 0 | CR83: 0 | CS83: 0 | CT83: 0 | CU83: 0 | CV83: 0 | CW83: 0 | CX83: 0 | CY83: 0 | CZ83: 0 | DA83: 0 | DB83: 0 | DC83: 0 | DD83: 0 | DE83: 0 | DF83: =SUM(O83,T83,Y83,AD83,AI83,AN83,AS83,AX83,BC83,BH83,BM83,BR83,BW83,CB83,CG83,CL83,CQ83,CV83,DA83) -> 0 | DG83: 0 | DH83: 0 | DI83: 0 | DJ83: 0 | DK83: =DF83*K83 ->  | DP83: =DO83-DR83 ->  | DR83: 0
B84: 66 | J84: =IF(AND(H84>='A - Contractor Summary'!$F$37,I84<='A - Contractor Summary'!$F$43),"Yes","No") ->  | K84: =VLOOKUP($D84,'C.1 - Rate Sheets (2)'!B:F,2,FALSE) ->  | L84: =VLOOKUP($D84,'C.1 - Rate Sheets (2)'!B:F,3,FALSE) ->  | M84: =VLOOKUP($D84,'C.1 - Rate Sheets (2)'!B:F,4,FALSE) ->  | N84: =VLOOKUP($D84,'C.1 - Rate Sheets (2)'!B:F,5,FALSE) ->  | O84: 0 | P84: 0 | Q84: 0 | R84: 0 | S84: 0 | T84: 0 | U84: 0 | V84: 0 | W84: 0 | X84: =SUM(T84:W84) -> 0 | Y84: 0 | Z84: 0 | AA84: 0 | AB84: 0 | AC84: =SUM(Y84:AB84) -> 0 | AD84: 0 | AE84: 0 | AF84: 0 | AG84: 0 | AH84: =SUM(AD84:AG84) -> 0 | AI84: 0 | AJ84: 0 | AK84: 0 | AL84: 0 | AM84: =SUM(AI84:AL84) -> 0 | AN84: 0 | AO84: 0 | AP84: 0 | AQ84: 0 | AR84: =SUM(AN84:AQ84) -> 0 | AS84: 0 | AT84: 0 | AU84: 0 | AV84: 0 | AW84: =SUM(AS84:AV84) -> 0 | AX84: 0 | AY84: 0 | AZ84: 0 | BA84: 0 | BB84: =SUM(AX84:BA84) -> 0 | BC84: 0 | BD84: 0 | BE84: 0 | BF84: 0 | BG84: =SUM(BC84:BF84) -> 0 | BH84: 0 | BI84: 0 | BJ84: 0 | BK84: 0 | BL84: =SUM(BH84:BK84) -> 0 | BM84: 0 | BN84: 0 | BO84: 0 | BP84: 0 | BQ84: =SUM(BM84:BP84) -> 0 | BR84: 0 | BS84: 0 | BT84: 0 | BU84: 0 | BV84: =SUM(BR84:BU84) -> 0 | BW84: 0 | BX84: 0 | BY84: 0 | BZ84: 0 | CA84: =SUM(BW84:BZ84) -> 0 | CB84: 0 | CC84: 0 | CD84: 0 | CE84: 0 | CF84: =SUM(CB84:CE84) -> 0 | CG84: 0 | CH84: 0 | CI84: 0 | CJ84: 0 | CK84: =SUM(CG84:CJ84) -> 0 | CL84: 0 | CM84: 0 | CN84: 0 | CO84: 0 | CP84: =SUM(CL84:CO84) -> 0 | CQ84: 0 | CR84: 0 | CS84: 0 | CT84: 0 | CU84: =SUM(CQ84:CT84) -> 0 | CV84: 0 | CW84: 0 | CX84: 0 | CY84: 0 | CZ84: =SUM(CV84:CY84) -> 0 | DA84: 0 | DB84: 0 | DC84: 0 | DD84: 0 | DE84: =SUM(DA84:DD84) -> 0 | DF84: 0 | DG84: 0 | DH84: 0 | DI84: 0 | DJ84: 0 | DR84: 0
B85: 67 | J85: =IF(AND(H85>='A - Contractor Summary'!$F$37,I85<='A - Contractor Summary'!$F$43),"Yes","No") ->  | K85: =VLOOKUP($D85,'C.1 - Rate Sheets (2)'!B:F,2,FALSE) ->  | L85: =VLOOKUP($D85,'C.1 - Rate Sheets (2)'!B:F,3,FALSE) ->  | M85: =VLOOKUP($D85,'C.1 - Rate Sheets (2)'!B:F,4,FALSE) ->  | N85: =VLOOKUP($D85,'C.1 - Rate Sheets (2)'!B:F,5,FALSE) ->  | O85: 0 | P85: 0 | Q85: 0 | R85: 0 | S85: 0 | T85: 0 | U85: 0 | V85: 0 | W85: 0 | X85: 0 | Y85: 0 | Z85: 0 | AA85: 0 | AB85: 0 | AC85: 0 | AD85: 0 | AE85: 0 | AF85: 0 | AG85: 0 | AH85: 0 | AI85: 0 | AJ85: 0 | AK85: 0 | AL85: 0 | AM85: 0 | AN85: 0 | AO85: 0 | AP85: 0 | AQ85: 0 | AR85: 0 | AS85: 0 | AT85: 0 | AU85: 0 | AV85: 0 | AW85: 0 | AX85: 0 | AY85: 0 | AZ85: 0 | BA85: 0 | BB85: 0 | BC85: 0 | BD85: 0 | BE85: 0 | BF85: 0 | BG85: 0 | BH85: 0 | BI85: 0 | BJ85: 0 | BK85: 0 | BL85: 0 | BM85: 0 | BN85: 0 | BO85: 0 | BP85: 0 | BQ85: 0 | BR85: 0 | BS85: 0 | BT85: 0 | BU85: 0 | BV85: 0 | BW85: 0 | BX85: 0 | BY85: 0 | BZ85: 0 | CA85: 0 | CB85: 0 | CC85: 0 | CD85: 0 | CE85: 0 | CF85: 0 | CG85: 0 | CH85: 0 | CI85: 0 | CJ85: 0 | CK85: 0 | CL85: 0 | CM85: 0 | CN85: 0 | CO85: 0 | CP85: 0 | CQ85: 0 | CR85: 0 | CS85: 0 | CT85: 0 | CU85: 0 | CV85: 0 | CW85: 0 | CX85: 0 | CY85: 0 | CZ85: 0 | DA85: 0 | DB85: 0 | DC85: 0 | DD85: 0 | DE85: 0 | DF85: 0 | DG85: 0 | DH85: 0 | DI85: 0 | DJ85: 0 | DR85: 0
B86: 68 | J86: =IF(AND(H86>='A - Contractor Summary'!$F$37,I86<='A - Contractor Summary'!$F$43),"Yes","No") ->  | K86: =VLOOKUP($D86,'C.1 - Rate Sheets (2)'!B:F,2,FALSE) ->  | L86: =VLOOKUP($D86,'C.1 - Rate Sheets (2)'!B:F,3,FALSE) ->  | M86: =VLOOKUP($D86,'C.1 - Rate Sheets (2)'!B:F,4,FALSE) ->  | N86: =VLOOKUP($D86,'C.1 - Rate Sheets (2)'!B:F,5,FALSE) ->  | O86: 0 | P86: 0 | Q86: 0 | R86: 0 | S86: 0 | T86: 0 | U86: 0 | V86: 0 | W86: 0 | X86: 0 | Y86: 0 | Z86: 0 | AA86: 0 | AB86: 0 | AC86: 0 | AD86: 0 | AE86: 0 | AF86: 0 | AG86: 0 | AH86: 0 | AI86: 0 | AJ86: 0 | AK86: 0 | AL86: 0 | AM86: 0 | AN86: 0 | AO86: 0 | AP86: 0 | AQ86: 0 | AR86: 0 | AS86: 0 | AT86: 0 | AU86: 0 | AV86: 0 | AW86: 0 | AX86: 0 | AY86: 0 | AZ86: 0 | BA86: 0 | BB86: 0 | BC86: 0 | BD86: 0 | BE86: 0 | BF86: 0 | BG86: 0 | BH86: 0 | BI86: 0 | BJ86: 0 | BK86: 0 | BL86: 0 | BM86: 0 | BN86: 0 | BO86: 0 | BP86: 0 | BQ86: 0 | BR86: 0 | BS86: 0 | BT86: 0 | BU86: 0 | BV86: 0 | BW86: 0 | BX86: 0 | BY86: 0 | BZ86: 0 | CA86: 0 | CB86: 0 | CC86: 0 | CD86: 0 | CE86: 0 | CF86: 0 | CG86: 0 | CH86: 0 | CI86: 0 | CJ86: 0 | CK86: 0 | CL86: 0 | CM86: 0 | CN86: 0 | CO86: 0 | CP86: 0 | CQ86: 0 | CR86: 0 | CS86: 0 | CT86: 0 | CU86: 0 | CV86: 0 | CW86: 0 | CX86: 0 | CY86: 0 | CZ86: 0 | DA86: 0 | DB86: 0 | DC86: 0 | DD86: 0 | DE86: 0 | DF86: 0 | DG86: 0 | DH86: 0 | DI86: 0 | DJ86: 0 | DR86: 0
B87: 69 | J87: =IF(AND(H87>='A - Contractor Summary'!$F$37,I87<='A - Contractor Summary'!$F$43),"Yes","No") ->  | K87: =VLOOKUP($D87,'C.1 - Rate Sheets (2)'!B:F,2,FALSE) ->  | L87: =VLOOKUP($D87,'C.1 - Rate Sheets (2)'!B:F,3,FALSE) ->  | M87: =VLOOKUP($D87,'C.1 - Rate Sheets (2)'!B:F,4,FALSE) ->  | N87: =VLOOKUP($D87,'C.1 - Rate Sheets (2)'!B:F,5,FALSE) ->  | O87: 0 | P87: 0 | Q87: 0 | R87: 0 | S87: 0 | T87: 0 | U87: 0 | V87: 0 | W87: 0 | X87: 0 | Y87: 0 | Z87: 0 | AA87: 0 | AB87: 0 | AC87: 0 | AD87: 0 | AE87: 0 | AF87: 0 | AG87: 0 | AH87: 0 | AI87: 0 | AJ87: 0 | AK87: 0 | AL87: 0 | AM87: 0 | AN87: 0 | AO87: 0 | AP87: 0 | AQ87: 0 | AR87: 0 | AS87: 0 | AT87: 0 | AU87: 0 | AV87: 0 | AW87: 0 | AX87: 0 | AY87: 0 | AZ87: 0 | BA87: 0 | BB87: 0 | BC87: 0 | BD87: 0 | BE87: 0 | BF87: 0 | BG87: 0 | BH87: 0 | BI87: 0 | BJ87: 0 | BK87: 0 | BL87: 0 | BM87: 0 | BN87: 0 | BO87: 0 | BP87: 0 | BQ87: 0 | BR87: 0 | BS87: 0 | BT87: 0 | BU87: 0 | BV87: 0 | BW87: 0 | BX87: 0 | BY87: 0 | BZ87: 0 | CA87: 0 | CB87: 0 | CC87: 0 | CD87: 0 | CE87: 0 | CF87: 0 | CG87: 0 | CH87: 0 | CI87: 0 | CJ87: 0 | CK87: 0 | CL87: 0 | CM87: 0 | CN87: 0 | CO87: 0 | CP87: 0 | CQ87: 0 | CR87: 0 | CS87: 0 | CT87: 0 | CU87: 0 | CV87: 0 | CW87: 0 | CX87: 0 | CY87: 0 | CZ87: 0 | DA87: 0 | DB87: 0 | DC87: 0 | DD87: 0 | DE87: 0 | DF87: 0 | DG87: 0 | DH87: 0 | DI87: 0 | DJ87: 0 | DR87: 0
